Workbook

Sheet Velkomst

Sheet Tabel 1 H
A1: Tabel 1. Forsikrede medlemmer
A3: Hovedstaden
C5: Mænd | E5: Kvinder | G5: I alt
A7: Civ. ing. | C7: 13267 | E7: 5515 | G7: 18782
A8: Diplom ing. | C8: 9855 | E8: 2577 | G8: 12432
A9: Cand. Scient. Tek. | C9: 6318 | E9: 5852 | G9: 12170
A10: MA. Hum. | C10: 6265 | E10: 14340 | G10: 20605
A11: MA. Nat. | C11: 3502 | E11: 3637 | G11: 7139
A12: MA. Ph.d. | C12: 735 | E12: 588 | G12: 1323
A13: MA. Samf. | C13: 1114 | E13: 2947 | G13: 4061
A14: Øvrige Mag. | C14: 634 | E14: 1262 | G14: 1896
A15: Agronom | C15: 387 | E15: 480 | G15: 867
A16: Landsk. Arkt. | C16: 134 | E16: 357 | G16: 491
A17: Hortonom | C17: 51 | E17: 91 | G17: 142
A18: Forstkand. | C18: 187 | E18: 64 | G18: 251
A19: Jordbrugsakad. | C19: 759 | E19: 992 | G19: 1751
A20: Mejeriing. | C20: 65 | E20: 95 | G20: 160
A21: Levn.m.kand. | C21: 54 | E21: 286 | G21: 340
A22: Dyrlæge | C22: 160 | E22: 842 | G22: 1002
A23: Farmaceut | C23: 1112 | E23: 2878 | G23: 3990
A24: Læge | C24: 1606 | E24: 3889 | G24: 5495
A25: Tandlæge | C25: 143 | E25: 729 | G25: 872
A26: Arkitekt | C26: 1638 | E26: 2054 | G26: 3692
A27: Landinspek. | C27: 136 | E27: 54 | G27: 190
A28: Bibliotekar | C28: 423 | E28: 1164 | G28: 1587
A29: Musikudd. | C29: 123 | E29: 165 | G29: 288
A30: Teolog | C30: 204 | E30: 349 | G30: 553
A31: Psykolog | C31: 681 | E31: 3095 | G31: 3776
A32: Jurist | C32: 3331 | E32: 6638 | G32: 9969
A33: Økonom | C33: 3519 | E33: 2263 | G33: 5782
A34: Samf. Adm. | C34: 7176 | E34: 10712 | G34: 17888
A35: Cand. Merc. | C35: 10933 | E35: 11094 | G35: 22027
A36: HA | C36: 1440 | E36: 1283 | G36: 2723
A37: HD | C37: 1253 | E37: 1189 | G37: 2442
A38: Komm. og Sprog | C38: 603 | E38: 3254 | G38: 3857
A39: Bygningskonst. | C39: 2197 | E39: 554 | G39: 2751
A40: Cand. IT. | C40: 1704 | E40: 1458 | G40: 3162
A41: Bac. Samf. | C41: 384 | E41: 452 | G41: 836
A42: Bac. Hum. | C42: 799 | E42: 1375 | G42: 2174
A43: Bac. Nat. | C43: 1177 | E43: 828 | G43: 2005
A44: Andre | C44: 6708 | E44: 7858 | G44: 14566
A46: Total | C46: 90018 | E46: 102268 | G46: 192286
A48: Ingeniører i alt | C48: 23122 | E48: 8092 | G48: 31214
A49: Magistre i alt | C49: 12250 | E49: 22774 | G49: 35024
A50: DJØF'ere i alt | C50: 26399 | E50: 31990 | G50: 58389
A57: København
C59: Mænd | E59: Kvinder | G59: I alt
A61: Civ. ing. | C61: 4583 | E61: 1835 | G61: 6418
A62: Diplom ing. | C62: 2567 | E62: 686 | G62: 3253
A63: Cand. Scient. Tek. | C63: 3399 | E63: 3120 | G63: 6519
A64: MA. Hum. | C64: 4074 | E64: 8517 | G64: 12591
A65: MA. Nat. | C65: 1500 | E65: 1533 | G65: 3033
A66: MA. Ph.d. | C66: 384 | E66: 286 | G66: 670
A67: MA. Samf. | C67: 809 | E67: 1988 | G67: 2797
A68: Øvrige Mag. | C68: 375 | E68: 752 | G68: 1127
A69: Agronom | C69: 149 | E69: 177 | G69: 326
A70: Landsk. Arkt. | C70: 75 | E70: 178 | G70: 253
A71: Hortonom | C71: 21 | E71: 27 | G71: 48
A72: Forstkand. | C72: 62 | E72: 25 | G72: 87
A73: Jordbrugsakad. | C73: 307 | E73: 407 | G73: 714
A74: Mejeriing. | C74: 27 | E74: 44 | G74: 71
A75: Levn.m.kand. | C75: 36 | E75: 137 | G75: 173
A76: Dyrlæge | C76: 57 | E76: 273 | G76: 330
A77: Farmaceut | C77: 433 | E77: 920 | G77: 1353
A78: Læge | C78: 787 | E78: 1795 | G78: 2582
A79: Tandlæge | C79: 55 | E79: 261 | G79: 316
A80: Arkitekt | C80: 1036 | E80: 1274 | G80: 2310
A81: Landinspek. | C81: 38 | E81: 16 | G81: 54
A82: Bibliotekar | C82: 230 | E82: 502 | G82: 732
A83: Musikudd. | C83: 60 | E83: 78 | G83: 138
A84: Teolog | C84: 95 | E84: 156 | G84: 251
A85: Psykolog | C85: 433 | E85: 1696 | G85: 2129
A86: Jurist | C86: 1642 | E86: 2898 | G86: 4540
A87: Økonom | C87: 1720 | E87: 1043 | G87: 2763
A88: Samf. Adm. | C88: 4171 | E88: 6071 | G88: 10242
A89: Cand. Merc. | C89: 5385 | E89: 5417 | G89: 10802
A90: HA | C90: 659 | E90: 621 | G90: 1280
A91: HD | C91: 459 | E91: 581 | G91: 1040
A92: Komm. og Sprog | C92: 365 | E92: 1455 | G92: 1820
A93: Bygningskonst. | C93: 953 | E93: 274 | G93: 1227
A94: Cand. IT. | C94: 1037 | E94: 919 | G94: 1956
A95: Bac. Samf. | C95: 233 | E95: 251 | G95: 484
A96: Bac. Hum. | C96: 517 | E96: 891 | G96: 1408
A97: Bac. Nat. | C97: 637 | E97: 499 | G97: 1136
A98: Andre | C98: 3498 | E98: 4268 | G98: 7766
A100: Total | C100: 42561 | E100: 51464 | G100: 94025
A102: Ingeniører i alt | C102: 7150 | E102: 2521 | G102: 9671
A103: Magistre i alt | C103: 7142 | E103: 13076 | G103: 20218
A104: DJØF'ere i alt | C104: 13577 | E104: 16050 | G104: 29627
A111: Frederiksberg
C113: Mænd | E113: Kvinder | G113: I alt
A115: Civ. ing. | C115: 817 | E115: 335 | G115: 1152
A116: Diplom ing. | C116: 448 | E116: 102 | G116: 550
A117: Cand. Scient. Tek. | C117: 433 | E117: 431 | G117: 864
A118: MA. Hum. | C118: 527 | E118: 1287 | G118: 1814
A119: MA. Nat. | C119: 258 | E119: 229 | G119: 487
A120: MA. Ph.d. | C120: 65 | E120: 60 | G120: 125
A121: MA. Samf. | C121: 98 | E121: 270 | G121: 368
A122: Øvrige Mag. | C122: 62 | E122: 97 | G122: 159
A123: Agronom | C123: 39 | E123: 42 | G123: 81
A124: Landsk. Arkt. | C124: 13 | E124: 26 | G124: 39
A125: Hortonom | C125: 1 | E125: 8 | G125: 9
A126: Forstkand. | C126: 6 | E126: 4 | G126: 10
A127: Jordbrugsakad. | C127: 59 | E127: 80 | G127: 139
A128: Mejeriing. | C128: 6 | E128: 4 | G128: 10
A129: Levn.m.kand. | C129: 3 | E129: 21 | G129: 24
A130: Dyrlæge | C130: 17 | E130: 54 | G130: 71
A131: Farmaceut | C131: 58 | E131: 164 | G131: 222
A132: Læge | C132: 143 | E132: 352 | G132: 495
A133: Tandlæge | C133: 7 | E133: 58 | G133: 65
A134: Arkitekt | C134: 201 | E134: 224 | G134: 425
A135: Landinspek. | C135: 12 | E135: 4 | G135: 16
A136: Bibliotekar | C136: 30 | E136: 91 | G136: 121
A137: Musikudd. | C137: 9 | E137: 12 | G137: 21
A138: Teolog | C138: 8 | E138: 32 | G138: 40
A139: Psykolog | C139: 57 | E139: 268 | G139: 325
A140: Jurist | C140: 393 | E140: 658 | G140: 1051
A141: Økonom | C141: 347 | E141: 238 | G141: 585
A142: Samf. Adm. | C142: 690 | E142: 1045 | G142: 1735
A143: Cand. Merc. | C143: 1224 | E143: 1243 | G143: 2467
A144: HA | C144: 139 | E144: 113 | G144: 252
A145: HD | C145: 111 | E145: 81 | G145: 192
A146: Komm. og Sprog | C146: 59 | E146: 296 | G146: 355
A147: Bygningskonst. | C147: 119 | E147: 41 | G147: 160
A148: Cand. IT. | C148: 133 | E148: 116 | G148: 249
A149: Bac. Samf. | C149: 27 | E149: 44 | G149: 71
A150: Bac. Hum. | C150: 72 | E150: 114 | G150: 186
A151: Bac. Nat. | C151: 65 | E151: 60 | G151: 125
A152: Andre | C152: 554 | E152: 684 | G152: 1238
A154: Total | C154: 7251 | E154: 8908 | G154: 16159
A156: Ingeniører i alt | C156: 1265 | E156: 437 | G156: 1702
A157: Magistre i alt | C157: 1010 | E157: 1943 | G157: 2953
A158: DJØF'ere i alt | C158: 2793 | E158: 3297 | G158: 6090
A165: Ballerup
C167: Mænd | E167: Kvinder | G167: I alt
A169: Civ. ing. | C169: 400 | E169: 173 | G169: 573
A170: Diplom ing. | C170: 396 | E170: 103 | G170: 499
A171: Cand. Scient. Tek. | C171: 125 | E171: 110 | G171: 235
A172: MA. Hum. | C172: 72 | E172: 154 | G172: 226
A173: MA. Nat. | C173: 85 | E173: 91 | G173: 176
A174: MA. Ph.d. | C174: 11 | E174: 13 | G174: 24
A175: MA. Samf. | C175: 15 | E175: 22 | G175: 37
A176: Øvrige Mag. | C176: 8 | E176: 17 | G176: 25
A177: Agronom | C177: 9 | E177: 12 | G177: 21
A178: Landsk. Arkt. | C178: 3 | E178: 8 | G178: 11
A179: Hortonom | C179: 1 | E179: 2 | G179: 3
A180: Forstkand. | C180: 3 | E180: 1 | G180: 4
A181: Jordbrugsakad. | C181: 16 | E181: 23 | G181: 39
A182: Mejeriing. | C182: 1 | E182: 3 | G182: 4
A183: Levn.m.kand. | C183: 0 | E183: 3 | G183: 3
A184: Dyrlæge | C184: 3 | E184: 27 | G184: 30
A185: Farmaceut | C185: 31 | E185: 98 | G185: 129
A186: Læge | C186: 30 | E186: 54 | G186: 84
A187: Tandlæge | C187: 0 | E187: 16 | G187: 16
A188: Arkitekt | C188: 11 | E188: 12 | G188: 23
A189: Landinspek. | C189: 6 | E189: 2 | G189: 8
A190: Bibliotekar | C190: 11 | E190: 29 | G190: 40
A191: Musikudd. | C191: 3 | E191: 4 | G191: 7
A192: Teolog | C192: 3 | E192: 6 | G192: 9
A193: Psykolog | C193: 8 | E193: 43 | G193: 51
A194: Jurist | C194: 31 | E194: 84 | G194: 115
A195: Økonom | C195: 54 | E195: 23 | G195: 77
A196: Samf. Adm. | C196: 89 | E196: 128 | G196: 217
A197: Cand. Merc. | C197: 141 | E197: 138 | G197: 279
A198: HA | C198: 20 | E198: 16 | G198: 36
A199: HD | C199: 16 | E199: 18 | G199: 34
A200: Komm. og Sprog | C200: 9 | E200: 58 | G200: 67
A201: Bygningskonst. | C201: 47 | E201: 13 | G201: 60
A202: Cand. IT. | C202: 17 | E202: 22 | G202: 39
A203: Bac. Samf. | C203: 3 | E203: 6 | G203: 9
A204: Bac. Hum. | C204: 7 | E204: 15 | G204: 22
A205: Bac. Nat. | C205: 32 | E205: 11 | G205: 43
A206: Andre | C206: 114 | E206: 88 | G206: 202
A208: Total | C208: 1815 | E208: 1623 | G208: 3438
A210: Ingeniører i alt | C210: 796 | E210: 276 | G210: 1072
A211: Magistre i alt | C211: 191 | E211: 297 | G211: 488
A212: DJØF'ere i alt | C212: 335 | E212: 389 | G212: 724
A219: Brøndby
C221: Mænd | E221: Kvinder | G221: I alt
A223: Civ. ing. | C223: 90 | E223: 38 | G223: 128
A224: Diplom ing. | C224: 136 | E224: 33 | G224: 169
A225: Cand. Scient. Tek. | C225: 59 | E225: 36 | G225: 95
A226: MA. Hum. | C226: 26 | E226: 70 | G226: 96
A227: MA. Nat. | C227: 25 | E227: 29 | G227: 54
A228: MA. Ph.d. | C228: 3 | E228: 3 | G228: 6
A229: MA. Samf. | C229: 11 | E229: 19 | G229: 30
A230: Øvrige Mag. | C230: 7 | E230: 7 | G230: 14
A231: Agronom | C231: 3 | E231: 7 | G231: 10
A232: Landsk. Arkt. | C232: 0 | E232: 4 | G232: 4
A233: Hortonom | C233: 0 | E233: 2 | G233: 2
A234: Forstkand. | C234: 0 | E234: 0 | G234: 0
A235: Jordbrugsakad. | C235: 3 | E235: 13 | G235: 16
A236: Mejeriing. | C236: 0 | E236: 0 | G236: 0
A237: Levn.m.kand. | C237: 0 | E237: 1 | G237: 1
A238: Dyrlæge | C238: 2 | E238: 5 | G238: 7
A239: Farmaceut | C239: 15 | E239: 35 | G239: 50
A240: Læge | C240: 12 | E240: 26 | G240: 38
A241: Tandlæge | C241: 2 | E241: 11 | G241: 13
A242: Arkitekt | C242: 1 | E242: 3 | G242: 4
A243: Landinspek. | C243: 0 | E243: 1 | G243: 1
... 1077 more rows

Sheet Tabel 2 H
A1: Tabel 2. Antal bruttoledighedsberørte og gennemsnitlig antal ledige brutto
A3: Hovedstaden
C5: Mænd | F5: Kvinder | I5: I alt
C6: Ledigheds- berørte | D6: Gns. brutto- ledighed | F6: Ledigheds- berørte | G6: Gns. brutto- ledighed | I6: Ledigheds- berørte | J6: Gns. brutto- ledighed
A9: Civ. ing. | C9: 314 | D9: 267.8775027 | F9: 136 | G9: 117.3673049 | I9: 450 | J9: 385.2448076
A10: Diplom ing. | C10: 178 | D10: 153.3574503 | F10: 64 | G10: 53.25703237 | I10: 242 | J10: 206.6144826
A11: Cand. Scient. Tek. | C11: 325 | D11: 279.2964511 | F11: 346 | G11: 286.0250733 | I11: 671 | J11: 565.3215244
A12: MA. Hum. | C12: 408 | D12: 345.3683029 | F12: 921 | G12: 755.729433 | I12: 1329 | J12: 1101.097736
A13: MA. Nat. | C13: 90 | D13: 76.17538826 | F13: 102 | G13: 86.90887544 | I13: 192 | J13: 163.0842637
A14: MA. Ph.d. | C14: 22 | D14: 20.34179505 | F14: 15 | G14: 12.22353895 | I14: 37 | J14: 32.565334
A15: MA. Samf. | C15: 99 | D15: 86.30075469 | F15: 220 | G15: 179.5029003 | I15: 319 | J15: 265.803655
A16: Øvrige Mag. | C16: 42 | D16: 34.21630387 | F16: 124 | G16: 101.652841 | I16: 166 | J16: 135.8691449
A17: Agronom | C17: 16 | D17: 14.55685149 | F17: 17 | G17: 14.35227344 | I17: 33 | J17: 28.90912493
A18: Landsk. Arkt. | C18: 9 | D18: 6.358760057 | F18: 23 | G18: 18.94405289 | I18: 32 | J18: 25.30281295
A19: Hortonom | C19: 0 | D19: 0 | F19: 3 | G19: 2.708164411 | I19: 3 | J19: 2.708164411
A20: Forstkand. | C20: 1 | D20: 0.9998128859 | F20: 2 | G20: 1.753882617 | I20: 3 | J20: 2.753695503
A21: Jordbrugsakad. | C21: 26 | D21: 21.91542444 | F21: 45 | G21: 37.75837335 | I21: 71 | J21: 59.67379779
A22: Mejeriing. | C22: 4 | D22: 3.953096738 | F22: 4 | G22: 3.161604191 | I22: 8 | J22: 7.114700929
A23: Levn.m.kand. | C23: 3 | D23: 2.444333562 | F23: 13 | G23: 10.43784694 | I23: 16 | J23: 12.8821805
A24: Dyrlæge | C24: 2 | D24: 0.9842200462 | F24: 22 | G24: 17.68352772 | I24: 24 | J24: 18.66774777
A25: Farmaceut | C25: 36 | D25: 31.92103786 | F25: 61 | G25: 52.22353895 | I25: 97 | J25: 84.14457681
A26: Læge | C26: 32 | D26: 26.15293457 | F26: 90 | G26: 68.1182561 | I26: 122 | J26: 94.27119067
A27: Tandlæge | C27: 4 | D27: 3.445393875 | F27: 17 | G27: 13.01128922 | I27: 21 | J27: 16.45668309
A28: Arkitekt | C28: 79 | D28: 67.90868833 | F28: 113 | G28: 95.98078962 | I28: 192 | J28: 163.889478
A29: Landinspek. | C29: 0 | D29: 0 | F29: 1 | G29: 0.9998128859 | I29: 1 | J29: 0.9998128859
A30: Bibliotekar | C30: 19 | D30: 15.51549928 | F30: 38 | G30: 31.28734485 | I30: 57 | J30: 46.80284413
A31: Musikudd. | C31: 4 | D31: 1.722073224 | F31: 3 | G31: 2.214806961 | I31: 7 | J31: 3.936880185
A32: Teolog | C32: 12 | D32: 10.17027381 | F32: 17 | G32: 13.59196657 | I32: 29 | J32: 23.76224038
A33: Psykolog | C33: 25 | D33: 21.94411526 | F33: 95 | G33: 80.84825048 | I33: 120 | J33: 102.7923657
A34: Jurist | C34: 49 | D34: 41.90357388 | F34: 82 | G34: 66.36312605 | I34: 131 | J34: 108.2666999
A35: Økonom | C35: 68 | D35: 60.46965633 | F35: 35 | G35: 28.45443772 | I35: 103 | J35: 88.92409406
A36: Samf. Adm. | C36: 250 | D36: 214.6173517 | F36: 382 | G36: 318.8629701 | I36: 632 | J36: 533.4803218
A37: Cand. Merc. | C37: 322 | D37: 267.1670929 | F37: 336 | G37: 281.7713466 | I37: 658 | J37: 548.9384395
A38: HA | C38: 67 | D38: 59.26900767 | F38: 59 | G38: 49.77858168 | I38: 126 | J38: 109.0475893
A39: HD | C39: 48 | D39: 42.38944677 | F39: 45 | G39: 36.61385892 | I39: 93 | J39: 79.00330568
A40: Komm. og Sprog | C40: 36 | D40: 31.51125803 | F40: 152 | G40: 121.0752822 | I40: 188 | J40: 152.5865403
A41: Bygningskonst. | C41: 68 | D41: 60.9618911 | F41: 31 | G41: 26.42318967 | I41: 99 | J41: 87.38508077
A42: Cand. IT. | C42: 65 | D42: 55.01216242 | F42: 72 | G42: 59.59022017 | I42: 137 | J42: 114.6023826
A43: Bac. Samf. | C43: 16 | D43: 12.93207759 | F43: 34 | G43: 27.20825797 | I43: 50 | J43: 40.14033556
A44: Bac. Hum. | C44: 89 | D44: 76.38745088 | F44: 133 | G44: 109.8085199 | I44: 222 | J44: 186.1959708
A45: Bac. Nat. | C45: 93 | D45: 80.05426308 | F45: 90 | G45: 74.60550115 | I45: 183 | J45: 154.6597642
A46: Andre | C46: 347 | D46: 304.7608058 | F46: 534 | G46: 454.1782573 | I46: 881 | J46: 758.9390632
A48: Total | C48: 3242 | D48: 2778.447078 | F48: 4432 | G48: 3674.717957 | I48: 7674 | J48: 6453.165035
A50: Ingeniører i alt | C50: 492 | D50: 421.2349529 | F50: 200 | G50: 170.6243373 | I50: 692 | J50: 591.8592902
A51: Magistre i alt | C51: 661 | D51: 562.4025448 | F51: 1382 | G51: 1136.017589 | I51: 2043 | J51: 1698.420133
A52: DJØF'ere i alt | C52: 756 | D52: 643.4266825 | F52: 894 | G52: 745.2304622 | I52: 1650 | J52: 1388.657145
A57: København
C59: Mænd | F59: Kvinder | I59: I alt
C60: Ledigheds- berørte | D60: Gns. brutto- ledighed | F60: Ledigheds- berørte | G60: Gns. brutto- ledighed | I60: Ledigheds- berørte | J60: Gns. brutto- ledighed
A63: Civ. ing. | C63: 155 | D63: 129.7355454 | F63: 67 | G63: 57.99975051 | I63: 222 | J63: 187.735296
A64: Diplom ing. | C64: 68 | D64: 58.70641801 | F64: 25 | G64: 22.11937878 | I64: 93 | J64: 80.82579679
A65: Cand. Scient. Tek. | C65: 217 | D65: 189.083141 | F65: 251 | G65: 208.6565209 | I65: 468 | J65: 397.7396619
A66: MA. Hum. | C66: 301 | D66: 255.5005302 | F66: 636 | G66: 519.9195409 | I66: 937 | J66: 775.4200711
A67: MA. Nat. | C67: 58 | D67: 47.99226595 | F67: 71 | G67: 61.24992204 | I67: 129 | J67: 109.242188
A68: MA. Ph.d. | C68: 17 | D68: 15.38888542 | F68: 9 | G68: 7.932389447 | I68: 26 | J68: 23.32127487
A69: MA. Samf. | C69: 73 | D69: 63.02313977 | F69: 163 | G69: 134.6784756 | I69: 236 | J69: 197.7016154
A70: Øvrige Mag. | C70: 26 | D70: 20.35863531 | F70: 84 | G70: 67.6317595 | I70: 110 | J70: 87.99039481
A71: Agronom | C71: 6 | D71: 5.80677353 | F71: 11 | G71: 9.673174078 | I71: 17 | J71: 15.47994761
A72: Landsk. Arkt. | C72: 7 | D72: 4.451443897 | F72: 18 | G72: 14.70342419 | I72: 25 | J72: 19.15486808
A73: Hortonom | C73: 0 | D73: 0 | F73: 2 | G73: 1.964074097 | I73: 2 | J73: 1.964074097
A74: Forstkand. | C74: 1 | D74: 0.9998128859 | F74: 1 | G74: 0.9998128859 | I74: 2 | J74: 1.999625772
A75: Jordbrugsakad. | C75: 14 | D75: 11.25803031 | F75: 32 | G75: 27.34048525 | I75: 46 | J75: 38.59851556
A76: Mejeriing. | C76: 3 | D76: 2.999438658 | F76: 4 | G76: 3.161604191 | I76: 7 | J76: 6.161042849
A77: Levn.m.kand. | C77: 3 | D77: 2.444333562 | F77: 12 | G77: 10.26882056 | I77: 15 | J77: 12.71315412
A78: Dyrlæge | C78: 1 | D78: 0.3998004117 | F78: 14 | G78: 12.72874696 | I78: 15 | J78: 13.12854737
A79: Farmaceut | C79: 22 | D79: 19.16983721 | F79: 31 | G79: 27.40223289 | I79: 53 | J79: 46.57207011
A80: Læge | C80: 15 | D80: 11.59109337 | F80: 65 | G80: 47.5032745 | I80: 80 | J80: 59.09436787
A81: Tandlæge | C81: 1 | D81: 0.9998128859 | F81: 5 | G81: 3.590719142 | I81: 6 | J81: 4.590532028
A82: Arkitekt | C82: 52 | D82: 44.92796108 | F82: 84 | G82: 72.24100293 | I82: 136 | J82: 117.168964
A83: Landinspek. | C83: 0 | D83: 0 | F83: 0 | G83: 0 | I83: 0 | J83: 0
A84: Bibliotekar | C84: 9 | D84: 7.442774278 | F84: 18 | G84: 15.17058567 | I84: 27 | J84: 22.61335995
A85: Musikudd. | C85: 3 | D85: 1.226844633 | F85: 0 | G85: 0 | I85: 3 | J85: 1.226844633
A86: Teolog | C86: 11 | D86: 9.170460924 | F86: 10 | G86: 8.226158548 | I86: 21 | J86: 17.39661947
A87: Psykolog | C87: 22 | D87: 18.9446766 | F87: 59 | G87: 51.75824861 | I87: 81 | J87: 70.70292522
A88: Jurist | C88: 29 | D88: 24.66350652 | F88: 42 | G88: 31.8449448 | I88: 71 | J88: 56.50845132
A89: Økonom | C89: 39 | D89: 34.13771596 | F89: 21 | G89: 17.49516622 | I89: 60 | J89: 51.63288218
A90: Samf. Adm. | C90: 167 | D90: 143.5383272 | F90: 250 | G90: 206.1267386 | I90: 417 | J90: 349.6650658
A91: Cand. Merc. | C91: 192 | D91: 160.2943928 | F91: 185 | G91: 153.5102601 | I91: 377 | J91: 313.8046529
A92: HA | C92: 32 | D92: 26.58953409 | F92: 37 | G92: 31.98964635 | I92: 69 | J92: 58.57918044
A93: HD | C93: 23 | D93: 20.53015655 | F93: 30 | G93: 24.19883989 | I93: 53 | J93: 44.72899644
A94: Komm. og Sprog | C94: 26 | D94: 22.90151562 | F94: 92 | G94: 71.3216491 | I94: 118 | J94: 94.22316472
A95: Bygningskonst. | C95: 41 | D95: 35.42942681 | F95: 13 | G95: 10.94798229 | I95: 54 | J95: 46.37740909
A96: Cand. IT. | C96: 42 | D96: 35.17744652 | F96: 50 | G96: 40.61622903 | I96: 92 | J96: 75.79367554
A97: Bac. Samf. | C97: 10 | D97: 8.0128485 | F97: 19 | G97: 14.71839331 | I97: 29 | J97: 22.73124181
A98: Bac. Hum. | C98: 63 | D98: 54.37098484 | F98: 103 | G98: 88.87981039 | I98: 166 | J98: 143.2507952
A99: Bac. Nat. | C99: 63 | D99: 53.98178756 | F99: 68 | G99: 56.89016404 | I99: 131 | J99: 110.8719516
A100: Andre | C100: 210 | D100: 184.1776336 | F100: 361 | G100: 301.3603193 | I100: 571 | J100: 485.537953
A102: Total | C102: 2008 | D102: 1714.168902 | F102: 2911 | G102: 2409.47976 | I102: 4919 | J102: 4123.648662
A104: Ingeniører i alt | C104: 223 | D104: 188.4419635 | F104: 92 | G104: 80.1191293 | I104: 315 | J104: 268.5610927
A105: Magistre i alt | C105: 475 | D105: 402.2634566 | F105: 963 | G105: 791.4120876 | I105: 1438 | J105: 1193.675544
A106: DJØF'ere i alt | C106: 459 | D106: 389.2234766 | F106: 535 | G106: 440.9667561 | I106: 994 | J106: 830.1902326
A111: Frederiksberg
C113: Mænd | F113: Kvinder | I113: I alt
C114: Ledigheds- berørte | D114: Gns. brutto- ledighed | F114: Ledigheds- berørte | G114: Gns. brutto- ledighed | I114: Ledigheds- berørte | J114: Gns. brutto- ledighed
A117: Civ. ing. | C117: 24 | D117: 19.79978794 | F117: 11 | G117: 10.85947733 | I117: 35 | J117: 30.65926527
A118: Diplom ing. | C118: 15 | D118: 14.26245868 | F118: 4 | G118: 2.337678538 | I118: 19 | J118: 16.60013722
A119: Cand. Scient. Tek. | C119: 14 | D119: 11.83059939 | F119: 20 | G119: 18.88854238 | I119: 34 | J119: 30.71914177
A120: MA. Hum. | C120: 38 | D120: 30.57444022 | F120: 74 | G120: 62.94891786 | I120: 112 | J120: 93.52335807
A121: MA. Nat. | C121: 7 | D121: 6.389945737 | F121: 5 | G121: 4.881806275 | I121: 12 | J121: 11.27175201
A122: MA. Ph.d. | C122: 1 | D122: 0.9536580802 | F122: 1 | G122: 0.3074908002 | I122: 2 | J122: 1.26114888
A123: MA. Samf. | C123: 10 | D123: 9.167342356 | F123: 24 | G123: 17.87999751 | I123: 34 | J123: 27.04733986
A124: Øvrige Mag. | C124: 3 | D124: 2.259090626 | F124: 17 | G124: 15.50302501 | I124: 20 | J124: 17.76211564
A125: Agronom | C125: 1 | D125: 0.9998128859 | F125: 0 | G125: 0 | I125: 1 | J125: 0.9998128859
A126: Landsk. Arkt. | C126: 0 | D126: 0 | F126: 1 | G126: 0.9998128859 | I126: 1 | J126: 0.9998128859
A127: Hortonom | C127: 0 | D127: 0 | F127: 0 | G127: 0 | I127: 0 | J127: 0
A128: Forstkand. | C128: 0 | D128: 0 | F128: 0 | G128: 0 | I128: 0 | J128: 0
A129: Jordbrugsakad. | C129: 1 | D129: 0.9998128859 | F129: 1 | G129: 0.9998128859 | I129: 2 | J129: 1.999625772
A130: Mejeriing. | C130: 1 | D130: 0.9536580802 | F130: 0 | G130: 0 | I130: 1 | J130: 0.9536580802
A131: Levn.m.kand. | C131: 0 | D131: 0 | F131: 1 | G131: 0.1690263831 | I131: 1 | J131: 0.1690263831
A132: Dyrlæge | C132: 0 | D132: 0 | F132: 1 | G132: 0.4921100231 | I132: 1 | J132: 0.4921100231
A133: Farmaceut | C133: 3 | D133: 2.907129046 | F133: 5 | G133: 3.614420258 | I133: 8 | J133: 6.521549305
A134: Læge | C134: 5 | D134: 4.481382149 | F134: 10 | G134: 8.385205514 | I134: 15 | J134: 12.86658766
A135: Tandlæge | C135: 1 | D135: 0.6305744402 | F135: 1 | G135: 0.4010478388 | I135: 2 | J135: 1.031622279
A136: Arkitekt | C136: 14 | D136: 10.84014221 | F136: 12 | G136: 10.24200087 | I136: 26 | J136: 21.08214308
A137: Landinspek. | C137: 0 | D137: 0 | F137: 1 | G137: 0.9998128859 | I137: 1 | J137: 0.9998128859
A138: Bibliotekar | C138: 2 | D138: 1.863656209 | F138: 5 | G138: 3.110459677 | I138: 7 | J138: 4.974115886
A139: Musikudd. | C139: 1 | D139: 0.495228591 | F139: 0 | G139: 0 | I139: 1 | J139: 0.495228591
A140: Teolog | C140: 0 | D140: 0 | F140: 4 | G140: 3.069918294 | I140: 4 | J140: 3.069918294
A141: Psykolog | C141: 1 | D141: 0.9998128859 | F141: 7 | G141: 6.173517121 | I141: 8 | J141: 7.173330007
A142: Jurist | C142: 4 | D142: 3.661198778 | F142: 12 | G142: 9.929520364 | I142: 16 | J142: 13.59071914
A143: Økonom | C143: 8 | D143: 7.250046779 | F143: 2 | G143: 1.491922909 | I143: 10 | J143: 8.741969688
A144: Samf. Adm. | C144: 23 | D144: 20.25135658 | F144: 34 | G144: 30.73223976 | I144: 57 | J144: 50.98359633
A145: Cand. Merc. | C145: 27 | D145: 21.3584482 | F145: 52 | G145: 42.88467536 | I145: 79 | J145: 64.24312356
A146: HA | C146: 3 | D146: 2.758685212 | F146: 4 | G146: 3.201521861 | I146: 7 | J146: 5.960207073
A147: HD | C147: 5 | D147: 4.99906443 | F147: 5 | G147: 4.334185742 | I147: 10 | J147: 9.333250172
A148: Komm. og Sprog | C148: 6 | D148: 5.302812948 | F148: 15 | G148: 12.42250359 | I148: 21 | J148: 17.72531653
A149: Bygningskonst. | C149: 2 | D149: 2 | F149: 1 | G149: 1 | I149: 3 | J149: 3
A150: Cand. IT. | C150: 11 | D150: 8.722010853 | F150: 6 | G150: 5.62963887 | I150: 17 | J150: 14.35164972
A151: Bac. Samf. | C151: 3 | D151: 2.353271378 | F151: 7 | G151: 5.665190545 | I151: 10 | J151: 8.018461922
A152: Bac. Hum. | C152: 11 | D152: 9.598328448 | F152: 6 | G152: 4.445830475 | I152: 17 | J152: 14.04415892
A153: Bac. Nat. | C153: 7 | D153: 5.246055012 | F153: 7 | G153: 5.108838022 | I153: 14 | J153: 10.35489303
A154: Andre | C154: 36 | D154: 32.69444271 | F154: 45 | G154: 39.63076155 | I154: 81 | J154: 72.32520427
A156: Total | C156: 287 | D156: 245.6044408 | F156: 400 | G156: 337.7410965 | I156: 687 | J156: 583.3455373
A158: Ingeniører i alt | C158: 39 | D158: 34.06224662 | F158: 15 | G158: 13.19715587 | I158: 54 | J158: 47.25940248
A159: Magistre i alt | C159: 59 | D159: 49.34447702 | F159: 121 | G159: 101.5212374 | I159: 180 | J159: 150.8657145
A160: DJØF'ere i alt | C160: 65 | D160: 55.27973555 | F160: 104 | G160: 88.23988025 | I160: 169 | J160: 143.5196158
A165: Ballerup
C167: Mænd | F167: Kvinder | I167: I alt
C168: Ledigheds- berørte | D168: Gns. brutto- ledighed | F168: Ledigheds- berørte | G168: Gns. brutto- ledighed | I168: Ledigheds- berørte | J168: Gns. brutto- ledighed
A171: Civ. ing. | C171: 4 | D171: 3.906941932 | F171: 0 | G171: 0 | I171: 4 | J171: 3.906941932
A172: Diplom ing. | C172: 12 | D172: 11.30480883 | F172: 1 | G172: 0.467785193 | I172: 13 | J172: 11.77259402
A173: Cand. Scient. Tek. | C173: 6 | D173: 4.66038795 | F173: 4 | G173: 2.983845818 | I173: 10 | J173: 7.644233768
A174: MA. Hum. | C174: 3 | D174: 2.860974241 | F174: 6 | G174: 4.032932078 | I174: 9 | J174: 6.893906318
A175: MA. Nat. | C175: 1 | D175: 0.9536580802 | F175: 3 | G175: 2.399426183 | I175: 4 | J175: 3.353084264
A176: MA. Ph.d. | C176: 0 | D176: 0 | F176: 1 | G176: 0.7690388574 | I176: 1 | J176: 0.7690388574
A177: MA. Samf. | C177: 0 | D177: 0 | F177: 2 | G177: 1.999625772 | I177: 2 | J177: 1.999625772
A178: Øvrige Mag. | C178: 0 | D178: 0 | F178: 1 | G178: 0.9998128859 | I178: 1 | J178: 0.9998128859
A179: Agronom | C179: 1 | D179: 0.9998128859 | F179: 1 | G179: 0.793987401 | I179: 2 | J179: 1.793800287
A180: Landsk. Arkt. | C180: 0 | D180: 0 | F180: 0 | G180: 0 | I180: 0 | J180: 0
A181: Hortonom | C181: 0 | D181: 0 | F181: 0 | G181: 0 | I181: 0 | J181: 0
A182: Forstkand. | C182: 0 | D182: 0 | F182: 0 | G182: 0 | I182: 0 | J182: 0
A183: Jordbrugsakad. | C183: 1 | D183: 0.9998128859 | F183: 1 | G183: 0.793987401 | I183: 2 | J183: 1.793800287
A184: Mejeriing. | C184: 0 | D184: 0 | F184: 0 | G184: 0 | I184: 0 | J184: 0
A185: Levn.m.kand. | C185: 0 | D185: 0 | F185: 0 | G185: 0 | I185: 0 | J185: 0
A186: Dyrlæge | C186: 0 | D186: 0 | F186: 0 | G186: 0 | I186: 0 | J186: 0
A187: Farmaceut | C187: 0 | D187: 0 | F187: 1 | G187: 0.9998128859 | I187: 1 | J187: 0.9998128859
A188: Læge | C188: 1 | D188: 0.8613484688 | F188: 2 | G188: 0.9380652404 | I188: 3 | J188: 1.799413709
A189: Tandlæge | C189: 0 | D189: 0 | F189: 0 | G189: 0 | I189: 0 | J189: 0
A190: Arkitekt | C190: 0 | D190: 0 | F190: 0 | G190: 0 | I190: 0 | J190: 0
A191: Landinspek. | C191: 0 | D191: 0 | F191: 0 | G191: 0 | I191: 0 | J191: 0
A192: Bibliotekar | C192: 1 | D192: 0.9998128859 | F192: 2 | G192: 1.166968128 | I192: 3 | J192: 2.166781014
A193: Musikudd. | C193: 0 | D193: 0 | F193: 0 | G193: 0 | I193: 0 | J193: 0
A194: Teolog | C194: 0 | D194: 0 | F194: 0 | G194: 0 | I194: 0 | J194: 0
A195: Psykolog | C195: 0 | D195: 0 | F195: 0 | G195: 0 | I195: 0 | J195: 0
A196: Jurist | C196: 0 | D196: 0 | F196: 3 | G196: 2.768664629 | I196: 3 | J196: 2.768664629
A197: Økonom | C197: 0 | D197: 0 | F197: 0 | G197: 0 | I197: 0 | J197: 0
A198: Samf. Adm. | C198: 0 | D198: 0 | F198: 6 | G198: 4.793862658 | I198: 6 | J198: 4.793862658
A199: Cand. Merc. | C199: 2 | D199: 1.661573006 | F199: 1 | G199: 0.9998128859 | I199: 3 | J199: 2.661385892
A200: HA | C200: 1 | D200: 0.9998128859 | F200: 0 | G200: 0 | I200: 1 | J200: 0.9998128859
A201: HD | C201: 2 | D201: 1.999625772 | F201: 0 | G201: 0 | I201: 2 | J201: 1.999625772
A202: Komm. og Sprog | C202: 0 | D202: 0 | F202: 0 | G202: 0 | I202: 0 | J202: 0
A203: Bygningskonst. | C203: 1 | D203: 1 | F203: 0 | G203: 0 | I203: 1 | J203: 1
A204: Cand. IT. | C204: 0 | D204: 0 | F204: 1 | G204: 0.9998128859 | I204: 1 | J204: 0.9998128859
A205: Bac. Samf. | C205: 0 | D205: 0 | F205: 1 | G205: 0.9998128859 | I205: 1 | J205: 0.9998128859
A206: Bac. Hum. | C206: 1 | D206: 0.2613359945 | F206: 0 | G206: 0 | I206: 1 | J206: 0.2613359945
A207: Bac. Nat. | C207: 0 | D207: 0 | F207: 0 | G207: 0 | I207: 0 | J207: 0
A208: Andre | C208: 3 | D208: 2.953283852 | F208: 3 | G208: 2.993201522 | I208: 6 | J208: 5.946485374
A210: Total | C210: 39 | D210: 35.42337679 | F210: 39 | G210: 31.10646791 | I210: 78 | J210: 66.5298447
A212: Ingeniører i alt | C212: 16 | D212: 15.21175076 | F212: 1 | G212: 0.467785193 | I212: 17 | J212: 15.67953596
A213: Magistre i alt | C213: 4 | D213: 3.814632321 | F213: 13 | G213: 10.20083578 | I213: 17 | J213: 14.0154681
A214: DJØF'ere i alt | C214: 3 | D214: 2.661385892 | F214: 10 | G214: 8.562340173 | I214: 13 | J214: 11.22372606
A219: Brøndby
C221: Mænd | F221: Kvinder | I221: I alt
C222: Ledigheds- berørte | D222: Gns. brutto- ledighed | F222: Ledigheds- berørte | G222: Gns. brutto- ledighed | I222: Ledigheds- berørte | J222: Gns. brutto- ledighed
A225: Civ. ing. | C225: 3 | D225: 2.768664629 | F225: 2 | G225: 1.168839269 | I225: 5 | J225: 3.937503898
A226: Diplom ing. | C226: 2 | D226: 1.90731616 | F226: 3 | G226: 2.676355018 | I226: 5 | J226: 4.583671178
A227: Cand. Scient. Tek. | C227: 9 | D227: 7.505769351 | F227: 3 | G227: 2.4231273 | I227: 12 | J227: 9.928896651
A228: MA. Hum. | C228: 2 | D228: 1.722696938 | F228: 6 | G228: 4.975363313 | I228: 8 | J228: 6.698060251
A229: MA. Nat. | C229: 0 | D229: 0 | F229: 0 | G229: 0 | I229: 0 | J229: 0
A230: MA. Ph.d. | C230: 0 | D230: 0 | F230: 0 | G230: 0 | I230: 0 | J230: 0
A231: MA. Samf. | C231: 0 | D231: 0 | F231: 1 | G231: 0.9536580802 | I231: 1 | J231: 0.9536580802
A232: Øvrige Mag. | C232: 1 | D232: 0.4921100231 | F232: 0 | G232: 0 | I232: 1 | J232: 0.4921100231
A233: Agronom | C233: 0 | D233: 0 | F233: 0 | G233: 0 | I233: 0 | J233: 0
A234: Landsk. Arkt. | C234: 0 | D234: 0 | F234: 0 | G234: 0 | I234: 0 | J234: 0
A235: Hortonom | C235: 0 | D235: 0 | F235: 0 | G235: 0 | I235: 0 | J235: 0
A236: Forstkand. | C236: 0 | D236: 0 | F236: 0 | G236: 0 | I236: 0 | J236: 0
A237: Jordbrugsakad. | C237: 0 | D237: 0 | F237: 0 | G237: 0 | I237: 0 | J237: 0
A238: Mejeriing. | C238: 0 | D238: 0 | F238: 0 | G238: 0 | I238: 0 | J238: 0
A239: Levn.m.kand. | C239: 0 | D239: 0 | F239: 0 | G239: 0 | I239: 0 | J239: 0
A240: Dyrlæge | C240: 0 | D240: 0 | F240: 0 | G240: 0 | I240: 0 | J240: 0
... 1108 more rows

Sheet Tabel 3 H
A1: Tabel 3. Ledige i procent af forsikrede
A3: Hovedstaden
C5: Mænd | F5: Kvinder | I5: I alt
C6: Ledigheds- berørte | D6: Gns. brutto- ledighed | F6: Ledigheds- berørte | G6: Gns. brutto- ledighed | I6: Ledigheds- berørte | J6: Gns. brutto- ledighed
A9: Civ. ing. | C9: =IF(OR('Tabel 1 H'!C7<5,'Tabel 2 H'!C9<0.5),"-",IFERROR('Tabel 2 H'!C9/'Tabel 1 H'!C7*100,"-")) -> 2.366774704 | D9: =IF(OR('Tabel 1 H'!C7<5,'Tabel 2 H'!D9<0.5),"-",IFERROR('Tabel 2 H'!D9/'Tabel 1 H'!C7*100,"-")) -> 2.019126424 | F9: =IF(OR('Tabel 1 H'!E7<5,'Tabel 2 H'!F9<0.5),"-",IFERROR('Tabel 2 H'!F9/'Tabel 1 H'!E7*100,"-")) -> 2.466001813 | G9: =IF(OR('Tabel 1 H'!E7<5,'Tabel 2 H'!G9<0.5),"-",IFERROR('Tabel 2 H'!G9/'Tabel 1 H'!E7*100,"-")) -> 2.128146962 | I9: =IF(OR('Tabel 1 H'!G7<5,'Tabel 2 H'!I9<0.5),"-",IFERROR('Tabel 2 H'!I9/'Tabel 1 H'!G7*100,"-")) -> 2.395910979 | J9: =IF(OR('Tabel 1 H'!G7<5,'Tabel 2 H'!J9<0.5),"-",IFERROR('Tabel 2 H'!J9/'Tabel 1 H'!G7*100,"-")) -> 2.051138364
A10: Diplom ing. | C10: =IF(OR('Tabel 1 H'!C8<5,'Tabel 2 H'!C10<0.5),"-",IFERROR('Tabel 2 H'!C10/'Tabel 1 H'!C8*100,"-")) -> 1.806189751 | D10: =IF(OR('Tabel 1 H'!C8<5,'Tabel 2 H'!D10<0.5),"-",IFERROR('Tabel 2 H'!D10/'Tabel 1 H'!C8*100,"-")) -> 1.556138511 | F10: =IF(OR('Tabel 1 H'!E8<5,'Tabel 2 H'!F10<0.5),"-",IFERROR('Tabel 2 H'!F10/'Tabel 1 H'!E8*100,"-")) -> 2.483507955 | G10: =IF(OR('Tabel 1 H'!E8<5,'Tabel 2 H'!G10<0.5),"-",IFERROR('Tabel 2 H'!G10/'Tabel 1 H'!E8*100,"-")) -> 2.066629118 | I10: =IF(OR('Tabel 1 H'!G8<5,'Tabel 2 H'!I10<0.5),"-",IFERROR('Tabel 2 H'!I10/'Tabel 1 H'!G8*100,"-")) -> 1.946589447 | J10: =IF(OR('Tabel 1 H'!G8<5,'Tabel 2 H'!J10<0.5),"-",IFERROR('Tabel 2 H'!J10/'Tabel 1 H'!G8*100,"-")) -> 1.661956907
A11: Cand. Scient. Tek. | C11: =IF(OR('Tabel 1 H'!C9<5,'Tabel 2 H'!C11<0.5),"-",IFERROR('Tabel 2 H'!C11/'Tabel 1 H'!C9*100,"-")) -> 5.144032922 | D11: =IF(OR('Tabel 1 H'!C9<5,'Tabel 2 H'!D11<0.5),"-",IFERROR('Tabel 2 H'!D11/'Tabel 1 H'!C9*100,"-")) -> 4.420646582 | F11: =IF(OR('Tabel 1 H'!E9<5,'Tabel 2 H'!F11<0.5),"-",IFERROR('Tabel 2 H'!F11/'Tabel 1 H'!E9*100,"-")) -> 5.912508544 | G11: =IF(OR('Tabel 1 H'!E9<5,'Tabel 2 H'!G11<0.5),"-",IFERROR('Tabel 2 H'!G11/'Tabel 1 H'!E9*100,"-")) -> 4.887646502 | I11: =IF(OR('Tabel 1 H'!G9<5,'Tabel 2 H'!I11<0.5),"-",IFERROR('Tabel 2 H'!I11/'Tabel 1 H'!G9*100,"-")) -> 5.513557929 | J11: =IF(OR('Tabel 1 H'!G9<5,'Tabel 2 H'!J11<0.5),"-",IFERROR('Tabel 2 H'!J11/'Tabel 1 H'!G9*100,"-")) -> 4.645205623
A12: MA. Hum. | C12: =IF(OR('Tabel 1 H'!C10<5,'Tabel 2 H'!C12<0.5),"-",IFERROR('Tabel 2 H'!C12/'Tabel 1 H'!C10*100,"-")) -> 6.512370311 | D12: =IF(OR('Tabel 1 H'!C10<5,'Tabel 2 H'!D12<0.5),"-",IFERROR('Tabel 2 H'!D12/'Tabel 1 H'!C10*100,"-")) -> 5.512662456 | F12: =IF(OR('Tabel 1 H'!E10<5,'Tabel 2 H'!F12<0.5),"-",IFERROR('Tabel 2 H'!F12/'Tabel 1 H'!E10*100,"-")) -> 6.422594142 | G12: =IF(OR('Tabel 1 H'!E10<5,'Tabel 2 H'!G12<0.5),"-",IFERROR('Tabel 2 H'!G12/'Tabel 1 H'!E10*100,"-")) -> 5.270079728 | I12: =IF(OR('Tabel 1 H'!G10<5,'Tabel 2 H'!I12<0.5),"-",IFERROR('Tabel 2 H'!I12/'Tabel 1 H'!G10*100,"-")) -> 6.449890803 | J12: =IF(OR('Tabel 1 H'!G10<5,'Tabel 2 H'!J12<0.5),"-",IFERROR('Tabel 2 H'!J12/'Tabel 1 H'!G10*100,"-")) -> 5.343837592
A13: MA. Nat. | C13: =IF(OR('Tabel 1 H'!C11<5,'Tabel 2 H'!C13<0.5),"-",IFERROR('Tabel 2 H'!C13/'Tabel 1 H'!C11*100,"-")) -> 2.569960023 | D13: =IF(OR('Tabel 1 H'!C11<5,'Tabel 2 H'!D13<0.5),"-",IFERROR('Tabel 2 H'!D13/'Tabel 1 H'!C11*100,"-")) -> 2.175196695 | F13: =IF(OR('Tabel 1 H'!E11<5,'Tabel 2 H'!F13<0.5),"-",IFERROR('Tabel 2 H'!F13/'Tabel 1 H'!E11*100,"-")) -> 2.804509211 | G13: =IF(OR('Tabel 1 H'!E11<5,'Tabel 2 H'!G13<0.5),"-",IFERROR('Tabel 2 H'!G13/'Tabel 1 H'!E11*100,"-")) -> 2.389575899 | I13: =IF(OR('Tabel 1 H'!G11<5,'Tabel 2 H'!I13<0.5),"-",IFERROR('Tabel 2 H'!I13/'Tabel 1 H'!G11*100,"-")) -> 2.689452304 | J13: =IF(OR('Tabel 1 H'!G11<5,'Tabel 2 H'!J13<0.5),"-",IFERROR('Tabel 2 H'!J13/'Tabel 1 H'!G11*100,"-")) -> 2.284413275
A14: MA. Ph.d. | C14: =IF(OR('Tabel 1 H'!C12<5,'Tabel 2 H'!C14<0.5),"-",IFERROR('Tabel 2 H'!C14/'Tabel 1 H'!C12*100,"-")) -> 2.993197279 | D14: =IF(OR('Tabel 1 H'!C12<5,'Tabel 2 H'!D14<0.5),"-",IFERROR('Tabel 2 H'!D14/'Tabel 1 H'!C12*100,"-")) -> 2.767591163 | F14: =IF(OR('Tabel 1 H'!E12<5,'Tabel 2 H'!F14<0.5),"-",IFERROR('Tabel 2 H'!F14/'Tabel 1 H'!E12*100,"-")) -> 2.551020408 | G14: =IF(OR('Tabel 1 H'!E12<5,'Tabel 2 H'!G14<0.5),"-",IFERROR('Tabel 2 H'!G14/'Tabel 1 H'!E12*100,"-")) -> 2.078833155 | I14: =IF(OR('Tabel 1 H'!G12<5,'Tabel 2 H'!I14<0.5),"-",IFERROR('Tabel 2 H'!I14/'Tabel 1 H'!G12*100,"-")) -> 2.796674225 | J14: =IF(OR('Tabel 1 H'!G12<5,'Tabel 2 H'!J14<0.5),"-",IFERROR('Tabel 2 H'!J14/'Tabel 1 H'!G12*100,"-")) -> 2.461476493
A15: MA. Samf. | C15: =IF(OR('Tabel 1 H'!C13<5,'Tabel 2 H'!C15<0.5),"-",IFERROR('Tabel 2 H'!C15/'Tabel 1 H'!C13*100,"-")) -> 8.886894075 | D15: =IF(OR('Tabel 1 H'!C13<5,'Tabel 2 H'!D15<0.5),"-",IFERROR('Tabel 2 H'!D15/'Tabel 1 H'!C13*100,"-")) -> 7.746925915 | F15: =IF(OR('Tabel 1 H'!E13<5,'Tabel 2 H'!F15<0.5),"-",IFERROR('Tabel 2 H'!F15/'Tabel 1 H'!E13*100,"-")) -> 7.465218867 | G15: =IF(OR('Tabel 1 H'!E13<5,'Tabel 2 H'!G15<0.5),"-",IFERROR('Tabel 2 H'!G15/'Tabel 1 H'!E13*100,"-")) -> 6.091038353 | I15: =IF(OR('Tabel 1 H'!G13<5,'Tabel 2 H'!I15<0.5),"-",IFERROR('Tabel 2 H'!I15/'Tabel 1 H'!G13*100,"-")) -> 7.855208077 | J15: =IF(OR('Tabel 1 H'!G13<5,'Tabel 2 H'!J15<0.5),"-",IFERROR('Tabel 2 H'!J15/'Tabel 1 H'!G13*100,"-")) -> 6.545275916
A16: Øvrige Mag. | C16: =IF(OR('Tabel 1 H'!C14<5,'Tabel 2 H'!C16<0.5),"-",IFERROR('Tabel 2 H'!C16/'Tabel 1 H'!C14*100,"-")) -> 6.624605678 | D16: =IF(OR('Tabel 1 H'!C14<5,'Tabel 2 H'!D16<0.5),"-",IFERROR('Tabel 2 H'!D16/'Tabel 1 H'!C14*100,"-")) -> 5.396893355 | F16: =IF(OR('Tabel 1 H'!E14<5,'Tabel 2 H'!F16<0.5),"-",IFERROR('Tabel 2 H'!F16/'Tabel 1 H'!E14*100,"-")) -> 9.825673534 | G16: =IF(OR('Tabel 1 H'!E14<5,'Tabel 2 H'!G16<0.5),"-",IFERROR('Tabel 2 H'!G16/'Tabel 1 H'!E14*100,"-")) -> 8.054900239 | I16: =IF(OR('Tabel 1 H'!G14<5,'Tabel 2 H'!I16<0.5),"-",IFERROR('Tabel 2 H'!I16/'Tabel 1 H'!G14*100,"-")) -> 8.755274262 | J16: =IF(OR('Tabel 1 H'!G14<5,'Tabel 2 H'!J16<0.5),"-",IFERROR('Tabel 2 H'!J16/'Tabel 1 H'!G14*100,"-")) -> 7.16609414
A17: Agronom | C17: =IF(OR('Tabel 1 H'!C15<5,'Tabel 2 H'!C17<0.5),"-",IFERROR('Tabel 2 H'!C17/'Tabel 1 H'!C15*100,"-")) -> 4.134366925 | D17: =IF(OR('Tabel 1 H'!C15<5,'Tabel 2 H'!D17<0.5),"-",IFERROR('Tabel 2 H'!D17/'Tabel 1 H'!C15*100,"-")) -> 3.761460334 | F17: =IF(OR('Tabel 1 H'!E15<5,'Tabel 2 H'!F17<0.5),"-",IFERROR('Tabel 2 H'!F17/'Tabel 1 H'!E15*100,"-")) -> 3.541666667 | G17: =IF(OR('Tabel 1 H'!E15<5,'Tabel 2 H'!G17<0.5),"-",IFERROR('Tabel 2 H'!G17/'Tabel 1 H'!E15*100,"-")) -> 2.990056966 | I17: =IF(OR('Tabel 1 H'!G15<5,'Tabel 2 H'!I17<0.5),"-",IFERROR('Tabel 2 H'!I17/'Tabel 1 H'!G15*100,"-")) -> 3.806228374 | J17: =IF(OR('Tabel 1 H'!G15<5,'Tabel 2 H'!J17<0.5),"-",IFERROR('Tabel 2 H'!J17/'Tabel 1 H'!G15*100,"-")) -> 3.334385805
A18: Landsk. Arkt. | C18: =IF(OR('Tabel 1 H'!C16<5,'Tabel 2 H'!C18<0.5),"-",IFERROR('Tabel 2 H'!C18/'Tabel 1 H'!C16*100,"-")) -> 6.71641791 | D18: =IF(OR('Tabel 1 H'!C16<5,'Tabel 2 H'!D18<0.5),"-",IFERROR('Tabel 2 H'!D18/'Tabel 1 H'!C16*100,"-")) -> 4.745343326 | F18: =IF(OR('Tabel 1 H'!E16<5,'Tabel 2 H'!F18<0.5),"-",IFERROR('Tabel 2 H'!F18/'Tabel 1 H'!E16*100,"-")) -> 6.442577031 | G18: =IF(OR('Tabel 1 H'!E16<5,'Tabel 2 H'!G18<0.5),"-",IFERROR('Tabel 2 H'!G18/'Tabel 1 H'!E16*100,"-")) -> 5.306457392 | I18: =IF(OR('Tabel 1 H'!G16<5,'Tabel 2 H'!I18<0.5),"-",IFERROR('Tabel 2 H'!I18/'Tabel 1 H'!G16*100,"-")) -> 6.517311609 | J18: =IF(OR('Tabel 1 H'!G16<5,'Tabel 2 H'!J18<0.5),"-",IFERROR('Tabel 2 H'!J18/'Tabel 1 H'!G16*100,"-")) -> 5.153322393
A19: Hortonom | C19: =IF(OR('Tabel 1 H'!C17<5,'Tabel 2 H'!C19<0.5),"-",IFERROR('Tabel 2 H'!C19/'Tabel 1 H'!C17*100,"-")) -> - | D19: =IF(OR('Tabel 1 H'!C17<5,'Tabel 2 H'!D19<0.5),"-",IFERROR('Tabel 2 H'!D19/'Tabel 1 H'!C17*100,"-")) -> - | F19: =IF(OR('Tabel 1 H'!E17<5,'Tabel 2 H'!F19<0.5),"-",IFERROR('Tabel 2 H'!F19/'Tabel 1 H'!E17*100,"-")) -> 3.296703297 | G19: =IF(OR('Tabel 1 H'!E17<5,'Tabel 2 H'!G19<0.5),"-",IFERROR('Tabel 2 H'!G19/'Tabel 1 H'!E17*100,"-")) -> 2.976004847 | I19: =IF(OR('Tabel 1 H'!G17<5,'Tabel 2 H'!I19<0.5),"-",IFERROR('Tabel 2 H'!I19/'Tabel 1 H'!G17*100,"-")) -> 2.112676056 | J19: =IF(OR('Tabel 1 H'!G17<5,'Tabel 2 H'!J19<0.5),"-",IFERROR('Tabel 2 H'!J19/'Tabel 1 H'!G17*100,"-")) -> 1.907158036
A20: Forstkand. | C20: =IF(OR('Tabel 1 H'!C18<5,'Tabel 2 H'!C20<0.5),"-",IFERROR('Tabel 2 H'!C20/'Tabel 1 H'!C18*100,"-")) -> 0.5347593583 | D20: =IF(OR('Tabel 1 H'!C18<5,'Tabel 2 H'!D20<0.5),"-",IFERROR('Tabel 2 H'!D20/'Tabel 1 H'!C18*100,"-")) -> 0.5346592973 | F20: =IF(OR('Tabel 1 H'!E18<5,'Tabel 2 H'!F20<0.5),"-",IFERROR('Tabel 2 H'!F20/'Tabel 1 H'!E18*100,"-")) -> 3.125 | G20: =IF(OR('Tabel 1 H'!E18<5,'Tabel 2 H'!G20<0.5),"-",IFERROR('Tabel 2 H'!G20/'Tabel 1 H'!E18*100,"-")) -> 2.740441589 | I20: =IF(OR('Tabel 1 H'!G18<5,'Tabel 2 H'!I20<0.5),"-",IFERROR('Tabel 2 H'!I20/'Tabel 1 H'!G18*100,"-")) -> 1.195219124 | J20: =IF(OR('Tabel 1 H'!G18<5,'Tabel 2 H'!J20<0.5),"-",IFERROR('Tabel 2 H'!J20/'Tabel 1 H'!G18*100,"-")) -> 1.097089842
A21: Jordbrugsakad. | C21: =IF(OR('Tabel 1 H'!C19<5,'Tabel 2 H'!C21<0.5),"-",IFERROR('Tabel 2 H'!C21/'Tabel 1 H'!C19*100,"-")) -> 3.425559947 | D21: =IF(OR('Tabel 1 H'!C19<5,'Tabel 2 H'!D21<0.5),"-",IFERROR('Tabel 2 H'!D21/'Tabel 1 H'!C19*100,"-")) -> 2.887407699 | F21: =IF(OR('Tabel 1 H'!E19<5,'Tabel 2 H'!F21<0.5),"-",IFERROR('Tabel 2 H'!F21/'Tabel 1 H'!E19*100,"-")) -> 4.536290323 | G21: =IF(OR('Tabel 1 H'!E19<5,'Tabel 2 H'!G21<0.5),"-",IFERROR('Tabel 2 H'!G21/'Tabel 1 H'!E19*100,"-")) -> 3.806287637 | I21: =IF(OR('Tabel 1 H'!G19<5,'Tabel 2 H'!I21<0.5),"-",IFERROR('Tabel 2 H'!I21/'Tabel 1 H'!G19*100,"-")) -> 4.054825814 | J21: =IF(OR('Tabel 1 H'!G19<5,'Tabel 2 H'!J21<0.5),"-",IFERROR('Tabel 2 H'!J21/'Tabel 1 H'!G19*100,"-")) -> 3.407983883
A22: Mejeriing. | C22: =IF(OR('Tabel 1 H'!C20<5,'Tabel 2 H'!C22<0.5),"-",IFERROR('Tabel 2 H'!C22/'Tabel 1 H'!C20*100,"-")) -> 6.153846154 | D22: =IF(OR('Tabel 1 H'!C20<5,'Tabel 2 H'!D22<0.5),"-",IFERROR('Tabel 2 H'!D22/'Tabel 1 H'!C20*100,"-")) -> 6.081687289 | F22: =IF(OR('Tabel 1 H'!E20<5,'Tabel 2 H'!F22<0.5),"-",IFERROR('Tabel 2 H'!F22/'Tabel 1 H'!E20*100,"-")) -> 4.210526316 | G22: =IF(OR('Tabel 1 H'!E20<5,'Tabel 2 H'!G22<0.5),"-",IFERROR('Tabel 2 H'!G22/'Tabel 1 H'!E20*100,"-")) -> 3.328004412 | I22: =IF(OR('Tabel 1 H'!G20<5,'Tabel 2 H'!I22<0.5),"-",IFERROR('Tabel 2 H'!I22/'Tabel 1 H'!G20*100,"-")) -> 5 | J22: =IF(OR('Tabel 1 H'!G20<5,'Tabel 2 H'!J22<0.5),"-",IFERROR('Tabel 2 H'!J22/'Tabel 1 H'!G20*100,"-")) -> 4.446688081
A23: Levn.m.kand. | C23: =IF(OR('Tabel 1 H'!C21<5,'Tabel 2 H'!C23<0.5),"-",IFERROR('Tabel 2 H'!C23/'Tabel 1 H'!C21*100,"-")) -> 5.555555556 | D23: =IF(OR('Tabel 1 H'!C21<5,'Tabel 2 H'!D23<0.5),"-",IFERROR('Tabel 2 H'!D23/'Tabel 1 H'!C21*100,"-")) -> 4.526543633 | F23: =IF(OR('Tabel 1 H'!E21<5,'Tabel 2 H'!F23<0.5),"-",IFERROR('Tabel 2 H'!F23/'Tabel 1 H'!E21*100,"-")) -> 4.545454545 | G23: =IF(OR('Tabel 1 H'!E21<5,'Tabel 2 H'!G23<0.5),"-",IFERROR('Tabel 2 H'!G23/'Tabel 1 H'!E21*100,"-")) -> 3.649596832 | I23: =IF(OR('Tabel 1 H'!G21<5,'Tabel 2 H'!I23<0.5),"-",IFERROR('Tabel 2 H'!I23/'Tabel 1 H'!G21*100,"-")) -> 4.705882353 | J23: =IF(OR('Tabel 1 H'!G21<5,'Tabel 2 H'!J23<0.5),"-",IFERROR('Tabel 2 H'!J23/'Tabel 1 H'!G21*100,"-")) -> 3.788876618
A24: Dyrlæge | C24: =IF(OR('Tabel 1 H'!C22<5,'Tabel 2 H'!C24<0.5),"-",IFERROR('Tabel 2 H'!C24/'Tabel 1 H'!C22*100,"-")) -> 1.25 | D24: =IF(OR('Tabel 1 H'!C22<5,'Tabel 2 H'!D24<0.5),"-",IFERROR('Tabel 2 H'!D24/'Tabel 1 H'!C22*100,"-")) -> 0.6151375288 | F24: =IF(OR('Tabel 1 H'!E22<5,'Tabel 2 H'!F24<0.5),"-",IFERROR('Tabel 2 H'!F24/'Tabel 1 H'!E22*100,"-")) -> 2.612826603 | G24: =IF(OR('Tabel 1 H'!E22<5,'Tabel 2 H'!G24<0.5),"-",IFERROR('Tabel 2 H'!G24/'Tabel 1 H'!E22*100,"-")) -> 2.10018144 | I24: =IF(OR('Tabel 1 H'!G22<5,'Tabel 2 H'!I24<0.5),"-",IFERROR('Tabel 2 H'!I24/'Tabel 1 H'!G22*100,"-")) -> 2.395209581 | J24: =IF(OR('Tabel 1 H'!G22<5,'Tabel 2 H'!J24<0.5),"-",IFERROR('Tabel 2 H'!J24/'Tabel 1 H'!G22*100,"-")) -> 1.86304868
A25: Farmaceut | C25: =IF(OR('Tabel 1 H'!C23<5,'Tabel 2 H'!C25<0.5),"-",IFERROR('Tabel 2 H'!C25/'Tabel 1 H'!C23*100,"-")) -> 3.237410072 | D25: =IF(OR('Tabel 1 H'!C23<5,'Tabel 2 H'!D25<0.5),"-",IFERROR('Tabel 2 H'!D25/'Tabel 1 H'!C23*100,"-")) -> 2.87059693 | F25: =IF(OR('Tabel 1 H'!E23<5,'Tabel 2 H'!F25<0.5),"-",IFERROR('Tabel 2 H'!F25/'Tabel 1 H'!E23*100,"-")) -> 2.11952745 | G25: =IF(OR('Tabel 1 H'!E23<5,'Tabel 2 H'!G25<0.5),"-",IFERROR('Tabel 2 H'!G25/'Tabel 1 H'!E23*100,"-")) -> 1.814577448 | I25: =IF(OR('Tabel 1 H'!G23<5,'Tabel 2 H'!I25<0.5),"-",IFERROR('Tabel 2 H'!I25/'Tabel 1 H'!G23*100,"-")) -> 2.431077694 | J25: =IF(OR('Tabel 1 H'!G23<5,'Tabel 2 H'!J25<0.5),"-",IFERROR('Tabel 2 H'!J25/'Tabel 1 H'!G23*100,"-")) -> 2.108886637
A26: Læge | C26: =IF(OR('Tabel 1 H'!C24<5,'Tabel 2 H'!C26<0.5),"-",IFERROR('Tabel 2 H'!C26/'Tabel 1 H'!C24*100,"-")) -> 1.99252802 | D26: =IF(OR('Tabel 1 H'!C24<5,'Tabel 2 H'!D26<0.5),"-",IFERROR('Tabel 2 H'!D26/'Tabel 1 H'!C24*100,"-")) -> 1.628451717 | F26: =IF(OR('Tabel 1 H'!E24<5,'Tabel 2 H'!F26<0.5),"-",IFERROR('Tabel 2 H'!F26/'Tabel 1 H'!E24*100,"-")) -> 2.314219594 | G26: =IF(OR('Tabel 1 H'!E24<5,'Tabel 2 H'!G26<0.5),"-",IFERROR('Tabel 2 H'!G26/'Tabel 1 H'!E24*100,"-")) -> 1.751562255 | I26: =IF(OR('Tabel 1 H'!G24<5,'Tabel 2 H'!I26<0.5),"-",IFERROR('Tabel 2 H'!I26/'Tabel 1 H'!G24*100,"-")) -> 2.220200182 | J26: =IF(OR('Tabel 1 H'!G24<5,'Tabel 2 H'!J26<0.5),"-",IFERROR('Tabel 2 H'!J26/'Tabel 1 H'!G24*100,"-")) -> 1.715581268
A27: Tandlæge | C27: =IF(OR('Tabel 1 H'!C25<5,'Tabel 2 H'!C27<0.5),"-",IFERROR('Tabel 2 H'!C27/'Tabel 1 H'!C25*100,"-")) -> 2.797202797 | D27: =IF(OR('Tabel 1 H'!C25<5,'Tabel 2 H'!D27<0.5),"-",IFERROR('Tabel 2 H'!D27/'Tabel 1 H'!C25*100,"-")) -> 2.409366346 | F27: =IF(OR('Tabel 1 H'!E25<5,'Tabel 2 H'!F27<0.5),"-",IFERROR('Tabel 2 H'!F27/'Tabel 1 H'!E25*100,"-")) -> 2.331961591 | G27: =IF(OR('Tabel 1 H'!E25<5,'Tabel 2 H'!G27<0.5),"-",IFERROR('Tabel 2 H'!G27/'Tabel 1 H'!E25*100,"-")) -> 1.784813336 | I27: =IF(OR('Tabel 1 H'!G25<5,'Tabel 2 H'!I27<0.5),"-",IFERROR('Tabel 2 H'!I27/'Tabel 1 H'!G25*100,"-")) -> 2.408256881 | J27: =IF(OR('Tabel 1 H'!G25<5,'Tabel 2 H'!J27<0.5),"-",IFERROR('Tabel 2 H'!J27/'Tabel 1 H'!G25*100,"-")) -> 1.887234299
A28: Arkitekt | C28: =IF(OR('Tabel 1 H'!C26<5,'Tabel 2 H'!C28<0.5),"-",IFERROR('Tabel 2 H'!C28/'Tabel 1 H'!C26*100,"-")) -> 4.822954823 | D28: =IF(OR('Tabel 1 H'!C26<5,'Tabel 2 H'!D28<0.5),"-",IFERROR('Tabel 2 H'!D28/'Tabel 1 H'!C26*100,"-")) -> 4.145829568 | F28: =IF(OR('Tabel 1 H'!E26<5,'Tabel 2 H'!F28<0.5),"-",IFERROR('Tabel 2 H'!F28/'Tabel 1 H'!E26*100,"-")) -> 5.501460565 | G28: =IF(OR('Tabel 1 H'!E26<5,'Tabel 2 H'!G28<0.5),"-",IFERROR('Tabel 2 H'!G28/'Tabel 1 H'!E26*100,"-")) -> 4.672871939 | I28: =IF(OR('Tabel 1 H'!G26<5,'Tabel 2 H'!I28<0.5),"-",IFERROR('Tabel 2 H'!I28/'Tabel 1 H'!G26*100,"-")) -> 5.200433369 | J28: =IF(OR('Tabel 1 H'!G26<5,'Tabel 2 H'!J28<0.5),"-",IFERROR('Tabel 2 H'!J28/'Tabel 1 H'!G26*100,"-")) -> 4.439043281
A29: Landinspek. | C29: =IF(OR('Tabel 1 H'!C27<5,'Tabel 2 H'!C29<0.5),"-",IFERROR('Tabel 2 H'!C29/'Tabel 1 H'!C27*100,"-")) -> - | D29: =IF(OR('Tabel 1 H'!C27<5,'Tabel 2 H'!D29<0.5),"-",IFERROR('Tabel 2 H'!D29/'Tabel 1 H'!C27*100,"-")) -> - | F29: =IF(OR('Tabel 1 H'!E27<5,'Tabel 2 H'!F29<0.5),"-",IFERROR('Tabel 2 H'!F29/'Tabel 1 H'!E27*100,"-")) -> 1.851851852 | G29: =IF(OR('Tabel 1 H'!E27<5,'Tabel 2 H'!G29<0.5),"-",IFERROR('Tabel 2 H'!G29/'Tabel 1 H'!E27*100,"-")) -> 1.851505344 | I29: =IF(OR('Tabel 1 H'!G27<5,'Tabel 2 H'!I29<0.5),"-",IFERROR('Tabel 2 H'!I29/'Tabel 1 H'!G27*100,"-")) -> 0.5263157895 | J29: =IF(OR('Tabel 1 H'!G27<5,'Tabel 2 H'!J29<0.5),"-",IFERROR('Tabel 2 H'!J29/'Tabel 1 H'!G27*100,"-")) -> 0.5262173084
A30: Bibliotekar | C30: =IF(OR('Tabel 1 H'!C28<5,'Tabel 2 H'!C30<0.5),"-",IFERROR('Tabel 2 H'!C30/'Tabel 1 H'!C28*100,"-")) -> 4.491725768 | D30: =IF(OR('Tabel 1 H'!C28<5,'Tabel 2 H'!D30<0.5),"-",IFERROR('Tabel 2 H'!D30/'Tabel 1 H'!C28*100,"-")) -> 3.667966734 | F30: =IF(OR('Tabel 1 H'!E28<5,'Tabel 2 H'!F30<0.5),"-",IFERROR('Tabel 2 H'!F30/'Tabel 1 H'!E28*100,"-")) -> 3.264604811 | G30: =IF(OR('Tabel 1 H'!E28<5,'Tabel 2 H'!G30<0.5),"-",IFERROR('Tabel 2 H'!G30/'Tabel 1 H'!E28*100,"-")) -> 2.687916224 | I30: =IF(OR('Tabel 1 H'!G28<5,'Tabel 2 H'!I30<0.5),"-",IFERROR('Tabel 2 H'!I30/'Tabel 1 H'!G28*100,"-")) -> 3.59168242 | J30: =IF(OR('Tabel 1 H'!G28<5,'Tabel 2 H'!J30<0.5),"-",IFERROR('Tabel 2 H'!J30/'Tabel 1 H'!G28*100,"-")) -> 2.949139517
A31: Musikudd. | C31: =IF(OR('Tabel 1 H'!C29<5,'Tabel 2 H'!C31<0.5),"-",IFERROR('Tabel 2 H'!C31/'Tabel 1 H'!C29*100,"-")) -> 3.25203252 | D31: =IF(OR('Tabel 1 H'!C29<5,'Tabel 2 H'!D31<0.5),"-",IFERROR('Tabel 2 H'!D31/'Tabel 1 H'!C29*100,"-")) -> 1.400059532 | F31: =IF(OR('Tabel 1 H'!E29<5,'Tabel 2 H'!F31<0.5),"-",IFERROR('Tabel 2 H'!F31/'Tabel 1 H'!E29*100,"-")) -> 1.818181818 | G31: =IF(OR('Tabel 1 H'!E29<5,'Tabel 2 H'!G31<0.5),"-",IFERROR('Tabel 2 H'!G31/'Tabel 1 H'!E29*100,"-")) -> 1.342307249 | I31: =IF(OR('Tabel 1 H'!G29<5,'Tabel 2 H'!I31<0.5),"-",IFERROR('Tabel 2 H'!I31/'Tabel 1 H'!G29*100,"-")) -> 2.430555556 | J31: =IF(OR('Tabel 1 H'!G29<5,'Tabel 2 H'!J31<0.5),"-",IFERROR('Tabel 2 H'!J31/'Tabel 1 H'!G29*100,"-")) -> 1.366972286
A32: Teolog | C32: =IF(OR('Tabel 1 H'!C30<5,'Tabel 2 H'!C32<0.5),"-",IFERROR('Tabel 2 H'!C32/'Tabel 1 H'!C30*100,"-")) -> 5.882352941 | D32: =IF(OR('Tabel 1 H'!C30<5,'Tabel 2 H'!D32<0.5),"-",IFERROR('Tabel 2 H'!D32/'Tabel 1 H'!C30*100,"-")) -> 4.985428338 | F32: =IF(OR('Tabel 1 H'!E30<5,'Tabel 2 H'!F32<0.5),"-",IFERROR('Tabel 2 H'!F32/'Tabel 1 H'!E30*100,"-")) -> 4.871060172 | G32: =IF(OR('Tabel 1 H'!E30<5,'Tabel 2 H'!G32<0.5),"-",IFERROR('Tabel 2 H'!G32/'Tabel 1 H'!E30*100,"-")) -> 3.894546295 | I32: =IF(OR('Tabel 1 H'!G30<5,'Tabel 2 H'!I32<0.5),"-",IFERROR('Tabel 2 H'!I32/'Tabel 1 H'!G30*100,"-")) -> 5.244122966 | J32: =IF(OR('Tabel 1 H'!G30<5,'Tabel 2 H'!J32<0.5),"-",IFERROR('Tabel 2 H'!J32/'Tabel 1 H'!G30*100,"-")) -> 4.296969327
A33: Psykolog | C33: =IF(OR('Tabel 1 H'!C31<5,'Tabel 2 H'!C33<0.5),"-",IFERROR('Tabel 2 H'!C33/'Tabel 1 H'!C31*100,"-")) -> 3.671071953 | D33: =IF(OR('Tabel 1 H'!C31<5,'Tabel 2 H'!D33<0.5),"-",IFERROR('Tabel 2 H'!D33/'Tabel 1 H'!C31*100,"-")) -> 3.222337043 | F33: =IF(OR('Tabel 1 H'!E31<5,'Tabel 2 H'!F33<0.5),"-",IFERROR('Tabel 2 H'!F33/'Tabel 1 H'!E31*100,"-")) -> 3.069466882 | G33: =IF(OR('Tabel 1 H'!E31<5,'Tabel 2 H'!G33<0.5),"-",IFERROR('Tabel 2 H'!G33/'Tabel 1 H'!E31*100,"-")) -> 2.61222134 | I33: =IF(OR('Tabel 1 H'!G31<5,'Tabel 2 H'!I33<0.5),"-",IFERROR('Tabel 2 H'!I33/'Tabel 1 H'!G31*100,"-")) -> 3.177966102 | J33: =IF(OR('Tabel 1 H'!G31<5,'Tabel 2 H'!J33<0.5),"-",IFERROR('Tabel 2 H'!J33/'Tabel 1 H'!G31*100,"-")) -> 2.722255449
A34: Jurist | C34: =IF(OR('Tabel 1 H'!C32<5,'Tabel 2 H'!C34<0.5),"-",IFERROR('Tabel 2 H'!C34/'Tabel 1 H'!C32*100,"-")) -> 1.471029721 | D34: =IF(OR('Tabel 1 H'!C32<5,'Tabel 2 H'!D34<0.5),"-",IFERROR('Tabel 2 H'!D34/'Tabel 1 H'!C32*100,"-")) -> 1.257987808 | F34: =IF(OR('Tabel 1 H'!E32<5,'Tabel 2 H'!F34<0.5),"-",IFERROR('Tabel 2 H'!F34/'Tabel 1 H'!E32*100,"-")) -> 1.235311841 | G34: =IF(OR('Tabel 1 H'!E32<5,'Tabel 2 H'!G34<0.5),"-",IFERROR('Tabel 2 H'!G34/'Tabel 1 H'!E32*100,"-")) -> 0.9997457977 | I34: =IF(OR('Tabel 1 H'!G32<5,'Tabel 2 H'!I34<0.5),"-",IFERROR('Tabel 2 H'!I34/'Tabel 1 H'!G32*100,"-")) -> 1.314073628 | J34: =IF(OR('Tabel 1 H'!G32<5,'Tabel 2 H'!J34<0.5),"-",IFERROR('Tabel 2 H'!J34/'Tabel 1 H'!G32*100,"-")) -> 1.086033704
A35: Økonom | C35: =IF(OR('Tabel 1 H'!C33<5,'Tabel 2 H'!C35<0.5),"-",IFERROR('Tabel 2 H'!C35/'Tabel 1 H'!C33*100,"-")) -> 1.93236715 | D35: =IF(OR('Tabel 1 H'!C33<5,'Tabel 2 H'!D35<0.5),"-",IFERROR('Tabel 2 H'!D35/'Tabel 1 H'!C33*100,"-")) -> 1.718376139 | F35: =IF(OR('Tabel 1 H'!E33<5,'Tabel 2 H'!F35<0.5),"-",IFERROR('Tabel 2 H'!F35/'Tabel 1 H'!E33*100,"-")) -> 1.546619532 | G35: =IF(OR('Tabel 1 H'!E33<5,'Tabel 2 H'!G35<0.5),"-",IFERROR('Tabel 2 H'!G35/'Tabel 1 H'!E33*100,"-")) -> 1.257376833 | I35: =IF(OR('Tabel 1 H'!G33<5,'Tabel 2 H'!I35<0.5),"-",IFERROR('Tabel 2 H'!I35/'Tabel 1 H'!G33*100,"-")) -> 1.781390522 | J35: =IF(OR('Tabel 1 H'!G33<5,'Tabel 2 H'!J35<0.5),"-",IFERROR('Tabel 2 H'!J35/'Tabel 1 H'!G33*100,"-")) -> 1.537946974
A36: Samf. Adm. | C36: =IF(OR('Tabel 1 H'!C34<5,'Tabel 2 H'!C36<0.5),"-",IFERROR('Tabel 2 H'!C36/'Tabel 1 H'!C34*100,"-")) -> 3.483835006 | D36: =IF(OR('Tabel 1 H'!C34<5,'Tabel 2 H'!D36<0.5),"-",IFERROR('Tabel 2 H'!D36/'Tabel 1 H'!C34*100,"-")) -> 2.990765771 | F36: =IF(OR('Tabel 1 H'!E34<5,'Tabel 2 H'!F36<0.5),"-",IFERROR('Tabel 2 H'!F36/'Tabel 1 H'!E34*100,"-")) -> 3.5660941 | G36: =IF(OR('Tabel 1 H'!E34<5,'Tabel 2 H'!G36<0.5),"-",IFERROR('Tabel 2 H'!G36/'Tabel 1 H'!E34*100,"-")) -> 2.976689415 | I36: =IF(OR('Tabel 1 H'!G34<5,'Tabel 2 H'!I36<0.5),"-",IFERROR('Tabel 2 H'!I36/'Tabel 1 H'!G34*100,"-")) -> 3.533094812 | J36: =IF(OR('Tabel 1 H'!G34<5,'Tabel 2 H'!J36<0.5),"-",IFERROR('Tabel 2 H'!J36/'Tabel 1 H'!G34*100,"-")) -> 2.982336325
A37: Cand. Merc. | C37: =IF(OR('Tabel 1 H'!C35<5,'Tabel 2 H'!C37<0.5),"-",IFERROR('Tabel 2 H'!C37/'Tabel 1 H'!C35*100,"-")) -> 2.945211744 | D37: =IF(OR('Tabel 1 H'!C35<5,'Tabel 2 H'!D37<0.5),"-",IFERROR('Tabel 2 H'!D37/'Tabel 1 H'!C35*100,"-")) -> 2.443675962 | F37: =IF(OR('Tabel 1 H'!E35<5,'Tabel 2 H'!F37<0.5),"-",IFERROR('Tabel 2 H'!F37/'Tabel 1 H'!E35*100,"-")) -> 3.028664143 | G37: =IF(OR('Tabel 1 H'!E35<5,'Tabel 2 H'!G37<0.5),"-",IFERROR('Tabel 2 H'!G37/'Tabel 1 H'!E35*100,"-")) -> 2.539853494 | I37: =IF(OR('Tabel 1 H'!G35<5,'Tabel 2 H'!I37<0.5),"-",IFERROR('Tabel 2 H'!I37/'Tabel 1 H'!G35*100,"-")) -> 2.987242929 | J37: =IF(OR('Tabel 1 H'!G35<5,'Tabel 2 H'!J37<0.5),"-",IFERROR('Tabel 2 H'!J37/'Tabel 1 H'!G35*100,"-")) -> 2.492116219
A38: HA | C38: =IF(OR('Tabel 1 H'!C36<5,'Tabel 2 H'!C38<0.5),"-",IFERROR('Tabel 2 H'!C38/'Tabel 1 H'!C36*100,"-")) -> 4.652777778 | D38: =IF(OR('Tabel 1 H'!C36<5,'Tabel 2 H'!D38<0.5),"-",IFERROR('Tabel 2 H'!D38/'Tabel 1 H'!C36*100,"-")) -> 4.115903311 | F38: =IF(OR('Tabel 1 H'!E36<5,'Tabel 2 H'!F38<0.5),"-",IFERROR('Tabel 2 H'!F38/'Tabel 1 H'!E36*100,"-")) -> 4.598597038 | G38: =IF(OR('Tabel 1 H'!E36<5,'Tabel 2 H'!G38<0.5),"-",IFERROR('Tabel 2 H'!G38/'Tabel 1 H'!E36*100,"-")) -> 3.879858276 | I38: =IF(OR('Tabel 1 H'!G36<5,'Tabel 2 H'!I38<0.5),"-",IFERROR('Tabel 2 H'!I38/'Tabel 1 H'!G36*100,"-")) -> 4.627249357 | J38: =IF(OR('Tabel 1 H'!G36<5,'Tabel 2 H'!J38<0.5),"-",IFERROR('Tabel 2 H'!J38/'Tabel 1 H'!G36*100,"-")) -> 4.004685617
A39: HD | C39: =IF(OR('Tabel 1 H'!C37<5,'Tabel 2 H'!C39<0.5),"-",IFERROR('Tabel 2 H'!C39/'Tabel 1 H'!C37*100,"-")) -> 3.830806065 | D39: =IF(OR('Tabel 1 H'!C37<5,'Tabel 2 H'!D39<0.5),"-",IFERROR('Tabel 2 H'!D39/'Tabel 1 H'!C37*100,"-")) -> 3.383036454 | F39: =IF(OR('Tabel 1 H'!E37<5,'Tabel 2 H'!F39<0.5),"-",IFERROR('Tabel 2 H'!F39/'Tabel 1 H'!E37*100,"-")) -> 3.784693019 | G39: =IF(OR('Tabel 1 H'!E37<5,'Tabel 2 H'!G39<0.5),"-",IFERROR('Tabel 2 H'!G39/'Tabel 1 H'!E37*100,"-")) -> 3.079382583 | I39: =IF(OR('Tabel 1 H'!G37<5,'Tabel 2 H'!I39<0.5),"-",IFERROR('Tabel 2 H'!I39/'Tabel 1 H'!G37*100,"-")) -> 3.808353808 | J39: =IF(OR('Tabel 1 H'!G37<5,'Tabel 2 H'!J39<0.5),"-",IFERROR('Tabel 2 H'!J39/'Tabel 1 H'!G37*100,"-")) -> 3.235188603
A40: Komm. og Sprog | C40: =IF(OR('Tabel 1 H'!C38<5,'Tabel 2 H'!C40<0.5),"-",IFERROR('Tabel 2 H'!C40/'Tabel 1 H'!C38*100,"-")) -> 5.970149254 | D40: =IF(OR('Tabel 1 H'!C38<5,'Tabel 2 H'!D40<0.5),"-",IFERROR('Tabel 2 H'!D40/'Tabel 1 H'!C38*100,"-")) -> 5.2257476 | F40: =IF(OR('Tabel 1 H'!E38<5,'Tabel 2 H'!F40<0.5),"-",IFERROR('Tabel 2 H'!F40/'Tabel 1 H'!E38*100,"-")) -> 4.67117394 | G40: =IF(OR('Tabel 1 H'!E38<5,'Tabel 2 H'!G40<0.5),"-",IFERROR('Tabel 2 H'!G40/'Tabel 1 H'!E38*100,"-")) -> 3.720813836 | I40: =IF(OR('Tabel 1 H'!G38<5,'Tabel 2 H'!I40<0.5),"-",IFERROR('Tabel 2 H'!I40/'Tabel 1 H'!G38*100,"-")) -> 4.874254602 | J40: =IF(OR('Tabel 1 H'!G38<5,'Tabel 2 H'!J40<0.5),"-",IFERROR('Tabel 2 H'!J40/'Tabel 1 H'!G38*100,"-")) -> 3.956093862
A41: Komm. og Sprog | C41: =IF(OR('Tabel 1 H'!C39<5,'Tabel 2 H'!C41<0.5),"-",IFERROR('Tabel 2 H'!C41/'Tabel 1 H'!C39*100,"-")) -> 3.095129722 | D41: =IF(OR('Tabel 1 H'!C39<5,'Tabel 2 H'!D41<0.5),"-",IFERROR('Tabel 2 H'!D41/'Tabel 1 H'!C39*100,"-")) -> 2.774778839 | F41: =IF(OR('Tabel 1 H'!E39<5,'Tabel 2 H'!F41<0.5),"-",IFERROR('Tabel 2 H'!F41/'Tabel 1 H'!E39*100,"-")) -> 5.59566787 | G41: =IF(OR('Tabel 1 H'!E39<5,'Tabel 2 H'!G41<0.5),"-",IFERROR('Tabel 2 H'!G41/'Tabel 1 H'!E39*100,"-")) -> 4.769528822 | I41: =IF(OR('Tabel 1 H'!G39<5,'Tabel 2 H'!I41<0.5),"-",IFERROR('Tabel 2 H'!I41/'Tabel 1 H'!G39*100,"-")) -> 3.598691385 | J41: =IF(OR('Tabel 1 H'!G39<5,'Tabel 2 H'!J41<0.5),"-",IFERROR('Tabel 2 H'!J41/'Tabel 1 H'!G39*100,"-")) -> 3.176484216
A42: Cand. IT. | C42: =IF(OR('Tabel 1 H'!C40<5,'Tabel 2 H'!C42<0.5),"-",IFERROR('Tabel 2 H'!C42/'Tabel 1 H'!C40*100,"-")) -> 3.814553991 | D42: =IF(OR('Tabel 1 H'!C40<5,'Tabel 2 H'!D42<0.5),"-",IFERROR('Tabel 2 H'!D42/'Tabel 1 H'!C40*100,"-")) -> 3.228413287 | F42: =IF(OR('Tabel 1 H'!E40<5,'Tabel 2 H'!F42<0.5),"-",IFERROR('Tabel 2 H'!F42/'Tabel 1 H'!E40*100,"-")) -> 4.938271605 | G42: =IF(OR('Tabel 1 H'!E40<5,'Tabel 2 H'!G42<0.5),"-",IFERROR('Tabel 2 H'!G42/'Tabel 1 H'!E40*100,"-")) -> 4.087120725 | I42: =IF(OR('Tabel 1 H'!G40<5,'Tabel 2 H'!I42<0.5),"-",IFERROR('Tabel 2 H'!I42/'Tabel 1 H'!G40*100,"-")) -> 4.332700822 | J42: =IF(OR('Tabel 1 H'!G40<5,'Tabel 2 H'!J42<0.5),"-",IFERROR('Tabel 2 H'!J42/'Tabel 1 H'!G40*100,"-")) -> 3.624363776
A43: Bac. Samf. | C43: =IF(OR('Tabel 1 H'!C41<5,'Tabel 2 H'!C43<0.5),"-",IFERROR('Tabel 2 H'!C43/'Tabel 1 H'!C41*100,"-")) -> 4.166666667 | D43: =IF(OR('Tabel 1 H'!C41<5,'Tabel 2 H'!D43<0.5),"-",IFERROR('Tabel 2 H'!D43/'Tabel 1 H'!C41*100,"-")) -> 3.367728539 | F43: =IF(OR('Tabel 1 H'!E41<5,'Tabel 2 H'!F43<0.5),"-",IFERROR('Tabel 2 H'!F43/'Tabel 1 H'!E41*100,"-")) -> 7.522123894 | G43: =IF(OR('Tabel 1 H'!E41<5,'Tabel 2 H'!G43<0.5),"-",IFERROR('Tabel 2 H'!G43/'Tabel 1 H'!E41*100,"-")) -> 6.019526099 | I43: =IF(OR('Tabel 1 H'!G41<5,'Tabel 2 H'!I43<0.5),"-",IFERROR('Tabel 2 H'!I43/'Tabel 1 H'!G41*100,"-")) -> 5.980861244 | J43: =IF(OR('Tabel 1 H'!G41<5,'Tabel 2 H'!J43<0.5),"-",IFERROR('Tabel 2 H'!J43/'Tabel 1 H'!G41*100,"-")) -> 4.801475545
A44: Bac. Hum. | C44: =IF(OR('Tabel 1 H'!C42<5,'Tabel 2 H'!C44<0.5),"-",IFERROR('Tabel 2 H'!C44/'Tabel 1 H'!C42*100,"-")) -> 11.13892365 | D44: =IF(OR('Tabel 1 H'!C42<5,'Tabel 2 H'!D44<0.5),"-",IFERROR('Tabel 2 H'!D44/'Tabel 1 H'!C42*100,"-")) -> 9.560381838 | F44: =IF(OR('Tabel 1 H'!E42<5,'Tabel 2 H'!F44<0.5),"-",IFERROR('Tabel 2 H'!F44/'Tabel 1 H'!E42*100,"-")) -> 9.672727273 | G44: =IF(OR('Tabel 1 H'!E42<5,'Tabel 2 H'!G44<0.5),"-",IFERROR('Tabel 2 H'!G44/'Tabel 1 H'!E42*100,"-")) -> 7.986074177 | I44: =IF(OR('Tabel 1 H'!G42<5,'Tabel 2 H'!I44<0.5),"-",IFERROR('Tabel 2 H'!I44/'Tabel 1 H'!G42*100,"-")) -> 10.21159154 | J44: =IF(OR('Tabel 1 H'!G42<5,'Tabel 2 H'!J44<0.5),"-",IFERROR('Tabel 2 H'!J44/'Tabel 1 H'!G42*100,"-")) -> 8.56467207
A45: Bac. Nat. | C45: =IF(OR('Tabel 1 H'!C43<5,'Tabel 2 H'!C45<0.5),"-",IFERROR('Tabel 2 H'!C45/'Tabel 1 H'!C43*100,"-")) -> 7.90144435 | D45: =IF(OR('Tabel 1 H'!C43<5,'Tabel 2 H'!D45<0.5),"-",IFERROR('Tabel 2 H'!D45/'Tabel 1 H'!C43*100,"-")) -> 6.801551664 | F45: =IF(OR('Tabel 1 H'!E43<5,'Tabel 2 H'!F45<0.5),"-",IFERROR('Tabel 2 H'!F45/'Tabel 1 H'!E43*100,"-")) -> 10.86956522 | G45: =IF(OR('Tabel 1 H'!E43<5,'Tabel 2 H'!G45<0.5),"-",IFERROR('Tabel 2 H'!G45/'Tabel 1 H'!E43*100,"-")) -> 9.010326226 | I45: =IF(OR('Tabel 1 H'!G43<5,'Tabel 2 H'!I45<0.5),"-",IFERROR('Tabel 2 H'!I45/'Tabel 1 H'!G43*100,"-")) -> 9.127182045 | J45: =IF(OR('Tabel 1 H'!G43<5,'Tabel 2 H'!J45<0.5),"-",IFERROR('Tabel 2 H'!J45/'Tabel 1 H'!G43*100,"-")) -> 7.713703952
A46: Andre | C46: =IF(OR('Tabel 1 H'!C44<5,'Tabel 2 H'!C46<0.5),"-",IFERROR('Tabel 2 H'!C46/'Tabel 1 H'!C44*100,"-")) -> 5.172927847 | D46: =IF(OR('Tabel 1 H'!C44<5,'Tabel 2 H'!D46<0.5),"-",IFERROR('Tabel 2 H'!D46/'Tabel 1 H'!C44*100,"-")) -> 4.543243975 | F46: =IF(OR('Tabel 1 H'!E44<5,'Tabel 2 H'!F46<0.5),"-",IFERROR('Tabel 2 H'!F46/'Tabel 1 H'!E44*100,"-")) -> 6.795622296 | G46: =IF(OR('Tabel 1 H'!E44<5,'Tabel 2 H'!G46<0.5),"-",IFERROR('Tabel 2 H'!G46/'Tabel 1 H'!E44*100,"-")) -> 5.779820022 | I46: =IF(OR('Tabel 1 H'!G44<5,'Tabel 2 H'!I46<0.5),"-",IFERROR('Tabel 2 H'!I46/'Tabel 1 H'!G44*100,"-")) -> 6.048331731 | J46: =IF(OR('Tabel 1 H'!G44<5,'Tabel 2 H'!J46<0.5),"-",IFERROR('Tabel 2 H'!J46/'Tabel 1 H'!G44*100,"-")) -> 5.210346445
A48: Total | C48: =IF(OR('Tabel 1 H'!C46<5,'Tabel 2 H'!C48<0.5),"-",IFERROR('Tabel 2 H'!C48/'Tabel 1 H'!C46*100,"-")) -> 3.601501922 | D48: =IF(OR('Tabel 1 H'!C46<5,'Tabel 2 H'!D48<0.5),"-",IFERROR('Tabel 2 H'!D48/'Tabel 1 H'!C46*100,"-")) -> 3.086546111 | F48: =IF(OR('Tabel 1 H'!E46<5,'Tabel 2 H'!F48<0.5),"-",IFERROR('Tabel 2 H'!F48/'Tabel 1 H'!E46*100,"-")) -> 4.333711425 | G48: =IF(OR('Tabel 1 H'!E46<5,'Tabel 2 H'!G48<0.5),"-",IFERROR('Tabel 2 H'!G48/'Tabel 1 H'!E46*100,"-")) -> 3.593223644 | I48: =IF(OR('Tabel 1 H'!G46<5,'Tabel 2 H'!I48<0.5),"-",IFERROR('Tabel 2 H'!I48/'Tabel 1 H'!G46*100,"-")) -> 3.990930177 | J48: =IF(OR('Tabel 1 H'!G46<5,'Tabel 2 H'!J48<0.5),"-",IFERROR('Tabel 2 H'!J48/'Tabel 1 H'!G46*100,"-")) -> 3.356024378
A50: Ingeniører i alt | C50: =IF(OR('Tabel 1 H'!C48<5,'Tabel 2 H'!C50<0.5),"-",IFERROR('Tabel 2 H'!C50/'Tabel 1 H'!C48*100,"-")) -> 2.127843612 | D50: =IF(OR('Tabel 1 H'!C48<5,'Tabel 2 H'!D50<0.5),"-",IFERROR('Tabel 2 H'!D50/'Tabel 1 H'!C48*100,"-")) -> 1.821792894 | F50: =IF(OR('Tabel 1 H'!E48<5,'Tabel 2 H'!F50<0.5),"-",IFERROR('Tabel 2 H'!F50/'Tabel 1 H'!E48*100,"-")) -> 2.471576866 | G50: =IF(OR('Tabel 1 H'!E48<5,'Tabel 2 H'!G50<0.5),"-",IFERROR('Tabel 2 H'!G50/'Tabel 1 H'!E48*100,"-")) -> 2.108555824 | I50: =IF(OR('Tabel 1 H'!G48<5,'Tabel 2 H'!I50<0.5),"-",IFERROR('Tabel 2 H'!I50/'Tabel 1 H'!G48*100,"-")) -> 2.216953931 | J50: =IF(OR('Tabel 1 H'!G48<5,'Tabel 2 H'!J50<0.5),"-",IFERROR('Tabel 2 H'!J50/'Tabel 1 H'!G48*100,"-")) -> 1.896134075
A51: Magistre i alt | C51: =IF(OR('Tabel 1 H'!C49<5,'Tabel 2 H'!C51<0.5),"-",IFERROR('Tabel 2 H'!C51/'Tabel 1 H'!C49*100,"-")) -> 5.395918367 | D51: =IF(OR('Tabel 1 H'!C49<5,'Tabel 2 H'!D51<0.5),"-",IFERROR('Tabel 2 H'!D51/'Tabel 1 H'!C49*100,"-")) -> 4.591041182 | F51: =IF(OR('Tabel 1 H'!E49<5,'Tabel 2 H'!F51<0.5),"-",IFERROR('Tabel 2 H'!F51/'Tabel 1 H'!E49*100,"-")) -> 6.068323527 | G51: =IF(OR('Tabel 1 H'!E49<5,'Tabel 2 H'!G51<0.5),"-",IFERROR('Tabel 2 H'!G51/'Tabel 1 H'!E49*100,"-")) -> 4.988221607 | I51: =IF(OR('Tabel 1 H'!G49<5,'Tabel 2 H'!I51<0.5),"-",IFERROR('Tabel 2 H'!I51/'Tabel 1 H'!G49*100,"-")) -> 5.833142988 | J51: =IF(OR('Tabel 1 H'!G49<5,'Tabel 2 H'!J51<0.5),"-",IFERROR('Tabel 2 H'!J51/'Tabel 1 H'!G49*100,"-")) -> 4.849303716
A52: DJØF'ere i alt | C52: =IF(OR('Tabel 1 H'!C50<5,'Tabel 2 H'!C52<0.5),"-",IFERROR('Tabel 2 H'!C52/'Tabel 1 H'!C50*100,"-")) -> 2.863744839 | D52: =IF(OR('Tabel 1 H'!C50<5,'Tabel 2 H'!D52<0.5),"-",IFERROR('Tabel 2 H'!D52/'Tabel 1 H'!C50*100,"-")) -> 2.437314605 | F52: =IF(OR('Tabel 1 H'!E50<5,'Tabel 2 H'!F52<0.5),"-",IFERROR('Tabel 2 H'!F52/'Tabel 1 H'!E50*100,"-")) -> 2.79462332 | G52: =IF(OR('Tabel 1 H'!E50<5,'Tabel 2 H'!G52<0.5),"-",IFERROR('Tabel 2 H'!G52/'Tabel 1 H'!E50*100,"-")) -> 2.329573186 | I52: =IF(OR('Tabel 1 H'!G50<5,'Tabel 2 H'!I52<0.5),"-",IFERROR('Tabel 2 H'!I52/'Tabel 1 H'!G50*100,"-")) -> 2.825874737 | J52: =IF(OR('Tabel 1 H'!G50<5,'Tabel 2 H'!J52<0.5),"-",IFERROR('Tabel 2 H'!J52/'Tabel 1 H'!G50*100,"-")) -> 2.378285541
A57: København
C59: Mænd | F59: Kvinder | I59: I alt
C60: Ledigheds- berørte | D60: Gns. brutto- ledighed | F60: Ledigheds- berørte | G60: Gns. brutto- ledighed | I60: Ledigheds- berørte | J60: Gns. brutto- ledighed
A63: Civ. ing. | C63: =IF(OR('Tabel 1 H'!C61<5,'Tabel 2 H'!C63<0.5),"-",IFERROR('Tabel 2 H'!C63/'Tabel 1 H'!C61*100,"-")) -> 3.38206415 | D63: =IF(OR('Tabel 1 H'!C61<5,'Tabel 2 H'!D63<0.5),"-",IFERROR('Tabel 2 H'!D63/'Tabel 1 H'!C61*100,"-")) -> 2.830799595 | F63: =IF(OR('Tabel 1 H'!E61<5,'Tabel 2 H'!F63<0.5),"-",IFERROR('Tabel 2 H'!F63/'Tabel 1 H'!E61*100,"-")) -> 3.651226158 | G63: =IF(OR('Tabel 1 H'!E61<5,'Tabel 2 H'!G63<0.5),"-",IFERROR('Tabel 2 H'!G63/'Tabel 1 H'!E61*100,"-")) -> 3.160749347 | I63: =IF(OR('Tabel 1 H'!G61<5,'Tabel 2 H'!I63<0.5),"-",IFERROR('Tabel 2 H'!I63/'Tabel 1 H'!G61*100,"-")) -> 3.459021502 | J63: =IF(OR('Tabel 1 H'!G61<5,'Tabel 2 H'!J63<0.5),"-",IFERROR('Tabel 2 H'!J63/'Tabel 1 H'!G61*100,"-")) -> 2.925137051
A64: Diplom ing. | C64: =IF(OR('Tabel 1 H'!C62<5,'Tabel 2 H'!C64<0.5),"-",IFERROR('Tabel 2 H'!C64/'Tabel 1 H'!C62*100,"-")) -> 2.649006623 | D64: =IF(OR('Tabel 1 H'!C62<5,'Tabel 2 H'!D64<0.5),"-",IFERROR('Tabel 2 H'!D64/'Tabel 1 H'!C62*100,"-")) -> 2.286966031 | F64: =IF(OR('Tabel 1 H'!E62<5,'Tabel 2 H'!F64<0.5),"-",IFERROR('Tabel 2 H'!F64/'Tabel 1 H'!E62*100,"-")) -> 3.644314869 | G64: =IF(OR('Tabel 1 H'!E62<5,'Tabel 2 H'!G64<0.5),"-",IFERROR('Tabel 2 H'!G64/'Tabel 1 H'!E62*100,"-")) -> 3.224399239 | I64: =IF(OR('Tabel 1 H'!G62<5,'Tabel 2 H'!I64<0.5),"-",IFERROR('Tabel 2 H'!I64/'Tabel 1 H'!G62*100,"-")) -> 2.858899477 | J64: =IF(OR('Tabel 1 H'!G62<5,'Tabel 2 H'!J64<0.5),"-",IFERROR('Tabel 2 H'!J64/'Tabel 1 H'!G62*100,"-")) -> 2.484654067
A65: Cand. Scient. Tek. | C65: =IF(OR('Tabel 1 H'!C63<5,'Tabel 2 H'!C65<0.5),"-",IFERROR('Tabel 2 H'!C65/'Tabel 1 H'!C63*100,"-")) -> 6.384230656 | D65: =IF(OR('Tabel 1 H'!C63<5,'Tabel 2 H'!D65<0.5),"-",IFERROR('Tabel 2 H'!D65/'Tabel 1 H'!C63*100,"-")) -> 5.562905002 | F65: =IF(OR('Tabel 1 H'!E63<5,'Tabel 2 H'!F65<0.5),"-",IFERROR('Tabel 2 H'!F65/'Tabel 1 H'!E63*100,"-")) -> 8.044871795 | G65: =IF(OR('Tabel 1 H'!E63<5,'Tabel 2 H'!G65<0.5),"-",IFERROR('Tabel 2 H'!G65/'Tabel 1 H'!E63*100,"-")) -> 6.687709004 | I65: =IF(OR('Tabel 1 H'!G63<5,'Tabel 2 H'!I65<0.5),"-",IFERROR('Tabel 2 H'!I65/'Tabel 1 H'!G63*100,"-")) -> 7.179015186 | J65: =IF(OR('Tabel 1 H'!G63<5,'Tabel 2 H'!J65<0.5),"-",IFERROR('Tabel 2 H'!J65/'Tabel 1 H'!G63*100,"-")) -> 6.101237336
A66: MA. Hum. | C66: =IF(OR('Tabel 1 H'!C64<5,'Tabel 2 H'!C66<0.5),"-",IFERROR('Tabel 2 H'!C66/'Tabel 1 H'!C64*100,"-")) -> 7.388316151 | D66: =IF(OR('Tabel 1 H'!C64<5,'Tabel 2 H'!D66<0.5),"-",IFERROR('Tabel 2 H'!D66/'Tabel 1 H'!C64*100,"-")) -> 6.271490676 | F66: =IF(OR('Tabel 1 H'!E64<5,'Tabel 2 H'!F66<0.5),"-",IFERROR('Tabel 2 H'!F66/'Tabel 1 H'!E64*100,"-")) -> 7.467418105 | G66: =IF(OR('Tabel 1 H'!E64<5,'Tabel 2 H'!G66<0.5),"-",IFERROR('Tabel 2 H'!G66/'Tabel 1 H'!E64*100,"-")) -> 6.104491499 | I66: =IF(OR('Tabel 1 H'!G64<5,'Tabel 2 H'!I66<0.5),"-",IFERROR('Tabel 2 H'!I66/'Tabel 1 H'!G64*100,"-")) -> 7.441823525 | J66: =IF(OR('Tabel 1 H'!G64<5,'Tabel 2 H'!J66<0.5),"-",IFERROR('Tabel 2 H'!J66/'Tabel 1 H'!G64*100,"-")) -> 6.158526496
A67: MA. Nat. | C67: =IF(OR('Tabel 1 H'!C65<5,'Tabel 2 H'!C67<0.5),"-",IFERROR('Tabel 2 H'!C67/'Tabel 1 H'!C65*100,"-")) -> 3.866666667 | D67: =IF(OR('Tabel 1 H'!C65<5,'Tabel 2 H'!D67<0.5),"-",IFERROR('Tabel 2 H'!D67/'Tabel 1 H'!C65*100,"-")) -> 3.199484397 | F67: =IF(OR('Tabel 1 H'!E65<5,'Tabel 2 H'!F67<0.5),"-",IFERROR('Tabel 2 H'!F67/'Tabel 1 H'!E65*100,"-")) -> 4.631441618 | G67: =IF(OR('Tabel 1 H'!E65<5,'Tabel 2 H'!G67<0.5),"-",IFERROR('Tabel 2 H'!G67/'Tabel 1 H'!E65*100,"-")) -> 3.995428704 | I67: =IF(OR('Tabel 1 H'!G65<5,'Tabel 2 H'!I67<0.5),"-",IFERROR('Tabel 2 H'!I67/'Tabel 1 H'!G65*100,"-")) -> 4.253214639 | J67: =IF(OR('Tabel 1 H'!G65<5,'Tabel 2 H'!J67<0.5),"-",IFERROR('Tabel 2 H'!J67/'Tabel 1 H'!G65*100,"-")) -> 3.601786613
A68: MA. Ph.d. | C68: =IF(OR('Tabel 1 H'!C66<5,'Tabel 2 H'!C68<0.5),"-",IFERROR('Tabel 2 H'!C68/'Tabel 1 H'!C66*100,"-")) -> 4.427083333 | D68: =IF(OR('Tabel 1 H'!C66<5,'Tabel 2 H'!D68<0.5),"-",IFERROR('Tabel 2 H'!D68/'Tabel 1 H'!C66*100,"-")) -> 4.007522246 | F68: =IF(OR('Tabel 1 H'!E66<5,'Tabel 2 H'!F68<0.5),"-",IFERROR('Tabel 2 H'!F68/'Tabel 1 H'!E66*100,"-")) -> 3.146853147 | G68: =IF(OR('Tabel 1 H'!E66<5,'Tabel 2 H'!G68<0.5),"-",IFERROR('Tabel 2 H'!G68/'Tabel 1 H'!E66*100,"-")) -> 2.773562744 | I68: =IF(OR('Tabel 1 H'!G66<5,'Tabel 2 H'!I68<0.5),"-",IFERROR('Tabel 2 H'!I68/'Tabel 1 H'!G66*100,"-")) -> 3.880597015 | J68: =IF(OR('Tabel 1 H'!G66<5,'Tabel 2 H'!J68<0.5),"-",IFERROR('Tabel 2 H'!J68/'Tabel 1 H'!G66*100,"-")) -> 3.480787294
A69: MA. Samf. | C69: =IF(OR('Tabel 1 H'!C67<5,'Tabel 2 H'!C69<0.5),"-",IFERROR('Tabel 2 H'!C69/'Tabel 1 H'!C67*100,"-")) -> 9.023485785 | D69: =IF(OR('Tabel 1 H'!C67<5,'Tabel 2 H'!D69<0.5),"-",IFERROR('Tabel 2 H'!D69/'Tabel 1 H'!C67*100,"-")) -> 7.790252135 | F69: =IF(OR('Tabel 1 H'!E67<5,'Tabel 2 H'!F69<0.5),"-",IFERROR('Tabel 2 H'!F69/'Tabel 1 H'!E67*100,"-")) -> 8.199195171 | G69: =IF(OR('Tabel 1 H'!E67<5,'Tabel 2 H'!G69<0.5),"-",IFERROR('Tabel 2 H'!G69/'Tabel 1 H'!E67*100,"-")) -> 6.774571209 | I69: =IF(OR('Tabel 1 H'!G67<5,'Tabel 2 H'!I69<0.5),"-",IFERROR('Tabel 2 H'!I69/'Tabel 1 H'!G67*100,"-")) -> 8.437611727 | J69: =IF(OR('Tabel 1 H'!G67<5,'Tabel 2 H'!J69<0.5),"-",IFERROR('Tabel 2 H'!J69/'Tabel 1 H'!G67*100,"-")) -> 7.068345206
A70: Øvrige Mag. | C70: =IF(OR('Tabel 1 H'!C68<5,'Tabel 2 H'!C70<0.5),"-",IFERROR('Tabel 2 H'!C70/'Tabel 1 H'!C68*100,"-")) -> 6.933333333 | D70: =IF(OR('Tabel 1 H'!C68<5,'Tabel 2 H'!D70<0.5),"-",IFERROR('Tabel 2 H'!D70/'Tabel 1 H'!C68*100,"-")) -> 5.428969417 | F70: =IF(OR('Tabel 1 H'!E68<5,'Tabel 2 H'!F70<0.5),"-",IFERROR('Tabel 2 H'!F70/'Tabel 1 H'!E68*100,"-")) -> 11.17021277 | G70: =IF(OR('Tabel 1 H'!E68<5,'Tabel 2 H'!G70<0.5),"-",IFERROR('Tabel 2 H'!G70/'Tabel 1 H'!E68*100,"-")) -> 8.993585039 | I70: =IF(OR('Tabel 1 H'!G68<5,'Tabel 2 H'!I70<0.5),"-",IFERROR('Tabel 2 H'!I70/'Tabel 1 H'!G68*100,"-")) -> 9.760425909 | J70: =IF(OR('Tabel 1 H'!G68<5,'Tabel 2 H'!J70<0.5),"-",IFERROR('Tabel 2 H'!J70/'Tabel 1 H'!G68*100,"-")) -> 7.807488448
A71: Agronom | C71: =IF(OR('Tabel 1 H'!C69<5,'Tabel 2 H'!C71<0.5),"-",IFERROR('Tabel 2 H'!C71/'Tabel 1 H'!C69*100,"-")) -> 4.026845638 | D71: =IF(OR('Tabel 1 H'!C69<5,'Tabel 2 H'!D71<0.5),"-",IFERROR('Tabel 2 H'!D71/'Tabel 1 H'!C69*100,"-")) -> 3.897163443 | F71: =IF(OR('Tabel 1 H'!E69<5,'Tabel 2 H'!F71<0.5),"-",IFERROR('Tabel 2 H'!F71/'Tabel 1 H'!E69*100,"-")) -> 6.214689266 | G71: =IF(OR('Tabel 1 H'!E69<5,'Tabel 2 H'!G71<0.5),"-",IFERROR('Tabel 2 H'!G71/'Tabel 1 H'!E69*100,"-")) -> 5.465070101 | I71: =IF(OR('Tabel 1 H'!G69<5,'Tabel 2 H'!I71<0.5),"-",IFERROR('Tabel 2 H'!I71/'Tabel 1 H'!G69*100,"-")) -> 5.214723926 | J71: =IF(OR('Tabel 1 H'!G69<5,'Tabel 2 H'!J71<0.5),"-",IFERROR('Tabel 2 H'!J71/'Tabel 1 H'!G69*100,"-")) -> 4.748450187
A72: Landsk. Arkt. | C72: =IF(OR('Tabel 1 H'!C70<5,'Tabel 2 H'!C72<0.5),"-",IFERROR('Tabel 2 H'!C72/'Tabel 1 H'!C70*100,"-")) -> 9.333333333 | D72: =IF(OR('Tabel 1 H'!C70<5,'Tabel 2 H'!D72<0.5),"-",IFERROR('Tabel 2 H'!D72/'Tabel 1 H'!C70*100,"-")) -> 5.935258529 | F72: =IF(OR('Tabel 1 H'!E70<5,'Tabel 2 H'!F72<0.5),"-",IFERROR('Tabel 2 H'!F72/'Tabel 1 H'!E70*100,"-")) -> 10.11235955 | G72: =IF(OR('Tabel 1 H'!E70<5,'Tabel 2 H'!G72<0.5),"-",IFERROR('Tabel 2 H'!G72/'Tabel 1 H'!E70*100,"-")) -> 8.260350667 | I72: =IF(OR('Tabel 1 H'!G70<5,'Tabel 2 H'!I72<0.5),"-",IFERROR('Tabel 2 H'!I72/'Tabel 1 H'!G70*100,"-")) -> 9.881422925 | J72: =IF(OR('Tabel 1 H'!G70<5,'Tabel 2 H'!J72<0.5),"-",IFERROR('Tabel 2 H'!J72/'Tabel 1 H'!G70*100,"-")) -> 7.571094105
A73: Hortonom | C73: =IF(OR('Tabel 1 H'!C71<5,'Tabel 2 H'!C73<0.5),"-",IFERROR('Tabel 2 H'!C73/'Tabel 1 H'!C71*100,"-")) -> - | D73: =IF(OR('Tabel 1 H'!C71<5,'Tabel 2 H'!D73<0.5),"-",IFERROR('Tabel 2 H'!D73/'Tabel 1 H'!C71*100,"-")) -> - | F73: =IF(OR('Tabel 1 H'!E71<5,'Tabel 2 H'!F73<0.5),"-",IFERROR('Tabel 2 H'!F73/'Tabel 1 H'!E71*100,"-")) -> 7.407407407 | G73: =IF(OR('Tabel 1 H'!E71<5,'Tabel 2 H'!G73<0.5),"-",IFERROR('Tabel 2 H'!G73/'Tabel 1 H'!E71*100,"-")) -> 7.274348508 | I73: =IF(OR('Tabel 1 H'!G71<5,'Tabel 2 H'!I73<0.5),"-",IFERROR('Tabel 2 H'!I73/'Tabel 1 H'!G71*100,"-")) -> 4.166666667 | J73: =IF(OR('Tabel 1 H'!G71<5,'Tabel 2 H'!J73<0.5),"-",IFERROR('Tabel 2 H'!J73/'Tabel 1 H'!G71*100,"-")) -> 4.091821036
A74: Forstkand. | C74: =IF(OR('Tabel 1 H'!C72<5,'Tabel 2 H'!C74<0.5),"-",IFERROR('Tabel 2 H'!C74/'Tabel 1 H'!C72*100,"-")) -> 1.612903226 | D74: =IF(OR('Tabel 1 H'!C72<5,'Tabel 2 H'!D74<0.5),"-",IFERROR('Tabel 2 H'!D74/'Tabel 1 H'!C72*100,"-")) -> 1.612601429 | F74: =IF(OR('Tabel 1 H'!E72<5,'Tabel 2 H'!F74<0.5),"-",IFERROR('Tabel 2 H'!F74/'Tabel 1 H'!E72*100,"-")) -> 4 | G74: =IF(OR('Tabel 1 H'!E72<5,'Tabel 2 H'!G74<0.5),"-",IFERROR('Tabel 2 H'!G74/'Tabel 1 H'!E72*100,"-")) -> 3.999251544 | I74: =IF(OR('Tabel 1 H'!G72<5,'Tabel 2 H'!I74<0.5),"-",IFERROR('Tabel 2 H'!I74/'Tabel 1 H'!G72*100,"-")) -> 2.298850575 | J74: =IF(OR('Tabel 1 H'!G72<5,'Tabel 2 H'!J74<0.5),"-",IFERROR('Tabel 2 H'!J74/'Tabel 1 H'!G72*100,"-")) -> 2.298420427
A75: Jordbrugsakad. | C75: =IF(OR('Tabel 1 H'!C73<5,'Tabel 2 H'!C75<0.5),"-",IFERROR('Tabel 2 H'!C75/'Tabel 1 H'!C73*100,"-")) -> 4.560260586 | D75: =IF(OR('Tabel 1 H'!C73<5,'Tabel 2 H'!D75<0.5),"-",IFERROR('Tabel 2 H'!D75/'Tabel 1 H'!C73*100,"-")) -> 3.667110851 | F75: =IF(OR('Tabel 1 H'!E73<5,'Tabel 2 H'!F75<0.5),"-",IFERROR('Tabel 2 H'!F75/'Tabel 1 H'!E73*100,"-")) -> 7.862407862 | G75: =IF(OR('Tabel 1 H'!E73<5,'Tabel 2 H'!G75<0.5),"-",IFERROR('Tabel 2 H'!G75/'Tabel 1 H'!E73*100,"-")) -> 6.717563943 | I75: =IF(OR('Tabel 1 H'!G73<5,'Tabel 2 H'!I75<0.5),"-",IFERROR('Tabel 2 H'!I75/'Tabel 1 H'!G73*100,"-")) -> 6.442577031 | J75: =IF(OR('Tabel 1 H'!G73<5,'Tabel 2 H'!J75<0.5),"-",IFERROR('Tabel 2 H'!J75/'Tabel 1 H'!G73*100,"-")) -> 5.40595456
A76: Mejeriing. | C76: =IF(OR('Tabel 1 H'!C74<5,'Tabel 2 H'!C76<0.5),"-",IFERROR('Tabel 2 H'!C76/'Tabel 1 H'!C74*100,"-")) -> 11.11111111 | D76: =IF(OR('Tabel 1 H'!C74<5,'Tabel 2 H'!D76<0.5),"-",IFERROR('Tabel 2 H'!D76/'Tabel 1 H'!C74*100,"-")) -> 11.10903207 | F76: =IF(OR('Tabel 1 H'!E74<5,'Tabel 2 H'!F76<0.5),"-",IFERROR('Tabel 2 H'!F76/'Tabel 1 H'!E74*100,"-")) -> 9.090909091 | G76: =IF(OR('Tabel 1 H'!E74<5,'Tabel 2 H'!G76<0.5),"-",IFERROR('Tabel 2 H'!G76/'Tabel 1 H'!E74*100,"-")) -> 7.185464071 | I76: =IF(OR('Tabel 1 H'!G74<5,'Tabel 2 H'!I76<0.5),"-",IFERROR('Tabel 2 H'!I76/'Tabel 1 H'!G74*100,"-")) -> 9.85915493 | J76: =IF(OR('Tabel 1 H'!G74<5,'Tabel 2 H'!J76<0.5),"-",IFERROR('Tabel 2 H'!J76/'Tabel 1 H'!G74*100,"-")) -> 8.67752514
A77: Levn.m.kand. | C77: =IF(OR('Tabel 1 H'!C75<5,'Tabel 2 H'!C77<0.5),"-",IFERROR('Tabel 2 H'!C77/'Tabel 1 H'!C75*100,"-")) -> 8.333333333 | D77: =IF(OR('Tabel 1 H'!C75<5,'Tabel 2 H'!D77<0.5),"-",IFERROR('Tabel 2 H'!D77/'Tabel 1 H'!C75*100,"-")) -> 6.78981545 | F77: =IF(OR('Tabel 1 H'!E75<5,'Tabel 2 H'!F77<0.5),"-",IFERROR('Tabel 2 H'!F77/'Tabel 1 H'!E75*100,"-")) -> 8.759124088 | G77: =IF(OR('Tabel 1 H'!E75<5,'Tabel 2 H'!G77<0.5),"-",IFERROR('Tabel 2 H'!G77/'Tabel 1 H'!E75*100,"-")) -> 7.495489458 | I77: =IF(OR('Tabel 1 H'!G75<5,'Tabel 2 H'!I77<0.5),"-",IFERROR('Tabel 2 H'!I77/'Tabel 1 H'!G75*100,"-")) -> 8.670520231 | J77: =IF(OR('Tabel 1 H'!G75<5,'Tabel 2 H'!J77<0.5),"-",IFERROR('Tabel 2 H'!J77/'Tabel 1 H'!G75*100,"-")) -> 7.348644
A78: Dyrlæge | C78: =IF(OR('Tabel 1 H'!C76<5,'Tabel 2 H'!C78<0.5),"-",IFERROR('Tabel 2 H'!C78/'Tabel 1 H'!C76*100,"-")) -> 1.754385965 | D78: =IF(OR('Tabel 1 H'!C76<5,'Tabel 2 H'!D78<0.5),"-",IFERROR('Tabel 2 H'!D78/'Tabel 1 H'!C76*100,"-")) -> - | F78: =IF(OR('Tabel 1 H'!E76<5,'Tabel 2 H'!F78<0.5),"-",IFERROR('Tabel 2 H'!F78/'Tabel 1 H'!E76*100,"-")) -> 5.128205128 | G78: =IF(OR('Tabel 1 H'!E76<5,'Tabel 2 H'!G78<0.5),"-",IFERROR('Tabel 2 H'!G78/'Tabel 1 H'!E76*100,"-")) -> 4.662544674 | I78: =IF(OR('Tabel 1 H'!G76<5,'Tabel 2 H'!I78<0.5),"-",IFERROR('Tabel 2 H'!I78/'Tabel 1 H'!G76*100,"-")) -> 4.545454545 | J78: =IF(OR('Tabel 1 H'!G76<5,'Tabel 2 H'!J78<0.5),"-",IFERROR('Tabel 2 H'!J78/'Tabel 1 H'!G76*100,"-")) -> 3.978347688
A79: Farmaceut | C79: =IF(OR('Tabel 1 H'!C77<5,'Tabel 2 H'!C79<0.5),"-",IFERROR('Tabel 2 H'!C79/'Tabel 1 H'!C77*100,"-")) -> 5.080831409 | D79: =IF(OR('Tabel 1 H'!C77<5,'Tabel 2 H'!D79<0.5),"-",IFERROR('Tabel 2 H'!D79/'Tabel 1 H'!C77*100,"-")) -> 4.427214136 | F79: =IF(OR('Tabel 1 H'!E77<5,'Tabel 2 H'!F79<0.5),"-",IFERROR('Tabel 2 H'!F79/'Tabel 1 H'!E77*100,"-")) -> 3.369565217 | G79: =IF(OR('Tabel 1 H'!E77<5,'Tabel 2 H'!G79<0.5),"-",IFERROR('Tabel 2 H'!G79/'Tabel 1 H'!E77*100,"-")) -> 2.978503576 | I79: =IF(OR('Tabel 1 H'!G77<5,'Tabel 2 H'!I79<0.5),"-",IFERROR('Tabel 2 H'!I79/'Tabel 1 H'!G77*100,"-")) -> 3.91722099 | J79: =IF(OR('Tabel 1 H'!G77<5,'Tabel 2 H'!J79<0.5),"-",IFERROR('Tabel 2 H'!J79/'Tabel 1 H'!G77*100,"-")) -> 3.442133785
A80: Læge | C80: =IF(OR('Tabel 1 H'!C78<5,'Tabel 2 H'!C80<0.5),"-",IFERROR('Tabel 2 H'!C80/'Tabel 1 H'!C78*100,"-")) -> 1.905972046 | D80: =IF(OR('Tabel 1 H'!C78<5,'Tabel 2 H'!D80<0.5),"-",IFERROR('Tabel 2 H'!D80/'Tabel 1 H'!C78*100,"-")) -> 1.472819996 | F80: =IF(OR('Tabel 1 H'!E78<5,'Tabel 2 H'!F80<0.5),"-",IFERROR('Tabel 2 H'!F80/'Tabel 1 H'!E78*100,"-")) -> 3.621169916 | G80: =IF(OR('Tabel 1 H'!E78<5,'Tabel 2 H'!G80<0.5),"-",IFERROR('Tabel 2 H'!G80/'Tabel 1 H'!E78*100,"-")) -> 2.646421978 | I80: =IF(OR('Tabel 1 H'!G78<5,'Tabel 2 H'!I80<0.5),"-",IFERROR('Tabel 2 H'!I80/'Tabel 1 H'!G78*100,"-")) -> 3.098373354 | J80: =IF(OR('Tabel 1 H'!G78<5,'Tabel 2 H'!J80<0.5),"-",IFERROR('Tabel 2 H'!J80/'Tabel 1 H'!G78*100,"-")) -> 2.288705185
A81: Tandlæge | C81: =IF(OR('Tabel 1 H'!C79<5,'Tabel 2 H'!C81<0.5),"-",IFERROR('Tabel 2 H'!C81/'Tabel 1 H'!C79*100,"-")) -> 1.818181818 | D81: =IF(OR('Tabel 1 H'!C79<5,'Tabel 2 H'!D81<0.5),"-",IFERROR('Tabel 2 H'!D81/'Tabel 1 H'!C79*100,"-")) -> 1.817841611 | F81: =IF(OR('Tabel 1 H'!E79<5,'Tabel 2 H'!F81<0.5),"-",IFERROR('Tabel 2 H'!F81/'Tabel 1 H'!E79*100,"-")) -> 1.915708812 | G81: =IF(OR('Tabel 1 H'!E79<5,'Tabel 2 H'!G81<0.5),"-",IFERROR('Tabel 2 H'!G81/'Tabel 1 H'!E79*100,"-")) -> 1.37575446 | I81: =IF(OR('Tabel 1 H'!G79<5,'Tabel 2 H'!I81<0.5),"-",IFERROR('Tabel 2 H'!I81/'Tabel 1 H'!G79*100,"-")) -> 1.898734177 | J81: =IF(OR('Tabel 1 H'!G79<5,'Tabel 2 H'!J81<0.5),"-",IFERROR('Tabel 2 H'!J81/'Tabel 1 H'!G79*100,"-")) -> 1.452700009
A82: Arkitekt | C82: =IF(OR('Tabel 1 H'!C80<5,'Tabel 2 H'!C82<0.5),"-",IFERROR('Tabel 2 H'!C82/'Tabel 1 H'!C80*100,"-")) -> 5.019305019 | D82: =IF(OR('Tabel 1 H'!C80<5,'Tabel 2 H'!D82<0.5),"-",IFERROR('Tabel 2 H'!D82/'Tabel 1 H'!C80*100,"-")) -> 4.33667578 | F82: =IF(OR('Tabel 1 H'!E80<5,'Tabel 2 H'!F82<0.5),"-",IFERROR('Tabel 2 H'!F82/'Tabel 1 H'!E80*100,"-")) -> 6.593406593 | G82: =IF(OR('Tabel 1 H'!E80<5,'Tabel 2 H'!G82<0.5),"-",IFERROR('Tabel 2 H'!G82/'Tabel 1 H'!E80*100,"-")) -> 5.670408393 | I82: =IF(OR('Tabel 1 H'!G80<5,'Tabel 2 H'!I82<0.5),"-",IFERROR('Tabel 2 H'!I82/'Tabel 1 H'!G80*100,"-")) -> 5.887445887 | J82: =IF(OR('Tabel 1 H'!G80<5,'Tabel 2 H'!J82<0.5),"-",IFERROR('Tabel 2 H'!J82/'Tabel 1 H'!G80*100,"-")) -> 5.072249524
A83: Landinspek. | C83: =IF(OR('Tabel 1 H'!C81<5,'Tabel 2 H'!C83<0.5),"-",IFERROR('Tabel 2 H'!C83/'Tabel 1 H'!C81*100,"-")) -> - | D83: =IF(OR('Tabel 1 H'!C81<5,'Tabel 2 H'!D83<0.5),"-",IFERROR('Tabel 2 H'!D83/'Tabel 1 H'!C81*100,"-")) -> - | F83: =IF(OR('Tabel 1 H'!E81<5,'Tabel 2 H'!F83<0.5),"-",IFERROR('Tabel 2 H'!F83/'Tabel 1 H'!E81*100,"-")) -> - | G83: =IF(OR('Tabel 1 H'!E81<5,'Tabel 2 H'!G83<0.5),"-",IFERROR('Tabel 2 H'!G83/'Tabel 1 H'!E81*100,"-")) -> - | I83: =IF(OR('Tabel 1 H'!G81<5,'Tabel 2 H'!I83<0.5),"-",IFERROR('Tabel 2 H'!I83/'Tabel 1 H'!G81*100,"-")) -> - | J83: =IF(OR('Tabel 1 H'!G81<5,'Tabel 2 H'!J83<0.5),"-",IFERROR('Tabel 2 H'!J83/'Tabel 1 H'!G81*100,"-")) -> -
A84: Bibliotekar | C84: =IF(OR('Tabel 1 H'!C82<5,'Tabel 2 H'!C84<0.5),"-",IFERROR('Tabel 2 H'!C84/'Tabel 1 H'!C82*100,"-")) -> 3.913043478 | D84: =IF(OR('Tabel 1 H'!C82<5,'Tabel 2 H'!D84<0.5),"-",IFERROR('Tabel 2 H'!D84/'Tabel 1 H'!C82*100,"-")) -> 3.235988817 | F84: =IF(OR('Tabel 1 H'!E82<5,'Tabel 2 H'!F84<0.5),"-",IFERROR('Tabel 2 H'!F84/'Tabel 1 H'!E82*100,"-")) -> 3.585657371 | G84: =IF(OR('Tabel 1 H'!E82<5,'Tabel 2 H'!G84<0.5),"-",IFERROR('Tabel 2 H'!G84/'Tabel 1 H'!E82*100,"-")) -> 3.022029017 | I84: =IF(OR('Tabel 1 H'!G82<5,'Tabel 2 H'!I84<0.5),"-",IFERROR('Tabel 2 H'!I84/'Tabel 1 H'!G82*100,"-")) -> 3.68852459 | J84: =IF(OR('Tabel 1 H'!G82<5,'Tabel 2 H'!J84<0.5),"-",IFERROR('Tabel 2 H'!J84/'Tabel 1 H'!G82*100,"-")) -> 3.089256823
A85: Musikudd. | C85: =IF(OR('Tabel 1 H'!C83<5,'Tabel 2 H'!C85<0.5),"-",IFERROR('Tabel 2 H'!C85/'Tabel 1 H'!C83*100,"-")) -> 5 | D85: =IF(OR('Tabel 1 H'!C83<5,'Tabel 2 H'!D85<0.5),"-",IFERROR('Tabel 2 H'!D85/'Tabel 1 H'!C83*100,"-")) -> 2.044741055 | F85: =IF(OR('Tabel 1 H'!E83<5,'Tabel 2 H'!F85<0.5),"-",IFERROR('Tabel 2 H'!F85/'Tabel 1 H'!E83*100,"-")) -> - | G85: =IF(OR('Tabel 1 H'!E83<5,'Tabel 2 H'!G85<0.5),"-",IFERROR('Tabel 2 H'!G85/'Tabel 1 H'!E83*100,"-")) -> - | I85: =IF(OR('Tabel 1 H'!G83<5,'Tabel 2 H'!I85<0.5),"-",IFERROR('Tabel 2 H'!I85/'Tabel 1 H'!G83*100,"-")) -> 2.173913043 | J85: =IF(OR('Tabel 1 H'!G83<5,'Tabel 2 H'!J85<0.5),"-",IFERROR('Tabel 2 H'!J85/'Tabel 1 H'!G83*100,"-")) -> 0.88901785
A86: Teolog | C86: =IF(OR('Tabel 1 H'!C84<5,'Tabel 2 H'!C86<0.5),"-",IFERROR('Tabel 2 H'!C86/'Tabel 1 H'!C84*100,"-")) -> 11.57894737 | D86: =IF(OR('Tabel 1 H'!C84<5,'Tabel 2 H'!D86<0.5),"-",IFERROR('Tabel 2 H'!D86/'Tabel 1 H'!C84*100,"-")) -> 9.653116762 | F86: =IF(OR('Tabel 1 H'!E84<5,'Tabel 2 H'!F86<0.5),"-",IFERROR('Tabel 2 H'!F86/'Tabel 1 H'!E84*100,"-")) -> 6.41025641 | G86: =IF(OR('Tabel 1 H'!E84<5,'Tabel 2 H'!G86<0.5),"-",IFERROR('Tabel 2 H'!G86/'Tabel 1 H'!E84*100,"-")) -> 5.273178556 | I86: =IF(OR('Tabel 1 H'!G84<5,'Tabel 2 H'!I86<0.5),"-",IFERROR('Tabel 2 H'!I86/'Tabel 1 H'!G84*100,"-")) -> 8.366533865 | J86: =IF(OR('Tabel 1 H'!G84<5,'Tabel 2 H'!J86<0.5),"-",IFERROR('Tabel 2 H'!J86/'Tabel 1 H'!G84*100,"-")) -> 6.930924093
A87: Psykolog | C87: =IF(OR('Tabel 1 H'!C85<5,'Tabel 2 H'!C87<0.5),"-",IFERROR('Tabel 2 H'!C87/'Tabel 1 H'!C85*100,"-")) -> 5.080831409 | D87: =IF(OR('Tabel 1 H'!C85<5,'Tabel 2 H'!D87<0.5),"-",IFERROR('Tabel 2 H'!D87/'Tabel 1 H'!C85*100,"-")) -> 4.375213996 | F87: =IF(OR('Tabel 1 H'!E85<5,'Tabel 2 H'!F87<0.5),"-",IFERROR('Tabel 2 H'!F87/'Tabel 1 H'!E85*100,"-")) -> 3.478773585 | G87: =IF(OR('Tabel 1 H'!E85<5,'Tabel 2 H'!G87<0.5),"-",IFERROR('Tabel 2 H'!G87/'Tabel 1 H'!E85*100,"-")) -> 3.051783527 | I87: =IF(OR('Tabel 1 H'!G85<5,'Tabel 2 H'!I87<0.5),"-",IFERROR('Tabel 2 H'!I87/'Tabel 1 H'!G85*100,"-")) -> 3.8046031 | J87: =IF(OR('Tabel 1 H'!G85<5,'Tabel 2 H'!J87<0.5),"-",IFERROR('Tabel 2 H'!J87/'Tabel 1 H'!G85*100,"-")) -> 3.32094529
A88: Jurist | C88: =IF(OR('Tabel 1 H'!C86<5,'Tabel 2 H'!C88<0.5),"-",IFERROR('Tabel 2 H'!C88/'Tabel 1 H'!C86*100,"-")) -> 1.766138855 | D88: =IF(OR('Tabel 1 H'!C86<5,'Tabel 2 H'!D88<0.5),"-",IFERROR('Tabel 2 H'!D88/'Tabel 1 H'!C86*100,"-")) -> 1.502040592 | F88: =IF(OR('Tabel 1 H'!E86<5,'Tabel 2 H'!F88<0.5),"-",IFERROR('Tabel 2 H'!F88/'Tabel 1 H'!E86*100,"-")) -> 1.449275362 | G88: =IF(OR('Tabel 1 H'!E86<5,'Tabel 2 H'!G88<0.5),"-",IFERROR('Tabel 2 H'!G88/'Tabel 1 H'!E86*100,"-")) -> 1.098859379 | I88: =IF(OR('Tabel 1 H'!G86<5,'Tabel 2 H'!I88<0.5),"-",IFERROR('Tabel 2 H'!I88/'Tabel 1 H'!G86*100,"-")) -> 1.563876652 | J88: =IF(OR('Tabel 1 H'!G86<5,'Tabel 2 H'!J88<0.5),"-",IFERROR('Tabel 2 H'!J88/'Tabel 1 H'!G86*100,"-")) -> 1.244679544
A89: Økonom | C89: =IF(OR('Tabel 1 H'!C87<5,'Tabel 2 H'!C89<0.5),"-",IFERROR('Tabel 2 H'!C89/'Tabel 1 H'!C87*100,"-")) -> 2.26744186 | D89: =IF(OR('Tabel 1 H'!C87<5,'Tabel 2 H'!D89<0.5),"-",IFERROR('Tabel 2 H'!D89/'Tabel 1 H'!C87*100,"-")) -> 1.984750928 | F89: =IF(OR('Tabel 1 H'!E87<5,'Tabel 2 H'!F89<0.5),"-",IFERROR('Tabel 2 H'!F89/'Tabel 1 H'!E87*100,"-")) -> 2.013422819 | G89: =IF(OR('Tabel 1 H'!E87<5,'Tabel 2 H'!G89<0.5),"-",IFERROR('Tabel 2 H'!G89/'Tabel 1 H'!E87*100,"-")) -> 1.677388899 | I89: =IF(OR('Tabel 1 H'!G87<5,'Tabel 2 H'!I89<0.5),"-",IFERROR('Tabel 2 H'!I89/'Tabel 1 H'!G87*100,"-")) -> 2.17155266 | J89: =IF(OR('Tabel 1 H'!G87<5,'Tabel 2 H'!J89<0.5),"-",IFERROR('Tabel 2 H'!J89/'Tabel 1 H'!G87*100,"-")) -> 1.868725378
A90: Samf. Adm. | C90: =IF(OR('Tabel 1 H'!C88<5,'Tabel 2 H'!C90<0.5),"-",IFERROR('Tabel 2 H'!C90/'Tabel 1 H'!C88*100,"-")) -> 4.003836011 | D90: =IF(OR('Tabel 1 H'!C88<5,'Tabel 2 H'!D90<0.5),"-",IFERROR('Tabel 2 H'!D90/'Tabel 1 H'!C88*100,"-")) -> 3.441340858 | F90: =IF(OR('Tabel 1 H'!E88<5,'Tabel 2 H'!F90<0.5),"-",IFERROR('Tabel 2 H'!F90/'Tabel 1 H'!E88*100,"-")) -> 4.117937737 | G90: =IF(OR('Tabel 1 H'!E88<5,'Tabel 2 H'!G90<0.5),"-",IFERROR('Tabel 2 H'!G90/'Tabel 1 H'!E88*100,"-")) -> 3.395268302 | I90: =IF(OR('Tabel 1 H'!G88<5,'Tabel 2 H'!I90<0.5),"-",IFERROR('Tabel 2 H'!I90/'Tabel 1 H'!G88*100,"-")) -> 4.071470416 | J90: =IF(OR('Tabel 1 H'!G88<5,'Tabel 2 H'!J90<0.5),"-",IFERROR('Tabel 2 H'!J90/'Tabel 1 H'!G88*100,"-")) -> 3.414031105
A91: Cand. Merc. | C91: =IF(OR('Tabel 1 H'!C89<5,'Tabel 2 H'!C91<0.5),"-",IFERROR('Tabel 2 H'!C91/'Tabel 1 H'!C89*100,"-")) -> 3.56545961 | D91: =IF(OR('Tabel 1 H'!C89<5,'Tabel 2 H'!D91<0.5),"-",IFERROR('Tabel 2 H'!D91/'Tabel 1 H'!C89*100,"-")) -> 2.976683246 | F91: =IF(OR('Tabel 1 H'!E89<5,'Tabel 2 H'!F91<0.5),"-",IFERROR('Tabel 2 H'!F91/'Tabel 1 H'!E89*100,"-")) -> 3.415174451 | G91: =IF(OR('Tabel 1 H'!E89<5,'Tabel 2 H'!G91<0.5),"-",IFERROR('Tabel 2 H'!G91/'Tabel 1 H'!E89*100,"-")) -> 2.833861179 | I91: =IF(OR('Tabel 1 H'!G89<5,'Tabel 2 H'!I91<0.5),"-",IFERROR('Tabel 2 H'!I91/'Tabel 1 H'!G89*100,"-")) -> 3.490094427 | J91: =IF(OR('Tabel 1 H'!G89<5,'Tabel 2 H'!J91<0.5),"-",IFERROR('Tabel 2 H'!J91/'Tabel 1 H'!G89*100,"-")) -> 2.905060664
A92: HA | C92: =IF(OR('Tabel 1 H'!C90<5,'Tabel 2 H'!C92<0.5),"-",IFERROR('Tabel 2 H'!C92/'Tabel 1 H'!C90*100,"-")) -> 4.855842185 | D92: =IF(OR('Tabel 1 H'!C90<5,'Tabel 2 H'!D92<0.5),"-",IFERROR('Tabel 2 H'!D92/'Tabel 1 H'!C90*100,"-")) -> 4.034830666 | F92: =IF(OR('Tabel 1 H'!E90<5,'Tabel 2 H'!F92<0.5),"-",IFERROR('Tabel 2 H'!F92/'Tabel 1 H'!E90*100,"-")) -> 5.958132045 | G92: =IF(OR('Tabel 1 H'!E90<5,'Tabel 2 H'!G92<0.5),"-",IFERROR('Tabel 2 H'!G92/'Tabel 1 H'!E90*100,"-")) -> 5.151311812 | I92: =IF(OR('Tabel 1 H'!G90<5,'Tabel 2 H'!I92<0.5),"-",IFERROR('Tabel 2 H'!I92/'Tabel 1 H'!G90*100,"-")) -> 5.390625 | J92: =IF(OR('Tabel 1 H'!G90<5,'Tabel 2 H'!J92<0.5),"-",IFERROR('Tabel 2 H'!J92/'Tabel 1 H'!G90*100,"-")) -> 4.576498472
A93: HD | C93: =IF(OR('Tabel 1 H'!C91<5,'Tabel 2 H'!C93<0.5),"-",IFERROR('Tabel 2 H'!C93/'Tabel 1 H'!C91*100,"-")) -> 5.010893246 | D93: =IF(OR('Tabel 1 H'!C91<5,'Tabel 2 H'!D93<0.5),"-",IFERROR('Tabel 2 H'!D93/'Tabel 1 H'!C91*100,"-")) -> 4.472800992 | F93: =IF(OR('Tabel 1 H'!E91<5,'Tabel 2 H'!F93<0.5),"-",IFERROR('Tabel 2 H'!F93/'Tabel 1 H'!E91*100,"-")) -> 5.163511188 | G93: =IF(OR('Tabel 1 H'!E91<5,'Tabel 2 H'!G93<0.5),"-",IFERROR('Tabel 2 H'!G93/'Tabel 1 H'!E91*100,"-")) -> 4.165032684 | I93: =IF(OR('Tabel 1 H'!G91<5,'Tabel 2 H'!I93<0.5),"-",IFERROR('Tabel 2 H'!I93/'Tabel 1 H'!G91*100,"-")) -> 5.096153846 | J93: =IF(OR('Tabel 1 H'!G91<5,'Tabel 2 H'!J93<0.5),"-",IFERROR('Tabel 2 H'!J93/'Tabel 1 H'!G91*100,"-")) -> 4.300865043
A94: Komm. og Sprog | C94: =IF(OR('Tabel 1 H'!C92<5,'Tabel 2 H'!C94<0.5),"-",IFERROR('Tabel 2 H'!C94/'Tabel 1 H'!C92*100,"-")) -> 7.123287671 | D94: =IF(OR('Tabel 1 H'!C92<5,'Tabel 2 H'!D94<0.5),"-",IFERROR('Tabel 2 H'!D94/'Tabel 1 H'!C92*100,"-")) -> 6.274387842 | F94: =IF(OR('Tabel 1 H'!E92<5,'Tabel 2 H'!F94<0.5),"-",IFERROR('Tabel 2 H'!F94/'Tabel 1 H'!E92*100,"-")) -> 6.323024055 | G94: =IF(OR('Tabel 1 H'!E92<5,'Tabel 2 H'!G94<0.5),"-",IFERROR('Tabel 2 H'!G94/'Tabel 1 H'!E92*100,"-")) -> 4.901831553 | I94: =IF(OR('Tabel 1 H'!G92<5,'Tabel 2 H'!I94<0.5),"-",IFERROR('Tabel 2 H'!I94/'Tabel 1 H'!G92*100,"-")) -> 6.483516484 | J94: =IF(OR('Tabel 1 H'!G92<5,'Tabel 2 H'!J94<0.5),"-",IFERROR('Tabel 2 H'!J94/'Tabel 1 H'!G92*100,"-")) -> 5.177096963
A95: Bygningskonst. | C95: =IF(OR('Tabel 1 H'!C93<5,'Tabel 2 H'!C95<0.5),"-",IFERROR('Tabel 2 H'!C95/'Tabel 1 H'!C93*100,"-")) -> 4.302203568 | D95: =IF(OR('Tabel 1 H'!C93<5,'Tabel 2 H'!D95<0.5),"-",IFERROR('Tabel 2 H'!D95/'Tabel 1 H'!C93*100,"-")) -> 3.717673327 | F95: =IF(OR('Tabel 1 H'!E93<5,'Tabel 2 H'!F95<0.5),"-",IFERROR('Tabel 2 H'!F95/'Tabel 1 H'!E93*100,"-")) -> 4.744525547 | G95: =IF(OR('Tabel 1 H'!E93<5,'Tabel 2 H'!G95<0.5),"-",IFERROR('Tabel 2 H'!G95/'Tabel 1 H'!E93*100,"-")) -> 3.995613973 | I95: =IF(OR('Tabel 1 H'!G93<5,'Tabel 2 H'!I95<0.5),"-",IFERROR('Tabel 2 H'!I95/'Tabel 1 H'!G93*100,"-")) -> 4.400977995 | J95: =IF(OR('Tabel 1 H'!G93<5,'Tabel 2 H'!J95<0.5),"-",IFERROR('Tabel 2 H'!J95/'Tabel 1 H'!G93*100,"-")) -> 3.779739942
A96: Cand. IT. | C96: =IF(OR('Tabel 1 H'!C94<5,'Tabel 2 H'!C96<0.5),"-",IFERROR('Tabel 2 H'!C96/'Tabel 1 H'!C94*100,"-")) -> 4.050144648 | D96: =IF(OR('Tabel 1 H'!C94<5,'Tabel 2 H'!D96<0.5),"-",IFERROR('Tabel 2 H'!D96/'Tabel 1 H'!C94*100,"-")) -> 3.392232065 | F96: =IF(OR('Tabel 1 H'!E94<5,'Tabel 2 H'!F96<0.5),"-",IFERROR('Tabel 2 H'!F96/'Tabel 1 H'!E94*100,"-")) -> 5.440696409 | G96: =IF(OR('Tabel 1 H'!E94<5,'Tabel 2 H'!G96<0.5),"-",IFERROR('Tabel 2 H'!G96/'Tabel 1 H'!E94*100,"-")) -> 4.419611428 | I96: =IF(OR('Tabel 1 H'!G94<5,'Tabel 2 H'!I96<0.5),"-",IFERROR('Tabel 2 H'!I96/'Tabel 1 H'!G94*100,"-")) -> 4.703476483 | J96: =IF(OR('Tabel 1 H'!G94<5,'Tabel 2 H'!J96<0.5),"-",IFERROR('Tabel 2 H'!J96/'Tabel 1 H'!G94*100,"-")) -> 3.874932288
A97: Bac. Samf. | C97: =IF(OR('Tabel 1 H'!C95<5,'Tabel 2 H'!C97<0.5),"-",IFERROR('Tabel 2 H'!C97/'Tabel 1 H'!C95*100,"-")) -> 4.291845494 | D97: =IF(OR('Tabel 1 H'!C95<5,'Tabel 2 H'!D97<0.5),"-",IFERROR('Tabel 2 H'!D97/'Tabel 1 H'!C95*100,"-")) -> 3.438990773 | F97: =IF(OR('Tabel 1 H'!E95<5,'Tabel 2 H'!F97<0.5),"-",IFERROR('Tabel 2 H'!F97/'Tabel 1 H'!E95*100,"-")) -> 7.569721116 | G97: =IF(OR('Tabel 1 H'!E95<5,'Tabel 2 H'!G97<0.5),"-",IFERROR('Tabel 2 H'!G97/'Tabel 1 H'!E95*100,"-")) -> 5.863901719 | I97: =IF(OR('Tabel 1 H'!G95<5,'Tabel 2 H'!I97<0.5),"-",IFERROR('Tabel 2 H'!I97/'Tabel 1 H'!G95*100,"-")) -> 5.991735537 | J97: =IF(OR('Tabel 1 H'!G95<5,'Tabel 2 H'!J97<0.5),"-",IFERROR('Tabel 2 H'!J97/'Tabel 1 H'!G95*100,"-")) -> 4.696537565
A98: Bac. Hum. | C98: =IF(OR('Tabel 1 H'!C96<5,'Tabel 2 H'!C98<0.5),"-",IFERROR('Tabel 2 H'!C98/'Tabel 1 H'!C96*100,"-")) -> 12.18568665 | D98: =IF(OR('Tabel 1 H'!C96<5,'Tabel 2 H'!D98<0.5),"-",IFERROR('Tabel 2 H'!D98/'Tabel 1 H'!C96*100,"-")) -> 10.5166315 | F98: =IF(OR('Tabel 1 H'!E96<5,'Tabel 2 H'!F98<0.5),"-",IFERROR('Tabel 2 H'!F98/'Tabel 1 H'!E96*100,"-")) -> 11.56004489 | G98: =IF(OR('Tabel 1 H'!E96<5,'Tabel 2 H'!G98<0.5),"-",IFERROR('Tabel 2 H'!G98/'Tabel 1 H'!E96*100,"-")) -> 9.975287362 | I98: =IF(OR('Tabel 1 H'!G96<5,'Tabel 2 H'!I98<0.5),"-",IFERROR('Tabel 2 H'!I98/'Tabel 1 H'!G96*100,"-")) -> 11.78977273 | J98: =IF(OR('Tabel 1 H'!G96<5,'Tabel 2 H'!J98<0.5),"-",IFERROR('Tabel 2 H'!J98/'Tabel 1 H'!G96*100,"-")) -> 10.17406216
A99: Bac. Nat. | C99: =IF(OR('Tabel 1 H'!C97<5,'Tabel 2 H'!C99<0.5),"-",IFERROR('Tabel 2 H'!C99/'Tabel 1 H'!C97*100,"-")) -> 9.89010989 | D99: =IF(OR('Tabel 1 H'!C97<5,'Tabel 2 H'!D99<0.5),"-",IFERROR('Tabel 2 H'!D99/'Tabel 1 H'!C97*100,"-")) -> 8.474377953 | F99: =IF(OR('Tabel 1 H'!E97<5,'Tabel 2 H'!F99<0.5),"-",IFERROR('Tabel 2 H'!F99/'Tabel 1 H'!E97*100,"-")) -> 13.62725451 | G99: =IF(OR('Tabel 1 H'!E97<5,'Tabel 2 H'!G99<0.5),"-",IFERROR('Tabel 2 H'!G99/'Tabel 1 H'!E97*100,"-")) -> 11.40083448 | I99: =IF(OR('Tabel 1 H'!G97<5,'Tabel 2 H'!I99<0.5),"-",IFERROR('Tabel 2 H'!I99/'Tabel 1 H'!G97*100,"-")) -> 11.53169014 | J99: =IF(OR('Tabel 1 H'!G97<5,'Tabel 2 H'!J99<0.5),"-",IFERROR('Tabel 2 H'!J99/'Tabel 1 H'!G97*100,"-")) -> 9.759854894
A100: Andre | C100: =IF(OR('Tabel 1 H'!C98<5,'Tabel 2 H'!C100<0.5),"-",IFERROR('Tabel 2 H'!C100/'Tabel 1 H'!C98*100,"-")) -> 6.003430532 | D100: =IF(OR('Tabel 1 H'!C98<5,'Tabel 2 H'!D100<0.5),"-",IFERROR('Tabel 2 H'!D100/'Tabel 1 H'!C98*100,"-")) -> 5.265226805 | F100: =IF(OR('Tabel 1 H'!E98<5,'Tabel 2 H'!F100<0.5),"-",IFERROR('Tabel 2 H'!F100/'Tabel 1 H'!E98*100,"-")) -> 8.458294283 | G100: =IF(OR('Tabel 1 H'!E98<5,'Tabel 2 H'!G100<0.5),"-",IFERROR('Tabel 2 H'!G100/'Tabel 1 H'!E98*100,"-")) -> 7.060925945 | I100: =IF(OR('Tabel 1 H'!G98<5,'Tabel 2 H'!I100<0.5),"-",IFERROR('Tabel 2 H'!I100/'Tabel 1 H'!G98*100,"-")) -> 7.352562452 | J100: =IF(OR('Tabel 1 H'!G98<5,'Tabel 2 H'!J100<0.5),"-",IFERROR('Tabel 2 H'!J100/'Tabel 1 H'!G98*100,"-")) -> 6.252098287
A102: Total | C102: =IF(OR('Tabel 1 H'!C100<5,'Tabel 2 H'!C102<0.5),"-",IFERROR('Tabel 2 H'!C102/'Tabel 1 H'!C100*100,"-")) -> 4.717934259 | D102: =IF(OR('Tabel 1 H'!C100<5,'Tabel 2 H'!D102<0.5),"-",IFERROR('Tabel 2 H'!D102/'Tabel 1 H'!C100*100,"-")) -> 4.027557862 | F102: =IF(OR('Tabel 1 H'!E100<5,'Tabel 2 H'!F102<0.5),"-",IFERROR('Tabel 2 H'!F102/'Tabel 1 H'!E100*100,"-")) -> 5.65638116 | G102: =IF(OR('Tabel 1 H'!E100<5,'Tabel 2 H'!G102<0.5),"-",IFERROR('Tabel 2 H'!G102/'Tabel 1 H'!E100*100,"-")) -> 4.681874243 | I102: =IF(OR('Tabel 1 H'!G100<5,'Tabel 2 H'!I102<0.5),"-",IFERROR('Tabel 2 H'!I102/'Tabel 1 H'!G100*100,"-")) -> 5.231587344 | J102: =IF(OR('Tabel 1 H'!G100<5,'Tabel 2 H'!J102<0.5),"-",IFERROR('Tabel 2 H'!J102/'Tabel 1 H'!G100*100,"-")) -> 4.385693871
A104: Ingeniører i alt | C104: =IF(OR('Tabel 1 H'!C102<5,'Tabel 2 H'!C104<0.5),"-",IFERROR('Tabel 2 H'!C104/'Tabel 1 H'!C102*100,"-")) -> 3.118881119 | D104: =IF(OR('Tabel 1 H'!C102<5,'Tabel 2 H'!D104<0.5),"-",IFERROR('Tabel 2 H'!D104/'Tabel 1 H'!C102*100,"-")) -> 2.635551936 | F104: =IF(OR('Tabel 1 H'!E102<5,'Tabel 2 H'!F104<0.5),"-",IFERROR('Tabel 2 H'!F104/'Tabel 1 H'!E102*100,"-")) -> 3.649345498 | G104: =IF(OR('Tabel 1 H'!E102<5,'Tabel 2 H'!G104<0.5),"-",IFERROR('Tabel 2 H'!G104/'Tabel 1 H'!E102*100,"-")) -> 3.178069389 | I104: =IF(OR('Tabel 1 H'!G102<5,'Tabel 2 H'!I104<0.5),"-",IFERROR('Tabel 2 H'!I104/'Tabel 1 H'!G102*100,"-")) -> 3.257160583 | J104: =IF(OR('Tabel 1 H'!G102<5,'Tabel 2 H'!J104<0.5),"-",IFERROR('Tabel 2 H'!J104/'Tabel 1 H'!G102*100,"-")) -> 2.776973351
A105: Magistre i alt | C105: =IF(OR('Tabel 1 H'!C103<5,'Tabel 2 H'!C105<0.5),"-",IFERROR('Tabel 2 H'!C105/'Tabel 1 H'!C103*100,"-")) -> 6.650798096 | D105: =IF(OR('Tabel 1 H'!C103<5,'Tabel 2 H'!D105<0.5),"-",IFERROR('Tabel 2 H'!D105/'Tabel 1 H'!C103*100,"-")) -> 5.632364276 | F105: =IF(OR('Tabel 1 H'!E103<5,'Tabel 2 H'!F105<0.5),"-",IFERROR('Tabel 2 H'!F105/'Tabel 1 H'!E103*100,"-")) -> 7.364637504 | G105: =IF(OR('Tabel 1 H'!E103<5,'Tabel 2 H'!G105<0.5),"-",IFERROR('Tabel 2 H'!G105/'Tabel 1 H'!E103*100,"-")) -> 6.052402016 | I105: =IF(OR('Tabel 1 H'!G103<5,'Tabel 2 H'!I105<0.5),"-",IFERROR('Tabel 2 H'!I105/'Tabel 1 H'!G103*100,"-")) -> 7.112474033 | J105: =IF(OR('Tabel 1 H'!G103<5,'Tabel 2 H'!J105<0.5),"-",IFERROR('Tabel 2 H'!J105/'Tabel 1 H'!G103*100,"-")) -> 5.904023861
A106: DJØF'ere i alt | C106: =IF(OR('Tabel 1 H'!C104<5,'Tabel 2 H'!C106<0.5),"-",IFERROR('Tabel 2 H'!C106/'Tabel 1 H'!C104*100,"-")) -> 3.38071739 | D106: =IF(OR('Tabel 1 H'!C104<5,'Tabel 2 H'!D106<0.5),"-",IFERROR('Tabel 2 H'!D106/'Tabel 1 H'!C104*100,"-")) -> 2.866785568 | F106: =IF(OR('Tabel 1 H'!E104<5,'Tabel 2 H'!F106<0.5),"-",IFERROR('Tabel 2 H'!F106/'Tabel 1 H'!E104*100,"-")) -> 3.333333333 | G106: =IF(OR('Tabel 1 H'!E104<5,'Tabel 2 H'!G106<0.5),"-",IFERROR('Tabel 2 H'!G106/'Tabel 1 H'!E104*100,"-")) -> 2.747456424 | I106: =IF(OR('Tabel 1 H'!G104<5,'Tabel 2 H'!I106<0.5),"-",IFERROR('Tabel 2 H'!I106/'Tabel 1 H'!G104*100,"-")) -> 3.35504776 | J106: =IF(OR('Tabel 1 H'!G104<5,'Tabel 2 H'!J106<0.5),"-",IFERROR('Tabel 2 H'!J106/'Tabel 1 H'!G104*100,"-")) -> 2.802140725
A111: Frederiksberg
C113: Mænd | F113: Kvinder | I113: I alt
C114: Ledigheds- berørte | D114: Gns. brutto- ledighed | F114: Ledigheds- berørte | G114: Gns. brutto- ledighed | I114: Ledigheds- berørte | J114: Gns. brutto- ledighed
A117: Civ. ing. | C117: =IF(OR('Tabel 1 H'!C115<5,'Tabel 2 H'!C117<0.5),"-",IFERROR('Tabel 2 H'!C117/'Tabel 1 H'!C115*100,"-")) -> 2.937576499 | D117: =IF(OR('Tabel 1 H'!C115<5,'Tabel 2 H'!D117<0.5),"-",IFERROR('Tabel 2 H'!D117/'Tabel 1 H'!C115*100,"-")) -> 2.423474656 | F117: =IF(OR('Tabel 1 H'!E115<5,'Tabel 2 H'!F117<0.5),"-",IFERROR('Tabel 2 H'!F117/'Tabel 1 H'!E115*100,"-")) -> 3.28358209 | G117: =IF(OR('Tabel 1 H'!E115<5,'Tabel 2 H'!G117<0.5),"-",IFERROR('Tabel 2 H'!G117/'Tabel 1 H'!E115*100,"-")) -> 3.241635023 | I117: =IF(OR('Tabel 1 H'!G115<5,'Tabel 2 H'!I117<0.5),"-",IFERROR('Tabel 2 H'!I117/'Tabel 1 H'!G115*100,"-")) -> 3.038194444 | J117: =IF(OR('Tabel 1 H'!G115<5,'Tabel 2 H'!J117<0.5),"-",IFERROR('Tabel 2 H'!J117/'Tabel 1 H'!G115*100,"-")) -> 2.661394554
A118: Diplom ing. | C118: =IF(OR('Tabel 1 H'!C116<5,'Tabel 2 H'!C118<0.5),"-",IFERROR('Tabel 2 H'!C118/'Tabel 1 H'!C116*100,"-")) -> 3.348214286 | D118: =IF(OR('Tabel 1 H'!C116<5,'Tabel 2 H'!D118<0.5),"-",IFERROR('Tabel 2 H'!D118/'Tabel 1 H'!C116*100,"-")) -> 3.183584527 | F118: =IF(OR('Tabel 1 H'!E116<5,'Tabel 2 H'!F118<0.5),"-",IFERROR('Tabel 2 H'!F118/'Tabel 1 H'!E116*100,"-")) -> 3.921568627 | G118: =IF(OR('Tabel 1 H'!E116<5,'Tabel 2 H'!G118<0.5),"-",IFERROR('Tabel 2 H'!G118/'Tabel 1 H'!E116*100,"-")) -> 2.291841704 | I118: =IF(OR('Tabel 1 H'!G116<5,'Tabel 2 H'!I118<0.5),"-",IFERROR('Tabel 2 H'!I118/'Tabel 1 H'!G116*100,"-")) -> 3.454545455 | J118: =IF(OR('Tabel 1 H'!G116<5,'Tabel 2 H'!J118<0.5),"-",IFERROR('Tabel 2 H'!J118/'Tabel 1 H'!G116*100,"-")) -> 3.018206767
A119: Cand. Scient. Tek. | C119: =IF(OR('Tabel 1 H'!C117<5,'Tabel 2 H'!C119<0.5),"-",IFERROR('Tabel 2 H'!C119/'Tabel 1 H'!C117*100,"-")) -> 3.233256351 | D119: =IF(OR('Tabel 1 H'!C117<5,'Tabel 2 H'!D119<0.5),"-",IFERROR('Tabel 2 H'!D119/'Tabel 1 H'!C117*100,"-")) -> 2.732240044 | F119: =IF(OR('Tabel 1 H'!E117<5,'Tabel 2 H'!F119<0.5),"-",IFERROR('Tabel 2 H'!F119/'Tabel 1 H'!E117*100,"-")) -> 4.64037123 | G119: =IF(OR('Tabel 1 H'!E117<5,'Tabel 2 H'!G119<0.5),"-",IFERROR('Tabel 2 H'!G119/'Tabel 1 H'!E117*100,"-")) -> 4.382492432 | I119: =IF(OR('Tabel 1 H'!G117<5,'Tabel 2 H'!I119<0.5),"-",IFERROR('Tabel 2 H'!I119/'Tabel 1 H'!G117*100,"-")) -> 3.935185185 | J119: =IF(OR('Tabel 1 H'!G117<5,'Tabel 2 H'!J119<0.5),"-",IFERROR('Tabel 2 H'!J119/'Tabel 1 H'!G117*100,"-")) -> 3.555456223
A120: MA. Hum. | C120: =IF(OR('Tabel 1 H'!C118<5,'Tabel 2 H'!C120<0.5),"-",IFERROR('Tabel 2 H'!C120/'Tabel 1 H'!C118*100,"-")) -> 7.210626186 | D120: =IF(OR('Tabel 1 H'!C118<5,'Tabel 2 H'!D120<0.5),"-",IFERROR('Tabel 2 H'!D120/'Tabel 1 H'!C118*100,"-")) -> 5.801601559 | F120: =IF(OR('Tabel 1 H'!E118<5,'Tabel 2 H'!F120<0.5),"-",IFERROR('Tabel 2 H'!F120/'Tabel 1 H'!E118*100,"-")) -> 5.74980575 | G120: =IF(OR('Tabel 1 H'!E118<5,'Tabel 2 H'!G120<0.5),"-",IFERROR('Tabel 2 H'!G120/'Tabel 1 H'!E118*100,"-")) -> 4.891135809 | I120: =IF(OR('Tabel 1 H'!G118<5,'Tabel 2 H'!I120<0.5),"-",IFERROR('Tabel 2 H'!I120/'Tabel 1 H'!G118*100,"-")) -> 6.174200662 | J120: =IF(OR('Tabel 1 H'!G118<5,'Tabel 2 H'!J120<0.5),"-",IFERROR('Tabel 2 H'!J120/'Tabel 1 H'!G118*100,"-")) -> 5.155642672
A121: MA. Nat. | C121: =IF(OR('Tabel 1 H'!C119<5,'Tabel 2 H'!C121<0.5),"-",IFERROR('Tabel 2 H'!C121/'Tabel 1 H'!C119*100,"-")) -> 2.713178295 | D121: =IF(OR('Tabel 1 H'!C119<5,'Tabel 2 H'!D121<0.5),"-",IFERROR('Tabel 2 H'!D121/'Tabel 1 H'!C119*100,"-")) -> 2.476723154 | F121: =IF(OR('Tabel 1 H'!E119<5,'Tabel 2 H'!F121<0.5),"-",IFERROR('Tabel 2 H'!F121/'Tabel 1 H'!E119*100,"-")) -> 2.183406114 | G121: =IF(OR('Tabel 1 H'!E119<5,'Tabel 2 H'!G121<0.5),"-",IFERROR('Tabel 2 H'!G121/'Tabel 1 H'!E119*100,"-")) -> 2.131793133 | I121: =IF(OR('Tabel 1 H'!G119<5,'Tabel 2 H'!I121<0.5),"-",IFERROR('Tabel 2 H'!I121/'Tabel 1 H'!G119*100,"-")) -> 2.464065708 | J121: =IF(OR('Tabel 1 H'!G119<5,'Tabel 2 H'!J121<0.5),"-",IFERROR('Tabel 2 H'!J121/'Tabel 1 H'!G119*100,"-")) -> 2.314528134
A122: MA. Ph.d. | C122: =IF(OR('Tabel 1 H'!C120<5,'Tabel 2 H'!C122<0.5),"-",IFERROR('Tabel 2 H'!C122/'Tabel 1 H'!C120*100,"-")) -> 1.538461538 | D122: =IF(OR('Tabel 1 H'!C120<5,'Tabel 2 H'!D122<0.5),"-",IFERROR('Tabel 2 H'!D122/'Tabel 1 H'!C120*100,"-")) -> 1.467166277 | F122: =IF(OR('Tabel 1 H'!E120<5,'Tabel 2 H'!F122<0.5),"-",IFERROR('Tabel 2 H'!F122/'Tabel 1 H'!E120*100,"-")) -> 1.666666667 | G122: =IF(OR('Tabel 1 H'!E120<5,'Tabel 2 H'!G122<0.5),"-",IFERROR('Tabel 2 H'!G122/'Tabel 1 H'!E120*100,"-")) -> - | I122: =IF(OR('Tabel 1 H'!G120<5,'Tabel 2 H'!I122<0.5),"-",IFERROR('Tabel 2 H'!I122/'Tabel 1 H'!G120*100,"-")) -> 1.6 | J122: =IF(OR('Tabel 1 H'!G120<5,'Tabel 2 H'!J122<0.5),"-",IFERROR('Tabel 2 H'!J122/'Tabel 1 H'!G120*100,"-")) -> 1.008919104
A123: MA. Samf. | C123: =IF(OR('Tabel 1 H'!C121<5,'Tabel 2 H'!C123<0.5),"-",IFERROR('Tabel 2 H'!C123/'Tabel 1 H'!C121*100,"-")) -> 10.20408163 | D123: =IF(OR('Tabel 1 H'!C121<5,'Tabel 2 H'!D123<0.5),"-",IFERROR('Tabel 2 H'!D123/'Tabel 1 H'!C121*100,"-")) -> 9.354430976 | F123: =IF(OR('Tabel 1 H'!E121<5,'Tabel 2 H'!F123<0.5),"-",IFERROR('Tabel 2 H'!F123/'Tabel 1 H'!E121*100,"-")) -> 8.888888889 | G123: =IF(OR('Tabel 1 H'!E121<5,'Tabel 2 H'!G123<0.5),"-",IFERROR('Tabel 2 H'!G123/'Tabel 1 H'!E121*100,"-")) -> 6.622221298 | I123: =IF(OR('Tabel 1 H'!G121<5,'Tabel 2 H'!I123<0.5),"-",IFERROR('Tabel 2 H'!I123/'Tabel 1 H'!G121*100,"-")) -> 9.239130435 | J123: =IF(OR('Tabel 1 H'!G121<5,'Tabel 2 H'!J123<0.5),"-",IFERROR('Tabel 2 H'!J123/'Tabel 1 H'!G121*100,"-")) -> 7.349820615
A124: Øvrige Mag. | C124: =IF(OR('Tabel 1 H'!C122<5,'Tabel 2 H'!C124<0.5),"-",IFERROR('Tabel 2 H'!C124/'Tabel 1 H'!C122*100,"-")) -> 4.838709677 | D124: =IF(OR('Tabel 1 H'!C122<5,'Tabel 2 H'!D124<0.5),"-",IFERROR('Tabel 2 H'!D124/'Tabel 1 H'!C122*100,"-")) -> 3.643694557 | F124: =IF(OR('Tabel 1 H'!E122<5,'Tabel 2 H'!F124<0.5),"-",IFERROR('Tabel 2 H'!F124/'Tabel 1 H'!E122*100,"-")) -> 17.5257732 | G124: =IF(OR('Tabel 1 H'!E122<5,'Tabel 2 H'!G124<0.5),"-",IFERROR('Tabel 2 H'!G124/'Tabel 1 H'!E122*100,"-")) -> 15.98250001 | I124: =IF(OR('Tabel 1 H'!G122<5,'Tabel 2 H'!I124<0.5),"-",IFERROR('Tabel 2 H'!I124/'Tabel 1 H'!G122*100,"-")) -> 12.57861635 | J124: =IF(OR('Tabel 1 H'!G122<5,'Tabel 2 H'!J124<0.5),"-",IFERROR('Tabel 2 H'!J124/'Tabel 1 H'!G122*100,"-")) -> 11.17114191
A125: Agronom | C125: =IF(OR('Tabel 1 H'!C123<5,'Tabel 2 H'!C125<0.5),"-",IFERROR('Tabel 2 H'!C125/'Tabel 1 H'!C123*100,"-")) -> 2.564102564 | D125: =IF(OR('Tabel 1 H'!C123<5,'Tabel 2 H'!D125<0.5),"-",IFERROR('Tabel 2 H'!D125/'Tabel 1 H'!C123*100,"-")) -> 2.563622784 | F125: =IF(OR('Tabel 1 H'!E123<5,'Tabel 2 H'!F125<0.5),"-",IFERROR('Tabel 2 H'!F125/'Tabel 1 H'!E123*100,"-")) -> - | G125: =IF(OR('Tabel 1 H'!E123<5,'Tabel 2 H'!G125<0.5),"-",IFERROR('Tabel 2 H'!G125/'Tabel 1 H'!E123*100,"-")) -> - | I125: =IF(OR('Tabel 1 H'!G123<5,'Tabel 2 H'!I125<0.5),"-",IFERROR('Tabel 2 H'!I125/'Tabel 1 H'!G123*100,"-")) -> 1.234567901 | J125: =IF(OR('Tabel 1 H'!G123<5,'Tabel 2 H'!J125<0.5),"-",IFERROR('Tabel 2 H'!J125/'Tabel 1 H'!G123*100,"-")) -> 1.234336896
A126: Landsk. Arkt. | C126: =IF(OR('Tabel 1 H'!C124<5,'Tabel 2 H'!C126<0.5),"-",IFERROR('Tabel 2 H'!C126/'Tabel 1 H'!C124*100,"-")) -> - | D126: =IF(OR('Tabel 1 H'!C124<5,'Tabel 2 H'!D126<0.5),"-",IFERROR('Tabel 2 H'!D126/'Tabel 1 H'!C124*100,"-")) -> - | F126: =IF(OR('Tabel 1 H'!E124<5,'Tabel 2 H'!F126<0.5),"-",IFERROR('Tabel 2 H'!F126/'Tabel 1 H'!E124*100,"-")) -> 3.846153846 | G126: =IF(OR('Tabel 1 H'!E124<5,'Tabel 2 H'!G126<0.5),"-",IFERROR('Tabel 2 H'!G126/'Tabel 1 H'!E124*100,"-")) -> 3.845434177 | I126: =IF(OR('Tabel 1 H'!G124<5,'Tabel 2 H'!I126<0.5),"-",IFERROR('Tabel 2 H'!I126/'Tabel 1 H'!G124*100,"-")) -> 2.564102564 | J126: =IF(OR('Tabel 1 H'!G124<5,'Tabel 2 H'!J126<0.5),"-",IFERROR('Tabel 2 H'!J126/'Tabel 1 H'!G124*100,"-")) -> 2.563622784
A127: Hortonom | C127: =IF(OR('Tabel 1 H'!C125<5,'Tabel 2 H'!C127<0.5),"-",IFERROR('Tabel 2 H'!C127/'Tabel 1 H'!C125*100,"-")) -> - | D127: =IF(OR('Tabel 1 H'!C125<5,'Tabel 2 H'!D127<0.5),"-",IFERROR('Tabel 2 H'!D127/'Tabel 1 H'!C125*100,"-")) -> - | F127: =IF(OR('Tabel 1 H'!E125<5,'Tabel 2 H'!F127<0.5),"-",IFERROR('Tabel 2 H'!F127/'Tabel 1 H'!E125*100,"-")) -> - | G127: =IF(OR('Tabel 1 H'!E125<5,'Tabel 2 H'!G127<0.5),"-",IFERROR('Tabel 2 H'!G127/'Tabel 1 H'!E125*100,"-")) -> - | I127: =IF(OR('Tabel 1 H'!G125<5,'Tabel 2 H'!I127<0.5),"-",IFERROR('Tabel 2 H'!I127/'Tabel 1 H'!G125*100,"-")) -> - | J127: =IF(OR('Tabel 1 H'!G125<5,'Tabel 2 H'!J127<0.5),"-",IFERROR('Tabel 2 H'!J127/'Tabel 1 H'!G125*100,"-")) -> -
A128: Forstkand. | C128: =IF(OR('Tabel 1 H'!C126<5,'Tabel 2 H'!C128<0.5),"-",IFERROR('Tabel 2 H'!C128/'Tabel 1 H'!C126*100,"-")) -> - | D128: =IF(OR('Tabel 1 H'!C126<5,'Tabel 2 H'!D128<0.5),"-",IFERROR('Tabel 2 H'!D128/'Tabel 1 H'!C126*100,"-")) -> - | F128: =IF(OR('Tabel 1 H'!E126<5,'Tabel 2 H'!F128<0.5),"-",IFERROR('Tabel 2 H'!F128/'Tabel 1 H'!E126*100,"-")) -> - | G128: =IF(OR('Tabel 1 H'!E126<5,'Tabel 2 H'!G128<0.5),"-",IFERROR('Tabel 2 H'!G128/'Tabel 1 H'!E126*100,"-")) -> - | I128: =IF(OR('Tabel 1 H'!G126<5,'Tabel 2 H'!I128<0.5),"-",IFERROR('Tabel 2 H'!I128/'Tabel 1 H'!G126*100,"-")) -> - | J128: =IF(OR('Tabel 1 H'!G126<5,'Tabel 2 H'!J128<0.5),"-",IFERROR('Tabel 2 H'!J128/'Tabel 1 H'!G126*100,"-")) -> -
A129: Jordbrugsakad. | C129: =IF(OR('Tabel 1 H'!C127<5,'Tabel 2 H'!C129<0.5),"-",IFERROR('Tabel 2 H'!C129/'Tabel 1 H'!C127*100,"-")) -> 1.694915254 | D129: =IF(OR('Tabel 1 H'!C127<5,'Tabel 2 H'!D129<0.5),"-",IFERROR('Tabel 2 H'!D129/'Tabel 1 H'!C127*100,"-")) -> 1.694598112 | F129: =IF(OR('Tabel 1 H'!E127<5,'Tabel 2 H'!F129<0.5),"-",IFERROR('Tabel 2 H'!F129/'Tabel 1 H'!E127*100,"-")) -> 1.25 | G129: =IF(OR('Tabel 1 H'!E127<5,'Tabel 2 H'!G129<0.5),"-",IFERROR('Tabel 2 H'!G129/'Tabel 1 H'!E127*100,"-")) -> 1.249766107 | I129: =IF(OR('Tabel 1 H'!G127<5,'Tabel 2 H'!I129<0.5),"-",IFERROR('Tabel 2 H'!I129/'Tabel 1 H'!G127*100,"-")) -> 1.438848921 | J129: =IF(OR('Tabel 1 H'!G127<5,'Tabel 2 H'!J129<0.5),"-",IFERROR('Tabel 2 H'!J129/'Tabel 1 H'!G127*100,"-")) -> 1.438579692
A130: Mejeriing. | C130: =IF(OR('Tabel 1 H'!C128<5,'Tabel 2 H'!C130<0.5),"-",IFERROR('Tabel 2 H'!C130/'Tabel 1 H'!C128*100,"-")) -> 16.66666667 | D130: =IF(OR('Tabel 1 H'!C128<5,'Tabel 2 H'!D130<0.5),"-",IFERROR('Tabel 2 H'!D130/'Tabel 1 H'!C128*100,"-")) -> 15.89430134 | F130: =IF(OR('Tabel 1 H'!E128<5,'Tabel 2 H'!F130<0.5),"-",IFERROR('Tabel 2 H'!F130/'Tabel 1 H'!E128*100,"-")) -> - | G130: =IF(OR('Tabel 1 H'!E128<5,'Tabel 2 H'!G130<0.5),"-",IFERROR('Tabel 2 H'!G130/'Tabel 1 H'!E128*100,"-")) -> - | I130: =IF(OR('Tabel 1 H'!G128<5,'Tabel 2 H'!I130<0.5),"-",IFERROR('Tabel 2 H'!I130/'Tabel 1 H'!G128*100,"-")) -> 10 | J130: =IF(OR('Tabel 1 H'!G128<5,'Tabel 2 H'!J130<0.5),"-",IFERROR('Tabel 2 H'!J130/'Tabel 1 H'!G128*100,"-")) -> 9.536580802
A131: Levn.m.kand. | C131: =IF(OR('Tabel 1 H'!C129<5,'Tabel 2 H'!C131<0.5),"-",IFERROR('Tabel 2 H'!C131/'Tabel 1 H'!C129*100,"-")) -> - | D131: =IF(OR('Tabel 1 H'!C129<5,'Tabel 2 H'!D131<0.5),"-",IFERROR('Tabel 2 H'!D131/'Tabel 1 H'!C129*100,"-")) -> - | F131: =IF(OR('Tabel 1 H'!E129<5,'Tabel 2 H'!F131<0.5),"-",IFERROR('Tabel 2 H'!F131/'Tabel 1 H'!E129*100,"-")) -> 4.761904762 | G131: =IF(OR('Tabel 1 H'!E129<5,'Tabel 2 H'!G131<0.5),"-",IFERROR('Tabel 2 H'!G131/'Tabel 1 H'!E129*100,"-")) -> - | I131: =IF(OR('Tabel 1 H'!G129<5,'Tabel 2 H'!I131<0.5),"-",IFERROR('Tabel 2 H'!I131/'Tabel 1 H'!G129*100,"-")) -> 4.166666667 | J131: =IF(OR('Tabel 1 H'!G129<5,'Tabel 2 H'!J131<0.5),"-",IFERROR('Tabel 2 H'!J131/'Tabel 1 H'!G129*100,"-")) -> -
A132: Dyrlæge | C132: =IF(OR('Tabel 1 H'!C130<5,'Tabel 2 H'!C132<0.5),"-",IFERROR('Tabel 2 H'!C132/'Tabel 1 H'!C130*100,"-")) -> - | D132: =IF(OR('Tabel 1 H'!C130<5,'Tabel 2 H'!D132<0.5),"-",IFERROR('Tabel 2 H'!D132/'Tabel 1 H'!C130*100,"-")) -> - | F132: =IF(OR('Tabel 1 H'!E130<5,'Tabel 2 H'!F132<0.5),"-",IFERROR('Tabel 2 H'!F132/'Tabel 1 H'!E130*100,"-")) -> 1.851851852 | G132: =IF(OR('Tabel 1 H'!E130<5,'Tabel 2 H'!G132<0.5),"-",IFERROR('Tabel 2 H'!G132/'Tabel 1 H'!E130*100,"-")) -> - | I132: =IF(OR('Tabel 1 H'!G130<5,'Tabel 2 H'!I132<0.5),"-",IFERROR('Tabel 2 H'!I132/'Tabel 1 H'!G130*100,"-")) -> 1.408450704 | J132: =IF(OR('Tabel 1 H'!G130<5,'Tabel 2 H'!J132<0.5),"-",IFERROR('Tabel 2 H'!J132/'Tabel 1 H'!G130*100,"-")) -> -
A133: Farmaceut | C133: =IF(OR('Tabel 1 H'!C131<5,'Tabel 2 H'!C133<0.5),"-",IFERROR('Tabel 2 H'!C133/'Tabel 1 H'!C131*100,"-")) -> 5.172413793 | D133: =IF(OR('Tabel 1 H'!C131<5,'Tabel 2 H'!D133<0.5),"-",IFERROR('Tabel 2 H'!D133/'Tabel 1 H'!C131*100,"-")) -> 5.012291459 | F133: =IF(OR('Tabel 1 H'!E131<5,'Tabel 2 H'!F133<0.5),"-",IFERROR('Tabel 2 H'!F133/'Tabel 1 H'!E131*100,"-")) -> 3.048780488 | G133: =IF(OR('Tabel 1 H'!E131<5,'Tabel 2 H'!G133<0.5),"-",IFERROR('Tabel 2 H'!G133/'Tabel 1 H'!E131*100,"-")) -> 2.203914792 | I133: =IF(OR('Tabel 1 H'!G131<5,'Tabel 2 H'!I133<0.5),"-",IFERROR('Tabel 2 H'!I133/'Tabel 1 H'!G131*100,"-")) -> 3.603603604 | J133: =IF(OR('Tabel 1 H'!G131<5,'Tabel 2 H'!J133<0.5),"-",IFERROR('Tabel 2 H'!J133/'Tabel 1 H'!G131*100,"-")) -> 2.937634822
A134: Læge | C134: =IF(OR('Tabel 1 H'!C132<5,'Tabel 2 H'!C134<0.5),"-",IFERROR('Tabel 2 H'!C134/'Tabel 1 H'!C132*100,"-")) -> 3.496503497 | D134: =IF(OR('Tabel 1 H'!C132<5,'Tabel 2 H'!D134<0.5),"-",IFERROR('Tabel 2 H'!D134/'Tabel 1 H'!C132*100,"-")) -> 3.133833671 | F134: =IF(OR('Tabel 1 H'!E132<5,'Tabel 2 H'!F134<0.5),"-",IFERROR('Tabel 2 H'!F134/'Tabel 1 H'!E132*100,"-")) -> 2.840909091 | G134: =IF(OR('Tabel 1 H'!E132<5,'Tabel 2 H'!G134<0.5),"-",IFERROR('Tabel 2 H'!G134/'Tabel 1 H'!E132*100,"-")) -> 2.382160657 | I134: =IF(OR('Tabel 1 H'!G132<5,'Tabel 2 H'!I134<0.5),"-",IFERROR('Tabel 2 H'!I134/'Tabel 1 H'!G132*100,"-")) -> 3.03030303 | J134: =IF(OR('Tabel 1 H'!G132<5,'Tabel 2 H'!J134<0.5),"-",IFERROR('Tabel 2 H'!J134/'Tabel 1 H'!G132*100,"-")) -> 2.599310639
A135: Tandlæge | C135: =IF(OR('Tabel 1 H'!C133<5,'Tabel 2 H'!C135<0.5),"-",IFERROR('Tabel 2 H'!C135/'Tabel 1 H'!C133*100,"-")) -> 14.28571429 | D135: =IF(OR('Tabel 1 H'!C133<5,'Tabel 2 H'!D135<0.5),"-",IFERROR('Tabel 2 H'!D135/'Tabel 1 H'!C133*100,"-")) -> 9.008206289 | F135: =IF(OR('Tabel 1 H'!E133<5,'Tabel 2 H'!F135<0.5),"-",IFERROR('Tabel 2 H'!F135/'Tabel 1 H'!E133*100,"-")) -> 1.724137931 | G135: =IF(OR('Tabel 1 H'!E133<5,'Tabel 2 H'!G135<0.5),"-",IFERROR('Tabel 2 H'!G135/'Tabel 1 H'!E133*100,"-")) -> - | I135: =IF(OR('Tabel 1 H'!G133<5,'Tabel 2 H'!I135<0.5),"-",IFERROR('Tabel 2 H'!I135/'Tabel 1 H'!G133*100,"-")) -> 3.076923077 | J135: =IF(OR('Tabel 1 H'!G133<5,'Tabel 2 H'!J135<0.5),"-",IFERROR('Tabel 2 H'!J135/'Tabel 1 H'!G133*100,"-")) -> 1.587111199
A136: Arkitekt | C136: =IF(OR('Tabel 1 H'!C134<5,'Tabel 2 H'!C136<0.5),"-",IFERROR('Tabel 2 H'!C136/'Tabel 1 H'!C134*100,"-")) -> 6.965174129 | D136: =IF(OR('Tabel 1 H'!C134<5,'Tabel 2 H'!D136<0.5),"-",IFERROR('Tabel 2 H'!D136/'Tabel 1 H'!C134*100,"-")) -> 5.393105575 | F136: =IF(OR('Tabel 1 H'!E134<5,'Tabel 2 H'!F136<0.5),"-",IFERROR('Tabel 2 H'!F136/'Tabel 1 H'!E134*100,"-")) -> 5.357142857 | G136: =IF(OR('Tabel 1 H'!E134<5,'Tabel 2 H'!G136<0.5),"-",IFERROR('Tabel 2 H'!G136/'Tabel 1 H'!E134*100,"-")) -> 4.572321818 | I136: =IF(OR('Tabel 1 H'!G134<5,'Tabel 2 H'!I136<0.5),"-",IFERROR('Tabel 2 H'!I136/'Tabel 1 H'!G134*100,"-")) -> 6.117647059 | J136: =IF(OR('Tabel 1 H'!G134<5,'Tabel 2 H'!J136<0.5),"-",IFERROR('Tabel 2 H'!J136/'Tabel 1 H'!G134*100,"-")) -> 4.960504254
A137: Landinspek. | C137: =IF(OR('Tabel 1 H'!C135<5,'Tabel 2 H'!C137<0.5),"-",IFERROR('Tabel 2 H'!C137/'Tabel 1 H'!C135*100,"-")) -> - | D137: =IF(OR('Tabel 1 H'!C135<5,'Tabel 2 H'!D137<0.5),"-",IFERROR('Tabel 2 H'!D137/'Tabel 1 H'!C135*100,"-")) -> - | F137: =IF(OR('Tabel 1 H'!E135<5,'Tabel 2 H'!F137<0.5),"-",IFERROR('Tabel 2 H'!F137/'Tabel 1 H'!E135*100,"-")) -> - | G137: =IF(OR('Tabel 1 H'!E135<5,'Tabel 2 H'!G137<0.5),"-",IFERROR('Tabel 2 H'!G137/'Tabel 1 H'!E135*100,"-")) -> - | I137: =IF(OR('Tabel 1 H'!G135<5,'Tabel 2 H'!I137<0.5),"-",IFERROR('Tabel 2 H'!I137/'Tabel 1 H'!G135*100,"-")) -> 6.25 | J137: =IF(OR('Tabel 1 H'!G135<5,'Tabel 2 H'!J137<0.5),"-",IFERROR('Tabel 2 H'!J137/'Tabel 1 H'!G135*100,"-")) -> 6.248830537
A138: Bibliotekar | C138: =IF(OR('Tabel 1 H'!C136<5,'Tabel 2 H'!C138<0.5),"-",IFERROR('Tabel 2 H'!C138/'Tabel 1 H'!C136*100,"-")) -> 6.666666667 | D138: =IF(OR('Tabel 1 H'!C136<5,'Tabel 2 H'!D138<0.5),"-",IFERROR('Tabel 2 H'!D138/'Tabel 1 H'!C136*100,"-")) -> 6.212187364 | F138: =IF(OR('Tabel 1 H'!E136<5,'Tabel 2 H'!F138<0.5),"-",IFERROR('Tabel 2 H'!F138/'Tabel 1 H'!E136*100,"-")) -> 5.494505495 | G138: =IF(OR('Tabel 1 H'!E136<5,'Tabel 2 H'!G138<0.5),"-",IFERROR('Tabel 2 H'!G138/'Tabel 1 H'!E136*100,"-")) -> 3.418087557 | I138: =IF(OR('Tabel 1 H'!G136<5,'Tabel 2 H'!I138<0.5),"-",IFERROR('Tabel 2 H'!I138/'Tabel 1 H'!G136*100,"-")) -> 5.785123967 | J138: =IF(OR('Tabel 1 H'!G136<5,'Tabel 2 H'!J138<0.5),"-",IFERROR('Tabel 2 H'!J138/'Tabel 1 H'!G136*100,"-")) -> 4.110839575
A139: Musikudd. | C139: =IF(OR('Tabel 1 H'!C137<5,'Tabel 2 H'!C139<0.5),"-",IFERROR('Tabel 2 H'!C139/'Tabel 1 H'!C137*100,"-")) -> 11.11111111 | D139: =IF(OR('Tabel 1 H'!C137<5,'Tabel 2 H'!D139<0.5),"-",IFERROR('Tabel 2 H'!D139/'Tabel 1 H'!C137*100,"-")) -> - | F139: =IF(OR('Tabel 1 H'!E137<5,'Tabel 2 H'!F139<0.5),"-",IFERROR('Tabel 2 H'!F139/'Tabel 1 H'!E137*100,"-")) -> - | G139: =IF(OR('Tabel 1 H'!E137<5,'Tabel 2 H'!G139<0.5),"-",IFERROR('Tabel 2 H'!G139/'Tabel 1 H'!E137*100,"-")) -> - | I139: =IF(OR('Tabel 1 H'!G137<5,'Tabel 2 H'!I139<0.5),"-",IFERROR('Tabel 2 H'!I139/'Tabel 1 H'!G137*100,"-")) -> 4.761904762 | J139: =IF(OR('Tabel 1 H'!G137<5,'Tabel 2 H'!J139<0.5),"-",IFERROR('Tabel 2 H'!J139/'Tabel 1 H'!G137*100,"-")) -> -
A140: Teolog | C140: =IF(OR('Tabel 1 H'!C138<5,'Tabel 2 H'!C140<0.5),"-",IFERROR('Tabel 2 H'!C140/'Tabel 1 H'!C138*100,"-")) -> - | D140: =IF(OR('Tabel 1 H'!C138<5,'Tabel 2 H'!D140<0.5),"-",IFERROR('Tabel 2 H'!D140/'Tabel 1 H'!C138*100,"-")) -> - | F140: =IF(OR('Tabel 1 H'!E138<5,'Tabel 2 H'!F140<0.5),"-",IFERROR('Tabel 2 H'!F140/'Tabel 1 H'!E138*100,"-")) -> 12.5 | G140: =IF(OR('Tabel 1 H'!E138<5,'Tabel 2 H'!G140<0.5),"-",IFERROR('Tabel 2 H'!G140/'Tabel 1 H'!E138*100,"-")) -> 9.593494667 | I140: =IF(OR('Tabel 1 H'!G138<5,'Tabel 2 H'!I140<0.5),"-",IFERROR('Tabel 2 H'!I140/'Tabel 1 H'!G138*100,"-")) -> 10 | J140: =IF(OR('Tabel 1 H'!G138<5,'Tabel 2 H'!J140<0.5),"-",IFERROR('Tabel 2 H'!J140/'Tabel 1 H'!G138*100,"-")) -> 7.674795734
A141: Psykolog | C141: =IF(OR('Tabel 1 H'!C139<5,'Tabel 2 H'!C141<0.5),"-",IFERROR('Tabel 2 H'!C141/'Tabel 1 H'!C139*100,"-")) -> 1.754385965 | D141: =IF(OR('Tabel 1 H'!C139<5,'Tabel 2 H'!D141<0.5),"-",IFERROR('Tabel 2 H'!D141/'Tabel 1 H'!C139*100,"-")) -> 1.754057695 | F141: =IF(OR('Tabel 1 H'!E139<5,'Tabel 2 H'!F141<0.5),"-",IFERROR('Tabel 2 H'!F141/'Tabel 1 H'!E139*100,"-")) -> 2.611940299 | G141: =IF(OR('Tabel 1 H'!E139<5,'Tabel 2 H'!G141<0.5),"-",IFERROR('Tabel 2 H'!G141/'Tabel 1 H'!E139*100,"-")) -> 2.303551165 | I141: =IF(OR('Tabel 1 H'!G139<5,'Tabel 2 H'!I141<0.5),"-",IFERROR('Tabel 2 H'!I141/'Tabel 1 H'!G139*100,"-")) -> 2.461538462 | J141: =IF(OR('Tabel 1 H'!G139<5,'Tabel 2 H'!J141<0.5),"-",IFERROR('Tabel 2 H'!J141/'Tabel 1 H'!G139*100,"-")) -> 2.207178464
A142: Jurist | C142: =IF(OR('Tabel 1 H'!C140<5,'Tabel 2 H'!C142<0.5),"-",IFERROR('Tabel 2 H'!C142/'Tabel 1 H'!C140*100,"-")) -> 1.017811705 | D142: =IF(OR('Tabel 1 H'!C140<5,'Tabel 2 H'!D142<0.5),"-",IFERROR('Tabel 2 H'!D142/'Tabel 1 H'!C140*100,"-")) -> 0.9316027424 | F142: =IF(OR('Tabel 1 H'!E140<5,'Tabel 2 H'!F142<0.5),"-",IFERROR('Tabel 2 H'!F142/'Tabel 1 H'!E140*100,"-")) -> 1.823708207 | G142: =IF(OR('Tabel 1 H'!E140<5,'Tabel 2 H'!G142<0.5),"-",IFERROR('Tabel 2 H'!G142/'Tabel 1 H'!E140*100,"-")) -> 1.509045648 | I142: =IF(OR('Tabel 1 H'!G140<5,'Tabel 2 H'!I142<0.5),"-",IFERROR('Tabel 2 H'!I142/'Tabel 1 H'!G140*100,"-")) -> 1.522359657 | J142: =IF(OR('Tabel 1 H'!G140<5,'Tabel 2 H'!J142<0.5),"-",IFERROR('Tabel 2 H'!J142/'Tabel 1 H'!G140*100,"-")) -> 1.293122659
A143: Økonom | C143: =IF(OR('Tabel 1 H'!C141<5,'Tabel 2 H'!C143<0.5),"-",IFERROR('Tabel 2 H'!C143/'Tabel 1 H'!C141*100,"-")) -> 2.305475504 | D143: =IF(OR('Tabel 1 H'!C141<5,'Tabel 2 H'!D143<0.5),"-",IFERROR('Tabel 2 H'!D143/'Tabel 1 H'!C141*100,"-")) -> 2.089350657 | F143: =IF(OR('Tabel 1 H'!E141<5,'Tabel 2 H'!F143<0.5),"-",IFERROR('Tabel 2 H'!F143/'Tabel 1 H'!E141*100,"-")) -> 0.8403361345 | G143: =IF(OR('Tabel 1 H'!E141<5,'Tabel 2 H'!G143<0.5),"-",IFERROR('Tabel 2 H'!G143/'Tabel 1 H'!E141*100,"-")) -> 0.6268583651 | I143: =IF(OR('Tabel 1 H'!G141<5,'Tabel 2 H'!I143<0.5),"-",IFERROR('Tabel 2 H'!I143/'Tabel 1 H'!G141*100,"-")) -> 1.709401709 | J143: =IF(OR('Tabel 1 H'!G141<5,'Tabel 2 H'!J143<0.5),"-",IFERROR('Tabel 2 H'!J143/'Tabel 1 H'!G141*100,"-")) -> 1.494353793
A144: Samf. Adm. | C144: =IF(OR('Tabel 1 H'!C142<5,'Tabel 2 H'!C144<0.5),"-",IFERROR('Tabel 2 H'!C144/'Tabel 1 H'!C142*100,"-")) -> 3.333333333 | D144: =IF(OR('Tabel 1 H'!C142<5,'Tabel 2 H'!D144<0.5),"-",IFERROR('Tabel 2 H'!D144/'Tabel 1 H'!C142*100,"-")) -> 2.934979214 | F144: =IF(OR('Tabel 1 H'!E142<5,'Tabel 2 H'!F144<0.5),"-",IFERROR('Tabel 2 H'!F144/'Tabel 1 H'!E142*100,"-")) -> 3.253588517 | G144: =IF(OR('Tabel 1 H'!E142<5,'Tabel 2 H'!G144<0.5),"-",IFERROR('Tabel 2 H'!G144/'Tabel 1 H'!E142*100,"-")) -> 2.940884187 | I144: =IF(OR('Tabel 1 H'!G142<5,'Tabel 2 H'!I144<0.5),"-",IFERROR('Tabel 2 H'!I144/'Tabel 1 H'!G142*100,"-")) -> 3.285302594 | J144: =IF(OR('Tabel 1 H'!G142<5,'Tabel 2 H'!J144<0.5),"-",IFERROR('Tabel 2 H'!J144/'Tabel 1 H'!G142*100,"-")) -> 2.938535812
A145: Cand. Merc. | C145: =IF(OR('Tabel 1 H'!C143<5,'Tabel 2 H'!C145<0.5),"-",IFERROR('Tabel 2 H'!C145/'Tabel 1 H'!C143*100,"-")) -> 2.205882353 | D145: =IF(OR('Tabel 1 H'!C143<5,'Tabel 2 H'!D145<0.5),"-",IFERROR('Tabel 2 H'!D145/'Tabel 1 H'!C143*100,"-")) -> 1.744971258 | F145: =IF(OR('Tabel 1 H'!E143<5,'Tabel 2 H'!F145<0.5),"-",IFERROR('Tabel 2 H'!F145/'Tabel 1 H'!E143*100,"-")) -> 4.183427192 | G145: =IF(OR('Tabel 1 H'!E143<5,'Tabel 2 H'!G145<0.5),"-",IFERROR('Tabel 2 H'!G145/'Tabel 1 H'!E143*100,"-")) -> 3.450094558 | I145: =IF(OR('Tabel 1 H'!G143<5,'Tabel 2 H'!I145<0.5),"-",IFERROR('Tabel 2 H'!I145/'Tabel 1 H'!G143*100,"-")) -> 3.202269964 | J145: =IF(OR('Tabel 1 H'!G143<5,'Tabel 2 H'!J145<0.5),"-",IFERROR('Tabel 2 H'!J145/'Tabel 1 H'!G143*100,"-")) -> 2.60409905
A146: HA | C146: =IF(OR('Tabel 1 H'!C144<5,'Tabel 2 H'!C146<0.5),"-",IFERROR('Tabel 2 H'!C146/'Tabel 1 H'!C144*100,"-")) -> 2.158273381 | D146: =IF(OR('Tabel 1 H'!C144<5,'Tabel 2 H'!D146<0.5),"-",IFERROR('Tabel 2 H'!D146/'Tabel 1 H'!C144*100,"-")) -> 1.98466562 | F146: =IF(OR('Tabel 1 H'!E144<5,'Tabel 2 H'!F146<0.5),"-",IFERROR('Tabel 2 H'!F146/'Tabel 1 H'!E144*100,"-")) -> 3.539823009 | G146: =IF(OR('Tabel 1 H'!E144<5,'Tabel 2 H'!G146<0.5),"-",IFERROR('Tabel 2 H'!G146/'Tabel 1 H'!E144*100,"-")) -> 2.833205187 | I146: =IF(OR('Tabel 1 H'!G144<5,'Tabel 2 H'!I146<0.5),"-",IFERROR('Tabel 2 H'!I146/'Tabel 1 H'!G144*100,"-")) -> 2.777777778 | J146: =IF(OR('Tabel 1 H'!G144<5,'Tabel 2 H'!J146<0.5),"-",IFERROR('Tabel 2 H'!J146/'Tabel 1 H'!G144*100,"-")) -> 2.365161537
A147: HD | C147: =IF(OR('Tabel 1 H'!C145<5,'Tabel 2 H'!C147<0.5),"-",IFERROR('Tabel 2 H'!C147/'Tabel 1 H'!C145*100,"-")) -> 4.504504505 | D147: =IF(OR('Tabel 1 H'!C145<5,'Tabel 2 H'!D147<0.5),"-",IFERROR('Tabel 2 H'!D147/'Tabel 1 H'!C145*100,"-")) -> 4.503661648 | F147: =IF(OR('Tabel 1 H'!E145<5,'Tabel 2 H'!F147<0.5),"-",IFERROR('Tabel 2 H'!F147/'Tabel 1 H'!E145*100,"-")) -> 6.172839506 | G147: =IF(OR('Tabel 1 H'!E145<5,'Tabel 2 H'!G147<0.5),"-",IFERROR('Tabel 2 H'!G147/'Tabel 1 H'!E145*100,"-")) -> 5.350846595 | I147: =IF(OR('Tabel 1 H'!G145<5,'Tabel 2 H'!I147<0.5),"-",IFERROR('Tabel 2 H'!I147/'Tabel 1 H'!G145*100,"-")) -> 5.208333333 | J147: =IF(OR('Tabel 1 H'!G145<5,'Tabel 2 H'!J147<0.5),"-",IFERROR('Tabel 2 H'!J147/'Tabel 1 H'!G145*100,"-")) -> 4.861067798
A148: Komm. og Sprog | C148: =IF(OR('Tabel 1 H'!C146<5,'Tabel 2 H'!C148<0.5),"-",IFERROR('Tabel 2 H'!C148/'Tabel 1 H'!C146*100,"-")) -> 10.16949153 | D148: =IF(OR('Tabel 1 H'!C146<5,'Tabel 2 H'!D148<0.5),"-",IFERROR('Tabel 2 H'!D148/'Tabel 1 H'!C146*100,"-")) -> 8.987818556 | F148: =IF(OR('Tabel 1 H'!E146<5,'Tabel 2 H'!F148<0.5),"-",IFERROR('Tabel 2 H'!F148/'Tabel 1 H'!E146*100,"-")) -> 5.067567568 | G148: =IF(OR('Tabel 1 H'!E146<5,'Tabel 2 H'!G148<0.5),"-",IFERROR('Tabel 2 H'!G148/'Tabel 1 H'!E146*100,"-")) -> 4.196791752 | I148: =IF(OR('Tabel 1 H'!G146<5,'Tabel 2 H'!I148<0.5),"-",IFERROR('Tabel 2 H'!I148/'Tabel 1 H'!G146*100,"-")) -> 5.915492958 | J148: =IF(OR('Tabel 1 H'!G146<5,'Tabel 2 H'!J148<0.5),"-",IFERROR('Tabel 2 H'!J148/'Tabel 1 H'!G146*100,"-")) -> 4.993046911
A149: Bygningskonst. | C149: =IF(OR('Tabel 1 H'!C147<5,'Tabel 2 H'!C149<0.5),"-",IFERROR('Tabel 2 H'!C149/'Tabel 1 H'!C147*100,"-")) -> 1.680672269 | D149: =IF(OR('Tabel 1 H'!C147<5,'Tabel 2 H'!D149<0.5),"-",IFERROR('Tabel 2 H'!D149/'Tabel 1 H'!C147*100,"-")) -> 1.680672269 | F149: =IF(OR('Tabel 1 H'!E147<5,'Tabel 2 H'!F149<0.5),"-",IFERROR('Tabel 2 H'!F149/'Tabel 1 H'!E147*100,"-")) -> 2.43902439 | G149: =IF(OR('Tabel 1 H'!E147<5,'Tabel 2 H'!G149<0.5),"-",IFERROR('Tabel 2 H'!G149/'Tabel 1 H'!E147*100,"-")) -> 2.43902439 | I149: =IF(OR('Tabel 1 H'!G147<5,'Tabel 2 H'!I149<0.5),"-",IFERROR('Tabel 2 H'!I149/'Tabel 1 H'!G147*100,"-")) -> 1.875 | J149: =IF(OR('Tabel 1 H'!G147<5,'Tabel 2 H'!J149<0.5),"-",IFERROR('Tabel 2 H'!J149/'Tabel 1 H'!G147*100,"-")) -> 1.875
A150: Cand. IT. | C150: =IF(OR('Tabel 1 H'!C148<5,'Tabel 2 H'!C150<0.5),"-",IFERROR('Tabel 2 H'!C150/'Tabel 1 H'!C148*100,"-")) -> 8.270676692 | D150: =IF(OR('Tabel 1 H'!C148<5,'Tabel 2 H'!D150<0.5),"-",IFERROR('Tabel 2 H'!D150/'Tabel 1 H'!C148*100,"-")) -> 6.557902897 | F150: =IF(OR('Tabel 1 H'!E148<5,'Tabel 2 H'!F150<0.5),"-",IFERROR('Tabel 2 H'!F150/'Tabel 1 H'!E148*100,"-")) -> 5.172413793 | G150: =IF(OR('Tabel 1 H'!E148<5,'Tabel 2 H'!G150<0.5),"-",IFERROR('Tabel 2 H'!G150/'Tabel 1 H'!E148*100,"-")) -> 4.853136957 | I150: =IF(OR('Tabel 1 H'!G148<5,'Tabel 2 H'!I150<0.5),"-",IFERROR('Tabel 2 H'!I150/'Tabel 1 H'!G148*100,"-")) -> 6.827309237 | J150: =IF(OR('Tabel 1 H'!G148<5,'Tabel 2 H'!J150<0.5),"-",IFERROR('Tabel 2 H'!J150/'Tabel 1 H'!G148*100,"-")) -> 5.763714748
A151: Bac. Samf. | C151: =IF(OR('Tabel 1 H'!C149<5,'Tabel 2 H'!C151<0.5),"-",IFERROR('Tabel 2 H'!C151/'Tabel 1 H'!C149*100,"-")) -> 11.11111111 | D151: =IF(OR('Tabel 1 H'!C149<5,'Tabel 2 H'!D151<0.5),"-",IFERROR('Tabel 2 H'!D151/'Tabel 1 H'!C149*100,"-")) -> 8.715819918 | F151: =IF(OR('Tabel 1 H'!E149<5,'Tabel 2 H'!F151<0.5),"-",IFERROR('Tabel 2 H'!F151/'Tabel 1 H'!E149*100,"-")) -> 15.90909091 | G151: =IF(OR('Tabel 1 H'!E149<5,'Tabel 2 H'!G151<0.5),"-",IFERROR('Tabel 2 H'!G151/'Tabel 1 H'!E149*100,"-")) -> 12.87543306 | I151: =IF(OR('Tabel 1 H'!G149<5,'Tabel 2 H'!I151<0.5),"-",IFERROR('Tabel 2 H'!I151/'Tabel 1 H'!G149*100,"-")) -> 14.08450704 | J151: =IF(OR('Tabel 1 H'!G149<5,'Tabel 2 H'!J151<0.5),"-",IFERROR('Tabel 2 H'!J151/'Tabel 1 H'!G149*100,"-")) -> 11.29360834
A152: Bac. Hum. | C152: =IF(OR('Tabel 1 H'!C150<5,'Tabel 2 H'!C152<0.5),"-",IFERROR('Tabel 2 H'!C152/'Tabel 1 H'!C150*100,"-")) -> 15.27777778 | D152: =IF(OR('Tabel 1 H'!C150<5,'Tabel 2 H'!D152<0.5),"-",IFERROR('Tabel 2 H'!D152/'Tabel 1 H'!C150*100,"-")) -> 13.33101173 | F152: =IF(OR('Tabel 1 H'!E150<5,'Tabel 2 H'!F152<0.5),"-",IFERROR('Tabel 2 H'!F152/'Tabel 1 H'!E150*100,"-")) -> 5.263157895 | G152: =IF(OR('Tabel 1 H'!E150<5,'Tabel 2 H'!G152<0.5),"-",IFERROR('Tabel 2 H'!G152/'Tabel 1 H'!E150*100,"-")) -> 3.899851294 | I152: =IF(OR('Tabel 1 H'!G150<5,'Tabel 2 H'!I152<0.5),"-",IFERROR('Tabel 2 H'!I152/'Tabel 1 H'!G150*100,"-")) -> 9.139784946 | J152: =IF(OR('Tabel 1 H'!G150<5,'Tabel 2 H'!J152<0.5),"-",IFERROR('Tabel 2 H'!J152/'Tabel 1 H'!G150*100,"-")) -> 7.550623076
A153: Bac. Nat. | C153: =IF(OR('Tabel 1 H'!C151<5,'Tabel 2 H'!C153<0.5),"-",IFERROR('Tabel 2 H'!C153/'Tabel 1 H'!C151*100,"-")) -> 10.76923077 | D153: =IF(OR('Tabel 1 H'!C151<5,'Tabel 2 H'!D153<0.5),"-",IFERROR('Tabel 2 H'!D153/'Tabel 1 H'!C151*100,"-")) -> 8.070853864 | F153: =IF(OR('Tabel 1 H'!E151<5,'Tabel 2 H'!F153<0.5),"-",IFERROR('Tabel 2 H'!F153/'Tabel 1 H'!E151*100,"-")) -> 11.66666667 | G153: =IF(OR('Tabel 1 H'!E151<5,'Tabel 2 H'!G153<0.5),"-",IFERROR('Tabel 2 H'!G153/'Tabel 1 H'!E151*100,"-")) -> 8.514730036 | I153: =IF(OR('Tabel 1 H'!G151<5,'Tabel 2 H'!I153<0.5),"-",IFERROR('Tabel 2 H'!I153/'Tabel 1 H'!G151*100,"-")) -> 11.2 | J153: =IF(OR('Tabel 1 H'!G151<5,'Tabel 2 H'!J153<0.5),"-",IFERROR('Tabel 2 H'!J153/'Tabel 1 H'!G151*100,"-")) -> 8.283914426
A154: Andre | C154: =IF(OR('Tabel 1 H'!C152<5,'Tabel 2 H'!C154<0.5),"-",IFERROR('Tabel 2 H'!C154/'Tabel 1 H'!C152*100,"-")) -> 6.498194946 | D154: =IF(OR('Tabel 1 H'!C152<5,'Tabel 2 H'!D154<0.5),"-",IFERROR('Tabel 2 H'!D154/'Tabel 1 H'!C152*100,"-")) -> 5.901523955 | F154: =IF(OR('Tabel 1 H'!E152<5,'Tabel 2 H'!F154<0.5),"-",IFERROR('Tabel 2 H'!F154/'Tabel 1 H'!E152*100,"-")) -> 6.578947368 | G154: =IF(OR('Tabel 1 H'!E152<5,'Tabel 2 H'!G154<0.5),"-",IFERROR('Tabel 2 H'!G154/'Tabel 1 H'!E152*100,"-")) -> 5.793970987 | I154: =IF(OR('Tabel 1 H'!G152<5,'Tabel 2 H'!I154<0.5),"-",IFERROR('Tabel 2 H'!I154/'Tabel 1 H'!G152*100,"-")) -> 6.542810985 | J154: =IF(OR('Tabel 1 H'!G152<5,'Tabel 2 H'!J154<0.5),"-",IFERROR('Tabel 2 H'!J154/'Tabel 1 H'!G152*100,"-")) -> 5.842100506
A156: Total | C156: =IF(OR('Tabel 1 H'!C154<5,'Tabel 2 H'!C156<0.5),"-",IFERROR('Tabel 2 H'!C156/'Tabel 1 H'!C154*100,"-")) -> 3.958074748 | D156: =IF(OR('Tabel 1 H'!C154<5,'Tabel 2 H'!D156<0.5),"-",IFERROR('Tabel 2 H'!D156/'Tabel 1 H'!C154*100,"-")) -> 3.387180263 | F156: =IF(OR('Tabel 1 H'!E154<5,'Tabel 2 H'!F156<0.5),"-",IFERROR('Tabel 2 H'!F156/'Tabel 1 H'!E154*100,"-")) -> 4.490345757 | G156: =IF(OR('Tabel 1 H'!E154<5,'Tabel 2 H'!G156<0.5),"-",IFERROR('Tabel 2 H'!G156/'Tabel 1 H'!E154*100,"-")) -> 3.791435749 | I156: =IF(OR('Tabel 1 H'!G154<5,'Tabel 2 H'!I156<0.5),"-",IFERROR('Tabel 2 H'!I156/'Tabel 1 H'!G154*100,"-")) -> 4.251500712 | J156: =IF(OR('Tabel 1 H'!G154<5,'Tabel 2 H'!J156<0.5),"-",IFERROR('Tabel 2 H'!J156/'Tabel 1 H'!G154*100,"-")) -> 3.610034887
A158: Ingeniører i alt | C158: =IF(OR('Tabel 1 H'!C156<5,'Tabel 2 H'!C158<0.5),"-",IFERROR('Tabel 2 H'!C158/'Tabel 1 H'!C156*100,"-")) -> 3.083003953 | D158: =IF(OR('Tabel 1 H'!C156<5,'Tabel 2 H'!D158<0.5),"-",IFERROR('Tabel 2 H'!D158/'Tabel 1 H'!C156*100,"-")) -> 2.692667717 | F158: =IF(OR('Tabel 1 H'!E156<5,'Tabel 2 H'!F158<0.5),"-",IFERROR('Tabel 2 H'!F158/'Tabel 1 H'!E156*100,"-")) -> 3.432494279 | G158: =IF(OR('Tabel 1 H'!E156<5,'Tabel 2 H'!G158<0.5),"-",IFERROR('Tabel 2 H'!G158/'Tabel 1 H'!E156*100,"-")) -> 3.019944134 | I158: =IF(OR('Tabel 1 H'!G156<5,'Tabel 2 H'!I158<0.5),"-",IFERROR('Tabel 2 H'!I158/'Tabel 1 H'!G156*100,"-")) -> 3.172737955 | J158: =IF(OR('Tabel 1 H'!G156<5,'Tabel 2 H'!J158<0.5),"-",IFERROR('Tabel 2 H'!J158/'Tabel 1 H'!G156*100,"-")) -> 2.776698148
A159: Magistre i alt | C159: =IF(OR('Tabel 1 H'!C157<5,'Tabel 2 H'!C159<0.5),"-",IFERROR('Tabel 2 H'!C159/'Tabel 1 H'!C157*100,"-")) -> 5.841584158 | D159: =IF(OR('Tabel 1 H'!C157<5,'Tabel 2 H'!D159<0.5),"-",IFERROR('Tabel 2 H'!D159/'Tabel 1 H'!C157*100,"-")) -> 4.885591784 | F159: =IF(OR('Tabel 1 H'!E157<5,'Tabel 2 H'!F159<0.5),"-",IFERROR('Tabel 2 H'!F159/'Tabel 1 H'!E157*100,"-")) -> 6.227483273 | G159: =IF(OR('Tabel 1 H'!E157<5,'Tabel 2 H'!G159<0.5),"-",IFERROR('Tabel 2 H'!G159/'Tabel 1 H'!E157*100,"-")) -> 5.224973621 | I159: =IF(OR('Tabel 1 H'!G157<5,'Tabel 2 H'!I159<0.5),"-",IFERROR('Tabel 2 H'!I159/'Tabel 1 H'!G157*100,"-")) -> 6.095496106 | J159: =IF(OR('Tabel 1 H'!G157<5,'Tabel 2 H'!J159<0.5),"-",IFERROR('Tabel 2 H'!J159/'Tabel 1 H'!G157*100,"-")) -> 5.108896528
A160: DJØF'ere i alt | C160: =IF(OR('Tabel 1 H'!C158<5,'Tabel 2 H'!C160<0.5),"-",IFERROR('Tabel 2 H'!C160/'Tabel 1 H'!C158*100,"-")) -> 2.327246688 | D160: =IF(OR('Tabel 1 H'!C158<5,'Tabel 2 H'!D160<0.5),"-",IFERROR('Tabel 2 H'!D160/'Tabel 1 H'!C158*100,"-")) -> 1.97922433 | F160: =IF(OR('Tabel 1 H'!E158<5,'Tabel 2 H'!F160<0.5),"-",IFERROR('Tabel 2 H'!F160/'Tabel 1 H'!E158*100,"-")) -> 3.154382772 | G160: =IF(OR('Tabel 1 H'!E158<5,'Tabel 2 H'!G160<0.5),"-",IFERROR('Tabel 2 H'!G160/'Tabel 1 H'!E158*100,"-")) -> 2.676368828 | I160: =IF(OR('Tabel 1 H'!G158<5,'Tabel 2 H'!I160<0.5),"-",IFERROR('Tabel 2 H'!I160/'Tabel 1 H'!G158*100,"-")) -> 2.775041051 | J160: =IF(OR('Tabel 1 H'!G158<5,'Tabel 2 H'!J160<0.5),"-",IFERROR('Tabel 2 H'!J160/'Tabel 1 H'!G158*100,"-")) -> 2.356643937
A165: Ballerup
C167: Mænd | F167: Kvinder | I167: I alt
C168: Ledigheds- berørte | D168: Gns. brutto- ledighed | F168: Ledigheds- berørte | G168: Gns. brutto- ledighed | I168: Ledigheds- berørte | J168: Gns. brutto- ledighed
A171: Civ. ing. | C171: =IF(OR('Tabel 1 H'!C169<5,'Tabel 2 H'!C171<0.5),"-",IFERROR('Tabel 2 H'!C171/'Tabel 1 H'!C169*100,"-")) -> 1 | D171: =IF(OR('Tabel 1 H'!C169<5,'Tabel 2 H'!D171<0.5),"-",IFERROR('Tabel 2 H'!D171/'Tabel 1 H'!C169*100,"-")) -> 0.9767354831 | F171: =IF(OR('Tabel 1 H'!E169<5,'Tabel 2 H'!F171<0.5),"-",IFERROR('Tabel 2 H'!F171/'Tabel 1 H'!E169*100,"-")) -> - | G171: =IF(OR('Tabel 1 H'!E169<5,'Tabel 2 H'!G171<0.5),"-",IFERROR('Tabel 2 H'!G171/'Tabel 1 H'!E169*100,"-")) -> - | I171: =IF(OR('Tabel 1 H'!G169<5,'Tabel 2 H'!I171<0.5),"-",IFERROR('Tabel 2 H'!I171/'Tabel 1 H'!G169*100,"-")) -> 0.6980802792 | J171: =IF(OR('Tabel 1 H'!G169<5,'Tabel 2 H'!J171<0.5),"-",IFERROR('Tabel 2 H'!J171/'Tabel 1 H'!G169*100,"-")) -> 0.6818397788
A172: Diplom ing. | C172: =IF(OR('Tabel 1 H'!C170<5,'Tabel 2 H'!C172<0.5),"-",IFERROR('Tabel 2 H'!C172/'Tabel 1 H'!C170*100,"-")) -> 3.03030303 | D172: =IF(OR('Tabel 1 H'!C170<5,'Tabel 2 H'!D172<0.5),"-",IFERROR('Tabel 2 H'!D172/'Tabel 1 H'!C170*100,"-")) -> 2.854749705 | F172: =IF(OR('Tabel 1 H'!E170<5,'Tabel 2 H'!F172<0.5),"-",IFERROR('Tabel 2 H'!F172/'Tabel 1 H'!E170*100,"-")) -> 0.9708737864 | G172: =IF(OR('Tabel 1 H'!E170<5,'Tabel 2 H'!G172<0.5),"-",IFERROR('Tabel 2 H'!G172/'Tabel 1 H'!E170*100,"-")) -> - | I172: =IF(OR('Tabel 1 H'!G170<5,'Tabel 2 H'!I172<0.5),"-",IFERROR('Tabel 2 H'!I172/'Tabel 1 H'!G170*100,"-")) -> 2.605210421 | J172: =IF(OR('Tabel 1 H'!G170<5,'Tabel 2 H'!J172<0.5),"-",IFERROR('Tabel 2 H'!J172/'Tabel 1 H'!G170*100,"-")) -> 2.35923728
A173: Cand. Scient. Tek. | C173: =IF(OR('Tabel 1 H'!C171<5,'Tabel 2 H'!C173<0.5),"-",IFERROR('Tabel 2 H'!C173/'Tabel 1 H'!C171*100,"-")) -> 4.8 | D173: =IF(OR('Tabel 1 H'!C171<5,'Tabel 2 H'!D173<0.5),"-",IFERROR('Tabel 2 H'!D173/'Tabel 1 H'!C171*100,"-")) -> 3.72831036 | F173: =IF(OR('Tabel 1 H'!E171<5,'Tabel 2 H'!F173<0.5),"-",IFERROR('Tabel 2 H'!F173/'Tabel 1 H'!E171*100,"-")) -> 3.636363636 | G173: =IF(OR('Tabel 1 H'!E171<5,'Tabel 2 H'!G173<0.5),"-",IFERROR('Tabel 2 H'!G173/'Tabel 1 H'!E171*100,"-")) -> 2.712587107 | I173: =IF(OR('Tabel 1 H'!G171<5,'Tabel 2 H'!I173<0.5),"-",IFERROR('Tabel 2 H'!I173/'Tabel 1 H'!G171*100,"-")) -> 4.255319149 | J173: =IF(OR('Tabel 1 H'!G171<5,'Tabel 2 H'!J173<0.5),"-",IFERROR('Tabel 2 H'!J173/'Tabel 1 H'!G171*100,"-")) -> 3.252865433
A174: MA. Hum. | C174: =IF(OR('Tabel 1 H'!C172<5,'Tabel 2 H'!C174<0.5),"-",IFERROR('Tabel 2 H'!C174/'Tabel 1 H'!C172*100,"-")) -> 4.166666667 | D174: =IF(OR('Tabel 1 H'!C172<5,'Tabel 2 H'!D174<0.5),"-",IFERROR('Tabel 2 H'!D174/'Tabel 1 H'!C172*100,"-")) -> 3.973575334 | F174: =IF(OR('Tabel 1 H'!E172<5,'Tabel 2 H'!F174<0.5),"-",IFERROR('Tabel 2 H'!F174/'Tabel 1 H'!E172*100,"-")) -> 3.896103896 | G174: =IF(OR('Tabel 1 H'!E172<5,'Tabel 2 H'!G174<0.5),"-",IFERROR('Tabel 2 H'!G174/'Tabel 1 H'!E172*100,"-")) -> 2.618787063 | I174: =IF(OR('Tabel 1 H'!G172<5,'Tabel 2 H'!I174<0.5),"-",IFERROR('Tabel 2 H'!I174/'Tabel 1 H'!G172*100,"-")) -> 3.982300885 | J174: =IF(OR('Tabel 1 H'!G172<5,'Tabel 2 H'!J174<0.5),"-",IFERROR('Tabel 2 H'!J174/'Tabel 1 H'!G172*100,"-")) -> 3.050401026
A175: MA. Nat. | C175: =IF(OR('Tabel 1 H'!C173<5,'Tabel 2 H'!C175<0.5),"-",IFERROR('Tabel 2 H'!C175/'Tabel 1 H'!C173*100,"-")) -> 1.176470588 | D175: =IF(OR('Tabel 1 H'!C173<5,'Tabel 2 H'!D175<0.5),"-",IFERROR('Tabel 2 H'!D175/'Tabel 1 H'!C173*100,"-")) -> 1.121950683 | F175: =IF(OR('Tabel 1 H'!E173<5,'Tabel 2 H'!F175<0.5),"-",IFERROR('Tabel 2 H'!F175/'Tabel 1 H'!E173*100,"-")) -> 3.296703297 | G175: =IF(OR('Tabel 1 H'!E173<5,'Tabel 2 H'!G175<0.5),"-",IFERROR('Tabel 2 H'!G175/'Tabel 1 H'!E173*100,"-")) -> 2.63673207 | I175: =IF(OR('Tabel 1 H'!G173<5,'Tabel 2 H'!I175<0.5),"-",IFERROR('Tabel 2 H'!I175/'Tabel 1 H'!G173*100,"-")) -> 2.272727273 | J175: =IF(OR('Tabel 1 H'!G173<5,'Tabel 2 H'!J175<0.5),"-",IFERROR('Tabel 2 H'!J175/'Tabel 1 H'!G173*100,"-")) -> 1.905161513
A176: MA. Ph.d. | C176: =IF(OR('Tabel 1 H'!C174<5,'Tabel 2 H'!C176<0.5),"-",IFERROR('Tabel 2 H'!C176/'Tabel 1 H'!C174*100,"-")) -> - | D176: =IF(OR('Tabel 1 H'!C174<5,'Tabel 2 H'!D176<0.5),"-",IFERROR('Tabel 2 H'!D176/'Tabel 1 H'!C174*100,"-")) -> - | F176: =IF(OR('Tabel 1 H'!E174<5,'Tabel 2 H'!F176<0.5),"-",IFERROR('Tabel 2 H'!F176/'Tabel 1 H'!E174*100,"-")) -> 7.692307692 | G176: =IF(OR('Tabel 1 H'!E174<5,'Tabel 2 H'!G176<0.5),"-",IFERROR('Tabel 2 H'!G176/'Tabel 1 H'!E174*100,"-")) -> 5.915683518 | I176: =IF(OR('Tabel 1 H'!G174<5,'Tabel 2 H'!I176<0.5),"-",IFERROR('Tabel 2 H'!I176/'Tabel 1 H'!G174*100,"-")) -> 4.166666667 | J176: =IF(OR('Tabel 1 H'!G174<5,'Tabel 2 H'!J176<0.5),"-",IFERROR('Tabel 2 H'!J176/'Tabel 1 H'!G174*100,"-")) -> 3.204328572
A177: MA. Samf. | C177: =IF(OR('Tabel 1 H'!C175<5,'Tabel 2 H'!C177<0.5),"-",IFERROR('Tabel 2 H'!C177/'Tabel 1 H'!C175*100,"-")) -> - | D177: =IF(OR('Tabel 1 H'!C175<5,'Tabel 2 H'!D177<0.5),"-",IFERROR('Tabel 2 H'!D177/'Tabel 1 H'!C175*100,"-")) -> - | F177: =IF(OR('Tabel 1 H'!E175<5,'Tabel 2 H'!F177<0.5),"-",IFERROR('Tabel 2 H'!F177/'Tabel 1 H'!E175*100,"-")) -> 9.090909091 | G177: =IF(OR('Tabel 1 H'!E175<5,'Tabel 2 H'!G177<0.5),"-",IFERROR('Tabel 2 H'!G177/'Tabel 1 H'!E175*100,"-")) -> 9.089208054 | I177: =IF(OR('Tabel 1 H'!G175<5,'Tabel 2 H'!I177<0.5),"-",IFERROR('Tabel 2 H'!I177/'Tabel 1 H'!G175*100,"-")) -> 5.405405405 | J177: =IF(OR('Tabel 1 H'!G175<5,'Tabel 2 H'!J177<0.5),"-",IFERROR('Tabel 2 H'!J177/'Tabel 1 H'!G175*100,"-")) -> 5.404393978
A178: Øvrige Mag. | C178: =IF(OR('Tabel 1 H'!C176<5,'Tabel 2 H'!C178<0.5),"-",IFERROR('Tabel 2 H'!C178/'Tabel 1 H'!C176*100,"-")) -> - | D178: =IF(OR('Tabel 1 H'!C176<5,'Tabel 2 H'!D178<0.5),"-",IFERROR('Tabel 2 H'!D178/'Tabel 1 H'!C176*100,"-")) -> - | F178: =IF(OR('Tabel 1 H'!E176<5,'Tabel 2 H'!F178<0.5),"-",IFERROR('Tabel 2 H'!F178/'Tabel 1 H'!E176*100,"-")) -> 5.882352941 | G178: =IF(OR('Tabel 1 H'!E176<5,'Tabel 2 H'!G178<0.5),"-",IFERROR('Tabel 2 H'!G178/'Tabel 1 H'!E176*100,"-")) -> 5.88125227 | I178: =IF(OR('Tabel 1 H'!G176<5,'Tabel 2 H'!I178<0.5),"-",IFERROR('Tabel 2 H'!I178/'Tabel 1 H'!G176*100,"-")) -> 4 | J178: =IF(OR('Tabel 1 H'!G176<5,'Tabel 2 H'!J178<0.5),"-",IFERROR('Tabel 2 H'!J178/'Tabel 1 H'!G176*100,"-")) -> 3.999251544
A179: Agronom | C179: =IF(OR('Tabel 1 H'!C177<5,'Tabel 2 H'!C179<0.5),"-",IFERROR('Tabel 2 H'!C179/'Tabel 1 H'!C177*100,"-")) -> 11.11111111 | D179: =IF(OR('Tabel 1 H'!C177<5,'Tabel 2 H'!D179<0.5),"-",IFERROR('Tabel 2 H'!D179/'Tabel 1 H'!C177*100,"-")) -> 11.10903207 | F179: =IF(OR('Tabel 1 H'!E177<5,'Tabel 2 H'!F179<0.5),"-",IFERROR('Tabel 2 H'!F179/'Tabel 1 H'!E177*100,"-")) -> 8.333333333 | G179: =IF(OR('Tabel 1 H'!E177<5,'Tabel 2 H'!G179<0.5),"-",IFERROR('Tabel 2 H'!G179/'Tabel 1 H'!E177*100,"-")) -> 6.616561675 | I179: =IF(OR('Tabel 1 H'!G177<5,'Tabel 2 H'!I179<0.5),"-",IFERROR('Tabel 2 H'!I179/'Tabel 1 H'!G177*100,"-")) -> 9.523809524 | J179: =IF(OR('Tabel 1 H'!G177<5,'Tabel 2 H'!J179<0.5),"-",IFERROR('Tabel 2 H'!J179/'Tabel 1 H'!G177*100,"-")) -> 8.541906128
A180: Landsk. Arkt. | C180: =IF(OR('Tabel 1 H'!C178<5,'Tabel 2 H'!C180<0.5),"-",IFERROR('Tabel 2 H'!C180/'Tabel 1 H'!C178*100,"-")) -> - | D180: =IF(OR('Tabel 1 H'!C178<5,'Tabel 2 H'!D180<0.5),"-",IFERROR('Tabel 2 H'!D180/'Tabel 1 H'!C178*100,"-")) -> - | F180: =IF(OR('Tabel 1 H'!E178<5,'Tabel 2 H'!F180<0.5),"-",IFERROR('Tabel 2 H'!F180/'Tabel 1 H'!E178*100,"-")) -> - | G180: =IF(OR('Tabel 1 H'!E178<5,'Tabel 2 H'!G180<0.5),"-",IFERROR('Tabel 2 H'!G180/'Tabel 1 H'!E178*100,"-")) -> - | I180: =IF(OR('Tabel 1 H'!G178<5,'Tabel 2 H'!I180<0.5),"-",IFERROR('Tabel 2 H'!I180/'Tabel 1 H'!G178*100,"-")) -> - | J180: =IF(OR('Tabel 1 H'!G178<5,'Tabel 2 H'!J180<0.5),"-",IFERROR('Tabel 2 H'!J180/'Tabel 1 H'!G178*100,"-")) -> -
A181: Hortonom | C181: =IF(OR('Tabel 1 H'!C179<5,'Tabel 2 H'!C181<0.5),"-",IFERROR('Tabel 2 H'!C181/'Tabel 1 H'!C179*100,"-")) -> - | D181: =IF(OR('Tabel 1 H'!C179<5,'Tabel 2 H'!D181<0.5),"-",IFERROR('Tabel 2 H'!D181/'Tabel 1 H'!C179*100,"-")) -> - | F181: =IF(OR('Tabel 1 H'!E179<5,'Tabel 2 H'!F181<0.5),"-",IFERROR('Tabel 2 H'!F181/'Tabel 1 H'!E179*100,"-")) -> - | G181: =IF(OR('Tabel 1 H'!E179<5,'Tabel 2 H'!G181<0.5),"-",IFERROR('Tabel 2 H'!G181/'Tabel 1 H'!E179*100,"-")) -> - | I181: =IF(OR('Tabel 1 H'!G179<5,'Tabel 2 H'!I181<0.5),"-",IFERROR('Tabel 2 H'!I181/'Tabel 1 H'!G179*100,"-")) -> - | J181: =IF(OR('Tabel 1 H'!G179<5,'Tabel 2 H'!J181<0.5),"-",IFERROR('Tabel 2 H'!J181/'Tabel 1 H'!G179*100,"-")) -> -
A182: Forstkand. | C182: =IF(OR('Tabel 1 H'!C180<5,'Tabel 2 H'!C182<0.5),"-",IFERROR('Tabel 2 H'!C182/'Tabel 1 H'!C180*100,"-")) -> - | D182: =IF(OR('Tabel 1 H'!C180<5,'Tabel 2 H'!D182<0.5),"-",IFERROR('Tabel 2 H'!D182/'Tabel 1 H'!C180*100,"-")) -> - | F182: =IF(OR('Tabel 1 H'!E180<5,'Tabel 2 H'!F182<0.5),"-",IFERROR('Tabel 2 H'!F182/'Tabel 1 H'!E180*100,"-")) -> - | G182: =IF(OR('Tabel 1 H'!E180<5,'Tabel 2 H'!G182<0.5),"-",IFERROR('Tabel 2 H'!G182/'Tabel 1 H'!E180*100,"-")) -> - | I182: =IF(OR('Tabel 1 H'!G180<5,'Tabel 2 H'!I182<0.5),"-",IFERROR('Tabel 2 H'!I182/'Tabel 1 H'!G180*100,"-")) -> - | J182: =IF(OR('Tabel 1 H'!G180<5,'Tabel 2 H'!J182<0.5),"-",IFERROR('Tabel 2 H'!J182/'Tabel 1 H'!G180*100,"-")) -> -
A183: Jordbrugsakad. | C183: =IF(OR('Tabel 1 H'!C181<5,'Tabel 2 H'!C183<0.5),"-",IFERROR('Tabel 2 H'!C183/'Tabel 1 H'!C181*100,"-")) -> 6.25 | D183: =IF(OR('Tabel 1 H'!C181<5,'Tabel 2 H'!D183<0.5),"-",IFERROR('Tabel 2 H'!D183/'Tabel 1 H'!C181*100,"-")) -> 6.248830537 | F183: =IF(OR('Tabel 1 H'!E181<5,'Tabel 2 H'!F183<0.5),"-",IFERROR('Tabel 2 H'!F183/'Tabel 1 H'!E181*100,"-")) -> 4.347826087 | G183: =IF(OR('Tabel 1 H'!E181<5,'Tabel 2 H'!G183<0.5),"-",IFERROR('Tabel 2 H'!G183/'Tabel 1 H'!E181*100,"-")) -> 3.452119135 | I183: =IF(OR('Tabel 1 H'!G181<5,'Tabel 2 H'!I183<0.5),"-",IFERROR('Tabel 2 H'!I183/'Tabel 1 H'!G181*100,"-")) -> 5.128205128 | J183: =IF(OR('Tabel 1 H'!G181<5,'Tabel 2 H'!J183<0.5),"-",IFERROR('Tabel 2 H'!J183/'Tabel 1 H'!G181*100,"-")) -> 4.599487915
A184: Mejeriing. | C184: =IF(OR('Tabel 1 H'!C182<5,'Tabel 2 H'!C184<0.5),"-",IFERROR('Tabel 2 H'!C184/'Tabel 1 H'!C182*100,"-")) -> - | D184: =IF(OR('Tabel 1 H'!C182<5,'Tabel 2 H'!D184<0.5),"-",IFERROR('Tabel 2 H'!D184/'Tabel 1 H'!C182*100,"-")) -> - | F184: =IF(OR('Tabel 1 H'!E182<5,'Tabel 2 H'!F184<0.5),"-",IFERROR('Tabel 2 H'!F184/'Tabel 1 H'!E182*100,"-")) -> - | G184: =IF(OR('Tabel 1 H'!E182<5,'Tabel 2 H'!G184<0.5),"-",IFERROR('Tabel 2 H'!G184/'Tabel 1 H'!E182*100,"-")) -> - | I184: =IF(OR('Tabel 1 H'!G182<5,'Tabel 2 H'!I184<0.5),"-",IFERROR('Tabel 2 H'!I184/'Tabel 1 H'!G182*100,"-")) -> - | J184: =IF(OR('Tabel 1 H'!G182<5,'Tabel 2 H'!J184<0.5),"-",IFERROR('Tabel 2 H'!J184/'Tabel 1 H'!G182*100,"-")) -> -
A185: Levn.m.kand. | C185: =IF(OR('Tabel 1 H'!C183<5,'Tabel 2 H'!C185<0.5),"-",IFERROR('Tabel 2 H'!C185/'Tabel 1 H'!C183*100,"-")) -> - | D185: =IF(OR('Tabel 1 H'!C183<5,'Tabel 2 H'!D185<0.5),"-",IFERROR('Tabel 2 H'!D185/'Tabel 1 H'!C183*100,"-")) -> - | F185: =IF(OR('Tabel 1 H'!E183<5,'Tabel 2 H'!F185<0.5),"-",IFERROR('Tabel 2 H'!F185/'Tabel 1 H'!E183*100,"-")) -> - | G185: =IF(OR('Tabel 1 H'!E183<5,'Tabel 2 H'!G185<0.5),"-",IFERROR('Tabel 2 H'!G185/'Tabel 1 H'!E183*100,"-")) -> - | I185: =IF(OR('Tabel 1 H'!G183<5,'Tabel 2 H'!I185<0.5),"-",IFERROR('Tabel 2 H'!I185/'Tabel 1 H'!G183*100,"-")) -> - | J185: =IF(OR('Tabel 1 H'!G183<5,'Tabel 2 H'!J185<0.5),"-",IFERROR('Tabel 2 H'!J185/'Tabel 1 H'!G183*100,"-")) -> -
A186: Dyrlæge | C186: =IF(OR('Tabel 1 H'!C184<5,'Tabel 2 H'!C186<0.5),"-",IFERROR('Tabel 2 H'!C186/'Tabel 1 H'!C184*100,"-")) -> - | D186: =IF(OR('Tabel 1 H'!C184<5,'Tabel 2 H'!D186<0.5),"-",IFERROR('Tabel 2 H'!D186/'Tabel 1 H'!C184*100,"-")) -> - | F186: =IF(OR('Tabel 1 H'!E184<5,'Tabel 2 H'!F186<0.5),"-",IFERROR('Tabel 2 H'!F186/'Tabel 1 H'!E184*100,"-")) -> - | G186: =IF(OR('Tabel 1 H'!E184<5,'Tabel 2 H'!G186<0.5),"-",IFERROR('Tabel 2 H'!G186/'Tabel 1 H'!E184*100,"-")) -> - | I186: =IF(OR('Tabel 1 H'!G184<5,'Tabel 2 H'!I186<0.5),"-",IFERROR('Tabel 2 H'!I186/'Tabel 1 H'!G184*100,"-")) -> - | J186: =IF(OR('Tabel 1 H'!G184<5,'Tabel 2 H'!J186<0.5),"-",IFERROR('Tabel 2 H'!J186/'Tabel 1 H'!G184*100,"-")) -> -
A187: Farmaceut | C187: =IF(OR('Tabel 1 H'!C185<5,'Tabel 2 H'!C187<0.5),"-",IFERROR('Tabel 2 H'!C187/'Tabel 1 H'!C185*100,"-")) -> - | D187: =IF(OR('Tabel 1 H'!C185<5,'Tabel 2 H'!D187<0.5),"-",IFERROR('Tabel 2 H'!D187/'Tabel 1 H'!C185*100,"-")) -> - | F187: =IF(OR('Tabel 1 H'!E185<5,'Tabel 2 H'!F187<0.5),"-",IFERROR('Tabel 2 H'!F187/'Tabel 1 H'!E185*100,"-")) -> 1.020408163 | G187: =IF(OR('Tabel 1 H'!E185<5,'Tabel 2 H'!G187<0.5),"-",IFERROR('Tabel 2 H'!G187/'Tabel 1 H'!E185*100,"-")) -> 1.020217231 | I187: =IF(OR('Tabel 1 H'!G185<5,'Tabel 2 H'!I187<0.5),"-",IFERROR('Tabel 2 H'!I187/'Tabel 1 H'!G185*100,"-")) -> 0.7751937984 | J187: =IF(OR('Tabel 1 H'!G185<5,'Tabel 2 H'!J187<0.5),"-",IFERROR('Tabel 2 H'!J187/'Tabel 1 H'!G185*100,"-")) -> 0.7750487488
A188: Læge | C188: =IF(OR('Tabel 1 H'!C186<5,'Tabel 2 H'!C188<0.5),"-",IFERROR('Tabel 2 H'!C188/'Tabel 1 H'!C186*100,"-")) -> 3.333333333 | D188: =IF(OR('Tabel 1 H'!C186<5,'Tabel 2 H'!D188<0.5),"-",IFERROR('Tabel 2 H'!D188/'Tabel 1 H'!C186*100,"-")) -> 2.871161563 | F188: =IF(OR('Tabel 1 H'!E186<5,'Tabel 2 H'!F188<0.5),"-",IFERROR('Tabel 2 H'!F188/'Tabel 1 H'!E186*100,"-")) -> 3.703703704 | G188: =IF(OR('Tabel 1 H'!E186<5,'Tabel 2 H'!G188<0.5),"-",IFERROR('Tabel 2 H'!G188/'Tabel 1 H'!E186*100,"-")) -> 1.737157853 | I188: =IF(OR('Tabel 1 H'!G186<5,'Tabel 2 H'!I188<0.5),"-",IFERROR('Tabel 2 H'!I188/'Tabel 1 H'!G186*100,"-")) -> 3.571428571 | J188: =IF(OR('Tabel 1 H'!G186<5,'Tabel 2 H'!J188<0.5),"-",IFERROR('Tabel 2 H'!J188/'Tabel 1 H'!G186*100,"-")) -> 2.142159178
A189: Tandlæge | C189: =IF(OR('Tabel 1 H'!C187<5,'Tabel 2 H'!C189<0.5),"-",IFERROR('Tabel 2 H'!C189/'Tabel 1 H'!C187*100,"-")) -> - | D189: =IF(OR('Tabel 1 H'!C187<5,'Tabel 2 H'!D189<0.5),"-",IFERROR('Tabel 2 H'!D189/'Tabel 1 H'!C187*100,"-")) -> - | F189: =IF(OR('Tabel 1 H'!E187<5,'Tabel 2 H'!F189<0.5),"-",IFERROR('Tabel 2 H'!F189/'Tabel 1 H'!E187*100,"-")) -> - | G189: =IF(OR('Tabel 1 H'!E187<5,'Tabel 2 H'!G189<0.5),"-",IFERROR('Tabel 2 H'!G189/'Tabel 1 H'!E187*100,"-")) -> - | I189: =IF(OR('Tabel 1 H'!G187<5,'Tabel 2 H'!I189<0.5),"-",IFERROR('Tabel 2 H'!I189/'Tabel 1 H'!G187*100,"-")) -> - | J189: =IF(OR('Tabel 1 H'!G187<5,'Tabel 2 H'!J189<0.5),"-",IFERROR('Tabel 2 H'!J189/'Tabel 1 H'!G187*100,"-")) -> -
A190: Arkitekt | C190: =IF(OR('Tabel 1 H'!C188<5,'Tabel 2 H'!C190<0.5),"-",IFERROR('Tabel 2 H'!C190/'Tabel 1 H'!C188*100,"-")) -> - | D190: =IF(OR('Tabel 1 H'!C188<5,'Tabel 2 H'!D190<0.5),"-",IFERROR('Tabel 2 H'!D190/'Tabel 1 H'!C188*100,"-")) -> - | F190: =IF(OR('Tabel 1 H'!E188<5,'Tabel 2 H'!F190<0.5),"-",IFERROR('Tabel 2 H'!F190/'Tabel 1 H'!E188*100,"-")) -> - | G190: =IF(OR('Tabel 1 H'!E188<5,'Tabel 2 H'!G190<0.5),"-",IFERROR('Tabel 2 H'!G190/'Tabel 1 H'!E188*100,"-")) -> - | I190: =IF(OR('Tabel 1 H'!G188<5,'Tabel 2 H'!I190<0.5),"-",IFERROR('Tabel 2 H'!I190/'Tabel 1 H'!G188*100,"-")) -> - | J190: =IF(OR('Tabel 1 H'!G188<5,'Tabel 2 H'!J190<0.5),"-",IFERROR('Tabel 2 H'!J190/'Tabel 1 H'!G188*100,"-")) -> -
A191: Landinspek. | C191: =IF(OR('Tabel 1 H'!C189<5,'Tabel 2 H'!C191<0.5),"-",IFERROR('Tabel 2 H'!C191/'Tabel 1 H'!C189*100,"-")) -> - | D191: =IF(OR('Tabel 1 H'!C189<5,'Tabel 2 H'!D191<0.5),"-",IFERROR('Tabel 2 H'!D191/'Tabel 1 H'!C189*100,"-")) -> - | F191: =IF(OR('Tabel 1 H'!E189<5,'Tabel 2 H'!F191<0.5),"-",IFERROR('Tabel 2 H'!F191/'Tabel 1 H'!E189*100,"-")) -> - | G191: =IF(OR('Tabel 1 H'!E189<5,'Tabel 2 H'!G191<0.5),"-",IFERROR('Tabel 2 H'!G191/'Tabel 1 H'!E189*100,"-")) -> - | I191: =IF(OR('Tabel 1 H'!G189<5,'Tabel 2 H'!I191<0.5),"-",IFERROR('Tabel 2 H'!I191/'Tabel 1 H'!G189*100,"-")) -> - | J191: =IF(OR('Tabel 1 H'!G189<5,'Tabel 2 H'!J191<0.5),"-",IFERROR('Tabel 2 H'!J191/'Tabel 1 H'!G189*100,"-")) -> -
A192: Bibliotekar | C192: =IF(OR('Tabel 1 H'!C190<5,'Tabel 2 H'!C192<0.5),"-",IFERROR('Tabel 2 H'!C192/'Tabel 1 H'!C190*100,"-")) -> 9.090909091 | D192: =IF(OR('Tabel 1 H'!C190<5,'Tabel 2 H'!D192<0.5),"-",IFERROR('Tabel 2 H'!D192/'Tabel 1 H'!C190*100,"-")) -> 9.089208054 | F192: =IF(OR('Tabel 1 H'!E190<5,'Tabel 2 H'!F192<0.5),"-",IFERROR('Tabel 2 H'!F192/'Tabel 1 H'!E190*100,"-")) -> 6.896551724 | G192: =IF(OR('Tabel 1 H'!E190<5,'Tabel 2 H'!G192<0.5),"-",IFERROR('Tabel 2 H'!G192/'Tabel 1 H'!E190*100,"-")) -> 4.024028028 | I192: =IF(OR('Tabel 1 H'!G190<5,'Tabel 2 H'!I192<0.5),"-",IFERROR('Tabel 2 H'!I192/'Tabel 1 H'!G190*100,"-")) -> 7.5 | J192: =IF(OR('Tabel 1 H'!G190<5,'Tabel 2 H'!J192<0.5),"-",IFERROR('Tabel 2 H'!J192/'Tabel 1 H'!G190*100,"-")) -> 5.416952535
A193: Musikudd. | C193: =IF(OR('Tabel 1 H'!C191<5,'Tabel 2 H'!C193<0.5),"-",IFERROR('Tabel 2 H'!C193/'Tabel 1 H'!C191*100,"-")) -> - | D193: =IF(OR('Tabel 1 H'!C191<5,'Tabel 2 H'!D193<0.5),"-",IFERROR('Tabel 2 H'!D193/'Tabel 1 H'!C191*100,"-")) -> - | F193: =IF(OR('Tabel 1 H'!E191<5,'Tabel 2 H'!F193<0.5),"-",IFERROR('Tabel 2 H'!F193/'Tabel 1 H'!E191*100,"-")) -> - | G193: =IF(OR('Tabel 1 H'!E191<5,'Tabel 2 H'!G193<0.5),"-",IFERROR('Tabel 2 H'!G193/'Tabel 1 H'!E191*100,"-")) -> - | I193: =IF(OR('Tabel 1 H'!G191<5,'Tabel 2 H'!I193<0.5),"-",IFERROR('Tabel 2 H'!I193/'Tabel 1 H'!G191*100,"-")) -> - | J193: =IF(OR('Tabel 1 H'!G191<5,'Tabel 2 H'!J193<0.5),"-",IFERROR('Tabel 2 H'!J193/'Tabel 1 H'!G191*100,"-")) -> -
A194: Teolog | C194: =IF(OR('Tabel 1 H'!C192<5,'Tabel 2 H'!C194<0.5),"-",IFERROR('Tabel 2 H'!C194/'Tabel 1 H'!C192*100,"-")) -> - | D194: =IF(OR('Tabel 1 H'!C192<5,'Tabel 2 H'!D194<0.5),"-",IFERROR('Tabel 2 H'!D194/'Tabel 1 H'!C192*100,"-")) -> - | F194: =IF(OR('Tabel 1 H'!E192<5,'Tabel 2 H'!F194<0.5),"-",IFERROR('Tabel 2 H'!F194/'Tabel 1 H'!E192*100,"-")) -> - | G194: =IF(OR('Tabel 1 H'!E192<5,'Tabel 2 H'!G194<0.5),"-",IFERROR('Tabel 2 H'!G194/'Tabel 1 H'!E192*100,"-")) -> - | I194: =IF(OR('Tabel 1 H'!G192<5,'Tabel 2 H'!I194<0.5),"-",IFERROR('Tabel 2 H'!I194/'Tabel 1 H'!G192*100,"-")) -> - | J194: =IF(OR('Tabel 1 H'!G192<5,'Tabel 2 H'!J194<0.5),"-",IFERROR('Tabel 2 H'!J194/'Tabel 1 H'!G192*100,"-")) -> -
A195: Psykolog | C195: =IF(OR('Tabel 1 H'!C193<5,'Tabel 2 H'!C195<0.5),"-",IFERROR('Tabel 2 H'!C195/'Tabel 1 H'!C193*100,"-")) -> - | D195: =IF(OR('Tabel 1 H'!C193<5,'Tabel 2 H'!D195<0.5),"-",IFERROR('Tabel 2 H'!D195/'Tabel 1 H'!C193*100,"-")) -> - | F195: =IF(OR('Tabel 1 H'!E193<5,'Tabel 2 H'!F195<0.5),"-",IFERROR('Tabel 2 H'!F195/'Tabel 1 H'!E193*100,"-")) -> - | G195: =IF(OR('Tabel 1 H'!E193<5,'Tabel 2 H'!G195<0.5),"-",IFERROR('Tabel 2 H'!G195/'Tabel 1 H'!E193*100,"-")) -> - | I195: =IF(OR('Tabel 1 H'!G193<5,'Tabel 2 H'!I195<0.5),"-",IFERROR('Tabel 2 H'!I195/'Tabel 1 H'!G193*100,"-")) -> - | J195: =IF(OR('Tabel 1 H'!G193<5,'Tabel 2 H'!J195<0.5),"-",IFERROR('Tabel 2 H'!J195/'Tabel 1 H'!G193*100,"-")) -> -
A196: Jurist | C196: =IF(OR('Tabel 1 H'!C194<5,'Tabel 2 H'!C196<0.5),"-",IFERROR('Tabel 2 H'!C196/'Tabel 1 H'!C194*100,"-")) -> - | D196: =IF(OR('Tabel 1 H'!C194<5,'Tabel 2 H'!D196<0.5),"-",IFERROR('Tabel 2 H'!D196/'Tabel 1 H'!C194*100,"-")) -> - | F196: =IF(OR('Tabel 1 H'!E194<5,'Tabel 2 H'!F196<0.5),"-",IFERROR('Tabel 2 H'!F196/'Tabel 1 H'!E194*100,"-")) -> 3.571428571 | G196: =IF(OR('Tabel 1 H'!E194<5,'Tabel 2 H'!G196<0.5),"-",IFERROR('Tabel 2 H'!G196/'Tabel 1 H'!E194*100,"-")) -> 3.29602932 | I196: =IF(OR('Tabel 1 H'!G194<5,'Tabel 2 H'!I196<0.5),"-",IFERROR('Tabel 2 H'!I196/'Tabel 1 H'!G194*100,"-")) -> 2.608695652 | J196: =IF(OR('Tabel 1 H'!G194<5,'Tabel 2 H'!J196<0.5),"-",IFERROR('Tabel 2 H'!J196/'Tabel 1 H'!G194*100,"-")) -> 2.40753446
A197: Økonom | C197: =IF(OR('Tabel 1 H'!C195<5,'Tabel 2 H'!C197<0.5),"-",IFERROR('Tabel 2 H'!C197/'Tabel 1 H'!C195*100,"-")) -> - | D197: =IF(OR('Tabel 1 H'!C195<5,'Tabel 2 H'!D197<0.5),"-",IFERROR('Tabel 2 H'!D197/'Tabel 1 H'!C195*100,"-")) -> - | F197: =IF(OR('Tabel 1 H'!E195<5,'Tabel 2 H'!F197<0.5),"-",IFERROR('Tabel 2 H'!F197/'Tabel 1 H'!E195*100,"-")) -> - | G197: =IF(OR('Tabel 1 H'!E195<5,'Tabel 2 H'!G197<0.5),"-",IFERROR('Tabel 2 H'!G197/'Tabel 1 H'!E195*100,"-")) -> - | I197: =IF(OR('Tabel 1 H'!G195<5,'Tabel 2 H'!I197<0.5),"-",IFERROR('Tabel 2 H'!I197/'Tabel 1 H'!G195*100,"-")) -> - | J197: =IF(OR('Tabel 1 H'!G195<5,'Tabel 2 H'!J197<0.5),"-",IFERROR('Tabel 2 H'!J197/'Tabel 1 H'!G195*100,"-")) -> -
A198: Samf. Adm. | C198: =IF(OR('Tabel 1 H'!C196<5,'Tabel 2 H'!C198<0.5),"-",IFERROR('Tabel 2 H'!C198/'Tabel 1 H'!C196*100,"-")) -> - | D198: =IF(OR('Tabel 1 H'!C196<5,'Tabel 2 H'!D198<0.5),"-",IFERROR('Tabel 2 H'!D198/'Tabel 1 H'!C196*100,"-")) -> - | F198: =IF(OR('Tabel 1 H'!E196<5,'Tabel 2 H'!F198<0.5),"-",IFERROR('Tabel 2 H'!F198/'Tabel 1 H'!E196*100,"-")) -> 4.6875 | G198: =IF(OR('Tabel 1 H'!E196<5,'Tabel 2 H'!G198<0.5),"-",IFERROR('Tabel 2 H'!G198/'Tabel 1 H'!E196*100,"-")) -> 3.745205202 | I198: =IF(OR('Tabel 1 H'!G196<5,'Tabel 2 H'!I198<0.5),"-",IFERROR('Tabel 2 H'!I198/'Tabel 1 H'!G196*100,"-")) -> 2.764976959 | J198: =IF(OR('Tabel 1 H'!G196<5,'Tabel 2 H'!J198<0.5),"-",IFERROR('Tabel 2 H'!J198/'Tabel 1 H'!G196*100,"-")) -> 2.209153299
A199: Cand. Merc. | C199: =IF(OR('Tabel 1 H'!C197<5,'Tabel 2 H'!C199<0.5),"-",IFERROR('Tabel 2 H'!C199/'Tabel 1 H'!C197*100,"-")) -> 1.418439716 | D199: =IF(OR('Tabel 1 H'!C197<5,'Tabel 2 H'!D199<0.5),"-",IFERROR('Tabel 2 H'!D199/'Tabel 1 H'!C197*100,"-")) -> 1.178420571 | F199: =IF(OR('Tabel 1 H'!E197<5,'Tabel 2 H'!F199<0.5),"-",IFERROR('Tabel 2 H'!F199/'Tabel 1 H'!E197*100,"-")) -> 0.7246376812 | G199: =IF(OR('Tabel 1 H'!E197<5,'Tabel 2 H'!G199<0.5),"-",IFERROR('Tabel 2 H'!G199/'Tabel 1 H'!E197*100,"-")) -> 0.7245020912 | I199: =IF(OR('Tabel 1 H'!G197<5,'Tabel 2 H'!I199<0.5),"-",IFERROR('Tabel 2 H'!I199/'Tabel 1 H'!G197*100,"-")) -> 1.075268817 | J199: =IF(OR('Tabel 1 H'!G197<5,'Tabel 2 H'!J199<0.5),"-",IFERROR('Tabel 2 H'!J199/'Tabel 1 H'!G197*100,"-")) -> 0.9539017533
A200: HA | C200: =IF(OR('Tabel 1 H'!C198<5,'Tabel 2 H'!C200<0.5),"-",IFERROR('Tabel 2 H'!C200/'Tabel 1 H'!C198*100,"-")) -> 5 | D200: =IF(OR('Tabel 1 H'!C198<5,'Tabel 2 H'!D200<0.5),"-",IFERROR('Tabel 2 H'!D200/'Tabel 1 H'!C198*100,"-")) -> 4.99906443 | F200: =IF(OR('Tabel 1 H'!E198<5,'Tabel 2 H'!F200<0.5),"-",IFERROR('Tabel 2 H'!F200/'Tabel 1 H'!E198*100,"-")) -> - | G200: =IF(OR('Tabel 1 H'!E198<5,'Tabel 2 H'!G200<0.5),"-",IFERROR('Tabel 2 H'!G200/'Tabel 1 H'!E198*100,"-")) -> - | I200: =IF(OR('Tabel 1 H'!G198<5,'Tabel 2 H'!I200<0.5),"-",IFERROR('Tabel 2 H'!I200/'Tabel 1 H'!G198*100,"-")) -> 2.777777778 | J200: =IF(OR('Tabel 1 H'!G198<5,'Tabel 2 H'!J200<0.5),"-",IFERROR('Tabel 2 H'!J200/'Tabel 1 H'!G198*100,"-")) -> 2.777258016
A201: HD | C201: =IF(OR('Tabel 1 H'!C199<5,'Tabel 2 H'!C201<0.5),"-",IFERROR('Tabel 2 H'!C201/'Tabel 1 H'!C199*100,"-")) -> 12.5 | D201: =IF(OR('Tabel 1 H'!C199<5,'Tabel 2 H'!D201<0.5),"-",IFERROR('Tabel 2 H'!D201/'Tabel 1 H'!C199*100,"-")) -> 12.49766107 | F201: =IF(OR('Tabel 1 H'!E199<5,'Tabel 2 H'!F201<0.5),"-",IFERROR('Tabel 2 H'!F201/'Tabel 1 H'!E199*100,"-")) -> - | G201: =IF(OR('Tabel 1 H'!E199<5,'Tabel 2 H'!G201<0.5),"-",IFERROR('Tabel 2 H'!G201/'Tabel 1 H'!E199*100,"-")) -> - | I201: =IF(OR('Tabel 1 H'!G199<5,'Tabel 2 H'!I201<0.5),"-",IFERROR('Tabel 2 H'!I201/'Tabel 1 H'!G199*100,"-")) -> 5.882352941 | J201: =IF(OR('Tabel 1 H'!G199<5,'Tabel 2 H'!J201<0.5),"-",IFERROR('Tabel 2 H'!J201/'Tabel 1 H'!G199*100,"-")) -> 5.88125227
A202: Komm. og Sprog | C202: =IF(OR('Tabel 1 H'!C200<5,'Tabel 2 H'!C202<0.5),"-",IFERROR('Tabel 2 H'!C202/'Tabel 1 H'!C200*100,"-")) -> - | D202: =IF(OR('Tabel 1 H'!C200<5,'Tabel 2 H'!D202<0.5),"-",IFERROR('Tabel 2 H'!D202/'Tabel 1 H'!C200*100,"-")) -> - | F202: =IF(OR('Tabel 1 H'!E200<5,'Tabel 2 H'!F202<0.5),"-",IFERROR('Tabel 2 H'!F202/'Tabel 1 H'!E200*100,"-")) -> - | G202: =IF(OR('Tabel 1 H'!E200<5,'Tabel 2 H'!G202<0.5),"-",IFERROR('Tabel 2 H'!G202/'Tabel 1 H'!E200*100,"-")) -> - | I202: =IF(OR('Tabel 1 H'!G200<5,'Tabel 2 H'!I202<0.5),"-",IFERROR('Tabel 2 H'!I202/'Tabel 1 H'!G200*100,"-")) -> - | J202: =IF(OR('Tabel 1 H'!G200<5,'Tabel 2 H'!J202<0.5),"-",IFERROR('Tabel 2 H'!J202/'Tabel 1 H'!G200*100,"-")) -> -
A203: Bygningskonst. | C203: =IF(OR('Tabel 1 H'!C201<5,'Tabel 2 H'!C203<0.5),"-",IFERROR('Tabel 2 H'!C203/'Tabel 1 H'!C201*100,"-")) -> 2.127659574 | D203: =IF(OR('Tabel 1 H'!C201<5,'Tabel 2 H'!D203<0.5),"-",IFERROR('Tabel 2 H'!D203/'Tabel 1 H'!C201*100,"-")) -> 2.127659574 | F203: =IF(OR('Tabel 1 H'!E201<5,'Tabel 2 H'!F203<0.5),"-",IFERROR('Tabel 2 H'!F203/'Tabel 1 H'!E201*100,"-")) -> - | G203: =IF(OR('Tabel 1 H'!E201<5,'Tabel 2 H'!G203<0.5),"-",IFERROR('Tabel 2 H'!G203/'Tabel 1 H'!E201*100,"-")) -> - | I203: =IF(OR('Tabel 1 H'!G201<5,'Tabel 2 H'!I203<0.5),"-",IFERROR('Tabel 2 H'!I203/'Tabel 1 H'!G201*100,"-")) -> 1.666666667 | J203: =IF(OR('Tabel 1 H'!G201<5,'Tabel 2 H'!J203<0.5),"-",IFERROR('Tabel 2 H'!J203/'Tabel 1 H'!G201*100,"-")) -> 1.666666667
A204: Cand. IT. | C204: =IF(OR('Tabel 1 H'!C202<5,'Tabel 2 H'!C204<0.5),"-",IFERROR('Tabel 2 H'!C204/'Tabel 1 H'!C202*100,"-")) -> - | D204: =IF(OR('Tabel 1 H'!C202<5,'Tabel 2 H'!D204<0.5),"-",IFERROR('Tabel 2 H'!D204/'Tabel 1 H'!C202*100,"-")) -> - | F204: =IF(OR('Tabel 1 H'!E202<5,'Tabel 2 H'!F204<0.5),"-",IFERROR('Tabel 2 H'!F204/'Tabel 1 H'!E202*100,"-")) -> 4.545454545 | G204: =IF(OR('Tabel 1 H'!E202<5,'Tabel 2 H'!G204<0.5),"-",IFERROR('Tabel 2 H'!G204/'Tabel 1 H'!E202*100,"-")) -> 4.544604027 | I204: =IF(OR('Tabel 1 H'!G202<5,'Tabel 2 H'!I204<0.5),"-",IFERROR('Tabel 2 H'!I204/'Tabel 1 H'!G202*100,"-")) -> 2.564102564 | J204: =IF(OR('Tabel 1 H'!G202<5,'Tabel 2 H'!J204<0.5),"-",IFERROR('Tabel 2 H'!J204/'Tabel 1 H'!G202*100,"-")) -> 2.563622784
A205: Bac. Samf. | C205: =IF(OR('Tabel 1 H'!C203<5,'Tabel 2 H'!C205<0.5),"-",IFERROR('Tabel 2 H'!C205/'Tabel 1 H'!C203*100,"-")) -> - | D205: =IF(OR('Tabel 1 H'!C203<5,'Tabel 2 H'!D205<0.5),"-",IFERROR('Tabel 2 H'!D205/'Tabel 1 H'!C203*100,"-")) -> - | F205: =IF(OR('Tabel 1 H'!E203<5,'Tabel 2 H'!F205<0.5),"-",IFERROR('Tabel 2 H'!F205/'Tabel 1 H'!E203*100,"-")) -> 16.66666667 | G205: =IF(OR('Tabel 1 H'!E203<5,'Tabel 2 H'!G205<0.5),"-",IFERROR('Tabel 2 H'!G205/'Tabel 1 H'!E203*100,"-")) -> 16.6635481 | I205: =IF(OR('Tabel 1 H'!G203<5,'Tabel 2 H'!I205<0.5),"-",IFERROR('Tabel 2 H'!I205/'Tabel 1 H'!G203*100,"-")) -> 11.11111111 | J205: =IF(OR('Tabel 1 H'!G203<5,'Tabel 2 H'!J205<0.5),"-",IFERROR('Tabel 2 H'!J205/'Tabel 1 H'!G203*100,"-")) -> 11.10903207
A206: Bac. Hum. | C206: =IF(OR('Tabel 1 H'!C204<5,'Tabel 2 H'!C206<0.5),"-",IFERROR('Tabel 2 H'!C206/'Tabel 1 H'!C204*100,"-")) -> 14.28571429 | D206: =IF(OR('Tabel 1 H'!C204<5,'Tabel 2 H'!D206<0.5),"-",IFERROR('Tabel 2 H'!D206/'Tabel 1 H'!C204*100,"-")) -> - | F206: =IF(OR('Tabel 1 H'!E204<5,'Tabel 2 H'!F206<0.5),"-",IFERROR('Tabel 2 H'!F206/'Tabel 1 H'!E204*100,"-")) -> - | G206: =IF(OR('Tabel 1 H'!E204<5,'Tabel 2 H'!G206<0.5),"-",IFERROR('Tabel 2 H'!G206/'Tabel 1 H'!E204*100,"-")) -> - | I206: =IF(OR('Tabel 1 H'!G204<5,'Tabel 2 H'!I206<0.5),"-",IFERROR('Tabel 2 H'!I206/'Tabel 1 H'!G204*100,"-")) -> 4.545454545 | J206: =IF(OR('Tabel 1 H'!G204<5,'Tabel 2 H'!J206<0.5),"-",IFERROR('Tabel 2 H'!J206/'Tabel 1 H'!G204*100,"-")) -> -
A207: Bac. Nat. | C207: =IF(OR('Tabel 1 H'!C205<5,'Tabel 2 H'!C207<0.5),"-",IFERROR('Tabel 2 H'!C207/'Tabel 1 H'!C205*100,"-")) -> - | D207: =IF(OR('Tabel 1 H'!C205<5,'Tabel 2 H'!D207<0.5),"-",IFERROR('Tabel 2 H'!D207/'Tabel 1 H'!C205*100,"-")) -> - | F207: =IF(OR('Tabel 1 H'!E205<5,'Tabel 2 H'!F207<0.5),"-",IFERROR('Tabel 2 H'!F207/'Tabel 1 H'!E205*100,"-")) -> - | G207: =IF(OR('Tabel 1 H'!E205<5,'Tabel 2 H'!G207<0.5),"-",IFERROR('Tabel 2 H'!G207/'Tabel 1 H'!E205*100,"-")) -> - | I207: =IF(OR('Tabel 1 H'!G205<5,'Tabel 2 H'!I207<0.5),"-",IFERROR('Tabel 2 H'!I207/'Tabel 1 H'!G205*100,"-")) -> - | J207: =IF(OR('Tabel 1 H'!G205<5,'Tabel 2 H'!J207<0.5),"-",IFERROR('Tabel 2 H'!J207/'Tabel 1 H'!G205*100,"-")) -> -
A208: Andre | C208: =IF(OR('Tabel 1 H'!C206<5,'Tabel 2 H'!C208<0.5),"-",IFERROR('Tabel 2 H'!C208/'Tabel 1 H'!C206*100,"-")) -> 2.631578947 | D208: =IF(OR('Tabel 1 H'!C206<5,'Tabel 2 H'!D208<0.5),"-",IFERROR('Tabel 2 H'!D208/'Tabel 1 H'!C206*100,"-")) -> 2.59059987 | F208: =IF(OR('Tabel 1 H'!E206<5,'Tabel 2 H'!F208<0.5),"-",IFERROR('Tabel 2 H'!F208/'Tabel 1 H'!E206*100,"-")) -> 3.409090909 | G208: =IF(OR('Tabel 1 H'!E206<5,'Tabel 2 H'!G208<0.5),"-",IFERROR('Tabel 2 H'!G208/'Tabel 1 H'!E206*100,"-")) -> 3.401365366 | I208: =IF(OR('Tabel 1 H'!G206<5,'Tabel 2 H'!I208<0.5),"-",IFERROR('Tabel 2 H'!I208/'Tabel 1 H'!G206*100,"-")) -> 2.97029703 | J208: =IF(OR('Tabel 1 H'!G206<5,'Tabel 2 H'!J208<0.5),"-",IFERROR('Tabel 2 H'!J208/'Tabel 1 H'!G206*100,"-")) -> 2.943804641
A210: Total | C210: =IF(OR('Tabel 1 H'!C208<5,'Tabel 2 H'!C210<0.5),"-",IFERROR('Tabel 2 H'!C210/'Tabel 1 H'!C208*100,"-")) -> 2.148760331 | D210: =IF(OR('Tabel 1 H'!C208<5,'Tabel 2 H'!D210<0.5),"-",IFERROR('Tabel 2 H'!D210/'Tabel 1 H'!C208*100,"-")) -> 1.9517012 | F210: =IF(OR('Tabel 1 H'!E208<5,'Tabel 2 H'!F210<0.5),"-",IFERROR('Tabel 2 H'!F210/'Tabel 1 H'!E208*100,"-")) -> 2.402957486 | G210: =IF(OR('Tabel 1 H'!E208<5,'Tabel 2 H'!G210<0.5),"-",IFERROR('Tabel 2 H'!G210/'Tabel 1 H'!E208*100,"-")) -> 1.916603075 | I210: =IF(OR('Tabel 1 H'!G208<5,'Tabel 2 H'!I210<0.5),"-",IFERROR('Tabel 2 H'!I210/'Tabel 1 H'!G208*100,"-")) -> 2.268760908 | J210: =IF(OR('Tabel 1 H'!G208<5,'Tabel 2 H'!J210<0.5),"-",IFERROR('Tabel 2 H'!J210/'Tabel 1 H'!G208*100,"-")) -> 1.93513219
A212: Ingeniører i alt | C212: =IF(OR('Tabel 1 H'!C210<5,'Tabel 2 H'!C212<0.5),"-",IFERROR('Tabel 2 H'!C212/'Tabel 1 H'!C210*100,"-")) -> 2.010050251 | D212: =IF(OR('Tabel 1 H'!C210<5,'Tabel 2 H'!D212<0.5),"-",IFERROR('Tabel 2 H'!D212/'Tabel 1 H'!C210*100,"-")) -> 1.911023965 | F212: =IF(OR('Tabel 1 H'!E210<5,'Tabel 2 H'!F212<0.5),"-",IFERROR('Tabel 2 H'!F212/'Tabel 1 H'!E210*100,"-")) -> 0.3623188406 | G212: =IF(OR('Tabel 1 H'!E210<5,'Tabel 2 H'!G212<0.5),"-",IFERROR('Tabel 2 H'!G212/'Tabel 1 H'!E210*100,"-")) -> - | I212: =IF(OR('Tabel 1 H'!G210<5,'Tabel 2 H'!I212<0.5),"-",IFERROR('Tabel 2 H'!I212/'Tabel 1 H'!G210*100,"-")) -> 1.585820896 | J212: =IF(OR('Tabel 1 H'!G210<5,'Tabel 2 H'!J212<0.5),"-",IFERROR('Tabel 2 H'!J212/'Tabel 1 H'!G210*100,"-")) -> 1.46264328
A213: Magistre i alt | C213: =IF(OR('Tabel 1 H'!C211<5,'Tabel 2 H'!C213<0.5),"-",IFERROR('Tabel 2 H'!C213/'Tabel 1 H'!C211*100,"-")) -> 2.094240838 | D213: =IF(OR('Tabel 1 H'!C211<5,'Tabel 2 H'!D213<0.5),"-",IFERROR('Tabel 2 H'!D213/'Tabel 1 H'!C211*100,"-")) -> 1.997189697 | F213: =IF(OR('Tabel 1 H'!E211<5,'Tabel 2 H'!F213<0.5),"-",IFERROR('Tabel 2 H'!F213/'Tabel 1 H'!E211*100,"-")) -> 4.377104377 | G213: =IF(OR('Tabel 1 H'!E211<5,'Tabel 2 H'!G213<0.5),"-",IFERROR('Tabel 2 H'!G213/'Tabel 1 H'!E211*100,"-")) -> 3.43462484 | I213: =IF(OR('Tabel 1 H'!G211<5,'Tabel 2 H'!I213<0.5),"-",IFERROR('Tabel 2 H'!I213/'Tabel 1 H'!G211*100,"-")) -> 3.483606557 | J213: =IF(OR('Tabel 1 H'!G211<5,'Tabel 2 H'!J213<0.5),"-",IFERROR('Tabel 2 H'!J213/'Tabel 1 H'!G211*100,"-")) -> 2.872022151
A214: DJØF'ere i alt | C214: =IF(OR('Tabel 1 H'!C212<5,'Tabel 2 H'!C214<0.5),"-",IFERROR('Tabel 2 H'!C214/'Tabel 1 H'!C212*100,"-")) -> 0.8955223881 | D214: =IF(OR('Tabel 1 H'!C212<5,'Tabel 2 H'!D214<0.5),"-",IFERROR('Tabel 2 H'!D214/'Tabel 1 H'!C212*100,"-")) -> 0.7944435497 | F214: =IF(OR('Tabel 1 H'!E212<5,'Tabel 2 H'!F214<0.5),"-",IFERROR('Tabel 2 H'!F214/'Tabel 1 H'!E212*100,"-")) -> 2.570694087 | G214: =IF(OR('Tabel 1 H'!E212<5,'Tabel 2 H'!G214<0.5),"-",IFERROR('Tabel 2 H'!G214/'Tabel 1 H'!E212*100,"-")) -> 2.201115726 | I214: =IF(OR('Tabel 1 H'!G212<5,'Tabel 2 H'!I214<0.5),"-",IFERROR('Tabel 2 H'!I214/'Tabel 1 H'!G212*100,"-")) -> 1.79558011 | J214: =IF(OR('Tabel 1 H'!G212<5,'Tabel 2 H'!J214<0.5),"-",IFERROR('Tabel 2 H'!J214/'Tabel 1 H'!G212*100,"-")) -> 1.550238407
A219: Brøndby
C221: Mænd | F221: Kvinder | I221: I alt
C222: Ledigheds- berørte | D222: Gns. brutto- ledighed | F222: Ledigheds- berørte | G222: Gns. brutto- ledighed | I222: Ledigheds- berørte | J222: Gns. brutto- ledighed
A225: Civ. ing. | C225: =IF(OR('Tabel 1 H'!C223<5,'Tabel 2 H'!C225<0.5),"-",IFERROR('Tabel 2 H'!C225/'Tabel 1 H'!C223*100,"-")) -> 3.333333333 | D225: =IF(OR('Tabel 1 H'!C223<5,'Tabel 2 H'!D225<0.5),"-",IFERROR('Tabel 2 H'!D225/'Tabel 1 H'!C223*100,"-")) -> 3.076294032 | F225: =IF(OR('Tabel 1 H'!E223<5,'Tabel 2 H'!F225<0.5),"-",IFERROR('Tabel 2 H'!F225/'Tabel 1 H'!E223*100,"-")) -> 5.263157895 | G225: =IF(OR('Tabel 1 H'!E223<5,'Tabel 2 H'!G225<0.5),"-",IFERROR('Tabel 2 H'!G225/'Tabel 1 H'!E223*100,"-")) -> 3.075892813 | I225: =IF(OR('Tabel 1 H'!G223<5,'Tabel 2 H'!I225<0.5),"-",IFERROR('Tabel 2 H'!I225/'Tabel 1 H'!G223*100,"-")) -> 3.90625 | J225: =IF(OR('Tabel 1 H'!G223<5,'Tabel 2 H'!J225<0.5),"-",IFERROR('Tabel 2 H'!J225/'Tabel 1 H'!G223*100,"-")) -> 3.07617492
A226: Diplom ing. | C226: =IF(OR('Tabel 1 H'!C224<5,'Tabel 2 H'!C226<0.5),"-",IFERROR('Tabel 2 H'!C226/'Tabel 1 H'!C224*100,"-")) -> 1.470588235 | D226: =IF(OR('Tabel 1 H'!C224<5,'Tabel 2 H'!D226<0.5),"-",IFERROR('Tabel 2 H'!D226/'Tabel 1 H'!C224*100,"-")) -> 1.402438353 | F226: =IF(OR('Tabel 1 H'!E224<5,'Tabel 2 H'!F226<0.5),"-",IFERROR('Tabel 2 H'!F226/'Tabel 1 H'!E224*100,"-")) -> 9.090909091 | G226: =IF(OR('Tabel 1 H'!E224<5,'Tabel 2 H'!G226<0.5),"-",IFERROR('Tabel 2 H'!G226/'Tabel 1 H'!E224*100,"-")) -> 8.110166721 | I226: =IF(OR('Tabel 1 H'!G224<5,'Tabel 2 H'!I226<0.5),"-",IFERROR('Tabel 2 H'!I226/'Tabel 1 H'!G224*100,"-")) -> 2.958579882 | J226: =IF(OR('Tabel 1 H'!G224<5,'Tabel 2 H'!J226<0.5),"-",IFERROR('Tabel 2 H'!J226/'Tabel 1 H'!G224*100,"-")) -> 2.712231466
A227: Cand. Scient. Tek. | C227: =IF(OR('Tabel 1 H'!C225<5,'Tabel 2 H'!C227<0.5),"-",IFERROR('Tabel 2 H'!C227/'Tabel 1 H'!C225*100,"-")) -> 15.25423729 | D227: =IF(OR('Tabel 1 H'!C225<5,'Tabel 2 H'!D227<0.5),"-",IFERROR('Tabel 2 H'!D227/'Tabel 1 H'!C225*100,"-")) -> 12.72164297 | F227: =IF(OR('Tabel 1 H'!E225<5,'Tabel 2 H'!F227<0.5),"-",IFERROR('Tabel 2 H'!F227/'Tabel 1 H'!E225*100,"-")) -> 8.333333333 | G227: =IF(OR('Tabel 1 H'!E225<5,'Tabel 2 H'!G227<0.5),"-",IFERROR('Tabel 2 H'!G227/'Tabel 1 H'!E225*100,"-")) -> 6.730909167 | I227: =IF(OR('Tabel 1 H'!G225<5,'Tabel 2 H'!I227<0.5),"-",IFERROR('Tabel 2 H'!I227/'Tabel 1 H'!G225*100,"-")) -> 12.63157895 | J227: =IF(OR('Tabel 1 H'!G225<5,'Tabel 2 H'!J227<0.5),"-",IFERROR('Tabel 2 H'!J227/'Tabel 1 H'!G225*100,"-")) -> 10.45147016
A228: MA. Hum. | C228: =IF(OR('Tabel 1 H'!C226<5,'Tabel 2 H'!C228<0.5),"-",IFERROR('Tabel 2 H'!C228/'Tabel 1 H'!C226*100,"-")) -> 7.692307692 | D228: =IF(OR('Tabel 1 H'!C226<5,'Tabel 2 H'!D228<0.5),"-",IFERROR('Tabel 2 H'!D228/'Tabel 1 H'!C226*100,"-")) -> 6.625757452 | F228: =IF(OR('Tabel 1 H'!E226<5,'Tabel 2 H'!F228<0.5),"-",IFERROR('Tabel 2 H'!F228/'Tabel 1 H'!E226*100,"-")) -> 8.571428571 | G228: =IF(OR('Tabel 1 H'!E226<5,'Tabel 2 H'!G228<0.5),"-",IFERROR('Tabel 2 H'!G228/'Tabel 1 H'!E226*100,"-")) -> 7.107661876 | I228: =IF(OR('Tabel 1 H'!G226<5,'Tabel 2 H'!I228<0.5),"-",IFERROR('Tabel 2 H'!I228/'Tabel 1 H'!G226*100,"-")) -> 8.333333333 | J228: =IF(OR('Tabel 1 H'!G226<5,'Tabel 2 H'!J228<0.5),"-",IFERROR('Tabel 2 H'!J228/'Tabel 1 H'!G226*100,"-")) -> 6.977146095
A229: MA. Nat. | C229: =IF(OR('Tabel 1 H'!C227<5,'Tabel 2 H'!C229<0.5),"-",IFERROR('Tabel 2 H'!C229/'Tabel 1 H'!C227*100,"-")) -> - | D229: =IF(OR('Tabel 1 H'!C227<5,'Tabel 2 H'!D229<0.5),"-",IFERROR('Tabel 2 H'!D229/'Tabel 1 H'!C227*100,"-")) -> - | F229: =IF(OR('Tabel 1 H'!E227<5,'Tabel 2 H'!F229<0.5),"-",IFERROR('Tabel 2 H'!F229/'Tabel 1 H'!E227*100,"-")) -> - | G229: =IF(OR('Tabel 1 H'!E227<5,'Tabel 2 H'!G229<0.5),"-",IFERROR('Tabel 2 H'!G229/'Tabel 1 H'!E227*100,"-")) -> - | I229: =IF(OR('Tabel 1 H'!G227<5,'Tabel 2 H'!I229<0.5),"-",IFERROR('Tabel 2 H'!I229/'Tabel 1 H'!G227*100,"-")) -> - | J229: =IF(OR('Tabel 1 H'!G227<5,'Tabel 2 H'!J229<0.5),"-",IFERROR('Tabel 2 H'!J229/'Tabel 1 H'!G227*100,"-")) -> -
A230: MA. Ph.d. | C230: =IF(OR('Tabel 1 H'!C228<5,'Tabel 2 H'!C230<0.5),"-",IFERROR('Tabel 2 H'!C230/'Tabel 1 H'!C228*100,"-")) -> - | D230: =IF(OR('Tabel 1 H'!C228<5,'Tabel 2 H'!D230<0.5),"-",IFERROR('Tabel 2 H'!D230/'Tabel 1 H'!C228*100,"-")) -> - | F230: =IF(OR('Tabel 1 H'!E228<5,'Tabel 2 H'!F230<0.5),"-",IFERROR('Tabel 2 H'!F230/'Tabel 1 H'!E228*100,"-")) -> - | G230: =IF(OR('Tabel 1 H'!E228<5,'Tabel 2 H'!G230<0.5),"-",IFERROR('Tabel 2 H'!G230/'Tabel 1 H'!E228*100,"-")) -> - | I230: =IF(OR('Tabel 1 H'!G228<5,'Tabel 2 H'!I230<0.5),"-",IFERROR('Tabel 2 H'!I230/'Tabel 1 H'!G228*100,"-")) -> - | J230: =IF(OR('Tabel 1 H'!G228<5,'Tabel 2 H'!J230<0.5),"-",IFERROR('Tabel 2 H'!J230/'Tabel 1 H'!G228*100,"-")) -> -
A231: MA. Samf. | C231: =IF(OR('Tabel 1 H'!C229<5,'Tabel 2 H'!C231<0.5),"-",IFERROR('Tabel 2 H'!C231/'Tabel 1 H'!C229*100,"-")) -> - | D231: =IF(OR('Tabel 1 H'!C229<5,'Tabel 2 H'!D231<0.5),"-",IFERROR('Tabel 2 H'!D231/'Tabel 1 H'!C229*100,"-")) -> - | F231: =IF(OR('Tabel 1 H'!E229<5,'Tabel 2 H'!F231<0.5),"-",IFERROR('Tabel 2 H'!F231/'Tabel 1 H'!E229*100,"-")) -> 5.263157895 | G231: =IF(OR('Tabel 1 H'!E229<5,'Tabel 2 H'!G231<0.5),"-",IFERROR('Tabel 2 H'!G231/'Tabel 1 H'!E229*100,"-")) -> 5.019253054 | I231: =IF(OR('Tabel 1 H'!G229<5,'Tabel 2 H'!I231<0.5),"-",IFERROR('Tabel 2 H'!I231/'Tabel 1 H'!G229*100,"-")) -> 3.333333333 | J231: =IF(OR('Tabel 1 H'!G229<5,'Tabel 2 H'!J231<0.5),"-",IFERROR('Tabel 2 H'!J231/'Tabel 1 H'!G229*100,"-")) -> 3.178860267
A232: Øvrige Mag. | C232: =IF(OR('Tabel 1 H'!C230<5,'Tabel 2 H'!C232<0.5),"-",IFERROR('Tabel 2 H'!C232/'Tabel 1 H'!C230*100,"-")) -> 14.28571429 | D232: =IF(OR('Tabel 1 H'!C230<5,'Tabel 2 H'!D232<0.5),"-",IFERROR('Tabel 2 H'!D232/'Tabel 1 H'!C230*100,"-")) -> - | F232: =IF(OR('Tabel 1 H'!E230<5,'Tabel 2 H'!F232<0.5),"-",IFERROR('Tabel 2 H'!F232/'Tabel 1 H'!E230*100,"-")) -> - | G232: =IF(OR('Tabel 1 H'!E230<5,'Tabel 2 H'!G232<0.5),"-",IFERROR('Tabel 2 H'!G232/'Tabel 1 H'!E230*100,"-")) -> - | I232: =IF(OR('Tabel 1 H'!G230<5,'Tabel 2 H'!I232<0.5),"-",IFERROR('Tabel 2 H'!I232/'Tabel 1 H'!G230*100,"-")) -> 7.142857143 | J232: =IF(OR('Tabel 1 H'!G230<5,'Tabel 2 H'!J232<0.5),"-",IFERROR('Tabel 2 H'!J232/'Tabel 1 H'!G230*100,"-")) -> -
A233: Agronom | C233: =IF(OR('Tabel 1 H'!C231<5,'Tabel 2 H'!C233<0.5),"-",IFERROR('Tabel 2 H'!C233/'Tabel 1 H'!C231*100,"-")) -> - | D233: =IF(OR('Tabel 1 H'!C231<5,'Tabel 2 H'!D233<0.5),"-",IFERROR('Tabel 2 H'!D233/'Tabel 1 H'!C231*100,"-")) -> - | F233: =IF(OR('Tabel 1 H'!E231<5,'Tabel 2 H'!F233<0.5),"-",IFERROR('Tabel 2 H'!F233/'Tabel 1 H'!E231*100,"-")) -> - | G233: =IF(OR('Tabel 1 H'!E231<5,'Tabel 2 H'!G233<0.5),"-",IFERROR('Tabel 2 H'!G233/'Tabel 1 H'!E231*100,"-")) -> - | I233: =IF(OR('Tabel 1 H'!G231<5,'Tabel 2 H'!I233<0.5),"-",IFERROR('Tabel 2 H'!I233/'Tabel 1 H'!G231*100,"-")) -> - | J233: =IF(OR('Tabel 1 H'!G231<5,'Tabel 2 H'!J233<0.5),"-",IFERROR('Tabel 2 H'!J233/'Tabel 1 H'!G231*100,"-")) -> -
A234: Landsk. Arkt. | C234: =IF(OR('Tabel 1 H'!C232<5,'Tabel 2 H'!C234<0.5),"-",IFERROR('Tabel 2 H'!C234/'Tabel 1 H'!C232*100,"-")) -> - | D234: =IF(OR('Tabel 1 H'!C232<5,'Tabel 2 H'!D234<0.5),"-",IFERROR('Tabel 2 H'!D234/'Tabel 1 H'!C232*100,"-")) -> - | F234: =IF(OR('Tabel 1 H'!E232<5,'Tabel 2 H'!F234<0.5),"-",IFERROR('Tabel 2 H'!F234/'Tabel 1 H'!E232*100,"-")) -> - | G234: =IF(OR('Tabel 1 H'!E232<5,'Tabel 2 H'!G234<0.5),"-",IFERROR('Tabel 2 H'!G234/'Tabel 1 H'!E232*100,"-")) -> - | I234: =IF(OR('Tabel 1 H'!G232<5,'Tabel 2 H'!I234<0.5),"-",IFERROR('Tabel 2 H'!I234/'Tabel 1 H'!G232*100,"-")) -> - | J234: =IF(OR('Tabel 1 H'!G232<5,'Tabel 2 H'!J234<0.5),"-",IFERROR('Tabel 2 H'!J234/'Tabel 1 H'!G232*100,"-")) -> -
A235: Hortonom | C235: =IF(OR('Tabel 1 H'!C233<5,'Tabel 2 H'!C235<0.5),"-",IFERROR('Tabel 2 H'!C235/'Tabel 1 H'!C233*100,"-")) -> - | D235: =IF(OR('Tabel 1 H'!C233<5,'Tabel 2 H'!D235<0.5),"-",IFERROR('Tabel 2 H'!D235/'Tabel 1 H'!C233*100,"-")) -> - | F235: =IF(OR('Tabel 1 H'!E233<5,'Tabel 2 H'!F235<0.5),"-",IFERROR('Tabel 2 H'!F235/'Tabel 1 H'!E233*100,"-")) -> - | G235: =IF(OR('Tabel 1 H'!E233<5,'Tabel 2 H'!G235<0.5),"-",IFERROR('Tabel 2 H'!G235/'Tabel 1 H'!E233*100,"-")) -> - | I235: =IF(OR('Tabel 1 H'!G233<5,'Tabel 2 H'!I235<0.5),"-",IFERROR('Tabel 2 H'!I235/'Tabel 1 H'!G233*100,"-")) -> - | J235: =IF(OR('Tabel 1 H'!G233<5,'Tabel 2 H'!J235<0.5),"-",IFERROR('Tabel 2 H'!J235/'Tabel 1 H'!G233*100,"-")) -> -
A236: Forstkand. | C236: =IF(OR('Tabel 1 H'!C234<5,'Tabel 2 H'!C236<0.5),"-",IFERROR('Tabel 2 H'!C236/'Tabel 1 H'!C234*100,"-")) -> - | D236: =IF(OR('Tabel 1 H'!C234<5,'Tabel 2 H'!D236<0.5),"-",IFERROR('Tabel 2 H'!D236/'Tabel 1 H'!C234*100,"-")) -> - | F236: =IF(OR('Tabel 1 H'!E234<5,'Tabel 2 H'!F236<0.5),"-",IFERROR('Tabel 2 H'!F236/'Tabel 1 H'!E234*100,"-")) -> - | G236: =IF(OR('Tabel 1 H'!E234<5,'Tabel 2 H'!G236<0.5),"-",IFERROR('Tabel 2 H'!G236/'Tabel 1 H'!E234*100,"-")) -> - | I236: =IF(OR('Tabel 1 H'!G234<5,'Tabel 2 H'!I236<0.5),"-",IFERROR('Tabel 2 H'!I236/'Tabel 1 H'!G234*100,"-")) -> - | J236: =IF(OR('Tabel 1 H'!G234<5,'Tabel 2 H'!J236<0.5),"-",IFERROR('Tabel 2 H'!J236/'Tabel 1 H'!G234*100,"-")) -> -
A237: Jordbrugsakad. | C237: =IF(OR('Tabel 1 H'!C235<5,'Tabel 2 H'!C237<0.5),"-",IFERROR('Tabel 2 H'!C237/'Tabel 1 H'!C235*100,"-")) -> - | D237: =IF(OR('Tabel 1 H'!C235<5,'Tabel 2 H'!D237<0.5),"-",IFERROR('Tabel 2 H'!D237/'Tabel 1 H'!C235*100,"-")) -> - | F237: =IF(OR('Tabel 1 H'!E235<5,'Tabel 2 H'!F237<0.5),"-",IFERROR('Tabel 2 H'!F237/'Tabel 1 H'!E235*100,"-")) -> - | G237: =IF(OR('Tabel 1 H'!E235<5,'Tabel 2 H'!G237<0.5),"-",IFERROR('Tabel 2 H'!G237/'Tabel 1 H'!E235*100,"-")) -> - | I237: =IF(OR('Tabel 1 H'!G235<5,'Tabel 2 H'!I237<0.5),"-",IFERROR('Tabel 2 H'!I237/'Tabel 1 H'!G235*100,"-")) -> - | J237: =IF(OR('Tabel 1 H'!G235<5,'Tabel 2 H'!J237<0.5),"-",IFERROR('Tabel 2 H'!J237/'Tabel 1 H'!G235*100,"-")) -> -
A238: Mejeriing. | C238: =IF(OR('Tabel 1 H'!C236<5,'Tabel 2 H'!C238<0.5),"-",IFERROR('Tabel 2 H'!C238/'Tabel 1 H'!C236*100,"-")) -> - | D238: =IF(OR('Tabel 1 H'!C236<5,'Tabel 2 H'!D238<0.5),"-",IFERROR('Tabel 2 H'!D238/'Tabel 1 H'!C236*100,"-")) -> - | F238: =IF(OR('Tabel 1 H'!E236<5,'Tabel 2 H'!F238<0.5),"-",IFERROR('Tabel 2 H'!F238/'Tabel 1 H'!E236*100,"-")) -> - | G238: =IF(OR('Tabel 1 H'!E236<5,'Tabel 2 H'!G238<0.5),"-",IFERROR('Tabel 2 H'!G238/'Tabel 1 H'!E236*100,"-")) -> - | I238: =IF(OR('Tabel 1 H'!G236<5,'Tabel 2 H'!I238<0.5),"-",IFERROR('Tabel 2 H'!I238/'Tabel 1 H'!G236*100,"-")) -> - | J238: =IF(OR('Tabel 1 H'!G236<5,'Tabel 2 H'!J238<0.5),"-",IFERROR('Tabel 2 H'!J238/'Tabel 1 H'!G236*100,"-")) -> -
A239: Levn.m.kand. | C239: =IF(OR('Tabel 1 H'!C237<5,'Tabel 2 H'!C239<0.5),"-",IFERROR('Tabel 2 H'!C239/'Tabel 1 H'!C237*100,"-")) -> - | D239: =IF(OR('Tabel 1 H'!C237<5,'Tabel 2 H'!D239<0.5),"-",IFERROR('Tabel 2 H'!D239/'Tabel 1 H'!C237*100,"-")) -> - | F239: =IF(OR('Tabel 1 H'!E237<5,'Tabel 2 H'!F239<0.5),"-",IFERROR('Tabel 2 H'!F239/'Tabel 1 H'!E237*100,"-")) -> - | G239: =IF(OR('Tabel 1 H'!E237<5,'Tabel 2 H'!G239<0.5),"-",IFERROR('Tabel 2 H'!G239/'Tabel 1 H'!E237*100,"-")) -> - | I239: =IF(OR('Tabel 1 H'!G237<5,'Tabel 2 H'!I239<0.5),"-",IFERROR('Tabel 2 H'!I239/'Tabel 1 H'!G237*100,"-")) -> - | J239: =IF(OR('Tabel 1 H'!G237<5,'Tabel 2 H'!J239<0.5),"-",IFERROR('Tabel 2 H'!J239/'Tabel 1 H'!G237*100,"-")) -> -
A240: Dyrlæge | C240: =IF(OR('Tabel 1 H'!C238<5,'Tabel 2 H'!C240<0.5),"-",IFERROR('Tabel 2 H'!C240/'Tabel 1 H'!C238*100,"-")) -> - | D240: =IF(OR('Tabel 1 H'!C238<5,'Tabel 2 H'!D240<0.5),"-",IFERROR('Tabel 2 H'!D240/'Tabel 1 H'!C238*100,"-")) -> - | F240: =IF(OR('Tabel 1 H'!E238<5,'Tabel 2 H'!F240<0.5),"-",IFERROR('Tabel 2 H'!F240/'Tabel 1 H'!E238*100,"-")) -> - | G240: =IF(OR('Tabel 1 H'!E238<5,'Tabel 2 H'!G240<0.5),"-",IFERROR('Tabel 2 H'!G240/'Tabel 1 H'!E238*100,"-")) -> - | I240: =IF(OR('Tabel 1 H'!G238<5,'Tabel 2 H'!I240<0.5),"-",IFERROR('Tabel 2 H'!I240/'Tabel 1 H'!G238*100,"-")) -> - | J240: =IF(OR('Tabel 1 H'!G238<5,'Tabel 2 H'!J240<0.5),"-",IFERROR('Tabel 2 H'!J240/'Tabel 1 H'!G238*100,"-")) -> -
... 1106 more rows

Sheet Tabel 4F H
A1: Tabel 4. Antal forsikrede - aldersfordelt
A3: Hovedstaden
C5: Under 30 år | D5: 30 - 39 år | E5: 40 - 49 år | F5: 50 - 59 år | G5: Over 60 år | I5: I alt
A7: Civ. ing. | C7: 3172 | D7: 6092 | E7: 4198 | F7: 3837 | G7: 1483 | I7: 18782
A8: Diplom ing. | C8: 1161 | D8: 2156 | E8: 2680 | F8: 4519 | G8: 1916 | I8: 12432
A9: Cand. Scient. Tek. | C9: 2998 | D9: 6309 | E9: 1982 | F9: 738 | G9: 143 | I9: 12170
A10: MA. Hum. | C10: 2394 | D10: 7416 | E10: 6434 | F10: 3305 | G10: 1056 | I10: 20605
A11: MA. Nat. | C11: 543 | D11: 1543 | E11: 2190 | F11: 2075 | G11: 788 | I11: 7139
A12: MA. Ph.d. | C12: 15 | D12: 334 | E12: 480 | F12: 385 | G12: 109 | I12: 1323
A13: MA. Samf. | C13: 1028 | D13: 2019 | E13: 634 | F13: 316 | G13: 64 | I13: 4061
A14: Øvrige Mag. | C14: 364 | D14: 476 | E14: 479 | F14: 442 | G14: 135 | I14: 1896
A15: Agronom | C15: 130 | D15: 187 | E15: 175 | F15: 258 | G15: 117 | I15: 867
A16: Landsk. Arkt. | C16: 57 | D16: 189 | E16: 124 | F16: 93 | G16: 28 | I16: 491
A17: Hortonom | C17: 4 | D17: 13 | E17: 32 | F17: 65 | G17: 28 | I17: 142
A18: Forstkand. | C18: 18 | D18: 43 | E18: 83 | F18: 73 | G18: 34 | I18: 251
A19: Jordbrugsakad. | C19: 209 | D19: 432 | E19: 414 | F19: 489 | G19: 207 | I19: 1751
A20: Mejeriing. | C20: 31 | D20: 57 | E20: 21 | F20: 38 | G20: 13 | I20: 160
A21: Levn.m.kand. | C21: 61 | D21: 184 | E21: 78 | F21: 15 | G21: 2 | I21: 340
A22: Dyrlæge | C22: 154 | D22: 395 | E22: 218 | F22: 152 | G22: 83 | I22: 1002
A23: Farmaceut | C23: 683 | D23: 1349 | E23: 1035 | F23: 670 | G23: 253 | I23: 3990
A24: Læge | C24: 859 | D24: 2396 | E24: 1075 | F24: 678 | G24: 487 | I24: 5495
A25: Tandlæge | C25: 155 | D25: 298 | E25: 197 | F25: 131 | G25: 91 | I25: 872
A26: Arkitekt | C26: 264 | D26: 1085 | E26: 1156 | F26: 785 | G26: 402 | I26: 3692
A27: Landinspek. | C27: 16 | D27: 55 | E27: 42 | F27: 47 | G27: 30 | I27: 190
A28: Bibliotekar | C28: 53 | D28: 304 | E28: 522 | F28: 457 | G28: 251 | I28: 1587
A29: Musikudd. | C29: 9 | D29: 36 | E29: 57 | F29: 107 | G29: 79 | I29: 288
A30: Teolog | C30: 13 | D30: 104 | E30: 157 | F30: 185 | G30: 94 | I30: 553
A31: Psykolog | C31: 620 | D31: 1417 | E31: 934 | F31: 546 | G31: 259 | I31: 3776
A32: Jurist | C32: 1665 | D32: 3138 | E32: 2477 | F32: 2074 | G32: 615 | I32: 9969
A33: Økonom | C33: 976 | D33: 1786 | E33: 1234 | F33: 1423 | G33: 363 | I33: 5782
A34: Samf. Adm. | C34: 2629 | D34: 7027 | E34: 5055 | F34: 2564 | G34: 613 | I34: 17888
A35: Cand. Merc. | C35: 5202 | D35: 8668 | E35: 4426 | F35: 3164 | G35: 567 | I35: 22027
A36: HA | C36: 796 | D36: 647 | E36: 366 | F36: 678 | G36: 236 | I36: 2723
A37: HD | C37: 387 | D37: 749 | E37: 275 | F37: 680 | G37: 351 | I37: 2442
A38: Komm. og Sprog | C38: 468 | D38: 1120 | E38: 1063 | F38: 849 | G38: 357 | I38: 3857
A39: Bygningskonst. | C39: 433 | D39: 1169 | E39: 667 | F39: 391 | G39: 91 | I39: 2751
A40: Cand. IT. | C40: 773 | D40: 1468 | E40: 783 | F40: 125 | G40: 13 | I40: 3162
A41: Bac. Samf. | C41: 182 | D41: 229 | E41: 235 | F41: 158 | G41: 32 | I41: 836
A42: Bac. Hum. | C42: 785 | D42: 511 | E42: 354 | F42: 385 | G42: 139 | I42: 2174
A43: Bac. Nat. | C43: 789 | D43: 776 | E43: 281 | F43: 125 | G43: 34 | I43: 2005
A44: Andre | C44: 1673 | D44: 5517 | E44: 4099 | F44: 2271 | G44: 1006 | I44: 14566
A46: Total | C46: 31560 | D46: 67262 | E46: 46298 | F46: 34804 | G46: 12362 | I46: 192286
A48: Ingeniører i alt | C48: 4333 | D48: 8248 | E48: 6878 | F48: 8356 | G48: 3399 | I48: 31214
A49: Magistre i alt | C49: 4344 | D49: 11788 | E49: 10217 | F49: 6523 | G49: 2152 | I49: 35024
A50: DJØF'ere i alt | C50: 11268 | D50: 21266 | E50: 13558 | F50: 9903 | G50: 2394 | I50: 58389
A57: København
C59: Under 30 år | D59: 30 - 39 år | E59: 40 - 49 år | F59: 50 - 59 år | G59: Over 60 år | I59: I alt
A61: Civ. ing. | C61: 1752 | D61: 2637 | E61: 1050 | F61: 731 | G61: 248 | I61: 6418
A62: Diplom ing. | C62: 547 | D62: 822 | E62: 672 | F62: 878 | G62: 334 | I62: 3253
A63: Cand. Scient. Tek. | C63: 2086 | D63: 3459 | E63: 726 | F63: 208 | G63: 40 | I63: 6519
A64: MA. Hum. | C64: 1757 | D64: 5094 | E64: 3568 | F64: 1696 | G64: 476 | I64: 12591
A65: MA. Nat. | C65: 390 | D65: 878 | E65: 836 | F65: 679 | G65: 250 | I65: 3033
A66: MA. Ph.d. | C66: 13 | D66: 192 | E66: 254 | F66: 158 | G66: 53 | I66: 670
A67: MA. Samf. | C67: 812 | D67: 1421 | E67: 362 | F67: 165 | G67: 37 | I67: 2797
A68: Øvrige Mag. | C68: 275 | D68: 320 | E68: 250 | F68: 215 | G68: 67 | I68: 1127
A69: Agronom | C69: 87 | D69: 93 | E69: 50 | F69: 63 | G69: 33 | I69: 326
A70: Landsk. Arkt. | C70: 41 | D70: 120 | E70: 48 | F70: 34 | G70: 10 | I70: 253
A71: Hortonom | C71: 2 | D71: 8 | E71: 14 | F71: 15 | G71: 9 | I71: 48
A72: Forstkand. | C72: 13 | D72: 26 | E72: 21 | F72: 21 | G72: 6 | I72: 87
A73: Jordbrugsakad. | C73: 143 | D73: 247 | E73: 133 | F73: 133 | G73: 58 | I73: 714
A74: Mejeriing. | C74: 21 | D74: 32 | E74: 6 | F74: 11 | G74: 1 | I74: 71
A75: Levn.m.kand. | C75: 45 | D75: 94 | E75: 30 | F75: 3 | G75: 1 | I75: 173
A76: Dyrlæge | C76: 85 | D76: 131 | E76: 54 | F76: 38 | G76: 22 | I76: 330
A77: Farmaceut | C77: 421 | D77: 542 | E77: 217 | F77: 133 | G77: 40 | I77: 1353
A78: Læge | C78: 624 | D78: 1261 | E78: 403 | F78: 181 | G78: 113 | I78: 2582
A79: Tandlæge | C79: 85 | D79: 118 | E79: 53 | F79: 38 | G79: 22 | I79: 316
A80: Arkitekt | C80: 222 | D80: 792 | E80: 707 | F80: 406 | G80: 183 | I80: 2310
A81: Landinspek. | C81: 4 | D81: 25 | E81: 12 | F81: 7 | G81: 6 | I81: 54
A82: Bibliotekar | C82: 38 | D82: 177 | E82: 232 | F82: 185 | G82: 100 | I82: 732
A83: Musikudd. | C83: 7 | D83: 21 | E83: 32 | F83: 47 | G83: 31 | I83: 138
A84: Teolog | C84: 10 | D84: 57 | E84: 75 | F84: 72 | G84: 37 | I84: 251
A85: Psykolog | C85: 457 | D85: 858 | E85: 457 | F85: 249 | G85: 108 | I85: 2129
A86: Jurist | C86: 1191 | D86: 1675 | E86: 861 | F86: 636 | G86: 177 | I86: 4540
A87: Økonom | C87: 745 | D87: 1046 | E87: 439 | F87: 431 | G87: 102 | I87: 2763
A88: Samf. Adm. | C88: 1983 | D88: 4391 | E88: 2475 | F88: 1129 | G88: 264 | I88: 10242
A89: Cand. Merc. | C89: 3691 | D89: 4709 | E89: 1466 | F89: 815 | G89: 121 | I89: 10802
A90: HA | C90: 569 | D90: 369 | E90: 115 | F90: 174 | G90: 53 | I90: 1280
A91: HD | C91: 288 | D91: 469 | E91: 84 | F91: 138 | G91: 61 | I91: 1040
A92: Komm. og Sprog | C92: 363 | D92: 672 | E92: 447 | F92: 252 | G92: 86 | I92: 1820
A93: Bygningskonst. | C93: 262 | D93: 573 | E93: 243 | F93: 120 | G93: 29 | I93: 1227
A94: Cand. IT. | C94: 581 | D94: 924 | E94: 381 | F94: 64 | G94: 6 | I94: 1956
A95: Bac. Samf. | C95: 135 | D95: 132 | E95: 117 | F95: 82 | G95: 18 | I95: 484
A96: Bac. Hum. | C96: 600 | D96: 347 | E96: 189 | F96: 196 | G96: 76 | I96: 1408
A97: Bac. Nat. | C97: 545 | D97: 420 | E97: 113 | F97: 50 | G97: 8 | I97: 1136
A98: Andre | C98: 1176 | D98: 3331 | E98: 1925 | F98: 955 | G98: 379 | I98: 7766
A100: Total | C100: 21923 | D100: 38236 | E100: 18984 | F100: 11275 | G100: 3607 | I100: 94025
A102: Ingeniører i alt | C102: 2299 | D102: 3459 | E102: 1722 | F102: 1609 | G102: 582 | I102: 9671
A103: Magistre i alt | C103: 3247 | D103: 7905 | E103: 5270 | F103: 2913 | G103: 883 | I103: 20218
A104: DJØF'ere i alt | C104: 8179 | D104: 12190 | E104: 5356 | F104: 3185 | G104: 717 | I104: 29627
A111: Frederiksberg
C113: Under 30 år | D113: 30 - 39 år | E113: 40 - 49 år | F113: 50 - 59 år | G113: Over 60 år | I113: I alt
A115: Civ. ing. | C115: 229 | D115: 421 | E115: 230 | F115: 193 | G115: 79 | I115: 1152
A116: Diplom ing. | C116: 60 | D116: 102 | E116: 107 | F116: 198 | G116: 83 | I116: 550
A117: Cand. Scient. Tek. | C117: 212 | D117: 470 | E117: 139 | F117: 36 | G117: 7 | I117: 864
A118: MA. Hum. | C118: 216 | D118: 546 | E118: 601 | F118: 349 | G118: 102 | I118: 1814
A119: MA. Nat. | C119: 44 | D119: 100 | E119: 140 | F119: 152 | G119: 51 | I119: 487
A120: MA. Ph.d. | C120: 1 | D120: 31 | E120: 40 | F120: 44 | G120: 9 | I120: 125
A121: MA. Samf. | C121: 86 | D121: 181 | E121: 61 | F121: 36 | G121: 4 | I121: 368
A122: Øvrige Mag. | C122: 36 | D122: 39 | E122: 39 | F122: 33 | G122: 12 | I122: 159
A123: Agronom | C123: 14 | D123: 18 | E123: 16 | F123: 23 | G123: 10 | I123: 81
A124: Landsk. Arkt. | C124: 7 | D124: 14 | E124: 8 | F124: 7 | G124: 3 | I124: 39
A125: Hortonom | C125: 1 | D125: 0 | E125: 4 | F125: 2 | G125: 2 | I125: 9
A126: Forstkand. | C126: 1 | D126: 2 | E126: 4 | F126: 2 | G126: 1 | I126: 10
A127: Jordbrugsakad. | C127: 23 | D127: 34 | E127: 32 | F127: 34 | G127: 16 | I127: 139
A128: Mejeriing. | C128: 3 | D128: 3 | E128: 2 | F128: 1 | G128: 1 | I128: 10
A129: Levn.m.kand. | C129: 7 | D129: 11 | E129: 5 | F129: 1 | G129: 0 | I129: 24
A130: Dyrlæge | C130: 17 | D130: 26 | E130: 8 | F130: 10 | G130: 10 | I130: 71
A131: Farmaceut | C131: 48 | D131: 74 | E131: 45 | F131: 34 | G131: 21 | I131: 222
A132: Læge | C132: 90 | D132: 208 | E132: 80 | F132: 71 | G132: 46 | I132: 495
A133: Tandlæge | C133: 15 | D133: 27 | E133: 10 | F133: 5 | G133: 8 | I133: 65
A134: Arkitekt | C134: 31 | D134: 128 | E134: 131 | F134: 96 | G134: 39 | I134: 425
A135: Landinspek. | C135: 3 | D135: 9 | E135: 3 | F135: 1 | G135: 0 | I135: 16
A136: Bibliotekar | C136: 4 | D136: 17 | E136: 51 | F136: 30 | G136: 19 | I136: 121
A137: Musikudd. | C137: 0 | D137: 2 | E137: 3 | F137: 10 | G137: 6 | I137: 21
A138: Teolog | C138: 0 | D138: 5 | E138: 14 | F138: 16 | G138: 5 | I138: 40
A139: Psykolog | C139: 50 | D139: 134 | E139: 75 | F139: 33 | G139: 33 | I139: 325
A140: Jurist | C140: 220 | D140: 316 | E140: 222 | F140: 213 | G140: 80 | I140: 1051
A141: Økonom | C141: 119 | D141: 194 | E141: 99 | F141: 138 | G141: 35 | I141: 585
A142: Samf. Adm. | C142: 298 | D142: 640 | E142: 480 | F142: 261 | G142: 56 | I142: 1735
A143: Cand. Merc. | C143: 804 | D143: 984 | E143: 375 | F143: 242 | G143: 62 | I143: 2467
A144: HA | C144: 109 | D144: 61 | E144: 20 | F144: 40 | G144: 22 | I144: 252
A145: HD | C145: 41 | D145: 64 | E145: 21 | F145: 41 | G145: 25 | I145: 192
A146: Komm. og Sprog | C146: 43 | D146: 131 | E146: 90 | F146: 71 | G146: 20 | I146: 355
A147: Bygningskonst. | C147: 20 | D147: 64 | E147: 49 | F147: 23 | G147: 4 | I147: 160
A148: Cand. IT. | C148: 65 | D148: 108 | E148: 65 | F148: 8 | G148: 3 | I148: 249
A149: Bac. Samf. | C149: 18 | D149: 17 | E149: 22 | F149: 11 | G149: 3 | I149: 71
A150: Bac. Hum. | C150: 63 | D150: 34 | E150: 30 | F150: 47 | G150: 12 | I150: 186
A151: Bac. Nat. | C151: 52 | D151: 52 | E151: 14 | F151: 6 | G151: 1 | I151: 125
A152: Andre | C152: 148 | D152: 441 | E152: 331 | F152: 212 | G152: 106 | I152: 1238
A154: Total | C154: 3175 | D154: 5674 | E154: 3634 | F154: 2696 | G154: 980 | I154: 16159
A156: Ingeniører i alt | C156: 289 | D156: 523 | E156: 337 | F156: 391 | G156: 162 | I156: 1702
A157: Magistre i alt | C157: 383 | D157: 897 | E157: 881 | F157: 614 | G157: 178 | I157: 2953
A158: DJØF'ere i alt | C158: 1550 | D158: 2195 | E158: 1196 | F158: 894 | G158: 255 | I158: 6090
A165: Ballerup
C167: Under 30 år | D167: 30 - 39 år | E167: 40 - 49 år | F167: 50 - 59 år | G167: Over 60 år | I167: I alt
A169: Civ. ing. | C169: 39 | D169: 177 | E169: 160 | F169: 158 | G169: 39 | I169: 573
A170: Diplom ing. | C170: 34 | D170: 87 | E170: 101 | F170: 201 | G170: 76 | I170: 499
A171: Cand. Scient. Tek. | C171: 40 | D171: 130 | E171: 45 | F171: 15 | G171: 5 | I171: 235
A172: MA. Hum. | C172: 15 | D172: 70 | E172: 81 | F172: 45 | G172: 15 | I172: 226
A173: MA. Nat. | C173: 6 | D173: 30 | E173: 65 | F173: 51 | G173: 24 | I173: 176
A174: MA. Ph.d. | C174: 0 | D174: 6 | E174: 6 | F174: 11 | G174: 1 | I174: 24
A175: MA. Samf. | C175: 4 | D175: 22 | E175: 5 | F175: 6 | G175: 0 | I175: 37
A176: Øvrige Mag. | C176: 0 | D176: 4 | E176: 12 | F176: 8 | G176: 1 | I176: 25
A177: Agronom | C177: 3 | D177: 4 | E177: 1 | F177: 5 | G177: 8 | I177: 21
A178: Landsk. Arkt. | C178: 0 | D178: 5 | E178: 5 | F178: 1 | G178: 0 | I178: 11
A179: Hortonom | C179: 0 | D179: 0 | E179: 1 | F179: 2 | G179: 0 | I179: 3
A180: Forstkand. | C180: 0 | D180: 0 | E180: 3 | F180: 1 | G180: 0 | I180: 4
A181: Jordbrugsakad. | C181: 3 | D181: 9 | E181: 10 | F181: 9 | G181: 8 | I181: 39
A182: Mejeriing. | C182: 1 | D182: 0 | E182: 2 | F182: 1 | G182: 0 | I182: 4
A183: Levn.m.kand. | C183: 0 | D183: 1 | E183: 2 | F183: 0 | G183: 0 | I183: 3
A184: Dyrlæge | C184: 3 | D184: 15 | E184: 5 | F184: 6 | G184: 1 | I184: 30
A185: Farmaceut | C185: 8 | D185: 40 | E185: 52 | F185: 25 | G185: 4 | I185: 129
A186: Læge | C186: 2 | D186: 39 | E186: 22 | F186: 14 | G186: 7 | I186: 84
A187: Tandlæge | C187: 3 | D187: 3 | E187: 3 | F187: 6 | G187: 1 | I187: 16
A188: Arkitekt | C188: 1 | D188: 6 | E188: 5 | F188: 11 | G188: 0 | I188: 23
A189: Landinspek. | C189: 1 | D189: 3 | E189: 1 | F189: 2 | G189: 1 | I189: 8
A190: Bibliotekar | C190: 2 | D190: 7 | E190: 14 | F190: 10 | G190: 7 | I190: 40
A191: Musikudd. | C191: 0 | D191: 0 | E191: 4 | F191: 2 | G191: 1 | I191: 7
A192: Teolog | C192: 0 | D192: 1 | E192: 3 | F192: 3 | G192: 2 | I192: 9
A193: Psykolog | C193: 7 | D193: 16 | E193: 13 | F193: 13 | G193: 2 | I193: 51
A194: Jurist | C194: 12 | D194: 37 | E194: 38 | F194: 25 | G194: 3 | I194: 115
A195: Økonom | C195: 4 | D195: 18 | E195: 28 | F195: 21 | G195: 6 | I195: 77
A196: Samf. Adm. | C196: 23 | D196: 78 | E196: 63 | F196: 44 | G196: 9 | I196: 217
A197: Cand. Merc. | C197: 31 | D197: 96 | E197: 88 | F197: 57 | G197: 7 | I197: 279
A198: HA | C198: 5 | D198: 5 | E198: 7 | F198: 15 | G198: 4 | I198: 36
A199: HD | C199: 1 | D199: 7 | E199: 8 | F199: 9 | G199: 9 | I199: 34
A200: Komm. og Sprog | C200: 1 | D200: 14 | E200: 23 | F200: 18 | G200: 11 | I200: 67
A201: Bygningskonst. | C201: 7 | D201: 24 | E201: 15 | F201: 10 | G201: 4 | I201: 60
A202: Cand. IT. | C202: 4 | D202: 17 | E202: 16 | F202: 2 | G202: 0 | I202: 39
A203: Bac. Samf. | C203: 0 | D203: 1 | E203: 4 | F203: 4 | G203: 0 | I203: 9
A204: Bac. Hum. | C204: 8 | D204: 5 | E204: 4 | F204: 5 | G204: 0 | I204: 22
A205: Bac. Nat. | C205: 13 | D205: 17 | E205: 10 | F205: 3 | G205: 0 | I205: 43
A206: Andre | C206: 14 | D206: 68 | E206: 60 | F206: 39 | G206: 21 | I206: 202
A208: Total | C208: 292 | D208: 1053 | E208: 975 | F208: 849 | G208: 269 | I208: 3438
A210: Ingeniører i alt | C210: 73 | D210: 264 | E210: 261 | F210: 359 | G210: 115 | I210: 1072
A211: Magistre i alt | C211: 25 | D211: 132 | E211: 169 | F211: 121 | G211: 41 | I211: 488
A212: DJØF'ere i alt | C212: 75 | D212: 234 | E212: 224 | F212: 162 | G212: 29 | I212: 724
A219: Brøndby
C221: Under 30 år | D221: 30 - 39 år | E221: 40 - 49 år | F221: 50 - 59 år | G221: Over 60 år | I221: I alt
A223: Civ. ing. | C223: 17 | D223: 35 | E223: 29 | F223: 33 | G223: 14 | I223: 128
A224: Diplom ing. | C224: 28 | D224: 28 | E224: 46 | F224: 48 | G224: 19 | I224: 169
A225: Cand. Scient. Tek. | C225: 30 | D225: 45 | E225: 14 | F225: 6 | G225: 0 | I225: 95
A226: MA. Hum. | C226: 14 | D226: 44 | E226: 19 | F226: 17 | G226: 2 | I226: 96
A227: MA. Nat. | C227: 2 | D227: 14 | E227: 18 | F227: 15 | G227: 5 | I227: 54
A228: MA. Ph.d. | C228: 0 | D228: 4 | E228: 1 | F228: 1 | G228: 0 | I228: 6
A229: MA. Samf. | C229: 11 | D229: 15 | E229: 4 | F229: 0 | G229: 0 | I229: 30
A230: Øvrige Mag. | C230: 4 | D230: 5 | E230: 4 | F230: 0 | G230: 1 | I230: 14
A231: Agronom | C231: 4 | D231: 3 | E231: 1 | F231: 1 | G231: 1 | I231: 10
A232: Landsk. Arkt. | C232: 0 | D232: 0 | E232: 3 | F232: 1 | G232: 0 | I232: 4
A233: Hortonom | C233: 0 | D233: 0 | E233: 0 | F233: 1 | G233: 1 | I233: 2
A234: Forstkand. | C234: 0 | D234: 0 | E234: 0 | F234: 0 | G234: 0 | I234: 0
A235: Jordbrugsakad. | C235: 4 | D235: 3 | E235: 4 | F235: 3 | G235: 2 | I235: 16
A236: Mejeriing. | C236: 0 | D236: 0 | E236: 0 | F236: 0 | G236: 0 | I236: 0
A237: Levn.m.kand. | C237: 0 | D237: 1 | E237: 0 | F237: 0 | G237: 0 | I237: 1
A238: Dyrlæge | C238: 1 | D238: 3 | E238: 2 | F238: 0 | G238: 1 | I238: 7
A239: Farmaceut | C239: 13 | D239: 20 | E239: 12 | F239: 4 | G239: 1 | I239: 50
A240: Læge | C240: 9 | D240: 14 | E240: 3 | F240: 7 | G240: 5 | I240: 38
A241: Tandlæge | C241: 7 | D241: 4 | E241: 0 | F241: 0 | G241: 2 | I241: 13
A242: Arkitekt | C242: 0 | D242: 1 | E242: 1 | F242: 1 | G242: 1 | I242: 4
A243: Landinspek. | C243: 0 | D243: 1 | E243: 0 | F243: 0 | G243: 0 | I243: 1
... 1077 more rows

Sheet Tabel 4 H
A1: Tabel 4. Ledighedsberørte - aldersfordelt
A3: Hovedstaden
C5: Under 30 år | D5: 30 - 39 år | E5: 40 - 49 år | F5: 50 - 59 år | G5: Over 60 år | I5: I alt
A7: Civ. ing. | C7: 241 | D7: 102 | E7: 37 | F7: 41 | G7: 29 | I7: 450
A8: Diplom ing. | C8: 63 | D8: 56 | E8: 34 | F8: 49 | G8: 40 | I8: 242
A9: Cand. Scient. Tek | C9: 344 | D9: 262 | E9: 47 | F9: 14 | G9: 4 | I9: 671
A10: MA. Hum. | C10: 415 | D10: 549 | E10: 219 | F10: 109 | G10: 37 | I10: 1329
A11: MA. Nat. | C11: 68 | D11: 64 | E11: 22 | F11: 22 | G11: 16 | I11: 192
A12: MA. Ph.d. | C12: 0 | D12: 12 | E12: 10 | F12: 6 | G12: 9 | I12: 37
A13: MA. Samf. | C13: 140 | D13: 125 | E13: 37 | F13: 14 | G13: 3 | I13: 319
A14: Øvrige Mag. | C14: 67 | D14: 53 | E14: 20 | F14: 20 | G14: 6 | I14: 166
A15: Agronom | C15: 10 | D15: 10 | E15: 5 | F15: 2 | G15: 6 | I15: 33
A16: Landsk. Arkt. | C16: 12 | D16: 13 | E16: 5 | F16: 1 | G16: 1 | I16: 32
A17: Hortonom | C17: 1 | D17: 2 | E17: 0 | F17: 0 | G17: 0 | I17: 3
A18: Forstkand. | C18: 1 | D18: 2 | E18: 0 | F18: 0 | G18: 0 | I18: 3
A19: Jordbrugsakad. | C19: 24 | D19: 27 | E19: 10 | F19: 3 | G19: 7 | I19: 71
A20: Mejeriing. | C20: 4 | D20: 4 | E20: 0 | F20: 0 | G20: 0 | I20: 8
A21: Levn.m.kand. | C21: 6 | D21: 10 | E21: 0 | F21: 0 | G21: 0 | I21: 16
A22: Dyrlæge | C22: 9 | D22: 6 | E22: 8 | F22: 0 | G22: 1 | I22: 24
A23: Farmaceut | C23: 62 | D23: 19 | E23: 4 | F23: 6 | G23: 6 | I23: 97
A24: Læge | C24: 57 | D24: 49 | E24: 9 | F24: 5 | G24: 2 | I24: 122
A25: Tandlæge | C25: 9 | D25: 3 | E25: 5 | F25: 2 | G25: 2 | I25: 21
A26: Arkitekt | C26: 64 | D26: 60 | E26: 31 | F26: 22 | G26: 15 | I26: 192
A27: Landinspek. | C27: 0 | D27: 1 | E27: 0 | F27: 0 | G27: 0 | I27: 1
A28: Bibliotekar | C28: 8 | D28: 18 | E28: 15 | F28: 10 | G28: 6 | I28: 57
A29: Musikudd. | C29: 0 | D29: 2 | E29: 0 | F29: 1 | G29: 4 | I29: 7
A30: Teolog | C30: 2 | D30: 12 | E30: 4 | F30: 7 | G30: 4 | I30: 29
A31: Psykolog | C31: 39 | D31: 52 | E31: 14 | F31: 8 | G31: 7 | I31: 120
A32: Jurist | C32: 24 | D32: 47 | E32: 28 | F32: 20 | G32: 12 | I32: 131
A33: Økonom | C33: 36 | D33: 24 | E33: 14 | F33: 17 | G33: 12 | I33: 103
A34: Samf. Adm. | C34: 211 | D34: 229 | E34: 110 | F34: 61 | G34: 21 | I34: 632
A35: Cand. Merc. | C35: 250 | D35: 217 | E35: 85 | F35: 70 | G35: 36 | I35: 658
A36: HA | C36: 58 | D36: 23 | E36: 12 | F36: 16 | G36: 17 | I36: 126
A37: HD | C37: 24 | D37: 34 | E37: 4 | F37: 12 | G37: 19 | I37: 93
A38: Komm. og Sprog | C38: 50 | D38: 59 | E38: 37 | F38: 27 | G38: 15 | I38: 188
A39: Bygningskonst. | C39: 43 | D39: 33 | E39: 13 | F39: 8 | G39: 2 | I39: 99
A40: Cand. IT. | C40: 53 | D40: 59 | E40: 23 | F40: 1 | G40: 1 | I40: 137
A41: Bac. Samf. | C41: 24 | D41: 12 | E41: 8 | F41: 5 | G41: 1 | I41: 50
A42: Bac. Hum. | C42: 132 | D42: 48 | E42: 22 | F42: 13 | G42: 7 | I42: 222
A43: Bac. Nat. | C43: 133 | D43: 35 | E43: 10 | F43: 4 | G43: 1 | I43: 183
A44: Andre | C44: 214 | D44: 305 | E44: 175 | F44: 115 | G44: 72 | I44: 881
A46: Total | C46: 2874 | D46: 2611 | E46: 1067 | F46: 708 | G46: 414 | I46: 7674
A48: Ingeniører i alt | C48: 304 | D48: 158 | E48: 71 | F48: 90 | G48: 69 | I48: 692
A49: Magistre i alt | C49: 690 | D49: 803 | E49: 308 | F49: 171 | G49: 71 | I49: 2043
A50: DJØF'ere i alt | C50: 579 | D50: 540 | E50: 249 | F50: 184 | G50: 98 | I50: 1650
A57: København
C59: Under 30 år | D59: 30 - 39 år | E59: 40 - 49 år | F59: 50 - 59 år | G59: Over 60 år | I59: I alt
A61: Civ. ing. | C61: 123 | D61: 64 | E61: 15 | F61: 16 | G61: 4 | I61: 222
A62: Diplom ing. | C62: 33 | D62: 27 | E62: 18 | F62: 6 | G62: 9 | I62: 93
A63: Cand. Scient. Tek | C63: 253 | D63: 178 | E63: 28 | F63: 8 | G63: 1 | I63: 468
A64: MA. Hum. | C64: 312 | D64: 405 | E64: 132 | F64: 66 | G64: 22 | I64: 937
A65: MA. Nat. | C65: 55 | D65: 41 | E65: 12 | F65: 13 | G65: 8 | I65: 129
A66: MA. Ph.d. | C66: 0 | D66: 9 | E66: 7 | F66: 4 | G66: 6 | I66: 26
A67: MA. Samf. | C67: 111 | D67: 92 | E67: 22 | F67: 10 | G67: 1 | I67: 236
A68: Øvrige Mag. | C68: 45 | D68: 36 | E68: 14 | F68: 12 | G68: 3 | I68: 110
A69: Agronom | C69: 6 | D69: 7 | E69: 3 | F69: 0 | G69: 1 | I69: 17
A70: Landsk. Arkt. | C70: 9 | D70: 11 | E70: 4 | F70: 1 | G70: 0 | I70: 25
A71: Hortonom | C71: 1 | D71: 1 | E71: 0 | F71: 0 | G71: 0 | I71: 2
A72: Forstkand. | C72: 1 | D72: 1 | E72: 0 | F72: 0 | G72: 0 | I72: 2
A73: Jordbrugsakad. | C73: 17 | D73: 20 | E73: 7 | F73: 1 | G73: 1 | I73: 46
A74: Mejeriing. | C74: 3 | D74: 4 | E74: 0 | F74: 0 | G74: 0 | I74: 7
A75: Levn.m.kand. | C75: 6 | D75: 9 | E75: 0 | F75: 0 | G75: 0 | I75: 15
A76: Dyrlæge | C76: 6 | D76: 4 | E76: 4 | F76: 0 | G76: 1 | I76: 15
A77: Farmaceut | C77: 40 | D77: 8 | E77: 2 | F77: 3 | G77: 0 | I77: 53
A78: Læge | C78: 46 | D78: 28 | E78: 5 | F78: 1 | G78: 0 | I78: 80
A79: Tandlæge | C79: 2 | D79: 2 | E79: 1 | F79: 1 | G79: 0 | I79: 6
A80: Arkitekt | C80: 56 | D80: 48 | E80: 15 | F80: 12 | G80: 5 | I80: 136
A81: Landinspek. | C81: 0 | D81: 0 | E81: 0 | F81: 0 | G81: 0 | I81: 0
A82: Bibliotekar | C82: 4 | D82: 9 | E82: 9 | F82: 3 | G82: 2 | I82: 27
A83: Musikudd. | C83: 0 | D83: 2 | E83: 0 | F83: 0 | G83: 1 | I83: 3
A84: Teolog | C84: 2 | D84: 10 | E84: 2 | F84: 4 | G84: 3 | I84: 21
A85: Psykolog | C85: 29 | D85: 36 | E85: 7 | F85: 3 | G85: 6 | I85: 81
A86: Jurist | C86: 16 | D86: 30 | E86: 14 | F86: 7 | G86: 4 | I86: 71
A87: Økonom | C87: 27 | D87: 17 | E87: 6 | F87: 5 | G87: 5 | I87: 60
A88: Samf. Adm. | C88: 161 | D88: 158 | E88: 53 | F88: 37 | G88: 8 | I88: 417
A89: Cand. Merc. | C89: 172 | D89: 138 | E89: 37 | F89: 21 | G89: 9 | I89: 377
A90: HA | C90: 40 | D90: 14 | E90: 6 | F90: 6 | G90: 3 | I90: 69
A91: HD | C91: 18 | D91: 25 | E91: 1 | F91: 4 | G91: 5 | I91: 53
A92: Komm. og Sprog | C92: 40 | D92: 39 | E92: 25 | F92: 12 | G92: 2 | I92: 118
A93: Bygningskonst. | C93: 19 | D93: 22 | E93: 8 | F93: 4 | G93: 1 | I93: 54
A94: Cand. IT. | C94: 40 | D94: 39 | E94: 12 | F94: 0 | G94: 1 | I94: 92
A95: Bac. Samf. | C95: 17 | D95: 8 | E95: 3 | F95: 1 | G95: 0 | I95: 29
A96: Bac. Hum. | C96: 103 | D96: 36 | E96: 16 | F96: 8 | G96: 3 | I96: 166
A97: Bac. Nat. | C97: 103 | D97: 22 | E97: 4 | F97: 1 | G97: 1 | I97: 131
A98: Andre | C98: 165 | D98: 223 | E98: 90 | F98: 58 | G98: 35 | I98: 571
A100: Total | C100: 2064 | D100: 1803 | E100: 575 | F100: 327 | G100: 150 | I100: 4919
A102: Ingeniører i alt | C102: 156 | D102: 91 | E102: 33 | F102: 22 | G102: 13 | I102: 315
A103: Magistre i alt | C103: 523 | D103: 583 | E103: 187 | F103: 105 | G103: 40 | I103: 1438
A104: DJØF'ere i alt | C104: 416 | D104: 357 | E104: 116 | F104: 76 | G104: 29 | I104: 994
A111: Frederiksberg
C113: Under 30 år | D113: 30 - 39 år | E113: 40 - 49 år | F113: 50 - 59 år | G113: Over 60 år | I113: I alt
A115: Civ. ing. | C115: 14 | D115: 11 | E115: 4 | F115: 4 | G115: 2 | I115: 35
A116: Diplom ing. | C116: 3 | D116: 4 | E116: 2 | F116: 6 | G116: 4 | I116: 19
A117: Cand. Scient. Tek | C117: 16 | D117: 15 | E117: 3 | F117: 0 | G117: 0 | I117: 34
A118: MA. Hum. | C118: 37 | D118: 39 | E118: 18 | F118: 15 | G118: 3 | I118: 112
A119: MA. Nat. | C119: 4 | D119: 6 | E119: 2 | F119: 0 | G119: 0 | I119: 12
A120: MA. Ph.d. | C120: 0 | D120: 0 | E120: 0 | F120: 2 | G120: 0 | I120: 2
A121: MA. Samf. | C121: 13 | D121: 14 | E121: 5 | F121: 1 | G121: 1 | I121: 34
A122: Øvrige Mag. | C122: 10 | D122: 5 | E122: 2 | F122: 2 | G122: 1 | I122: 20
A123: Agronom | C123: 0 | D123: 0 | E123: 1 | F123: 0 | G123: 0 | I123: 1
A124: Landsk. Arkt. | C124: 1 | D124: 0 | E124: 0 | F124: 0 | G124: 0 | I124: 1
A125: Hortonom | C125: 0 | D125: 0 | E125: 0 | F125: 0 | G125: 0 | I125: 0
A126: Forstkand. | C126: 0 | D126: 0 | E126: 0 | F126: 0 | G126: 0 | I126: 0
A127: Jordbrugsakad. | C127: 1 | D127: 0 | E127: 1 | F127: 0 | G127: 0 | I127: 2
A128: Mejeriing. | C128: 1 | D128: 0 | E128: 0 | F128: 0 | G128: 0 | I128: 1
A129: Levn.m.kand. | C129: 0 | D129: 1 | E129: 0 | F129: 0 | G129: 0 | I129: 1
A130: Dyrlæge | C130: 1 | D130: 0 | E130: 0 | F130: 0 | G130: 0 | I130: 1
A131: Farmaceut | C131: 5 | D131: 2 | E131: 0 | F131: 0 | G131: 1 | I131: 8
A132: Læge | C132: 6 | D132: 9 | E132: 0 | F132: 0 | G132: 0 | I132: 15
A133: Tandlæge | C133: 1 | D133: 0 | E133: 0 | F133: 0 | G133: 1 | I133: 2
A134: Arkitekt | C134: 6 | D134: 7 | E134: 9 | F134: 4 | G134: 0 | I134: 26
A135: Landinspek. | C135: 0 | D135: 1 | E135: 0 | F135: 0 | G135: 0 | I135: 1
A136: Bibliotekar | C136: 1 | D136: 2 | E136: 2 | F136: 1 | G136: 1 | I136: 7
A137: Musikudd. | C137: 0 | D137: 0 | E137: 0 | F137: 0 | G137: 1 | I137: 1
A138: Teolog | C138: 0 | D138: 0 | E138: 2 | F138: 2 | G138: 0 | I138: 4
A139: Psykolog | C139: 3 | D139: 3 | E139: 1 | F139: 1 | G139: 0 | I139: 8
A140: Jurist | C140: 4 | D140: 4 | E140: 1 | F140: 1 | G140: 6 | I140: 16
A141: Økonom | C141: 3 | D141: 3 | E141: 2 | F141: 0 | G141: 2 | I141: 10
A142: Samf. Adm. | C142: 17 | D142: 20 | E142: 10 | F142: 9 | G142: 1 | I142: 57
A143: Cand. Merc. | C143: 41 | D143: 17 | E143: 11 | F143: 6 | G143: 4 | I143: 79
A144: HA | C144: 5 | D144: 0 | E144: 0 | F144: 2 | G144: 0 | I144: 7
A145: HD | C145: 4 | D145: 2 | E145: 1 | F145: 1 | G145: 2 | I145: 10
A146: Komm. og Sprog | C146: 2 | D146: 10 | E146: 5 | F146: 3 | G146: 1 | I146: 21
A147: Bygningskonst. | C147: 3 | D147: 0 | E147: 0 | F147: 0 | G147: 0 | I147: 3
A148: Cand. IT. | C148: 6 | D148: 6 | E148: 5 | F148: 0 | G148: 0 | I148: 17
A149: Bac. Samf. | C149: 4 | D149: 1 | E149: 2 | F149: 3 | G149: 0 | I149: 10
A150: Bac. Hum. | C150: 13 | D150: 2 | E150: 1 | F150: 1 | G150: 0 | I150: 17
A151: Bac. Nat. | C151: 9 | D151: 1 | E151: 3 | F151: 1 | G151: 0 | I151: 14
A152: Andre | C152: 16 | D152: 25 | E152: 18 | F152: 16 | G152: 6 | I152: 81
A154: Total | C154: 249 | D154: 210 | E154: 110 | F154: 81 | G154: 37 | I154: 687
A156: Ingeniører i alt | C156: 17 | D156: 15 | E156: 6 | F156: 10 | G156: 6 | I156: 54
A157: Magistre i alt | C157: 64 | D157: 64 | E157: 27 | F157: 20 | G157: 5 | I157: 180
A158: DJØF'ere i alt | C158: 70 | D158: 44 | E158: 24 | F158: 18 | G158: 13 | I158: 169
A165: Ballerup
C167: Under 30 år | D167: 30 - 39 år | E167: 40 - 49 år | F167: 50 - 59 år | G167: Over 60 år | I167: I alt
A169: Civ. ing. | C169: 2 | D169: 0 | E169: 0 | F169: 1 | G169: 1 | I169: 4
A170: Diplom ing. | C170: 4 | D170: 1 | E170: 1 | F170: 3 | G170: 4 | I170: 13
A171: Cand. Scient. Tek | C171: 7 | D171: 2 | E171: 1 | F171: 0 | G171: 0 | I171: 10
A172: MA. Hum. | C172: 2 | D172: 2 | E172: 4 | F172: 1 | G172: 0 | I172: 9
A173: MA. Nat. | C173: 0 | D173: 1 | E173: 2 | F173: 0 | G173: 1 | I173: 4
A174: MA. Ph.d. | C174: 0 | D174: 1 | E174: 0 | F174: 0 | G174: 0 | I174: 1
A175: MA. Samf. | C175: 0 | D175: 2 | E175: 0 | F175: 0 | G175: 0 | I175: 2
A176: Øvrige Mag. | C176: 0 | D176: 1 | E176: 0 | F176: 0 | G176: 0 | I176: 1
A177: Agronom | C177: 1 | D177: 0 | E177: 0 | F177: 0 | G177: 1 | I177: 2
A178: Landsk. Arkt. | C178: 0 | D178: 0 | E178: 0 | F178: 0 | G178: 0 | I178: 0
A179: Hortonom | C179: 0 | D179: 0 | E179: 0 | F179: 0 | G179: 0 | I179: 0
A180: Forstkand. | C180: 0 | D180: 0 | E180: 0 | F180: 0 | G180: 0 | I180: 0
A181: Jordbrugsakad. | C181: 1 | D181: 0 | E181: 0 | F181: 0 | G181: 1 | I181: 2
A182: Mejeriing. | C182: 0 | D182: 0 | E182: 0 | F182: 0 | G182: 0 | I182: 0
A183: Levn.m.kand. | C183: 0 | D183: 0 | E183: 0 | F183: 0 | G183: 0 | I183: 0
A184: Dyrlæge | C184: 0 | D184: 0 | E184: 0 | F184: 0 | G184: 0 | I184: 0
A185: Farmaceut | C185: 0 | D185: 1 | E185: 0 | F185: 0 | G185: 0 | I185: 1
A186: Læge | C186: 0 | D186: 1 | E186: 1 | F186: 1 | G186: 0 | I186: 3
A187: Tandlæge | C187: 0 | D187: 0 | E187: 0 | F187: 0 | G187: 0 | I187: 0
A188: Arkitekt | C188: 0 | D188: 0 | E188: 0 | F188: 0 | G188: 0 | I188: 0
A189: Landinspek. | C189: 0 | D189: 0 | E189: 0 | F189: 0 | G189: 0 | I189: 0
A190: Bibliotekar | C190: 0 | D190: 0 | E190: 1 | F190: 1 | G190: 1 | I190: 3
A191: Musikudd. | C191: 0 | D191: 0 | E191: 0 | F191: 0 | G191: 0 | I191: 0
A192: Teolog | C192: 0 | D192: 0 | E192: 0 | F192: 0 | G192: 0 | I192: 0
A193: Psykolog | C193: 0 | D193: 0 | E193: 0 | F193: 0 | G193: 0 | I193: 0
A194: Jurist | C194: 1 | D194: 1 | E194: 0 | F194: 1 | G194: 0 | I194: 3
A195: Økonom | C195: 0 | D195: 0 | E195: 0 | F195: 0 | G195: 0 | I195: 0
A196: Samf. Adm. | C196: 2 | D196: 2 | E196: 1 | F196: 1 | G196: 0 | I196: 6
A197: Cand. Merc. | C197: 2 | D197: 0 | E197: 1 | F197: 0 | G197: 0 | I197: 3
A198: HA | C198: 1 | D198: 0 | E198: 0 | F198: 0 | G198: 0 | I198: 1
A199: HD | C199: 0 | D199: 1 | E199: 1 | F199: 0 | G199: 0 | I199: 2
A200: Komm. og Sprog | C200: 0 | D200: 0 | E200: 0 | F200: 0 | G200: 0 | I200: 0
A201: Bygningskonst. | C201: 1 | D201: 0 | E201: 0 | F201: 0 | G201: 0 | I201: 1
A202: Cand. IT. | C202: 0 | D202: 1 | E202: 0 | F202: 0 | G202: 0 | I202: 1
A203: Bac. Samf. | C203: 0 | D203: 1 | E203: 0 | F203: 0 | G203: 0 | I203: 1
A204: Bac. Hum. | C204: 1 | D204: 0 | E204: 0 | F204: 0 | G204: 0 | I204: 1
A205: Bac. Nat. | C205: 0 | D205: 0 | E205: 0 | F205: 0 | G205: 0 | I205: 0
A206: Andre | C206: 0 | D206: 2 | E206: 2 | F206: 2 | G206: 0 | I206: 6
A208: Total | C208: 24 | D208: 20 | E208: 15 | F208: 11 | G208: 8 | I208: 78
A210: Ingeniører i alt | C210: 6 | D210: 1 | E210: 1 | F210: 4 | G210: 5 | I210: 17
A211: Magistre i alt | C211: 2 | D211: 7 | E211: 6 | F211: 1 | G211: 1 | I211: 17
A212: DJØF'ere i alt | C212: 6 | D212: 3 | E212: 2 | F212: 2 | G212: 0 | I212: 13
A219: Brøndby
C221: Under 30 år | D221: 30 - 39 år | E221: 40 - 49 år | F221: 50 - 59 år | G221: Over 60 år | I221: I alt
A223: Civ. ing. | C223: 4 | D223: 0 | E223: 0 | F223: 0 | G223: 1 | I223: 5
A224: Diplom ing. | C224: 3 | D224: 2 | E224: 0 | F224: 0 | G224: 0 | I224: 5
A225: Cand. Scient. Tek | C225: 8 | D225: 4 | E225: 0 | F225: 0 | G225: 0 | I225: 12
A226: MA. Hum. | C226: 1 | D226: 5 | E226: 1 | F226: 1 | G226: 0 | I226: 8
A227: MA. Nat. | C227: 0 | D227: 0 | E227: 0 | F227: 0 | G227: 0 | I227: 0
A228: MA. Ph.d. | C228: 0 | D228: 0 | E228: 0 | F228: 0 | G228: 0 | I228: 0
A229: MA. Samf. | C229: 1 | D229: 0 | E229: 0 | F229: 0 | G229: 0 | I229: 1
A230: Øvrige Mag. | C230: 0 | D230: 1 | E230: 0 | F230: 0 | G230: 0 | I230: 1
A231: Agronom | C231: 0 | D231: 0 | E231: 0 | F231: 0 | G231: 0 | I231: 0
A232: Landsk. Arkt. | C232: 0 | D232: 0 | E232: 0 | F232: 0 | G232: 0 | I232: 0
A233: Hortonom | C233: 0 | D233: 0 | E233: 0 | F233: 0 | G233: 0 | I233: 0
A234: Forstkand. | C234: 0 | D234: 0 | E234: 0 | F234: 0 | G234: 0 | I234: 0
A235: Jordbrugsakad. | C235: 0 | D235: 0 | E235: 0 | F235: 0 | G235: 0 | I235: 0
A236: Mejeriing. | C236: 0 | D236: 0 | E236: 0 | F236: 0 | G236: 0 | I236: 0
A237: Levn.m.kand. | C237: 0 | D237: 0 | E237: 0 | F237: 0 | G237: 0 | I237: 0
A238: Dyrlæge | C238: 0 | D238: 0 | E238: 0 | F238: 0 | G238: 0 | I238: 0
A239: Farmaceut | C239: 2 | D239: 1 | E239: 0 | F239: 0 | G239: 0 | I239: 3
A240: Læge | C240: 1 | D240: 0 | E240: 0 | F240: 1 | G240: 0 | I240: 2
A241: Tandlæge | C241: 0 | D241: 0 | E241: 0 | F241: 0 | G241: 0 | I241: 0
A242: Arkitekt | C242: 0 | D242: 0 | E242: 0 | F242: 0 | G242: 0 | I242: 0
A243: Landinspek. | C243: 0 | D243: 0 | E243: 0 | F243: 0 | G243: 0 | I243: 0
... 1077 more rows

Sheet Tabel 4(Br) H
A1: Tabel 4. Ledighedsberørte - aldersfordelt
A3: Hovedstaden
C5: Under 30 år | D5: 30 - 39 år | E5: 40 - 49 år | F5: 50 - 59 år | G5: Over 60 år | I5: I alt
A7: Civ. ing. | C7: 203.5239818 | D7: 86.13983659 | E7: 30.7023015 | F7: 37.51637248 | G7: 27.36231522 | I7: 385.2448076
A8: Diplom ing. | C8: 53.45163101 | D8: 49.50165284 | E8: 28.59539699 | F8: 41.55803655 | G8: 33.50776523 | I8: 206.6144826
A9: Cand. Scient. Tek | C9: 291.7014907 | D9: 218.8199339 | E9: 39.5596582 | F9: 12.12873449 | G9: 3.111707104 | I9: 565.3215244
A10: MA. Hum. | C10: 336.8751949 | D10: 462.9283353 | E10: 179.8571696 | F10: 90.47152747 | G10: 30.96550864 | I10: 1101.097736
A11: MA. Nat. | C11: 58.47439656 | D11: 55.6814071 | E11: 17.96357513 | F11: 18.54549991 | G11: 12.41938502 | I11: 163.0842637
A12: MA. Ph.d. | C12: 0 | D12: 11.08089565 | E12: 8.946547745 | F12: 5.260400424 | G12: 7.277490177 | I12: 32.565334
A13: MA. Samf. | C13: 117.0828915 | D13: 102.4711532 | E13: 30.78712655 | F13: 12.693819 | G13: 2.768664629 | I13: 265.803655
A14: Øvrige Mag. | C14: 52.47177696 | D14: 43.98927213 | E14: 16.04815069 | F14: 18.05338988 | G14: 5.30655523 | I14: 135.8691449
A15: Agronom | C15: 8.622840392 | D15: 9.044470779 | E15: 4.399051955 | F15: 1.720825797 | G15: 5.121936007 | I15: 28.90912493
A16: Landsk. Arkt. | C16: 9.294579929 | D16: 10.30686709 | E16: 3.794049772 | F16: 0.9075032745 | G16: 0.9998128859 | I16: 25.30281295
A17: Hortonom | C17: 0.9998128859 | D17: 1.708351525 | E17: 0 | F17: 0 | G17: 0 | I17: 2.708164411
A18: Forstkand. | C18: 0.9998128859 | D18: 1.753882617 | E18: 0 | F18: 0 | G18: 0 | I18: 2.753695503
A19: Jordbrugsakad. | C19: 19.91704609 | D19: 22.81357201 | E19: 8.193101728 | F19: 2.628329071 | G19: 6.121748893 | I19: 59.67379779
A20: Mejeriing. | C20: 3.953096738 | D20: 3.161604191 | E20: 0 | F20: 0 | G20: 0 | I20: 7.114700929
A21: Levn.m.kand. | C21: 5.100729745 | D21: 7.781450758 | E21: 0 | F21: 0 | G21: 0 | I21: 12.8821805
A22: Dyrlæge | C22: 6.121748893 | D22: 5.27536955 | E22: 6.270816441 | F22: 0 | G22: 0.9998128859 | I22: 18.66774777
A23: Farmaceut | C23: 53.16908875 | D23: 17.00804591 | E23: 3.676167904 | F23: 5.445019647 | G23: 4.8462546 | I23: 84.14457681
A24: Læge | C24: 43.51026009 | D24: 37.57375413 | E24: 6.976860226 | F24: 4.672238508 | G24: 1.538077715 | I24: 94.27119067
A25: Tandlæge | C25: 6.755441901 | D25: 2.999438658 | E25: 3.782822928 | F25: 1.288592278 | G25: 1.630387326 | I25: 16.45668309
A26: Arkitekt | C26: 53.90444708 | D26: 52.81107715 | E26: 24.41776336 | F26: 19.61766357 | G26: 13.13852679 | I26: 163.889478
A27: Landinspek. | C27: 0 | D27: 0.9998128859 | E27: 0 | F27: 0 | G27: 0 | I27: 0.9998128859
A28: Bibliotekar | C28: 6.473523358 | D28: 15.36830288 | E28: 12.01210004 | F28: 8.581051581 | G28: 4.367866276 | I28: 46.80284413
A29: Musikudd. | C29: 0 | D29: 0.4578057756 | E29: 0 | F29: 0.9998128859 | G29: 2.479261523 | I29: 3.936880185
A30: Teolog | C30: 1.768851743 | D30: 10.63182187 | E30: 2.799850309 | F30: 5.372045157 | G30: 3.189671303 | I30: 23.76224038
A31: Psykolog | C31: 35.17557538 | D31: 43.8732614 | E31: 11.7850683 | F31: 6.673735421 | G31: 5.284725254 | I31: 102.7923657
A32: Jurist | C32: 19.7798291 | D32: 39.75176199 | E32: 22.64891162 | F32: 16.18037797 | G32: 9.905819248 | I32: 108.2666999
A33: Økonom | C33: 31.88236762 | D33: 21.10771534 | E33: 12.42811701 | F33: 13.38364623 | G33: 10.12224786 | I33: 88.92409406
A34: Samf. Adm. | C34: 179.8789996 | D34: 190.8214308 | E34: 92.9002682 | F34: 51.56427369 | G34: 18.31534959 | I34: 533.4803218
A35: Cand. Merc. | C35: 204.6522797 | D35: 179.1536207 | E35: 72.77427805 | F35: 59.64323583 | G35: 32.71502526 | I35: 548.9384395
A36: HA | C36: 50.15343354 | D36: 21.42081956 | E36: 9.655086384 | F36: 11.83309424 | G36: 15.98515562 | I36: 109.0475893
A37: HD | C37: 20.42849124 | D37: 29.1143267 | E37: 3.999251544 | F37: 9.458616603 | G37: 16.0026196 | I37: 79.00330568
A38: Komm. og Sprog | C38: 39.98752573 | D38: 47.39537205 | E38: 31.08900393 | F38: 22.30150315 | G38: 11.81313541 | I38: 152.5865403
A39: Bygningskonst. | C39: 38.98827418 | D39: 27.47377284 | E39: 11.61535583 | F39: 7.307677914 | G39: 2 | I39: 87.38508077
A40: Cand. IT. | C40: 44.98908501 | D40: 49.06131105 | E40: 18.55236076 | F40: 0.9998128859 | G40: 0.9998128859 | I40: 114.6023826
A41: Bac. Samf. | C41: 18.34029814 | D41: 10.24075345 | E41: 6.252728747 | F41: 4.445206761 | G41: 0.8613484688 | I41: 40.14033556
A42: Bac. Hum. | C42: 111.6497224 | D42: 40.9087507 | E42: 18.91660949 | F42: 11.19254039 | G42: 3.528347783 | I42: 186.1959708
A43: Bac. Nat. | C43: 111.0266326 | D43: 30.75781201 | E43: 8.430112892 | F43: 3.722322709 | G43: 0.7228840516 | I43: 154.6597642
A44: Andre | C44: 178.8673361 | D44: 266.008233 | E44: 151.3858916 | F44: 99.88398927 | G44: 62.79361317 | I44: 758.9390632
A46: Total | C46: 2400.055448 | D46: 2204.583484 | E46: 893.0224537 | F46: 603.422566 | G46: 352.0810828 | I46: 6453.165035
A48: Ingeniører i alt | C48: 256.9756128 | D48: 135.6414894 | E48: 59.2976985 | F48: 79.07440903 | G48: 60.87008046 | I48: 591.8592902
A49: Magistre i alt | C49: 564.90426 | D49: 676.1510634 | E49: 253.6025697 | F49: 145.0246367 | G49: 58.73760369 | I49: 1698.420133
A50: DJØF'ere i alt | C50: 486.3469095 | D50: 452.2553483 | E50: 210.4066613 | F50: 152.604628 | G50: 87.04359758 | I50: 1388.657145
A57: København
C59: Under 30 år | D59: 30 - 39 år | E59: 40 - 49 år | F59: 50 - 59 år | G59: Over 60 år | I59: I alt
A61: Civ. ing. | C61: 101.7838209 | D61: 53.2539138 | E61: 13.32065116 | F61: 15.42755567 | G61: 3.949354456 | I61: 187.735296
A62: Diplom ing. | C62: 27.72095054 | D62: 24.29364436 | E62: 15.24168902 | F62: 5.551674671 | G62: 8.017838209 | I62: 80.82579679
A63: Cand. Scient. Tek | C63: 217.6348781 | D63: 148.355891 | E63: 23.93376162 | F63: 7.01054076 | G63: 0.804590532 | I63: 397.7396619
A64: MA. Hum. | C64: 251.7183309 | D64: 339.4324206 | E64: 108.3877004 | F64: 57.4851868 | G64: 18.39643236 | I64: 775.4200711
A65: MA. Nat. | C65: 46.76230275 | D65: 35.51238071 | E65: 8.812449323 | F65: 12.21293582 | G65: 5.942119379 | I65: 109.242188
A66: MA. Ph.d. | C66: 0 | D66: 8.312231024 | E66: 6.13172831 | F66: 3.999251544 | G66: 4.878063993 | I66: 23.32127487
A67: MA. Samf. | C67: 94.62171771 | D67: 74.69531591 | E67: 17.93301316 | F67: 9.451755754 | G67: 0.9998128859 | I67: 197.7016154
A68: Øvrige Mag. | C68: 34.38096426 | D68: 29.10185243 | E68: 10.9910809 | F68: 10.60936818 | G68: 2.907129046 | I68: 87.99039481
A69: Agronom | C69: 5.458741346 | D69: 6.529657581 | E69: 2.491735795 | F69: 0 | G69: 0.9998128859 | I69: 15.47994761
A70: Landsk. Arkt. | C70: 6.572070105 | D70: 8.399550926 | E70: 3.275743778 | F70: 0.9075032745 | G70: 0 | I70: 19.15486808
A71: Hortonom | C71: 0.9998128859 | D71: 0.9642612113 | E71: 0 | F71: 0 | G71: 0 | I71: 1.964074097
A72: Forstkand. | C72: 0.9998128859 | D72: 0.9998128859 | E72: 0 | F72: 0 | G72: 0 | I72: 1.999625772
A73: Jordbrugsakad. | C73: 14.03043722 | D73: 16.8932826 | E73: 5.767479573 | F73: 0.9075032745 | G73: 0.9998128859 | I73: 38.59851556
A74: Mejeriing. | C74: 2.999438658 | D74: 3.161604191 | E74: 0 | F74: 0 | G74: 0 | I74: 6.161042849
A75: Levn.m.kand. | C75: 5.100729745 | D75: 7.612424375 | E75: 0 | F75: 0 | G75: 0 | I75: 12.71315412
A76: Dyrlæge | C76: 4.891161978 | D76: 3.722322709 | E76: 3.515249797 | F76: 0 | G76: 0.9998128859 | I76: 13.12854737
A77: Farmaceut | C77: 34.82442462 | D77: 7.256283914 | E77: 1.90731616 | F77: 2.584045406 | G77: 0 | I77: 46.57207011
A78: Læge | C78: 33.85829227 | D78: 20.26008857 | E78: 3.976174141 | F78: 0.9998128859 | G78: 0 | I78: 59.09436787
A79: Tandlæge | C79: 1.054075968 | D79: 1.999625772 | E79: 0.5370174016 | F79: 0.9998128859 | G79: 0 | I79: 4.590532028
A80: Arkitekt | C80: 48.30848874 | D80: 43.10484625 | E80: 10.46778519 | F80: 10.509574 | G80: 4.778269818 | I80: 117.168964
A81: Landinspek. | C81: 0 | D81: 0 | E81: 0 | F81: 0 | G81: 0 | I81: 0
A82: Bibliotekar | C82: 3.999251544 | D82: 6.747333624 | E82: 7.7696002 | F82: 2.097548806 | G82: 1.999625772 | I82: 22.61335995
A83: Musikudd. | C83: 0 | D83: 0.4578057756 | E83: 0 | F83: 0 | G83: 0.7690388574 | I83: 1.226844633
A84: Teolog | C84: 1.768851743 | D84: 8.632196096 | E84: 1.498783758 | F84: 3.214619847 | G84: 2.282168028 | I84: 17.39661947
A85: Psykolog | C85: 26.39680659 | D85: 30.59689391 | E85: 6.424873698 | F85: 2.999438658 | G85: 4.284912368 | I85: 70.70292522
A86: Jurist | C86: 13.11108339 | D86: 24.83752261 | E86: 10.70043036 | F86: 4.552485499 | G86: 3.306929458 | I86: 56.50845132
A87: Økonom | C87: 23.47034242 | D87: 15.54044783 | E87: 4.937316784 | F87: 3.7310547 | G87: 3.953720452 | I87: 51.63288218
A88: Samf. Adm. | C88: 134.399052 | D88: 131.833718 | E88: 45.5529221 | F88: 31.0784008 | G88: 6.800972993 | I88: 349.6650658
A89: Cand. Merc. | C89: 140.0785879 | D89: 115.2647664 | E89: 32.09630138 | F89: 18.09455498 | G89: 8.270442213 | I89: 313.8046529
A90: HA | C90: 33.99301441 | D90: 13.39175451 | E90: 4.7177696 | F90: 3.89259652 | G90: 2.584045406 | I90: 58.57918044
A91: HD | C91: 15.02089441 | D91: 20.9592715 | E91: 0.9998128859 | F91: 3.491548681 | G91: 4.25746897 | I91: 44.72899644
A92: Komm. og Sprog | C92: 31.75201148 | D92: 30.64055386 | E92: 20.35239818 | F92: 9.709349467 | G92: 1.768851743 | I92: 94.22316472
A93: Bygningskonst. | C93: 17.31410216 | D93: 17.4017963 | E93: 7.35383272 | F93: 3.307677914 | G93: 1 | I93: 46.37740909
A94: Cand. IT. | C94: 33.56078089 | D94: 31.81500655 | E94: 9.41807522 | F94: 0 | G94: 0.9998128859 | I94: 75.79367554
A95: Bac. Samf. | C95: 12.6800973 | D95: 6.790369862 | E95: 2.260961766 | F95: 0.9998128859 | G95: 0 | I95: 22.73124181
A96: Bac. Hum. | C96: 88.11576124 | D96: 32.59651968 | E96: 14.24748955 | F96: 6.655024013 | G96: 1.636000748 | I96: 143.2507952
A97: Bac. Nat. | C97: 85.95459365 | D97: 19.70311233 | E97: 3.491548681 | F97: 0.9998128859 | G97: 0.7228840516 | I97: 110.8719516
A98: Andre | C98: 136.7847564 | D98: 192.8403917 | E98: 76.09804778 | F98: 49.6376224 | G98: 30.17713466 | I98: 485.537953
A100: Total | C100: 1718.090002 | D100: 1517.017589 | E100: 478.8432608 | F100: 282.2105657 | G100: 127.4872451 | I100: 4123.648662
A102: Ingeniører i alt | C102: 129.5047714 | D102: 77.54755816 | E102: 28.56234017 | F102: 20.97923034 | G102: 11.96719267 | I102: 268.5610927
A103: Magistre i alt | C103: 427.4833157 | D103: 487.0542007 | E103: 152.2559721 | F103: 93.7584981 | G103: 33.12355766 | I103: 1193.675544
A104: DJØF'ere i alt | C104: 345.0520801 | D104: 300.8682093 | E104: 98.00474022 | F104: 61.3490925 | G104: 24.91611052 | I104: 830.1902326
A111: Frederiksberg
C113: Under 30 år | D113: 30 - 39 år | E113: 40 - 49 år | F113: 50 - 59 år | G113: Over 60 år | I113: I alt
A115: Civ. ing. | C115: 13.52398179 | D115: 8.706418013 | E115: 2.983845818 | F115: 3.722322709 | G115: 1.722696938 | I115: 30.65926527
A116: Diplom ing. | C116: 2.122497349 | D116: 3.709848438 | E116: 1.785068297 | F116: 5.214245618 | G116: 3.768477515 | I116: 16.60013722
A117: Cand. Scient. Tek | C117: 13.55828604 | D117: 14.3460363 | E117: 2.814819435 | F117: 0 | G117: 0 | I117: 30.71914177
A118: MA. Hum. | C118: 31.40086072 | D118: 32.98883553 | E118: 14.42462421 | F118: 12.30087944 | G118: 2.408158174 | I118: 93.52335807
A119: MA. Nat. | C119: 3.780951787 | D119: 5.491174453 | E119: 1.999625772 | F119: 0 | G119: 0 | I119: 11.27175201
A120: MA. Ph.d. | C120: 0 | D120: 0 | E120: 0 | F120: 1.26114888 | G120: 0 | I120: 1.26114888
A121: MA. Samf. | C121: 9.45113204 | D121: 12.01397118 | E121: 3.813384894 | F121: 0.7690388574 | G121: 0.9998128859 | I121: 27.04733986
A122: Øvrige Mag. | C122: 9.121811264 | D122: 4.99906443 | E122: 1.196282667 | F122: 1.952847253 | G122: 0.4921100231 | I122: 17.76211564
A123: Agronom | C123: 0 | D123: 0 | E123: 0.9998128859 | F123: 0 | G123: 0 | I123: 0.9998128859
A124: Landsk. Arkt. | C124: 0.9998128859 | D124: 0 | E124: 0 | F124: 0 | G124: 0 | I124: 0.9998128859
A125: Hortonom | C125: 0 | D125: 0 | E125: 0 | F125: 0 | G125: 0 | I125: 0
A126: Forstkand. | C126: 0 | D126: 0 | E126: 0 | F126: 0 | G126: 0 | I126: 0
A127: Jordbrugsakad. | C127: 0.9998128859 | D127: 0 | E127: 0.9998128859 | F127: 0 | G127: 0 | I127: 1.999625772
A128: Mejeriing. | C128: 0.9536580802 | D128: 0 | E128: 0 | F128: 0 | G128: 0 | I128: 0.9536580802
A129: Levn.m.kand. | C129: 0 | D129: 0.1690263831 | E129: 0 | F129: 0 | G129: 0 | I129: 0.1690263831
A130: Dyrlæge | C130: 0.4921100231 | D130: 0 | E130: 0 | F130: 0 | G130: 0 | I130: 0.4921100231
A131: Farmaceut | C131: 3.614420258 | D131: 1.90731616 | E131: 0 | F131: 0 | G131: 0.9998128859 | I131: 6.521549305
A132: Læge | C132: 5.16060625 | D132: 7.705981413 | E132: 0 | F132: 0 | G132: 0 | I132: 12.86658766
A133: Tandlæge | C133: 0.4010478388 | D133: 0 | E133: 0 | F133: 0 | G133: 0.6305744402 | I133: 1.031622279
A134: Arkitekt | C134: 3.688642176 | D134: 6.118630325 | E134: 7.275619036 | F134: 3.999251544 | G134: 0 | I134: 21.08214308
A135: Landinspek. | C135: 0 | D135: 0.9998128859 | E135: 0 | F135: 0 | G135: 0 | I135: 0.9998128859
A136: Bibliotekar | C136: 0.8638433231 | D136: 1.999625772 | E136: 1.168215555 | F136: 0.7216366245 | G136: 0.2207946111 | I136: 4.974115886
A137: Musikudd. | C137: 0 | D137: 0 | E137: 0 | F137: 0 | G137: 0.495228591 | I137: 0.495228591
A138: Teolog | C138: 0 | D138: 0 | E138: 1.30106655 | F138: 1.768851743 | G138: 0 | I138: 3.069918294
A139: Psykolog | C139: 2.508576062 | D139: 2.907129046 | E139: 0.9075032745 | F139: 0.8501216242 | G139: 0 | I139: 7.173330007
A140: Jurist | C140: 3.131042225 | D140: 3.999251544 | E140: 0.9998128859 | F140: 0.7228840516 | G140: 4.737728435 | I140: 13.59071914
A141: Økonom | C141: 2.896525915 | D141: 2.399426183 | E141: 1.999625772 | F141: 0 | G141: 1.446391817 | I141: 8.741969688
A142: Samf. Adm. | C142: 15.69699994 | D142: 16.90388574 | E142: 9.366306992 | F142: 8.259839082 | G142: 0.7565645855 | I142: 50.98359633
A143: Cand. Merc. | C143: 33.21150128 | D143: 12.54911745 | E143: 9.275244808 | F143: 5.300318094 | G143: 3.906941932 | I143: 64.24312356
A144: HA | C144: 4.19135533 | D144: 0 | E144: 0 | F144: 1.768851743 | G144: 0 | I144: 5.960207073
A145: HD | C145: 3.953096738 | D145: 1.38090189 | E145: 0.9998128859 | F145: 0.9998128859 | G145: 1.999625772 | I145: 9.333250172
A146: Komm. og Sprog | C146: 1.999625772 | D146: 8.469406848 | E146: 3.956215306 | F146: 2.484874945 | G146: 0.8151936631 | I146: 17.72531653
A147: Bygningskonst. | C147: 3 | D147: 0 | E147: 0 | F147: 0 | G147: 0 | I147: 3
A148: Cand. IT. | C148: 5.30655523 | D148: 5.62963887 | E148: 3.415455623 | F148: 0 | G148: 0 | I148: 14.35164972
A149: Bac. Samf. | C149: 3.122310235 | D149: 0.4509449261 | E149: 1.999625772 | F149: 2.445580989 | G149: 0 | I149: 8.018461922
A150: Bac. Hum. | C150: 10.61373417 | D150: 1.892347034 | E150: 0.9075032745 | F150: 0.6305744402 | G150: 0 | I150: 14.04415892
A151: Bac. Nat. | C151: 6.369986902 | D151: 0.9998128859 | E151: 2.262209194 | F151: 0.7228840516 | G151: 0 | I151: 10.35489303
A152: Andre | C152: 13.77658579 | D152: 21.61728934 | E152: 16.73610678 | F152: 14.19634504 | G152: 5.998877316 | I152: 72.32520427
A154: Total | C154: 208.9115574 | D154: 180.354893 | E154: 92.58778769 | F154: 70.09230961 | G154: 31.39898958 | I154: 583.3455373
A156: Ingeniører i alt | C156: 15.64647914 | D156: 12.41626645 | E156: 4.768914115 | F156: 8.936568328 | G156: 5.491174453 | I156: 47.25940248
A157: Magistre i alt | C157: 53.75475582 | D157: 55.49304559 | E157: 21.43391755 | F157: 16.28391443 | G157: 3.900081083 | I157: 150.8657145
A158: DJØF'ere i alt | C158: 59.12742469 | D158: 35.85168091 | E158: 21.64099046 | F158: 16.05189297 | G158: 10.84762677 | I158: 143.5196158
A165: Ballerup
C167: Under 30 år | D167: 30 - 39 år | E167: 40 - 49 år | F167: 50 - 59 år | G167: Over 60 år | I167: I alt
A169: Civ. ing. | C169: 1.999625772 | D169: 0 | E169: 0 | F169: 0.9075032745 | G169: 0.9998128859 | I169: 3.906941932
A170: Diplom ing. | C170: 3.864529408 | D170: 0.9998128859 | E170: 0.8108276679 | F170: 2.467410965 | G170: 3.630013098 | I170: 11.77259402
A171: Cand. Scient. Tek | C171: 4.64479511 | D171: 1.999625772 | E171: 0.9998128859 | F171: 0 | G171: 0 | I171: 7.644233768
A172: MA. Hum. | C172: 1.7439032 | D172: 1.122684463 | E172: 3.324393439 | F172: 0.7029252167 | G172: 0 | I172: 6.893906318
A173: MA. Nat. | C173: 0 | D173: 0.7690388574 | E173: 1.630387326 | F173: 0 | G173: 0.9536580802 | I173: 3.353084264
A174: MA. Ph.d. | C174: 0 | D174: 0.7690388574 | E174: 0 | F174: 0 | G174: 0 | I174: 0.7690388574
A175: MA. Samf. | C175: 0 | D175: 1.999625772 | E175: 0 | F175: 0 | G175: 0 | I175: 1.999625772
A176: Øvrige Mag. | C176: 0 | D176: 0.9998128859 | E176: 0 | F176: 0 | G176: 0 | I176: 0.9998128859
A177: Agronom | C177: 0.793987401 | D177: 0 | E177: 0 | F177: 0 | G177: 0.9998128859 | I177: 1.793800287
A178: Landsk. Arkt. | C178: 0 | D178: 0 | E178: 0 | F178: 0 | G178: 0 | I178: 0
A179: Hortonom | C179: 0 | D179: 0 | E179: 0 | F179: 0 | G179: 0 | I179: 0
A180: Forstkand. | C180: 0 | D180: 0 | E180: 0 | F180: 0 | G180: 0 | I180: 0
A181: Jordbrugsakad. | C181: 0.793987401 | D181: 0 | E181: 0 | F181: 0 | G181: 0.9998128859 | I181: 1.793800287
A182: Mejeriing. | C182: 0 | D182: 0 | E182: 0 | F182: 0 | G182: 0 | I182: 0
A183: Levn.m.kand. | C183: 0 | D183: 0 | E183: 0 | F183: 0 | G183: 0 | I183: 0
A184: Dyrlæge | C184: 0 | D184: 0 | E184: 0 | F184: 0 | G184: 0 | I184: 0
A185: Farmaceut | C185: 0 | D185: 0.9998128859 | E185: 0 | F185: 0 | G185: 0 | I185: 0.9998128859
A186: Læge | C186: 0 | D186: 0.7690388574 | E186: 0.1690263831 | F186: 0.8613484688 | G186: 0 | I186: 1.799413709
A187: Tandlæge | C187: 0 | D187: 0 | E187: 0 | F187: 0 | G187: 0 | I187: 0
A188: Arkitekt | C188: 0 | D188: 0 | E188: 0 | F188: 0 | G188: 0 | I188: 0
A189: Landinspek. | C189: 0 | D189: 0 | E189: 0 | F189: 0 | G189: 0 | I189: 0
A190: Bibliotekar | C190: 0 | D190: 0 | E190: 0.3979292709 | F190: 0.7690388574 | G190: 0.9998128859 | I190: 2.166781014
A191: Musikudd. | C191: 0 | D191: 0 | E191: 0 | F191: 0 | G191: 0 | I191: 0
A192: Teolog | C192: 0 | D192: 0 | E192: 0 | F192: 0 | G192: 0 | I192: 0
A193: Psykolog | C193: 0 | D193: 0 | E193: 0 | F193: 0 | G193: 0 | I193: 0
A194: Jurist | C194: 0.9998128859 | D194: 0.7690388574 | E194: 0 | F194: 0.9998128859 | G194: 0 | I194: 2.768664629
A195: Økonom | C195: 0 | D195: 0 | E195: 0 | F195: 0 | G195: 0 | I195: 0
A196: Samf. Adm. | C196: 1.999625772 | D196: 1.025385143 | E196: 0.9998128859 | F196: 0.7690388574 | G196: 0 | I196: 4.793862658
A197: Cand. Merc. | C197: 1.753882617 | D197: 0 | E197: 0.9075032745 | F197: 0 | G197: 0 | I197: 2.661385892
A198: HA | C198: 0.9998128859 | D198: 0 | E198: 0 | F198: 0 | G198: 0 | I198: 0.9998128859
A199: HD | C199: 0 | D199: 0.9998128859 | E199: 0.9998128859 | F199: 0 | G199: 0 | I199: 1.999625772
A200: Komm. og Sprog | C200: 0 | D200: 0 | E200: 0 | F200: 0 | G200: 0 | I200: 0
A201: Bygningskonst. | C201: 1 | D201: 0 | E201: 0 | F201: 0 | G201: 0 | I201: 1
A202: Cand. IT. | C202: 0 | D202: 0.9998128859 | E202: 0 | F202: 0 | G202: 0 | I202: 0.9998128859
A203: Bac. Samf. | C203: 0 | D203: 0.9998128859 | E203: 0 | F203: 0 | G203: 0 | I203: 0.9998128859
A204: Bac. Hum. | C204: 0.2613359945 | D204: 0 | E204: 0 | F204: 0 | G204: 0 | I204: 0.2613359945
A205: Bac. Nat. | C205: 0 | D205: 0 | E205: 0 | F205: 0 | G205: 0 | I205: 0
A206: Andre | C206: 0 | D206: 1.953470966 | E206: 1.999625772 | F206: 1.993388636 | G206: 0 | I206: 5.946485374
A208: Total | C208: 20.06131105 | D208: 17.17582486 | E208: 12.23913179 | F208: 9.470467161 | G208: 7.583109836 | I208: 66.5298447
A210: Ingeniører i alt | C210: 5.86415518 | D210: 0.9998128859 | E210: 0.8108276679 | F210: 3.374914239 | G210: 4.629825984 | I210: 15.67953596
A211: Magistre i alt | C211: 1.7439032 | D211: 5.660200836 | E211: 4.954780765 | F211: 0.7029252167 | G211: 0.9536580802 | I211: 14.0154681
A212: DJØF'ere i alt | C212: 5.753134161 | D212: 1.794424 | E212: 1.90731616 | F212: 1.768851743 | G212: 0 | I212: 11.22372606
A219: Brøndby
C221: Under 30 år | D221: 30 - 39 år | E221: 40 - 49 år | F221: 50 - 59 år | G221: Over 60 år | I221: I alt
A223: Civ. ing. | C223: 2.937691012 | D223: 0 | E223: 0 | F223: 0 | G223: 0.9998128859 | I223: 3.937503898
A224: Diplom ing. | C224: 2.584045406 | D224: 1.999625772 | E224: 0 | F224: 0 | G224: 0 | I224: 4.583671178
A225: Cand. Scient. Tek | C225: 6.936318842 | D225: 2.992577808 | E225: 0 | F225: 0 | G225: 0 | I225: 9.928896651
A226: MA. Hum. | C226: 0.9156115512 | D226: 4.059751762 | E226: 0.7228840516 | F226: 0.9998128859 | G226: 0 | I226: 6.698060251
A227: MA. Nat. | C227: 0 | D227: 0 | E227: 0 | F227: 0 | G227: 0 | I227: 0
A228: MA. Ph.d. | C228: 0 | D228: 0 | E228: 0 | F228: 0 | G228: 0 | I228: 0
A229: MA. Samf. | C229: 0.9536580802 | D229: 0 | E229: 0 | F229: 0 | G229: 0 | I229: 0.9536580802
A230: Øvrige Mag. | C230: 0 | D230: 0.4921100231 | E230: 0 | F230: 0 | G230: 0 | I230: 0.4921100231
A231: Agronom | C231: 0 | D231: 0 | E231: 0 | F231: 0 | G231: 0 | I231: 0
A232: Landsk. Arkt. | C232: 0 | D232: 0 | E232: 0 | F232: 0 | G232: 0 | I232: 0
A233: Hortonom | C233: 0 | D233: 0 | E233: 0 | F233: 0 | G233: 0 | I233: 0
A234: Forstkand. | C234: 0 | D234: 0 | E234: 0 | F234: 0 | G234: 0 | I234: 0
A235: Jordbrugsakad. | C235: 0 | D235: 0 | E235: 0 | F235: 0 | G235: 0 | I235: 0
A236: Mejeriing. | C236: 0 | D236: 0 | E236: 0 | F236: 0 | G236: 0 | I236: 0
A237: Levn.m.kand. | C237: 0 | D237: 0 | E237: 0 | F237: 0 | G237: 0 | I237: 0
A238: Dyrlæge | C238: 0 | D238: 0 | E238: 0 | F238: 0 | G238: 0 | I238: 0
A239: Farmaceut | C239: 1.538077715 | D239: 0.9998128859 | E239: 0 | F239: 0 | G239: 0 | I239: 2.537890601
A240: Læge | C240: 0.9998128859 | D240: 0 | E240: 0 | F240: 0.8613484688 | G240: 0 | I240: 1.861161355
A241: Tandlæge | C241: 0 | D241: 0 | E241: 0 | F241: 0 | G241: 0 | I241: 0
A242: Arkitekt | C242: 0 | D242: 0 | E242: 0 | F242: 0 | G242: 0 | I242: 0
A243: Landinspek. | C243: 0 | D243: 0 | E243: 0 | F243: 0 | G243: 0 | I243: 0
... 1077 more rows

Sheet Tabel 4P H
A1: Tabel 4. Ledighedsberørte - aldersfordelt
A3: Hovedstaden
C5: Under 30 år | D5: 30 - 39 år | E5: 40 - 49 år | F5: 50 - 59 år | G5: Over 60 år | I5: I alt
A7: Civ. ing. | C7: =IF(OR('Tabel 4F H'!C7<5,'Tabel 4 H'!C7<0.5),"-",IFERROR('Tabel 4 H'!C7/'Tabel 4F H'!C7*100,"-")) -> 7.597730139 | D7: =IF(OR('Tabel 4F H'!D7<5,'Tabel 4 H'!D7<0.5),"-",IFERROR('Tabel 4 H'!D7/'Tabel 4F H'!D7*100,"-")) -> 1.674326986 | E7: =IF(OR('Tabel 4F H'!E7<5,'Tabel 4 H'!E7<0.5),"-",IFERROR('Tabel 4 H'!E7/'Tabel 4F H'!E7*100,"-")) -> 0.8813720819 | F7: =IF(OR('Tabel 4F H'!F7<5,'Tabel 4 H'!F7<0.5),"-",IFERROR('Tabel 4 H'!F7/'Tabel 4F H'!F7*100,"-")) -> 1.068543133 | G7: =IF(OR('Tabel 4F H'!G7<5,'Tabel 4 H'!G7<0.5),"-",IFERROR('Tabel 4 H'!G7/'Tabel 4F H'!G7*100,"-")) -> 1.955495617 | I7: =IF(OR('Tabel 4F H'!I7<5,'Tabel 4 H'!I7<0.5),"-",IFERROR('Tabel 4 H'!I7/'Tabel 4F H'!I7*100,"-")) -> 2.395910979
A8: Diplom ing. | C8: =IF(OR('Tabel 4F H'!C8<5,'Tabel 4 H'!C8<0.5),"-",IFERROR('Tabel 4 H'!C8/'Tabel 4F H'!C8*100,"-")) -> 5.426356589 | D8: =IF(OR('Tabel 4F H'!D8<5,'Tabel 4 H'!D8<0.5),"-",IFERROR('Tabel 4 H'!D8/'Tabel 4F H'!D8*100,"-")) -> 2.597402597 | E8: =IF(OR('Tabel 4F H'!E8<5,'Tabel 4 H'!E8<0.5),"-",IFERROR('Tabel 4 H'!E8/'Tabel 4F H'!E8*100,"-")) -> 1.268656716 | F8: =IF(OR('Tabel 4F H'!F8<5,'Tabel 4 H'!F8<0.5),"-",IFERROR('Tabel 4 H'!F8/'Tabel 4F H'!F8*100,"-")) -> 1.084310688 | G8: =IF(OR('Tabel 4F H'!G8<5,'Tabel 4 H'!G8<0.5),"-",IFERROR('Tabel 4 H'!G8/'Tabel 4F H'!G8*100,"-")) -> 2.087682672 | I8: =IF(OR('Tabel 4F H'!I8<5,'Tabel 4 H'!I8<0.5),"-",IFERROR('Tabel 4 H'!I8/'Tabel 4F H'!I8*100,"-")) -> 1.946589447
A9: Cand. Scient. Tek | C9: =IF(OR('Tabel 4F H'!C9<5,'Tabel 4 H'!C9<0.5),"-",IFERROR('Tabel 4 H'!C9/'Tabel 4F H'!C9*100,"-")) -> 11.47431621 | D9: =IF(OR('Tabel 4F H'!D9<5,'Tabel 4 H'!D9<0.5),"-",IFERROR('Tabel 4 H'!D9/'Tabel 4F H'!D9*100,"-")) -> 4.152797591 | E9: =IF(OR('Tabel 4F H'!E9<5,'Tabel 4 H'!E9<0.5),"-",IFERROR('Tabel 4 H'!E9/'Tabel 4F H'!E9*100,"-")) -> 2.371342079 | F9: =IF(OR('Tabel 4F H'!F9<5,'Tabel 4 H'!F9<0.5),"-",IFERROR('Tabel 4 H'!F9/'Tabel 4F H'!F9*100,"-")) -> 1.89701897 | G9: =IF(OR('Tabel 4F H'!G9<5,'Tabel 4 H'!G9<0.5),"-",IFERROR('Tabel 4 H'!G9/'Tabel 4F H'!G9*100,"-")) -> 2.797202797 | I9: =IF(OR('Tabel 4F H'!I9<5,'Tabel 4 H'!I9<0.5),"-",IFERROR('Tabel 4 H'!I9/'Tabel 4F H'!I9*100,"-")) -> 5.513557929
A10: MA. Hum. | C10: =IF(OR('Tabel 4F H'!C10<5,'Tabel 4 H'!C10<0.5),"-",IFERROR('Tabel 4 H'!C10/'Tabel 4F H'!C10*100,"-")) -> 17.33500418 | D10: =IF(OR('Tabel 4F H'!D10<5,'Tabel 4 H'!D10<0.5),"-",IFERROR('Tabel 4 H'!D10/'Tabel 4F H'!D10*100,"-")) -> 7.402912621 | E10: =IF(OR('Tabel 4F H'!E10<5,'Tabel 4 H'!E10<0.5),"-",IFERROR('Tabel 4 H'!E10/'Tabel 4F H'!E10*100,"-")) -> 3.403792353 | F10: =IF(OR('Tabel 4F H'!F10<5,'Tabel 4 H'!F10<0.5),"-",IFERROR('Tabel 4 H'!F10/'Tabel 4F H'!F10*100,"-")) -> 3.298033283 | G10: =IF(OR('Tabel 4F H'!G10<5,'Tabel 4 H'!G10<0.5),"-",IFERROR('Tabel 4 H'!G10/'Tabel 4F H'!G10*100,"-")) -> 3.503787879 | I10: =IF(OR('Tabel 4F H'!I10<5,'Tabel 4 H'!I10<0.5),"-",IFERROR('Tabel 4 H'!I10/'Tabel 4F H'!I10*100,"-")) -> 6.449890803
A11: MA. Nat. | C11: =IF(OR('Tabel 4F H'!C11<5,'Tabel 4 H'!C11<0.5),"-",IFERROR('Tabel 4 H'!C11/'Tabel 4F H'!C11*100,"-")) -> 12.52302026 | D11: =IF(OR('Tabel 4F H'!D11<5,'Tabel 4 H'!D11<0.5),"-",IFERROR('Tabel 4 H'!D11/'Tabel 4F H'!D11*100,"-")) -> 4.147764096 | E11: =IF(OR('Tabel 4F H'!E11<5,'Tabel 4 H'!E11<0.5),"-",IFERROR('Tabel 4 H'!E11/'Tabel 4F H'!E11*100,"-")) -> 1.00456621 | F11: =IF(OR('Tabel 4F H'!F11<5,'Tabel 4 H'!F11<0.5),"-",IFERROR('Tabel 4 H'!F11/'Tabel 4F H'!F11*100,"-")) -> 1.060240964 | G11: =IF(OR('Tabel 4F H'!G11<5,'Tabel 4 H'!G11<0.5),"-",IFERROR('Tabel 4 H'!G11/'Tabel 4F H'!G11*100,"-")) -> 2.030456853 | I11: =IF(OR('Tabel 4F H'!I11<5,'Tabel 4 H'!I11<0.5),"-",IFERROR('Tabel 4 H'!I11/'Tabel 4F H'!I11*100,"-")) -> 2.689452304
A12: MA. Ph.d. | C12: =IF(OR('Tabel 4F H'!C12<5,'Tabel 4 H'!C12<0.5),"-",IFERROR('Tabel 4 H'!C12/'Tabel 4F H'!C12*100,"-")) -> - | D12: =IF(OR('Tabel 4F H'!D12<5,'Tabel 4 H'!D12<0.5),"-",IFERROR('Tabel 4 H'!D12/'Tabel 4F H'!D12*100,"-")) -> 3.592814371 | E12: =IF(OR('Tabel 4F H'!E12<5,'Tabel 4 H'!E12<0.5),"-",IFERROR('Tabel 4 H'!E12/'Tabel 4F H'!E12*100,"-")) -> 2.083333333 | F12: =IF(OR('Tabel 4F H'!F12<5,'Tabel 4 H'!F12<0.5),"-",IFERROR('Tabel 4 H'!F12/'Tabel 4F H'!F12*100,"-")) -> 1.558441558 | G12: =IF(OR('Tabel 4F H'!G12<5,'Tabel 4 H'!G12<0.5),"-",IFERROR('Tabel 4 H'!G12/'Tabel 4F H'!G12*100,"-")) -> 8.256880734 | I12: =IF(OR('Tabel 4F H'!I12<5,'Tabel 4 H'!I12<0.5),"-",IFERROR('Tabel 4 H'!I12/'Tabel 4F H'!I12*100,"-")) -> 2.796674225
A13: MA. Samf. | C13: =IF(OR('Tabel 4F H'!C13<5,'Tabel 4 H'!C13<0.5),"-",IFERROR('Tabel 4 H'!C13/'Tabel 4F H'!C13*100,"-")) -> 13.61867704 | D13: =IF(OR('Tabel 4F H'!D13<5,'Tabel 4 H'!D13<0.5),"-",IFERROR('Tabel 4 H'!D13/'Tabel 4F H'!D13*100,"-")) -> 6.191183754 | E13: =IF(OR('Tabel 4F H'!E13<5,'Tabel 4 H'!E13<0.5),"-",IFERROR('Tabel 4 H'!E13/'Tabel 4F H'!E13*100,"-")) -> 5.835962145 | F13: =IF(OR('Tabel 4F H'!F13<5,'Tabel 4 H'!F13<0.5),"-",IFERROR('Tabel 4 H'!F13/'Tabel 4F H'!F13*100,"-")) -> 4.430379747 | G13: =IF(OR('Tabel 4F H'!G13<5,'Tabel 4 H'!G13<0.5),"-",IFERROR('Tabel 4 H'!G13/'Tabel 4F H'!G13*100,"-")) -> 4.6875 | I13: =IF(OR('Tabel 4F H'!I13<5,'Tabel 4 H'!I13<0.5),"-",IFERROR('Tabel 4 H'!I13/'Tabel 4F H'!I13*100,"-")) -> 7.855208077
A14: Øvrige Mag. | C14: =IF(OR('Tabel 4F H'!C14<5,'Tabel 4 H'!C14<0.5),"-",IFERROR('Tabel 4 H'!C14/'Tabel 4F H'!C14*100,"-")) -> 18.40659341 | D14: =IF(OR('Tabel 4F H'!D14<5,'Tabel 4 H'!D14<0.5),"-",IFERROR('Tabel 4 H'!D14/'Tabel 4F H'!D14*100,"-")) -> 11.13445378 | E14: =IF(OR('Tabel 4F H'!E14<5,'Tabel 4 H'!E14<0.5),"-",IFERROR('Tabel 4 H'!E14/'Tabel 4F H'!E14*100,"-")) -> 4.175365344 | F14: =IF(OR('Tabel 4F H'!F14<5,'Tabel 4 H'!F14<0.5),"-",IFERROR('Tabel 4 H'!F14/'Tabel 4F H'!F14*100,"-")) -> 4.524886878 | G14: =IF(OR('Tabel 4F H'!G14<5,'Tabel 4 H'!G14<0.5),"-",IFERROR('Tabel 4 H'!G14/'Tabel 4F H'!G14*100,"-")) -> 4.444444444 | I14: =IF(OR('Tabel 4F H'!I14<5,'Tabel 4 H'!I14<0.5),"-",IFERROR('Tabel 4 H'!I14/'Tabel 4F H'!I14*100,"-")) -> 8.755274262
A15: Agronom | C15: =IF(OR('Tabel 4F H'!C15<5,'Tabel 4 H'!C15<0.5),"-",IFERROR('Tabel 4 H'!C15/'Tabel 4F H'!C15*100,"-")) -> 7.692307692 | D15: =IF(OR('Tabel 4F H'!D15<5,'Tabel 4 H'!D15<0.5),"-",IFERROR('Tabel 4 H'!D15/'Tabel 4F H'!D15*100,"-")) -> 5.347593583 | E15: =IF(OR('Tabel 4F H'!E15<5,'Tabel 4 H'!E15<0.5),"-",IFERROR('Tabel 4 H'!E15/'Tabel 4F H'!E15*100,"-")) -> 2.857142857 | F15: =IF(OR('Tabel 4F H'!F15<5,'Tabel 4 H'!F15<0.5),"-",IFERROR('Tabel 4 H'!F15/'Tabel 4F H'!F15*100,"-")) -> 0.7751937984 | G15: =IF(OR('Tabel 4F H'!G15<5,'Tabel 4 H'!G15<0.5),"-",IFERROR('Tabel 4 H'!G15/'Tabel 4F H'!G15*100,"-")) -> 5.128205128 | I15: =IF(OR('Tabel 4F H'!I15<5,'Tabel 4 H'!I15<0.5),"-",IFERROR('Tabel 4 H'!I15/'Tabel 4F H'!I15*100,"-")) -> 3.806228374
A16: Landsk. Arkt. | C16: =IF(OR('Tabel 4F H'!C16<5,'Tabel 4 H'!C16<0.5),"-",IFERROR('Tabel 4 H'!C16/'Tabel 4F H'!C16*100,"-")) -> 21.05263158 | D16: =IF(OR('Tabel 4F H'!D16<5,'Tabel 4 H'!D16<0.5),"-",IFERROR('Tabel 4 H'!D16/'Tabel 4F H'!D16*100,"-")) -> 6.878306878 | E16: =IF(OR('Tabel 4F H'!E16<5,'Tabel 4 H'!E16<0.5),"-",IFERROR('Tabel 4 H'!E16/'Tabel 4F H'!E16*100,"-")) -> 4.032258065 | F16: =IF(OR('Tabel 4F H'!F16<5,'Tabel 4 H'!F16<0.5),"-",IFERROR('Tabel 4 H'!F16/'Tabel 4F H'!F16*100,"-")) -> 1.075268817 | G16: =IF(OR('Tabel 4F H'!G16<5,'Tabel 4 H'!G16<0.5),"-",IFERROR('Tabel 4 H'!G16/'Tabel 4F H'!G16*100,"-")) -> 3.571428571 | I16: =IF(OR('Tabel 4F H'!I16<5,'Tabel 4 H'!I16<0.5),"-",IFERROR('Tabel 4 H'!I16/'Tabel 4F H'!I16*100,"-")) -> 6.517311609
A17: Hortonom | C17: =IF(OR('Tabel 4F H'!C17<5,'Tabel 4 H'!C17<0.5),"-",IFERROR('Tabel 4 H'!C17/'Tabel 4F H'!C17*100,"-")) -> - | D17: =IF(OR('Tabel 4F H'!D17<5,'Tabel 4 H'!D17<0.5),"-",IFERROR('Tabel 4 H'!D17/'Tabel 4F H'!D17*100,"-")) -> 15.38461538 | E17: =IF(OR('Tabel 4F H'!E17<5,'Tabel 4 H'!E17<0.5),"-",IFERROR('Tabel 4 H'!E17/'Tabel 4F H'!E17*100,"-")) -> - | F17: =IF(OR('Tabel 4F H'!F17<5,'Tabel 4 H'!F17<0.5),"-",IFERROR('Tabel 4 H'!F17/'Tabel 4F H'!F17*100,"-")) -> - | G17: =IF(OR('Tabel 4F H'!G17<5,'Tabel 4 H'!G17<0.5),"-",IFERROR('Tabel 4 H'!G17/'Tabel 4F H'!G17*100,"-")) -> - | I17: =IF(OR('Tabel 4F H'!I17<5,'Tabel 4 H'!I17<0.5),"-",IFERROR('Tabel 4 H'!I17/'Tabel 4F H'!I17*100,"-")) -> 2.112676056
A18: Forstkand. | C18: =IF(OR('Tabel 4F H'!C18<5,'Tabel 4 H'!C18<0.5),"-",IFERROR('Tabel 4 H'!C18/'Tabel 4F H'!C18*100,"-")) -> 5.555555556 | D18: =IF(OR('Tabel 4F H'!D18<5,'Tabel 4 H'!D18<0.5),"-",IFERROR('Tabel 4 H'!D18/'Tabel 4F H'!D18*100,"-")) -> 4.651162791 | E18: =IF(OR('Tabel 4F H'!E18<5,'Tabel 4 H'!E18<0.5),"-",IFERROR('Tabel 4 H'!E18/'Tabel 4F H'!E18*100,"-")) -> - | F18: =IF(OR('Tabel 4F H'!F18<5,'Tabel 4 H'!F18<0.5),"-",IFERROR('Tabel 4 H'!F18/'Tabel 4F H'!F18*100,"-")) -> - | G18: =IF(OR('Tabel 4F H'!G18<5,'Tabel 4 H'!G18<0.5),"-",IFERROR('Tabel 4 H'!G18/'Tabel 4F H'!G18*100,"-")) -> - | I18: =IF(OR('Tabel 4F H'!I18<5,'Tabel 4 H'!I18<0.5),"-",IFERROR('Tabel 4 H'!I18/'Tabel 4F H'!I18*100,"-")) -> 1.195219124
A19: Jordbrugsakad. | C19: =IF(OR('Tabel 4F H'!C19<5,'Tabel 4 H'!C19<0.5),"-",IFERROR('Tabel 4 H'!C19/'Tabel 4F H'!C19*100,"-")) -> 11.48325359 | D19: =IF(OR('Tabel 4F H'!D19<5,'Tabel 4 H'!D19<0.5),"-",IFERROR('Tabel 4 H'!D19/'Tabel 4F H'!D19*100,"-")) -> 6.25 | E19: =IF(OR('Tabel 4F H'!E19<5,'Tabel 4 H'!E19<0.5),"-",IFERROR('Tabel 4 H'!E19/'Tabel 4F H'!E19*100,"-")) -> 2.415458937 | F19: =IF(OR('Tabel 4F H'!F19<5,'Tabel 4 H'!F19<0.5),"-",IFERROR('Tabel 4 H'!F19/'Tabel 4F H'!F19*100,"-")) -> 0.6134969325 | G19: =IF(OR('Tabel 4F H'!G19<5,'Tabel 4 H'!G19<0.5),"-",IFERROR('Tabel 4 H'!G19/'Tabel 4F H'!G19*100,"-")) -> 3.381642512 | I19: =IF(OR('Tabel 4F H'!I19<5,'Tabel 4 H'!I19<0.5),"-",IFERROR('Tabel 4 H'!I19/'Tabel 4F H'!I19*100,"-")) -> 4.054825814
A20: Mejeriing. | C20: =IF(OR('Tabel 4F H'!C20<5,'Tabel 4 H'!C20<0.5),"-",IFERROR('Tabel 4 H'!C20/'Tabel 4F H'!C20*100,"-")) -> 12.90322581 | D20: =IF(OR('Tabel 4F H'!D20<5,'Tabel 4 H'!D20<0.5),"-",IFERROR('Tabel 4 H'!D20/'Tabel 4F H'!D20*100,"-")) -> 7.01754386 | E20: =IF(OR('Tabel 4F H'!E20<5,'Tabel 4 H'!E20<0.5),"-",IFERROR('Tabel 4 H'!E20/'Tabel 4F H'!E20*100,"-")) -> - | F20: =IF(OR('Tabel 4F H'!F20<5,'Tabel 4 H'!F20<0.5),"-",IFERROR('Tabel 4 H'!F20/'Tabel 4F H'!F20*100,"-")) -> - | G20: =IF(OR('Tabel 4F H'!G20<5,'Tabel 4 H'!G20<0.5),"-",IFERROR('Tabel 4 H'!G20/'Tabel 4F H'!G20*100,"-")) -> - | I20: =IF(OR('Tabel 4F H'!I20<5,'Tabel 4 H'!I20<0.5),"-",IFERROR('Tabel 4 H'!I20/'Tabel 4F H'!I20*100,"-")) -> 5
A21: Levn.m.kand. | C21: =IF(OR('Tabel 4F H'!C21<5,'Tabel 4 H'!C21<0.5),"-",IFERROR('Tabel 4 H'!C21/'Tabel 4F H'!C21*100,"-")) -> 9.836065574 | D21: =IF(OR('Tabel 4F H'!D21<5,'Tabel 4 H'!D21<0.5),"-",IFERROR('Tabel 4 H'!D21/'Tabel 4F H'!D21*100,"-")) -> 5.434782609 | E21: =IF(OR('Tabel 4F H'!E21<5,'Tabel 4 H'!E21<0.5),"-",IFERROR('Tabel 4 H'!E21/'Tabel 4F H'!E21*100,"-")) -> - | F21: =IF(OR('Tabel 4F H'!F21<5,'Tabel 4 H'!F21<0.5),"-",IFERROR('Tabel 4 H'!F21/'Tabel 4F H'!F21*100,"-")) -> - | G21: =IF(OR('Tabel 4F H'!G21<5,'Tabel 4 H'!G21<0.5),"-",IFERROR('Tabel 4 H'!G21/'Tabel 4F H'!G21*100,"-")) -> - | I21: =IF(OR('Tabel 4F H'!I21<5,'Tabel 4 H'!I21<0.5),"-",IFERROR('Tabel 4 H'!I21/'Tabel 4F H'!I21*100,"-")) -> 4.705882353
A22: Dyrlæge | C22: =IF(OR('Tabel 4F H'!C22<5,'Tabel 4 H'!C22<0.5),"-",IFERROR('Tabel 4 H'!C22/'Tabel 4F H'!C22*100,"-")) -> 5.844155844 | D22: =IF(OR('Tabel 4F H'!D22<5,'Tabel 4 H'!D22<0.5),"-",IFERROR('Tabel 4 H'!D22/'Tabel 4F H'!D22*100,"-")) -> 1.518987342 | E22: =IF(OR('Tabel 4F H'!E22<5,'Tabel 4 H'!E22<0.5),"-",IFERROR('Tabel 4 H'!E22/'Tabel 4F H'!E22*100,"-")) -> 3.669724771 | F22: =IF(OR('Tabel 4F H'!F22<5,'Tabel 4 H'!F22<0.5),"-",IFERROR('Tabel 4 H'!F22/'Tabel 4F H'!F22*100,"-")) -> - | G22: =IF(OR('Tabel 4F H'!G22<5,'Tabel 4 H'!G22<0.5),"-",IFERROR('Tabel 4 H'!G22/'Tabel 4F H'!G22*100,"-")) -> 1.204819277 | I22: =IF(OR('Tabel 4F H'!I22<5,'Tabel 4 H'!I22<0.5),"-",IFERROR('Tabel 4 H'!I22/'Tabel 4F H'!I22*100,"-")) -> 2.395209581
A23: Farmaceut | C23: =IF(OR('Tabel 4F H'!C23<5,'Tabel 4 H'!C23<0.5),"-",IFERROR('Tabel 4 H'!C23/'Tabel 4F H'!C23*100,"-")) -> 9.077598829 | D23: =IF(OR('Tabel 4F H'!D23<5,'Tabel 4 H'!D23<0.5),"-",IFERROR('Tabel 4 H'!D23/'Tabel 4F H'!D23*100,"-")) -> 1.408450704 | E23: =IF(OR('Tabel 4F H'!E23<5,'Tabel 4 H'!E23<0.5),"-",IFERROR('Tabel 4 H'!E23/'Tabel 4F H'!E23*100,"-")) -> 0.38647343 | F23: =IF(OR('Tabel 4F H'!F23<5,'Tabel 4 H'!F23<0.5),"-",IFERROR('Tabel 4 H'!F23/'Tabel 4F H'!F23*100,"-")) -> 0.8955223881 | G23: =IF(OR('Tabel 4F H'!G23<5,'Tabel 4 H'!G23<0.5),"-",IFERROR('Tabel 4 H'!G23/'Tabel 4F H'!G23*100,"-")) -> 2.371541502 | I23: =IF(OR('Tabel 4F H'!I23<5,'Tabel 4 H'!I23<0.5),"-",IFERROR('Tabel 4 H'!I23/'Tabel 4F H'!I23*100,"-")) -> 2.431077694
A24: Læge | C24: =IF(OR('Tabel 4F H'!C24<5,'Tabel 4 H'!C24<0.5),"-",IFERROR('Tabel 4 H'!C24/'Tabel 4F H'!C24*100,"-")) -> 6.635622817 | D24: =IF(OR('Tabel 4F H'!D24<5,'Tabel 4 H'!D24<0.5),"-",IFERROR('Tabel 4 H'!D24/'Tabel 4F H'!D24*100,"-")) -> 2.045075125 | E24: =IF(OR('Tabel 4F H'!E24<5,'Tabel 4 H'!E24<0.5),"-",IFERROR('Tabel 4 H'!E24/'Tabel 4F H'!E24*100,"-")) -> 0.8372093023 | F24: =IF(OR('Tabel 4F H'!F24<5,'Tabel 4 H'!F24<0.5),"-",IFERROR('Tabel 4 H'!F24/'Tabel 4F H'!F24*100,"-")) -> 0.7374631268 | G24: =IF(OR('Tabel 4F H'!G24<5,'Tabel 4 H'!G24<0.5),"-",IFERROR('Tabel 4 H'!G24/'Tabel 4F H'!G24*100,"-")) -> 0.4106776181 | I24: =IF(OR('Tabel 4F H'!I24<5,'Tabel 4 H'!I24<0.5),"-",IFERROR('Tabel 4 H'!I24/'Tabel 4F H'!I24*100,"-")) -> 2.220200182
A25: Tandlæge | C25: =IF(OR('Tabel 4F H'!C25<5,'Tabel 4 H'!C25<0.5),"-",IFERROR('Tabel 4 H'!C25/'Tabel 4F H'!C25*100,"-")) -> 5.806451613 | D25: =IF(OR('Tabel 4F H'!D25<5,'Tabel 4 H'!D25<0.5),"-",IFERROR('Tabel 4 H'!D25/'Tabel 4F H'!D25*100,"-")) -> 1.006711409 | E25: =IF(OR('Tabel 4F H'!E25<5,'Tabel 4 H'!E25<0.5),"-",IFERROR('Tabel 4 H'!E25/'Tabel 4F H'!E25*100,"-")) -> 2.538071066 | F25: =IF(OR('Tabel 4F H'!F25<5,'Tabel 4 H'!F25<0.5),"-",IFERROR('Tabel 4 H'!F25/'Tabel 4F H'!F25*100,"-")) -> 1.526717557 | G25: =IF(OR('Tabel 4F H'!G25<5,'Tabel 4 H'!G25<0.5),"-",IFERROR('Tabel 4 H'!G25/'Tabel 4F H'!G25*100,"-")) -> 2.197802198 | I25: =IF(OR('Tabel 4F H'!I25<5,'Tabel 4 H'!I25<0.5),"-",IFERROR('Tabel 4 H'!I25/'Tabel 4F H'!I25*100,"-")) -> 2.408256881
A26: Arkitekt | C26: =IF(OR('Tabel 4F H'!C26<5,'Tabel 4 H'!C26<0.5),"-",IFERROR('Tabel 4 H'!C26/'Tabel 4F H'!C26*100,"-")) -> 24.24242424 | D26: =IF(OR('Tabel 4F H'!D26<5,'Tabel 4 H'!D26<0.5),"-",IFERROR('Tabel 4 H'!D26/'Tabel 4F H'!D26*100,"-")) -> 5.529953917 | E26: =IF(OR('Tabel 4F H'!E26<5,'Tabel 4 H'!E26<0.5),"-",IFERROR('Tabel 4 H'!E26/'Tabel 4F H'!E26*100,"-")) -> 2.6816609 | F26: =IF(OR('Tabel 4F H'!F26<5,'Tabel 4 H'!F26<0.5),"-",IFERROR('Tabel 4 H'!F26/'Tabel 4F H'!F26*100,"-")) -> 2.802547771 | G26: =IF(OR('Tabel 4F H'!G26<5,'Tabel 4 H'!G26<0.5),"-",IFERROR('Tabel 4 H'!G26/'Tabel 4F H'!G26*100,"-")) -> 3.731343284 | I26: =IF(OR('Tabel 4F H'!I26<5,'Tabel 4 H'!I26<0.5),"-",IFERROR('Tabel 4 H'!I26/'Tabel 4F H'!I26*100,"-")) -> 5.200433369
A27: Landinspek. | C27: =IF(OR('Tabel 4F H'!C27<5,'Tabel 4 H'!C27<0.5),"-",IFERROR('Tabel 4 H'!C27/'Tabel 4F H'!C27*100,"-")) -> - | D27: =IF(OR('Tabel 4F H'!D27<5,'Tabel 4 H'!D27<0.5),"-",IFERROR('Tabel 4 H'!D27/'Tabel 4F H'!D27*100,"-")) -> 1.818181818 | E27: =IF(OR('Tabel 4F H'!E27<5,'Tabel 4 H'!E27<0.5),"-",IFERROR('Tabel 4 H'!E27/'Tabel 4F H'!E27*100,"-")) -> - | F27: =IF(OR('Tabel 4F H'!F27<5,'Tabel 4 H'!F27<0.5),"-",IFERROR('Tabel 4 H'!F27/'Tabel 4F H'!F27*100,"-")) -> - | G27: =IF(OR('Tabel 4F H'!G27<5,'Tabel 4 H'!G27<0.5),"-",IFERROR('Tabel 4 H'!G27/'Tabel 4F H'!G27*100,"-")) -> - | I27: =IF(OR('Tabel 4F H'!I27<5,'Tabel 4 H'!I27<0.5),"-",IFERROR('Tabel 4 H'!I27/'Tabel 4F H'!I27*100,"-")) -> 0.5263157895
A28: Bibliotekar | C28: =IF(OR('Tabel 4F H'!C28<5,'Tabel 4 H'!C28<0.5),"-",IFERROR('Tabel 4 H'!C28/'Tabel 4F H'!C28*100,"-")) -> 15.09433962 | D28: =IF(OR('Tabel 4F H'!D28<5,'Tabel 4 H'!D28<0.5),"-",IFERROR('Tabel 4 H'!D28/'Tabel 4F H'!D28*100,"-")) -> 5.921052632 | E28: =IF(OR('Tabel 4F H'!E28<5,'Tabel 4 H'!E28<0.5),"-",IFERROR('Tabel 4 H'!E28/'Tabel 4F H'!E28*100,"-")) -> 2.873563218 | F28: =IF(OR('Tabel 4F H'!F28<5,'Tabel 4 H'!F28<0.5),"-",IFERROR('Tabel 4 H'!F28/'Tabel 4F H'!F28*100,"-")) -> 2.188183807 | G28: =IF(OR('Tabel 4F H'!G28<5,'Tabel 4 H'!G28<0.5),"-",IFERROR('Tabel 4 H'!G28/'Tabel 4F H'!G28*100,"-")) -> 2.390438247 | I28: =IF(OR('Tabel 4F H'!I28<5,'Tabel 4 H'!I28<0.5),"-",IFERROR('Tabel 4 H'!I28/'Tabel 4F H'!I28*100,"-")) -> 3.59168242
A29: Musikudd. | C29: =IF(OR('Tabel 4F H'!C29<5,'Tabel 4 H'!C29<0.5),"-",IFERROR('Tabel 4 H'!C29/'Tabel 4F H'!C29*100,"-")) -> - | D29: =IF(OR('Tabel 4F H'!D29<5,'Tabel 4 H'!D29<0.5),"-",IFERROR('Tabel 4 H'!D29/'Tabel 4F H'!D29*100,"-")) -> 5.555555556 | E29: =IF(OR('Tabel 4F H'!E29<5,'Tabel 4 H'!E29<0.5),"-",IFERROR('Tabel 4 H'!E29/'Tabel 4F H'!E29*100,"-")) -> - | F29: =IF(OR('Tabel 4F H'!F29<5,'Tabel 4 H'!F29<0.5),"-",IFERROR('Tabel 4 H'!F29/'Tabel 4F H'!F29*100,"-")) -> 0.9345794393 | G29: =IF(OR('Tabel 4F H'!G29<5,'Tabel 4 H'!G29<0.5),"-",IFERROR('Tabel 4 H'!G29/'Tabel 4F H'!G29*100,"-")) -> 5.063291139 | I29: =IF(OR('Tabel 4F H'!I29<5,'Tabel 4 H'!I29<0.5),"-",IFERROR('Tabel 4 H'!I29/'Tabel 4F H'!I29*100,"-")) -> 2.430555556
A30: Teolog | C30: =IF(OR('Tabel 4F H'!C30<5,'Tabel 4 H'!C30<0.5),"-",IFERROR('Tabel 4 H'!C30/'Tabel 4F H'!C30*100,"-")) -> 15.38461538 | D30: =IF(OR('Tabel 4F H'!D30<5,'Tabel 4 H'!D30<0.5),"-",IFERROR('Tabel 4 H'!D30/'Tabel 4F H'!D30*100,"-")) -> 11.53846154 | E30: =IF(OR('Tabel 4F H'!E30<5,'Tabel 4 H'!E30<0.5),"-",IFERROR('Tabel 4 H'!E30/'Tabel 4F H'!E30*100,"-")) -> 2.547770701 | F30: =IF(OR('Tabel 4F H'!F30<5,'Tabel 4 H'!F30<0.5),"-",IFERROR('Tabel 4 H'!F30/'Tabel 4F H'!F30*100,"-")) -> 3.783783784 | G30: =IF(OR('Tabel 4F H'!G30<5,'Tabel 4 H'!G30<0.5),"-",IFERROR('Tabel 4 H'!G30/'Tabel 4F H'!G30*100,"-")) -> 4.255319149 | I30: =IF(OR('Tabel 4F H'!I30<5,'Tabel 4 H'!I30<0.5),"-",IFERROR('Tabel 4 H'!I30/'Tabel 4F H'!I30*100,"-")) -> 5.244122966
A31: Psykolog | C31: =IF(OR('Tabel 4F H'!C31<5,'Tabel 4 H'!C31<0.5),"-",IFERROR('Tabel 4 H'!C31/'Tabel 4F H'!C31*100,"-")) -> 6.290322581 | D31: =IF(OR('Tabel 4F H'!D31<5,'Tabel 4 H'!D31<0.5),"-",IFERROR('Tabel 4 H'!D31/'Tabel 4F H'!D31*100,"-")) -> 3.669724771 | E31: =IF(OR('Tabel 4F H'!E31<5,'Tabel 4 H'!E31<0.5),"-",IFERROR('Tabel 4 H'!E31/'Tabel 4F H'!E31*100,"-")) -> 1.498929336 | F31: =IF(OR('Tabel 4F H'!F31<5,'Tabel 4 H'!F31<0.5),"-",IFERROR('Tabel 4 H'!F31/'Tabel 4F H'!F31*100,"-")) -> 1.465201465 | G31: =IF(OR('Tabel 4F H'!G31<5,'Tabel 4 H'!G31<0.5),"-",IFERROR('Tabel 4 H'!G31/'Tabel 4F H'!G31*100,"-")) -> 2.702702703 | I31: =IF(OR('Tabel 4F H'!I31<5,'Tabel 4 H'!I31<0.5),"-",IFERROR('Tabel 4 H'!I31/'Tabel 4F H'!I31*100,"-")) -> 3.177966102
A32: Jurist | C32: =IF(OR('Tabel 4F H'!C32<5,'Tabel 4 H'!C32<0.5),"-",IFERROR('Tabel 4 H'!C32/'Tabel 4F H'!C32*100,"-")) -> 1.441441441 | D32: =IF(OR('Tabel 4F H'!D32<5,'Tabel 4 H'!D32<0.5),"-",IFERROR('Tabel 4 H'!D32/'Tabel 4F H'!D32*100,"-")) -> 1.49776928 | E32: =IF(OR('Tabel 4F H'!E32<5,'Tabel 4 H'!E32<0.5),"-",IFERROR('Tabel 4 H'!E32/'Tabel 4F H'!E32*100,"-")) -> 1.130399677 | F32: =IF(OR('Tabel 4F H'!F32<5,'Tabel 4 H'!F32<0.5),"-",IFERROR('Tabel 4 H'!F32/'Tabel 4F H'!F32*100,"-")) -> 0.9643201543 | G32: =IF(OR('Tabel 4F H'!G32<5,'Tabel 4 H'!G32<0.5),"-",IFERROR('Tabel 4 H'!G32/'Tabel 4F H'!G32*100,"-")) -> 1.951219512 | I32: =IF(OR('Tabel 4F H'!I32<5,'Tabel 4 H'!I32<0.5),"-",IFERROR('Tabel 4 H'!I32/'Tabel 4F H'!I32*100,"-")) -> 1.314073628
A33: Økonom | C33: =IF(OR('Tabel 4F H'!C33<5,'Tabel 4 H'!C33<0.5),"-",IFERROR('Tabel 4 H'!C33/'Tabel 4F H'!C33*100,"-")) -> 3.68852459 | D33: =IF(OR('Tabel 4F H'!D33<5,'Tabel 4 H'!D33<0.5),"-",IFERROR('Tabel 4 H'!D33/'Tabel 4F H'!D33*100,"-")) -> 1.343784994 | E33: =IF(OR('Tabel 4F H'!E33<5,'Tabel 4 H'!E33<0.5),"-",IFERROR('Tabel 4 H'!E33/'Tabel 4F H'!E33*100,"-")) -> 1.13452188 | F33: =IF(OR('Tabel 4F H'!F33<5,'Tabel 4 H'!F33<0.5),"-",IFERROR('Tabel 4 H'!F33/'Tabel 4F H'!F33*100,"-")) -> 1.194659171 | G33: =IF(OR('Tabel 4F H'!G33<5,'Tabel 4 H'!G33<0.5),"-",IFERROR('Tabel 4 H'!G33/'Tabel 4F H'!G33*100,"-")) -> 3.305785124 | I33: =IF(OR('Tabel 4F H'!I33<5,'Tabel 4 H'!I33<0.5),"-",IFERROR('Tabel 4 H'!I33/'Tabel 4F H'!I33*100,"-")) -> 1.781390522
A34: Samf. Adm. | C34: =IF(OR('Tabel 4F H'!C34<5,'Tabel 4 H'!C34<0.5),"-",IFERROR('Tabel 4 H'!C34/'Tabel 4F H'!C34*100,"-")) -> 8.025865348 | D34: =IF(OR('Tabel 4F H'!D34<5,'Tabel 4 H'!D34<0.5),"-",IFERROR('Tabel 4 H'!D34/'Tabel 4F H'!D34*100,"-")) -> 3.258858688 | E34: =IF(OR('Tabel 4F H'!E34<5,'Tabel 4 H'!E34<0.5),"-",IFERROR('Tabel 4 H'!E34/'Tabel 4F H'!E34*100,"-")) -> 2.176063304 | F34: =IF(OR('Tabel 4F H'!F34<5,'Tabel 4 H'!F34<0.5),"-",IFERROR('Tabel 4 H'!F34/'Tabel 4F H'!F34*100,"-")) -> 2.379095164 | G34: =IF(OR('Tabel 4F H'!G34<5,'Tabel 4 H'!G34<0.5),"-",IFERROR('Tabel 4 H'!G34/'Tabel 4F H'!G34*100,"-")) -> 3.425774878 | I34: =IF(OR('Tabel 4F H'!I34<5,'Tabel 4 H'!I34<0.5),"-",IFERROR('Tabel 4 H'!I34/'Tabel 4F H'!I34*100,"-")) -> 3.533094812
A35: Cand. Merc. | C35: =IF(OR('Tabel 4F H'!C35<5,'Tabel 4 H'!C35<0.5),"-",IFERROR('Tabel 4 H'!C35/'Tabel 4F H'!C35*100,"-")) -> 4.805843906 | D35: =IF(OR('Tabel 4F H'!D35<5,'Tabel 4 H'!D35<0.5),"-",IFERROR('Tabel 4 H'!D35/'Tabel 4F H'!D35*100,"-")) -> 2.503461006 | E35: =IF(OR('Tabel 4F H'!E35<5,'Tabel 4 H'!E35<0.5),"-",IFERROR('Tabel 4 H'!E35/'Tabel 4F H'!E35*100,"-")) -> 1.92046995 | F35: =IF(OR('Tabel 4F H'!F35<5,'Tabel 4 H'!F35<0.5),"-",IFERROR('Tabel 4 H'!F35/'Tabel 4F H'!F35*100,"-")) -> 2.212389381 | G35: =IF(OR('Tabel 4F H'!G35<5,'Tabel 4 H'!G35<0.5),"-",IFERROR('Tabel 4 H'!G35/'Tabel 4F H'!G35*100,"-")) -> 6.349206349 | I35: =IF(OR('Tabel 4F H'!I35<5,'Tabel 4 H'!I35<0.5),"-",IFERROR('Tabel 4 H'!I35/'Tabel 4F H'!I35*100,"-")) -> 2.987242929
A36: HA | C36: =IF(OR('Tabel 4F H'!C36<5,'Tabel 4 H'!C36<0.5),"-",IFERROR('Tabel 4 H'!C36/'Tabel 4F H'!C36*100,"-")) -> 7.286432161 | D36: =IF(OR('Tabel 4F H'!D36<5,'Tabel 4 H'!D36<0.5),"-",IFERROR('Tabel 4 H'!D36/'Tabel 4F H'!D36*100,"-")) -> 3.554868624 | E36: =IF(OR('Tabel 4F H'!E36<5,'Tabel 4 H'!E36<0.5),"-",IFERROR('Tabel 4 H'!E36/'Tabel 4F H'!E36*100,"-")) -> 3.278688525 | F36: =IF(OR('Tabel 4F H'!F36<5,'Tabel 4 H'!F36<0.5),"-",IFERROR('Tabel 4 H'!F36/'Tabel 4F H'!F36*100,"-")) -> 2.359882006 | G36: =IF(OR('Tabel 4F H'!G36<5,'Tabel 4 H'!G36<0.5),"-",IFERROR('Tabel 4 H'!G36/'Tabel 4F H'!G36*100,"-")) -> 7.203389831 | I36: =IF(OR('Tabel 4F H'!I36<5,'Tabel 4 H'!I36<0.5),"-",IFERROR('Tabel 4 H'!I36/'Tabel 4F H'!I36*100,"-")) -> 4.627249357
A37: HD | C37: =IF(OR('Tabel 4F H'!C37<5,'Tabel 4 H'!C37<0.5),"-",IFERROR('Tabel 4 H'!C37/'Tabel 4F H'!C37*100,"-")) -> 6.201550388 | D37: =IF(OR('Tabel 4F H'!D37<5,'Tabel 4 H'!D37<0.5),"-",IFERROR('Tabel 4 H'!D37/'Tabel 4F H'!D37*100,"-")) -> 4.539385848 | E37: =IF(OR('Tabel 4F H'!E37<5,'Tabel 4 H'!E37<0.5),"-",IFERROR('Tabel 4 H'!E37/'Tabel 4F H'!E37*100,"-")) -> 1.454545455 | F37: =IF(OR('Tabel 4F H'!F37<5,'Tabel 4 H'!F37<0.5),"-",IFERROR('Tabel 4 H'!F37/'Tabel 4F H'!F37*100,"-")) -> 1.764705882 | G37: =IF(OR('Tabel 4F H'!G37<5,'Tabel 4 H'!G37<0.5),"-",IFERROR('Tabel 4 H'!G37/'Tabel 4F H'!G37*100,"-")) -> 5.413105413 | I37: =IF(OR('Tabel 4F H'!I37<5,'Tabel 4 H'!I37<0.5),"-",IFERROR('Tabel 4 H'!I37/'Tabel 4F H'!I37*100,"-")) -> 3.808353808
A38: Komm. og Sprog | C38: =IF(OR('Tabel 4F H'!C38<5,'Tabel 4 H'!C38<0.5),"-",IFERROR('Tabel 4 H'!C38/'Tabel 4F H'!C38*100,"-")) -> 10.68376068 | D38: =IF(OR('Tabel 4F H'!D38<5,'Tabel 4 H'!D38<0.5),"-",IFERROR('Tabel 4 H'!D38/'Tabel 4F H'!D38*100,"-")) -> 5.267857143 | E38: =IF(OR('Tabel 4F H'!E38<5,'Tabel 4 H'!E38<0.5),"-",IFERROR('Tabel 4 H'!E38/'Tabel 4F H'!E38*100,"-")) -> 3.480714958 | F38: =IF(OR('Tabel 4F H'!F38<5,'Tabel 4 H'!F38<0.5),"-",IFERROR('Tabel 4 H'!F38/'Tabel 4F H'!F38*100,"-")) -> 3.180212014 | G38: =IF(OR('Tabel 4F H'!G38<5,'Tabel 4 H'!G38<0.5),"-",IFERROR('Tabel 4 H'!G38/'Tabel 4F H'!G38*100,"-")) -> 4.201680672 | I38: =IF(OR('Tabel 4F H'!I38<5,'Tabel 4 H'!I38<0.5),"-",IFERROR('Tabel 4 H'!I38/'Tabel 4F H'!I38*100,"-")) -> 4.874254602
A39: Bygningskonst. | C39: =IF(OR('Tabel 4F H'!C39<5,'Tabel 4 H'!C39<0.5),"-",IFERROR('Tabel 4 H'!C39/'Tabel 4F H'!C39*100,"-")) -> 9.930715935 | D39: =IF(OR('Tabel 4F H'!D39<5,'Tabel 4 H'!D39<0.5),"-",IFERROR('Tabel 4 H'!D39/'Tabel 4F H'!D39*100,"-")) -> 2.822925577 | E39: =IF(OR('Tabel 4F H'!E39<5,'Tabel 4 H'!E39<0.5),"-",IFERROR('Tabel 4 H'!E39/'Tabel 4F H'!E39*100,"-")) -> 1.949025487 | F39: =IF(OR('Tabel 4F H'!F39<5,'Tabel 4 H'!F39<0.5),"-",IFERROR('Tabel 4 H'!F39/'Tabel 4F H'!F39*100,"-")) -> 2.046035806 | G39: =IF(OR('Tabel 4F H'!G39<5,'Tabel 4 H'!G39<0.5),"-",IFERROR('Tabel 4 H'!G39/'Tabel 4F H'!G39*100,"-")) -> 2.197802198 | I39: =IF(OR('Tabel 4F H'!I39<5,'Tabel 4 H'!I39<0.5),"-",IFERROR('Tabel 4 H'!I39/'Tabel 4F H'!I39*100,"-")) -> 3.598691385
A40: Cand. IT. | C40: =IF(OR('Tabel 4F H'!C40<5,'Tabel 4 H'!C40<0.5),"-",IFERROR('Tabel 4 H'!C40/'Tabel 4F H'!C40*100,"-")) -> 6.856403622 | D40: =IF(OR('Tabel 4F H'!D40<5,'Tabel 4 H'!D40<0.5),"-",IFERROR('Tabel 4 H'!D40/'Tabel 4F H'!D40*100,"-")) -> 4.019073569 | E40: =IF(OR('Tabel 4F H'!E40<5,'Tabel 4 H'!E40<0.5),"-",IFERROR('Tabel 4 H'!E40/'Tabel 4F H'!E40*100,"-")) -> 2.937420179 | F40: =IF(OR('Tabel 4F H'!F40<5,'Tabel 4 H'!F40<0.5),"-",IFERROR('Tabel 4 H'!F40/'Tabel 4F H'!F40*100,"-")) -> 0.8 | G40: =IF(OR('Tabel 4F H'!G40<5,'Tabel 4 H'!G40<0.5),"-",IFERROR('Tabel 4 H'!G40/'Tabel 4F H'!G40*100,"-")) -> 7.692307692 | I40: =IF(OR('Tabel 4F H'!I40<5,'Tabel 4 H'!I40<0.5),"-",IFERROR('Tabel 4 H'!I40/'Tabel 4F H'!I40*100,"-")) -> 4.332700822
A41: Bac. Samf. | C41: =IF(OR('Tabel 4F H'!C41<5,'Tabel 4 H'!C41<0.5),"-",IFERROR('Tabel 4 H'!C41/'Tabel 4F H'!C41*100,"-")) -> 13.18681319 | D41: =IF(OR('Tabel 4F H'!D41<5,'Tabel 4 H'!D41<0.5),"-",IFERROR('Tabel 4 H'!D41/'Tabel 4F H'!D41*100,"-")) -> 5.240174672 | E41: =IF(OR('Tabel 4F H'!E41<5,'Tabel 4 H'!E41<0.5),"-",IFERROR('Tabel 4 H'!E41/'Tabel 4F H'!E41*100,"-")) -> 3.404255319 | F41: =IF(OR('Tabel 4F H'!F41<5,'Tabel 4 H'!F41<0.5),"-",IFERROR('Tabel 4 H'!F41/'Tabel 4F H'!F41*100,"-")) -> 3.164556962 | G41: =IF(OR('Tabel 4F H'!G41<5,'Tabel 4 H'!G41<0.5),"-",IFERROR('Tabel 4 H'!G41/'Tabel 4F H'!G41*100,"-")) -> 3.125 | I41: =IF(OR('Tabel 4F H'!I41<5,'Tabel 4 H'!I41<0.5),"-",IFERROR('Tabel 4 H'!I41/'Tabel 4F H'!I41*100,"-")) -> 5.980861244
A42: Bac. Hum. | C42: =IF(OR('Tabel 4F H'!C42<5,'Tabel 4 H'!C42<0.5),"-",IFERROR('Tabel 4 H'!C42/'Tabel 4F H'!C42*100,"-")) -> 16.81528662 | D42: =IF(OR('Tabel 4F H'!D42<5,'Tabel 4 H'!D42<0.5),"-",IFERROR('Tabel 4 H'!D42/'Tabel 4F H'!D42*100,"-")) -> 9.39334638 | E42: =IF(OR('Tabel 4F H'!E42<5,'Tabel 4 H'!E42<0.5),"-",IFERROR('Tabel 4 H'!E42/'Tabel 4F H'!E42*100,"-")) -> 6.214689266 | F42: =IF(OR('Tabel 4F H'!F42<5,'Tabel 4 H'!F42<0.5),"-",IFERROR('Tabel 4 H'!F42/'Tabel 4F H'!F42*100,"-")) -> 3.376623377 | G42: =IF(OR('Tabel 4F H'!G42<5,'Tabel 4 H'!G42<0.5),"-",IFERROR('Tabel 4 H'!G42/'Tabel 4F H'!G42*100,"-")) -> 5.035971223 | I42: =IF(OR('Tabel 4F H'!I42<5,'Tabel 4 H'!I42<0.5),"-",IFERROR('Tabel 4 H'!I42/'Tabel 4F H'!I42*100,"-")) -> 10.21159154
A43: Bac. Nat. | C43: =IF(OR('Tabel 4F H'!C43<5,'Tabel 4 H'!C43<0.5),"-",IFERROR('Tabel 4 H'!C43/'Tabel 4F H'!C43*100,"-")) -> 16.85678074 | D43: =IF(OR('Tabel 4F H'!D43<5,'Tabel 4 H'!D43<0.5),"-",IFERROR('Tabel 4 H'!D43/'Tabel 4F H'!D43*100,"-")) -> 4.510309278 | E43: =IF(OR('Tabel 4F H'!E43<5,'Tabel 4 H'!E43<0.5),"-",IFERROR('Tabel 4 H'!E43/'Tabel 4F H'!E43*100,"-")) -> 3.558718861 | F43: =IF(OR('Tabel 4F H'!F43<5,'Tabel 4 H'!F43<0.5),"-",IFERROR('Tabel 4 H'!F43/'Tabel 4F H'!F43*100,"-")) -> 3.2 | G43: =IF(OR('Tabel 4F H'!G43<5,'Tabel 4 H'!G43<0.5),"-",IFERROR('Tabel 4 H'!G43/'Tabel 4F H'!G43*100,"-")) -> 2.941176471 | I43: =IF(OR('Tabel 4F H'!I43<5,'Tabel 4 H'!I43<0.5),"-",IFERROR('Tabel 4 H'!I43/'Tabel 4F H'!I43*100,"-")) -> 9.127182045
A44: Andre | C44: =IF(OR('Tabel 4F H'!C44<5,'Tabel 4 H'!C44<0.5),"-",IFERROR('Tabel 4 H'!C44/'Tabel 4F H'!C44*100,"-")) -> 12.79139271 | D44: =IF(OR('Tabel 4F H'!D44<5,'Tabel 4 H'!D44<0.5),"-",IFERROR('Tabel 4 H'!D44/'Tabel 4F H'!D44*100,"-")) -> 5.528366866 | E44: =IF(OR('Tabel 4F H'!E44<5,'Tabel 4 H'!E44<0.5),"-",IFERROR('Tabel 4 H'!E44/'Tabel 4F H'!E44*100,"-")) -> 4.269333984 | F44: =IF(OR('Tabel 4F H'!F44<5,'Tabel 4 H'!F44<0.5),"-",IFERROR('Tabel 4 H'!F44/'Tabel 4F H'!F44*100,"-")) -> 5.063848525 | G44: =IF(OR('Tabel 4F H'!G44<5,'Tabel 4 H'!G44<0.5),"-",IFERROR('Tabel 4 H'!G44/'Tabel 4F H'!G44*100,"-")) -> 7.157057654 | I44: =IF(OR('Tabel 4F H'!I44<5,'Tabel 4 H'!I44<0.5),"-",IFERROR('Tabel 4 H'!I44/'Tabel 4F H'!I44*100,"-")) -> 6.048331731
A46: Total | C46: =IF(OR('Tabel 4F H'!C46<5,'Tabel 4 H'!C46<0.5),"-",IFERROR('Tabel 4 H'!C46/'Tabel 4F H'!C46*100,"-")) -> 9.106463878 | D46: =IF(OR('Tabel 4F H'!D46<5,'Tabel 4 H'!D46<0.5),"-",IFERROR('Tabel 4 H'!D46/'Tabel 4F H'!D46*100,"-")) -> 3.881835212 | E46: =IF(OR('Tabel 4F H'!E46<5,'Tabel 4 H'!E46<0.5),"-",IFERROR('Tabel 4 H'!E46/'Tabel 4F H'!E46*100,"-")) -> 2.304635189 | F46: =IF(OR('Tabel 4F H'!F46<5,'Tabel 4 H'!F46<0.5),"-",IFERROR('Tabel 4 H'!F46/'Tabel 4F H'!F46*100,"-")) -> 2.034248937 | G46: =IF(OR('Tabel 4F H'!G46<5,'Tabel 4 H'!G46<0.5),"-",IFERROR('Tabel 4 H'!G46/'Tabel 4F H'!G46*100,"-")) -> 3.348972658 | I46: =IF(OR('Tabel 4F H'!I46<5,'Tabel 4 H'!I46<0.5),"-",IFERROR('Tabel 4 H'!I46/'Tabel 4F H'!I46*100,"-")) -> 3.990930177
A48: Ingeniører i alt | C48: =IF(OR('Tabel 4F H'!C48<5,'Tabel 4 H'!C48<0.5),"-",IFERROR('Tabel 4 H'!C48/'Tabel 4F H'!C48*100,"-")) -> 7.015924302 | D48: =IF(OR('Tabel 4F H'!D48<5,'Tabel 4 H'!D48<0.5),"-",IFERROR('Tabel 4 H'!D48/'Tabel 4F H'!D48*100,"-")) -> 1.915615907 | E48: =IF(OR('Tabel 4F H'!E48<5,'Tabel 4 H'!E48<0.5),"-",IFERROR('Tabel 4 H'!E48/'Tabel 4F H'!E48*100,"-")) -> 1.032276825 | F48: =IF(OR('Tabel 4F H'!F48<5,'Tabel 4 H'!F48<0.5),"-",IFERROR('Tabel 4 H'!F48/'Tabel 4F H'!F48*100,"-")) -> 1.077070369 | G48: =IF(OR('Tabel 4F H'!G48<5,'Tabel 4 H'!G48<0.5),"-",IFERROR('Tabel 4 H'!G48/'Tabel 4F H'!G48*100,"-")) -> 2.030008826 | I48: =IF(OR('Tabel 4F H'!I48<5,'Tabel 4 H'!I48<0.5),"-",IFERROR('Tabel 4 H'!I48/'Tabel 4F H'!I48*100,"-")) -> 2.216953931
A49: Magistre i alt | C49: =IF(OR('Tabel 4F H'!C49<5,'Tabel 4 H'!C49<0.5),"-",IFERROR('Tabel 4 H'!C49/'Tabel 4F H'!C49*100,"-")) -> 15.8839779 | D49: =IF(OR('Tabel 4F H'!D49<5,'Tabel 4 H'!D49<0.5),"-",IFERROR('Tabel 4 H'!D49/'Tabel 4F H'!D49*100,"-")) -> 6.812012216 | E49: =IF(OR('Tabel 4F H'!E49<5,'Tabel 4 H'!E49<0.5),"-",IFERROR('Tabel 4 H'!E49/'Tabel 4F H'!E49*100,"-")) -> 3.014583537 | F49: =IF(OR('Tabel 4F H'!F49<5,'Tabel 4 H'!F49<0.5),"-",IFERROR('Tabel 4 H'!F49/'Tabel 4F H'!F49*100,"-")) -> 2.621493178 | G49: =IF(OR('Tabel 4F H'!G49<5,'Tabel 4 H'!G49<0.5),"-",IFERROR('Tabel 4 H'!G49/'Tabel 4F H'!G49*100,"-")) -> 3.299256506 | I49: =IF(OR('Tabel 4F H'!I49<5,'Tabel 4 H'!I49<0.5),"-",IFERROR('Tabel 4 H'!I49/'Tabel 4F H'!I49*100,"-")) -> 5.833142988
A50: DJØF'ere i alt | C50: =IF(OR('Tabel 4F H'!C50<5,'Tabel 4 H'!C50<0.5),"-",IFERROR('Tabel 4 H'!C50/'Tabel 4F H'!C50*100,"-")) -> 5.138445154 | D50: =IF(OR('Tabel 4F H'!D50<5,'Tabel 4 H'!D50<0.5),"-",IFERROR('Tabel 4 H'!D50/'Tabel 4F H'!D50*100,"-")) -> 2.539264554 | E50: =IF(OR('Tabel 4F H'!E50<5,'Tabel 4 H'!E50<0.5),"-",IFERROR('Tabel 4 H'!E50/'Tabel 4F H'!E50*100,"-")) -> 1.836554064 | F50: =IF(OR('Tabel 4F H'!F50<5,'Tabel 4 H'!F50<0.5),"-",IFERROR('Tabel 4 H'!F50/'Tabel 4F H'!F50*100,"-")) -> 1.858022821 | G50: =IF(OR('Tabel 4F H'!G50<5,'Tabel 4 H'!G50<0.5),"-",IFERROR('Tabel 4 H'!G50/'Tabel 4F H'!G50*100,"-")) -> 4.093567251 | I50: =IF(OR('Tabel 4F H'!I50<5,'Tabel 4 H'!I50<0.5),"-",IFERROR('Tabel 4 H'!I50/'Tabel 4F H'!I50*100,"-")) -> 2.825874737
A57: København
C59: Under 30 år | D59: 30 - 39 år | E59: 40 - 49 år | F59: 50 - 59 år | G59: Over 60 år | I59: I alt
A61: Civ. ing. | C61: =IF(OR('Tabel 4F H'!C61<5,'Tabel 4 H'!C61<0.5),"-",IFERROR('Tabel 4 H'!C61/'Tabel 4F H'!C61*100,"-")) -> 7.020547945 | D61: =IF(OR('Tabel 4F H'!D61<5,'Tabel 4 H'!D61<0.5),"-",IFERROR('Tabel 4 H'!D61/'Tabel 4F H'!D61*100,"-")) -> 2.427000379 | E61: =IF(OR('Tabel 4F H'!E61<5,'Tabel 4 H'!E61<0.5),"-",IFERROR('Tabel 4 H'!E61/'Tabel 4F H'!E61*100,"-")) -> 1.428571429 | F61: =IF(OR('Tabel 4F H'!F61<5,'Tabel 4 H'!F61<0.5),"-",IFERROR('Tabel 4 H'!F61/'Tabel 4F H'!F61*100,"-")) -> 2.18878249 | G61: =IF(OR('Tabel 4F H'!G61<5,'Tabel 4 H'!G61<0.5),"-",IFERROR('Tabel 4 H'!G61/'Tabel 4F H'!G61*100,"-")) -> 1.612903226 | I61: =IF(OR('Tabel 4F H'!I61<5,'Tabel 4 H'!I61<0.5),"-",IFERROR('Tabel 4 H'!I61/'Tabel 4F H'!I61*100,"-")) -> 3.459021502
A62: Diplom ing. | C62: =IF(OR('Tabel 4F H'!C62<5,'Tabel 4 H'!C62<0.5),"-",IFERROR('Tabel 4 H'!C62/'Tabel 4F H'!C62*100,"-")) -> 6.032906764 | D62: =IF(OR('Tabel 4F H'!D62<5,'Tabel 4 H'!D62<0.5),"-",IFERROR('Tabel 4 H'!D62/'Tabel 4F H'!D62*100,"-")) -> 3.284671533 | E62: =IF(OR('Tabel 4F H'!E62<5,'Tabel 4 H'!E62<0.5),"-",IFERROR('Tabel 4 H'!E62/'Tabel 4F H'!E62*100,"-")) -> 2.678571429 | F62: =IF(OR('Tabel 4F H'!F62<5,'Tabel 4 H'!F62<0.5),"-",IFERROR('Tabel 4 H'!F62/'Tabel 4F H'!F62*100,"-")) -> 0.6833712984 | G62: =IF(OR('Tabel 4F H'!G62<5,'Tabel 4 H'!G62<0.5),"-",IFERROR('Tabel 4 H'!G62/'Tabel 4F H'!G62*100,"-")) -> 2.694610778 | I62: =IF(OR('Tabel 4F H'!I62<5,'Tabel 4 H'!I62<0.5),"-",IFERROR('Tabel 4 H'!I62/'Tabel 4F H'!I62*100,"-")) -> 2.858899477
A63: Cand. Scient. Tek | C63: =IF(OR('Tabel 4F H'!C63<5,'Tabel 4 H'!C63<0.5),"-",IFERROR('Tabel 4 H'!C63/'Tabel 4F H'!C63*100,"-")) -> 12.12847555 | D63: =IF(OR('Tabel 4F H'!D63<5,'Tabel 4 H'!D63<0.5),"-",IFERROR('Tabel 4 H'!D63/'Tabel 4F H'!D63*100,"-")) -> 5.145995953 | E63: =IF(OR('Tabel 4F H'!E63<5,'Tabel 4 H'!E63<0.5),"-",IFERROR('Tabel 4 H'!E63/'Tabel 4F H'!E63*100,"-")) -> 3.856749311 | F63: =IF(OR('Tabel 4F H'!F63<5,'Tabel 4 H'!F63<0.5),"-",IFERROR('Tabel 4 H'!F63/'Tabel 4F H'!F63*100,"-")) -> 3.846153846 | G63: =IF(OR('Tabel 4F H'!G63<5,'Tabel 4 H'!G63<0.5),"-",IFERROR('Tabel 4 H'!G63/'Tabel 4F H'!G63*100,"-")) -> 2.5 | I63: =IF(OR('Tabel 4F H'!I63<5,'Tabel 4 H'!I63<0.5),"-",IFERROR('Tabel 4 H'!I63/'Tabel 4F H'!I63*100,"-")) -> 7.179015186
A64: MA. Hum. | C64: =IF(OR('Tabel 4F H'!C64<5,'Tabel 4 H'!C64<0.5),"-",IFERROR('Tabel 4 H'!C64/'Tabel 4F H'!C64*100,"-")) -> 17.75754126 | D64: =IF(OR('Tabel 4F H'!D64<5,'Tabel 4 H'!D64<0.5),"-",IFERROR('Tabel 4 H'!D64/'Tabel 4F H'!D64*100,"-")) -> 7.950530035 | E64: =IF(OR('Tabel 4F H'!E64<5,'Tabel 4 H'!E64<0.5),"-",IFERROR('Tabel 4 H'!E64/'Tabel 4F H'!E64*100,"-")) -> 3.69955157 | F64: =IF(OR('Tabel 4F H'!F64<5,'Tabel 4 H'!F64<0.5),"-",IFERROR('Tabel 4 H'!F64/'Tabel 4F H'!F64*100,"-")) -> 3.891509434 | G64: =IF(OR('Tabel 4F H'!G64<5,'Tabel 4 H'!G64<0.5),"-",IFERROR('Tabel 4 H'!G64/'Tabel 4F H'!G64*100,"-")) -> 4.621848739 | I64: =IF(OR('Tabel 4F H'!I64<5,'Tabel 4 H'!I64<0.5),"-",IFERROR('Tabel 4 H'!I64/'Tabel 4F H'!I64*100,"-")) -> 7.441823525
A65: MA. Nat. | C65: =IF(OR('Tabel 4F H'!C65<5,'Tabel 4 H'!C65<0.5),"-",IFERROR('Tabel 4 H'!C65/'Tabel 4F H'!C65*100,"-")) -> 14.1025641 | D65: =IF(OR('Tabel 4F H'!D65<5,'Tabel 4 H'!D65<0.5),"-",IFERROR('Tabel 4 H'!D65/'Tabel 4F H'!D65*100,"-")) -> 4.669703872 | E65: =IF(OR('Tabel 4F H'!E65<5,'Tabel 4 H'!E65<0.5),"-",IFERROR('Tabel 4 H'!E65/'Tabel 4F H'!E65*100,"-")) -> 1.435406699 | F65: =IF(OR('Tabel 4F H'!F65<5,'Tabel 4 H'!F65<0.5),"-",IFERROR('Tabel 4 H'!F65/'Tabel 4F H'!F65*100,"-")) -> 1.914580265 | G65: =IF(OR('Tabel 4F H'!G65<5,'Tabel 4 H'!G65<0.5),"-",IFERROR('Tabel 4 H'!G65/'Tabel 4F H'!G65*100,"-")) -> 3.2 | I65: =IF(OR('Tabel 4F H'!I65<5,'Tabel 4 H'!I65<0.5),"-",IFERROR('Tabel 4 H'!I65/'Tabel 4F H'!I65*100,"-")) -> 4.253214639
A66: MA. Ph.d. | C66: =IF(OR('Tabel 4F H'!C66<5,'Tabel 4 H'!C66<0.5),"-",IFERROR('Tabel 4 H'!C66/'Tabel 4F H'!C66*100,"-")) -> - | D66: =IF(OR('Tabel 4F H'!D66<5,'Tabel 4 H'!D66<0.5),"-",IFERROR('Tabel 4 H'!D66/'Tabel 4F H'!D66*100,"-")) -> 4.6875 | E66: =IF(OR('Tabel 4F H'!E66<5,'Tabel 4 H'!E66<0.5),"-",IFERROR('Tabel 4 H'!E66/'Tabel 4F H'!E66*100,"-")) -> 2.755905512 | F66: =IF(OR('Tabel 4F H'!F66<5,'Tabel 4 H'!F66<0.5),"-",IFERROR('Tabel 4 H'!F66/'Tabel 4F H'!F66*100,"-")) -> 2.53164557 | G66: =IF(OR('Tabel 4F H'!G66<5,'Tabel 4 H'!G66<0.5),"-",IFERROR('Tabel 4 H'!G66/'Tabel 4F H'!G66*100,"-")) -> 11.32075472 | I66: =IF(OR('Tabel 4F H'!I66<5,'Tabel 4 H'!I66<0.5),"-",IFERROR('Tabel 4 H'!I66/'Tabel 4F H'!I66*100,"-")) -> 3.880597015
A67: MA. Samf. | C67: =IF(OR('Tabel 4F H'!C67<5,'Tabel 4 H'!C67<0.5),"-",IFERROR('Tabel 4 H'!C67/'Tabel 4F H'!C67*100,"-")) -> 13.66995074 | D67: =IF(OR('Tabel 4F H'!D67<5,'Tabel 4 H'!D67<0.5),"-",IFERROR('Tabel 4 H'!D67/'Tabel 4F H'!D67*100,"-")) -> 6.474313863 | E67: =IF(OR('Tabel 4F H'!E67<5,'Tabel 4 H'!E67<0.5),"-",IFERROR('Tabel 4 H'!E67/'Tabel 4F H'!E67*100,"-")) -> 6.077348066 | F67: =IF(OR('Tabel 4F H'!F67<5,'Tabel 4 H'!F67<0.5),"-",IFERROR('Tabel 4 H'!F67/'Tabel 4F H'!F67*100,"-")) -> 6.060606061 | G67: =IF(OR('Tabel 4F H'!G67<5,'Tabel 4 H'!G67<0.5),"-",IFERROR('Tabel 4 H'!G67/'Tabel 4F H'!G67*100,"-")) -> 2.702702703 | I67: =IF(OR('Tabel 4F H'!I67<5,'Tabel 4 H'!I67<0.5),"-",IFERROR('Tabel 4 H'!I67/'Tabel 4F H'!I67*100,"-")) -> 8.437611727
A68: Øvrige Mag. | C68: =IF(OR('Tabel 4F H'!C68<5,'Tabel 4 H'!C68<0.5),"-",IFERROR('Tabel 4 H'!C68/'Tabel 4F H'!C68*100,"-")) -> 16.36363636 | D68: =IF(OR('Tabel 4F H'!D68<5,'Tabel 4 H'!D68<0.5),"-",IFERROR('Tabel 4 H'!D68/'Tabel 4F H'!D68*100,"-")) -> 11.25 | E68: =IF(OR('Tabel 4F H'!E68<5,'Tabel 4 H'!E68<0.5),"-",IFERROR('Tabel 4 H'!E68/'Tabel 4F H'!E68*100,"-")) -> 5.6 | F68: =IF(OR('Tabel 4F H'!F68<5,'Tabel 4 H'!F68<0.5),"-",IFERROR('Tabel 4 H'!F68/'Tabel 4F H'!F68*100,"-")) -> 5.581395349 | G68: =IF(OR('Tabel 4F H'!G68<5,'Tabel 4 H'!G68<0.5),"-",IFERROR('Tabel 4 H'!G68/'Tabel 4F H'!G68*100,"-")) -> 4.47761194 | I68: =IF(OR('Tabel 4F H'!I68<5,'Tabel 4 H'!I68<0.5),"-",IFERROR('Tabel 4 H'!I68/'Tabel 4F H'!I68*100,"-")) -> 9.760425909
A69: Agronom | C69: =IF(OR('Tabel 4F H'!C69<5,'Tabel 4 H'!C69<0.5),"-",IFERROR('Tabel 4 H'!C69/'Tabel 4F H'!C69*100,"-")) -> 6.896551724 | D69: =IF(OR('Tabel 4F H'!D69<5,'Tabel 4 H'!D69<0.5),"-",IFERROR('Tabel 4 H'!D69/'Tabel 4F H'!D69*100,"-")) -> 7.52688172 | E69: =IF(OR('Tabel 4F H'!E69<5,'Tabel 4 H'!E69<0.5),"-",IFERROR('Tabel 4 H'!E69/'Tabel 4F H'!E69*100,"-")) -> 6 | F69: =IF(OR('Tabel 4F H'!F69<5,'Tabel 4 H'!F69<0.5),"-",IFERROR('Tabel 4 H'!F69/'Tabel 4F H'!F69*100,"-")) -> - | G69: =IF(OR('Tabel 4F H'!G69<5,'Tabel 4 H'!G69<0.5),"-",IFERROR('Tabel 4 H'!G69/'Tabel 4F H'!G69*100,"-")) -> 3.03030303 | I69: =IF(OR('Tabel 4F H'!I69<5,'Tabel 4 H'!I69<0.5),"-",IFERROR('Tabel 4 H'!I69/'Tabel 4F H'!I69*100,"-")) -> 5.214723926
A70: Landsk. Arkt. | C70: =IF(OR('Tabel 4F H'!C70<5,'Tabel 4 H'!C70<0.5),"-",IFERROR('Tabel 4 H'!C70/'Tabel 4F H'!C70*100,"-")) -> 21.95121951 | D70: =IF(OR('Tabel 4F H'!D70<5,'Tabel 4 H'!D70<0.5),"-",IFERROR('Tabel 4 H'!D70/'Tabel 4F H'!D70*100,"-")) -> 9.166666667 | E70: =IF(OR('Tabel 4F H'!E70<5,'Tabel 4 H'!E70<0.5),"-",IFERROR('Tabel 4 H'!E70/'Tabel 4F H'!E70*100,"-")) -> 8.333333333 | F70: =IF(OR('Tabel 4F H'!F70<5,'Tabel 4 H'!F70<0.5),"-",IFERROR('Tabel 4 H'!F70/'Tabel 4F H'!F70*100,"-")) -> 2.941176471 | G70: =IF(OR('Tabel 4F H'!G70<5,'Tabel 4 H'!G70<0.5),"-",IFERROR('Tabel 4 H'!G70/'Tabel 4F H'!G70*100,"-")) -> - | I70: =IF(OR('Tabel 4F H'!I70<5,'Tabel 4 H'!I70<0.5),"-",IFERROR('Tabel 4 H'!I70/'Tabel 4F H'!I70*100,"-")) -> 9.881422925
A71: Hortonom | C71: =IF(OR('Tabel 4F H'!C71<5,'Tabel 4 H'!C71<0.5),"-",IFERROR('Tabel 4 H'!C71/'Tabel 4F H'!C71*100,"-")) -> - | D71: =IF(OR('Tabel 4F H'!D71<5,'Tabel 4 H'!D71<0.5),"-",IFERROR('Tabel 4 H'!D71/'Tabel 4F H'!D71*100,"-")) -> 12.5 | E71: =IF(OR('Tabel 4F H'!E71<5,'Tabel 4 H'!E71<0.5),"-",IFERROR('Tabel 4 H'!E71/'Tabel 4F H'!E71*100,"-")) -> - | F71: =IF(OR('Tabel 4F H'!F71<5,'Tabel 4 H'!F71<0.5),"-",IFERROR('Tabel 4 H'!F71/'Tabel 4F H'!F71*100,"-")) -> - | G71: =IF(OR('Tabel 4F H'!G71<5,'Tabel 4 H'!G71<0.5),"-",IFERROR('Tabel 4 H'!G71/'Tabel 4F H'!G71*100,"-")) -> - | I71: =IF(OR('Tabel 4F H'!I71<5,'Tabel 4 H'!I71<0.5),"-",IFERROR('Tabel 4 H'!I71/'Tabel 4F H'!I71*100,"-")) -> 4.166666667
A72: Forstkand. | C72: =IF(OR('Tabel 4F H'!C72<5,'Tabel 4 H'!C72<0.5),"-",IFERROR('Tabel 4 H'!C72/'Tabel 4F H'!C72*100,"-")) -> 7.692307692 | D72: =IF(OR('Tabel 4F H'!D72<5,'Tabel 4 H'!D72<0.5),"-",IFERROR('Tabel 4 H'!D72/'Tabel 4F H'!D72*100,"-")) -> 3.846153846 | E72: =IF(OR('Tabel 4F H'!E72<5,'Tabel 4 H'!E72<0.5),"-",IFERROR('Tabel 4 H'!E72/'Tabel 4F H'!E72*100,"-")) -> - | F72: =IF(OR('Tabel 4F H'!F72<5,'Tabel 4 H'!F72<0.5),"-",IFERROR('Tabel 4 H'!F72/'Tabel 4F H'!F72*100,"-")) -> - | G72: =IF(OR('Tabel 4F H'!G72<5,'Tabel 4 H'!G72<0.5),"-",IFERROR('Tabel 4 H'!G72/'Tabel 4F H'!G72*100,"-")) -> - | I72: =IF(OR('Tabel 4F H'!I72<5,'Tabel 4 H'!I72<0.5),"-",IFERROR('Tabel 4 H'!I72/'Tabel 4F H'!I72*100,"-")) -> 2.298850575
A73: Jordbrugsakad. | C73: =IF(OR('Tabel 4F H'!C73<5,'Tabel 4 H'!C73<0.5),"-",IFERROR('Tabel 4 H'!C73/'Tabel 4F H'!C73*100,"-")) -> 11.88811189 | D73: =IF(OR('Tabel 4F H'!D73<5,'Tabel 4 H'!D73<0.5),"-",IFERROR('Tabel 4 H'!D73/'Tabel 4F H'!D73*100,"-")) -> 8.097165992 | E73: =IF(OR('Tabel 4F H'!E73<5,'Tabel 4 H'!E73<0.5),"-",IFERROR('Tabel 4 H'!E73/'Tabel 4F H'!E73*100,"-")) -> 5.263157895 | F73: =IF(OR('Tabel 4F H'!F73<5,'Tabel 4 H'!F73<0.5),"-",IFERROR('Tabel 4 H'!F73/'Tabel 4F H'!F73*100,"-")) -> 0.7518796992 | G73: =IF(OR('Tabel 4F H'!G73<5,'Tabel 4 H'!G73<0.5),"-",IFERROR('Tabel 4 H'!G73/'Tabel 4F H'!G73*100,"-")) -> 1.724137931 | I73: =IF(OR('Tabel 4F H'!I73<5,'Tabel 4 H'!I73<0.5),"-",IFERROR('Tabel 4 H'!I73/'Tabel 4F H'!I73*100,"-")) -> 6.442577031
A74: Mejeriing. | C74: =IF(OR('Tabel 4F H'!C74<5,'Tabel 4 H'!C74<0.5),"-",IFERROR('Tabel 4 H'!C74/'Tabel 4F H'!C74*100,"-")) -> 14.28571429 | D74: =IF(OR('Tabel 4F H'!D74<5,'Tabel 4 H'!D74<0.5),"-",IFERROR('Tabel 4 H'!D74/'Tabel 4F H'!D74*100,"-")) -> 12.5 | E74: =IF(OR('Tabel 4F H'!E74<5,'Tabel 4 H'!E74<0.5),"-",IFERROR('Tabel 4 H'!E74/'Tabel 4F H'!E74*100,"-")) -> - | F74: =IF(OR('Tabel 4F H'!F74<5,'Tabel 4 H'!F74<0.5),"-",IFERROR('Tabel 4 H'!F74/'Tabel 4F H'!F74*100,"-")) -> - | G74: =IF(OR('Tabel 4F H'!G74<5,'Tabel 4 H'!G74<0.5),"-",IFERROR('Tabel 4 H'!G74/'Tabel 4F H'!G74*100,"-")) -> - | I74: =IF(OR('Tabel 4F H'!I74<5,'Tabel 4 H'!I74<0.5),"-",IFERROR('Tabel 4 H'!I74/'Tabel 4F H'!I74*100,"-")) -> 9.85915493
A75: Levn.m.kand. | C75: =IF(OR('Tabel 4F H'!C75<5,'Tabel 4 H'!C75<0.5),"-",IFERROR('Tabel 4 H'!C75/'Tabel 4F H'!C75*100,"-")) -> 13.33333333 | D75: =IF(OR('Tabel 4F H'!D75<5,'Tabel 4 H'!D75<0.5),"-",IFERROR('Tabel 4 H'!D75/'Tabel 4F H'!D75*100,"-")) -> 9.574468085 | E75: =IF(OR('Tabel 4F H'!E75<5,'Tabel 4 H'!E75<0.5),"-",IFERROR('Tabel 4 H'!E75/'Tabel 4F H'!E75*100,"-")) -> - | F75: =IF(OR('Tabel 4F H'!F75<5,'Tabel 4 H'!F75<0.5),"-",IFERROR('Tabel 4 H'!F75/'Tabel 4F H'!F75*100,"-")) -> - | G75: =IF(OR('Tabel 4F H'!G75<5,'Tabel 4 H'!G75<0.5),"-",IFERROR('Tabel 4 H'!G75/'Tabel 4F H'!G75*100,"-")) -> - | I75: =IF(OR('Tabel 4F H'!I75<5,'Tabel 4 H'!I75<0.5),"-",IFERROR('Tabel 4 H'!I75/'Tabel 4F H'!I75*100,"-")) -> 8.670520231
A76: Dyrlæge | C76: =IF(OR('Tabel 4F H'!C76<5,'Tabel 4 H'!C76<0.5),"-",IFERROR('Tabel 4 H'!C76/'Tabel 4F H'!C76*100,"-")) -> 7.058823529 | D76: =IF(OR('Tabel 4F H'!D76<5,'Tabel 4 H'!D76<0.5),"-",IFERROR('Tabel 4 H'!D76/'Tabel 4F H'!D76*100,"-")) -> 3.053435115 | E76: =IF(OR('Tabel 4F H'!E76<5,'Tabel 4 H'!E76<0.5),"-",IFERROR('Tabel 4 H'!E76/'Tabel 4F H'!E76*100,"-")) -> 7.407407407 | F76: =IF(OR('Tabel 4F H'!F76<5,'Tabel 4 H'!F76<0.5),"-",IFERROR('Tabel 4 H'!F76/'Tabel 4F H'!F76*100,"-")) -> - | G76: =IF(OR('Tabel 4F H'!G76<5,'Tabel 4 H'!G76<0.5),"-",IFERROR('Tabel 4 H'!G76/'Tabel 4F H'!G76*100,"-")) -> 4.545454545 | I76: =IF(OR('Tabel 4F H'!I76<5,'Tabel 4 H'!I76<0.5),"-",IFERROR('Tabel 4 H'!I76/'Tabel 4F H'!I76*100,"-")) -> 4.545454545
A77: Farmaceut | C77: =IF(OR('Tabel 4F H'!C77<5,'Tabel 4 H'!C77<0.5),"-",IFERROR('Tabel 4 H'!C77/'Tabel 4F H'!C77*100,"-")) -> 9.501187648 | D77: =IF(OR('Tabel 4F H'!D77<5,'Tabel 4 H'!D77<0.5),"-",IFERROR('Tabel 4 H'!D77/'Tabel 4F H'!D77*100,"-")) -> 1.47601476 | E77: =IF(OR('Tabel 4F H'!E77<5,'Tabel 4 H'!E77<0.5),"-",IFERROR('Tabel 4 H'!E77/'Tabel 4F H'!E77*100,"-")) -> 0.9216589862 | F77: =IF(OR('Tabel 4F H'!F77<5,'Tabel 4 H'!F77<0.5),"-",IFERROR('Tabel 4 H'!F77/'Tabel 4F H'!F77*100,"-")) -> 2.255639098 | G77: =IF(OR('Tabel 4F H'!G77<5,'Tabel 4 H'!G77<0.5),"-",IFERROR('Tabel 4 H'!G77/'Tabel 4F H'!G77*100,"-")) -> - | I77: =IF(OR('Tabel 4F H'!I77<5,'Tabel 4 H'!I77<0.5),"-",IFERROR('Tabel 4 H'!I77/'Tabel 4F H'!I77*100,"-")) -> 3.91722099
A78: Læge | C78: =IF(OR('Tabel 4F H'!C78<5,'Tabel 4 H'!C78<0.5),"-",IFERROR('Tabel 4 H'!C78/'Tabel 4F H'!C78*100,"-")) -> 7.371794872 | D78: =IF(OR('Tabel 4F H'!D78<5,'Tabel 4 H'!D78<0.5),"-",IFERROR('Tabel 4 H'!D78/'Tabel 4F H'!D78*100,"-")) -> 2.220459952 | E78: =IF(OR('Tabel 4F H'!E78<5,'Tabel 4 H'!E78<0.5),"-",IFERROR('Tabel 4 H'!E78/'Tabel 4F H'!E78*100,"-")) -> 1.240694789 | F78: =IF(OR('Tabel 4F H'!F78<5,'Tabel 4 H'!F78<0.5),"-",IFERROR('Tabel 4 H'!F78/'Tabel 4F H'!F78*100,"-")) -> 0.5524861878 | G78: =IF(OR('Tabel 4F H'!G78<5,'Tabel 4 H'!G78<0.5),"-",IFERROR('Tabel 4 H'!G78/'Tabel 4F H'!G78*100,"-")) -> - | I78: =IF(OR('Tabel 4F H'!I78<5,'Tabel 4 H'!I78<0.5),"-",IFERROR('Tabel 4 H'!I78/'Tabel 4F H'!I78*100,"-")) -> 3.098373354
A79: Tandlæge | C79: =IF(OR('Tabel 4F H'!C79<5,'Tabel 4 H'!C79<0.5),"-",IFERROR('Tabel 4 H'!C79/'Tabel 4F H'!C79*100,"-")) -> 2.352941176 | D79: =IF(OR('Tabel 4F H'!D79<5,'Tabel 4 H'!D79<0.5),"-",IFERROR('Tabel 4 H'!D79/'Tabel 4F H'!D79*100,"-")) -> 1.694915254 | E79: =IF(OR('Tabel 4F H'!E79<5,'Tabel 4 H'!E79<0.5),"-",IFERROR('Tabel 4 H'!E79/'Tabel 4F H'!E79*100,"-")) -> 1.886792453 | F79: =IF(OR('Tabel 4F H'!F79<5,'Tabel 4 H'!F79<0.5),"-",IFERROR('Tabel 4 H'!F79/'Tabel 4F H'!F79*100,"-")) -> 2.631578947 | G79: =IF(OR('Tabel 4F H'!G79<5,'Tabel 4 H'!G79<0.5),"-",IFERROR('Tabel 4 H'!G79/'Tabel 4F H'!G79*100,"-")) -> - | I79: =IF(OR('Tabel 4F H'!I79<5,'Tabel 4 H'!I79<0.5),"-",IFERROR('Tabel 4 H'!I79/'Tabel 4F H'!I79*100,"-")) -> 1.898734177
A80: Arkitekt | C80: =IF(OR('Tabel 4F H'!C80<5,'Tabel 4 H'!C80<0.5),"-",IFERROR('Tabel 4 H'!C80/'Tabel 4F H'!C80*100,"-")) -> 25.22522523 | D80: =IF(OR('Tabel 4F H'!D80<5,'Tabel 4 H'!D80<0.5),"-",IFERROR('Tabel 4 H'!D80/'Tabel 4F H'!D80*100,"-")) -> 6.060606061 | E80: =IF(OR('Tabel 4F H'!E80<5,'Tabel 4 H'!E80<0.5),"-",IFERROR('Tabel 4 H'!E80/'Tabel 4F H'!E80*100,"-")) -> 2.121640736 | F80: =IF(OR('Tabel 4F H'!F80<5,'Tabel 4 H'!F80<0.5),"-",IFERROR('Tabel 4 H'!F80/'Tabel 4F H'!F80*100,"-")) -> 2.955665025 | G80: =IF(OR('Tabel 4F H'!G80<5,'Tabel 4 H'!G80<0.5),"-",IFERROR('Tabel 4 H'!G80/'Tabel 4F H'!G80*100,"-")) -> 2.732240437 | I80: =IF(OR('Tabel 4F H'!I80<5,'Tabel 4 H'!I80<0.5),"-",IFERROR('Tabel 4 H'!I80/'Tabel 4F H'!I80*100,"-")) -> 5.887445887
A81: Landinspek. | C81: =IF(OR('Tabel 4F H'!C81<5,'Tabel 4 H'!C81<0.5),"-",IFERROR('Tabel 4 H'!C81/'Tabel 4F H'!C81*100,"-")) -> - | D81: =IF(OR('Tabel 4F H'!D81<5,'Tabel 4 H'!D81<0.5),"-",IFERROR('Tabel 4 H'!D81/'Tabel 4F H'!D81*100,"-")) -> - | E81: =IF(OR('Tabel 4F H'!E81<5,'Tabel 4 H'!E81<0.5),"-",IFERROR('Tabel 4 H'!E81/'Tabel 4F H'!E81*100,"-")) -> - | F81: =IF(OR('Tabel 4F H'!F81<5,'Tabel 4 H'!F81<0.5),"-",IFERROR('Tabel 4 H'!F81/'Tabel 4F H'!F81*100,"-")) -> - | G81: =IF(OR('Tabel 4F H'!G81<5,'Tabel 4 H'!G81<0.5),"-",IFERROR('Tabel 4 H'!G81/'Tabel 4F H'!G81*100,"-")) -> - | I81: =IF(OR('Tabel 4F H'!I81<5,'Tabel 4 H'!I81<0.5),"-",IFERROR('Tabel 4 H'!I81/'Tabel 4F H'!I81*100,"-")) -> -
A82: Bibliotekar | C82: =IF(OR('Tabel 4F H'!C82<5,'Tabel 4 H'!C82<0.5),"-",IFERROR('Tabel 4 H'!C82/'Tabel 4F H'!C82*100,"-")) -> 10.52631579 | D82: =IF(OR('Tabel 4F H'!D82<5,'Tabel 4 H'!D82<0.5),"-",IFERROR('Tabel 4 H'!D82/'Tabel 4F H'!D82*100,"-")) -> 5.084745763 | E82: =IF(OR('Tabel 4F H'!E82<5,'Tabel 4 H'!E82<0.5),"-",IFERROR('Tabel 4 H'!E82/'Tabel 4F H'!E82*100,"-")) -> 3.879310345 | F82: =IF(OR('Tabel 4F H'!F82<5,'Tabel 4 H'!F82<0.5),"-",IFERROR('Tabel 4 H'!F82/'Tabel 4F H'!F82*100,"-")) -> 1.621621622 | G82: =IF(OR('Tabel 4F H'!G82<5,'Tabel 4 H'!G82<0.5),"-",IFERROR('Tabel 4 H'!G82/'Tabel 4F H'!G82*100,"-")) -> 2 | I82: =IF(OR('Tabel 4F H'!I82<5,'Tabel 4 H'!I82<0.5),"-",IFERROR('Tabel 4 H'!I82/'Tabel 4F H'!I82*100,"-")) -> 3.68852459
A83: Musikudd. | C83: =IF(OR('Tabel 4F H'!C83<5,'Tabel 4 H'!C83<0.5),"-",IFERROR('Tabel 4 H'!C83/'Tabel 4F H'!C83*100,"-")) -> - | D83: =IF(OR('Tabel 4F H'!D83<5,'Tabel 4 H'!D83<0.5),"-",IFERROR('Tabel 4 H'!D83/'Tabel 4F H'!D83*100,"-")) -> 9.523809524 | E83: =IF(OR('Tabel 4F H'!E83<5,'Tabel 4 H'!E83<0.5),"-",IFERROR('Tabel 4 H'!E83/'Tabel 4F H'!E83*100,"-")) -> - | F83: =IF(OR('Tabel 4F H'!F83<5,'Tabel 4 H'!F83<0.5),"-",IFERROR('Tabel 4 H'!F83/'Tabel 4F H'!F83*100,"-")) -> - | G83: =IF(OR('Tabel 4F H'!G83<5,'Tabel 4 H'!G83<0.5),"-",IFERROR('Tabel 4 H'!G83/'Tabel 4F H'!G83*100,"-")) -> 3.225806452 | I83: =IF(OR('Tabel 4F H'!I83<5,'Tabel 4 H'!I83<0.5),"-",IFERROR('Tabel 4 H'!I83/'Tabel 4F H'!I83*100,"-")) -> 2.173913043
A84: Teolog | C84: =IF(OR('Tabel 4F H'!C84<5,'Tabel 4 H'!C84<0.5),"-",IFERROR('Tabel 4 H'!C84/'Tabel 4F H'!C84*100,"-")) -> 20 | D84: =IF(OR('Tabel 4F H'!D84<5,'Tabel 4 H'!D84<0.5),"-",IFERROR('Tabel 4 H'!D84/'Tabel 4F H'!D84*100,"-")) -> 17.54385965 | E84: =IF(OR('Tabel 4F H'!E84<5,'Tabel 4 H'!E84<0.5),"-",IFERROR('Tabel 4 H'!E84/'Tabel 4F H'!E84*100,"-")) -> 2.666666667 | F84: =IF(OR('Tabel 4F H'!F84<5,'Tabel 4 H'!F84<0.5),"-",IFERROR('Tabel 4 H'!F84/'Tabel 4F H'!F84*100,"-")) -> 5.555555556 | G84: =IF(OR('Tabel 4F H'!G84<5,'Tabel 4 H'!G84<0.5),"-",IFERROR('Tabel 4 H'!G84/'Tabel 4F H'!G84*100,"-")) -> 8.108108108 | I84: =IF(OR('Tabel 4F H'!I84<5,'Tabel 4 H'!I84<0.5),"-",IFERROR('Tabel 4 H'!I84/'Tabel 4F H'!I84*100,"-")) -> 8.366533865
A85: Psykolog | C85: =IF(OR('Tabel 4F H'!C85<5,'Tabel 4 H'!C85<0.5),"-",IFERROR('Tabel 4 H'!C85/'Tabel 4F H'!C85*100,"-")) -> 6.345733042 | D85: =IF(OR('Tabel 4F H'!D85<5,'Tabel 4 H'!D85<0.5),"-",IFERROR('Tabel 4 H'!D85/'Tabel 4F H'!D85*100,"-")) -> 4.195804196 | E85: =IF(OR('Tabel 4F H'!E85<5,'Tabel 4 H'!E85<0.5),"-",IFERROR('Tabel 4 H'!E85/'Tabel 4F H'!E85*100,"-")) -> 1.531728665 | F85: =IF(OR('Tabel 4F H'!F85<5,'Tabel 4 H'!F85<0.5),"-",IFERROR('Tabel 4 H'!F85/'Tabel 4F H'!F85*100,"-")) -> 1.204819277 | G85: =IF(OR('Tabel 4F H'!G85<5,'Tabel 4 H'!G85<0.5),"-",IFERROR('Tabel 4 H'!G85/'Tabel 4F H'!G85*100,"-")) -> 5.555555556 | I85: =IF(OR('Tabel 4F H'!I85<5,'Tabel 4 H'!I85<0.5),"-",IFERROR('Tabel 4 H'!I85/'Tabel 4F H'!I85*100,"-")) -> 3.8046031
A86: Jurist | C86: =IF(OR('Tabel 4F H'!C86<5,'Tabel 4 H'!C86<0.5),"-",IFERROR('Tabel 4 H'!C86/'Tabel 4F H'!C86*100,"-")) -> 1.3434089 | D86: =IF(OR('Tabel 4F H'!D86<5,'Tabel 4 H'!D86<0.5),"-",IFERROR('Tabel 4 H'!D86/'Tabel 4F H'!D86*100,"-")) -> 1.791044776 | E86: =IF(OR('Tabel 4F H'!E86<5,'Tabel 4 H'!E86<0.5),"-",IFERROR('Tabel 4 H'!E86/'Tabel 4F H'!E86*100,"-")) -> 1.62601626 | F86: =IF(OR('Tabel 4F H'!F86<5,'Tabel 4 H'!F86<0.5),"-",IFERROR('Tabel 4 H'!F86/'Tabel 4F H'!F86*100,"-")) -> 1.100628931 | G86: =IF(OR('Tabel 4F H'!G86<5,'Tabel 4 H'!G86<0.5),"-",IFERROR('Tabel 4 H'!G86/'Tabel 4F H'!G86*100,"-")) -> 2.259887006 | I86: =IF(OR('Tabel 4F H'!I86<5,'Tabel 4 H'!I86<0.5),"-",IFERROR('Tabel 4 H'!I86/'Tabel 4F H'!I86*100,"-")) -> 1.563876652
A87: Økonom | C87: =IF(OR('Tabel 4F H'!C87<5,'Tabel 4 H'!C87<0.5),"-",IFERROR('Tabel 4 H'!C87/'Tabel 4F H'!C87*100,"-")) -> 3.624161074 | D87: =IF(OR('Tabel 4F H'!D87<5,'Tabel 4 H'!D87<0.5),"-",IFERROR('Tabel 4 H'!D87/'Tabel 4F H'!D87*100,"-")) -> 1.625239006 | E87: =IF(OR('Tabel 4F H'!E87<5,'Tabel 4 H'!E87<0.5),"-",IFERROR('Tabel 4 H'!E87/'Tabel 4F H'!E87*100,"-")) -> 1.366742597 | F87: =IF(OR('Tabel 4F H'!F87<5,'Tabel 4 H'!F87<0.5),"-",IFERROR('Tabel 4 H'!F87/'Tabel 4F H'!F87*100,"-")) -> 1.160092807 | G87: =IF(OR('Tabel 4F H'!G87<5,'Tabel 4 H'!G87<0.5),"-",IFERROR('Tabel 4 H'!G87/'Tabel 4F H'!G87*100,"-")) -> 4.901960784 | I87: =IF(OR('Tabel 4F H'!I87<5,'Tabel 4 H'!I87<0.5),"-",IFERROR('Tabel 4 H'!I87/'Tabel 4F H'!I87*100,"-")) -> 2.17155266
A88: Samf. Adm. | C88: =IF(OR('Tabel 4F H'!C88<5,'Tabel 4 H'!C88<0.5),"-",IFERROR('Tabel 4 H'!C88/'Tabel 4F H'!C88*100,"-")) -> 8.119011599 | D88: =IF(OR('Tabel 4F H'!D88<5,'Tabel 4 H'!D88<0.5),"-",IFERROR('Tabel 4 H'!D88/'Tabel 4F H'!D88*100,"-")) -> 3.598269187 | E88: =IF(OR('Tabel 4F H'!E88<5,'Tabel 4 H'!E88<0.5),"-",IFERROR('Tabel 4 H'!E88/'Tabel 4F H'!E88*100,"-")) -> 2.141414141 | F88: =IF(OR('Tabel 4F H'!F88<5,'Tabel 4 H'!F88<0.5),"-",IFERROR('Tabel 4 H'!F88/'Tabel 4F H'!F88*100,"-")) -> 3.277236492 | G88: =IF(OR('Tabel 4F H'!G88<5,'Tabel 4 H'!G88<0.5),"-",IFERROR('Tabel 4 H'!G88/'Tabel 4F H'!G88*100,"-")) -> 3.03030303 | I88: =IF(OR('Tabel 4F H'!I88<5,'Tabel 4 H'!I88<0.5),"-",IFERROR('Tabel 4 H'!I88/'Tabel 4F H'!I88*100,"-")) -> 4.071470416
A89: Cand. Merc. | C89: =IF(OR('Tabel 4F H'!C89<5,'Tabel 4 H'!C89<0.5),"-",IFERROR('Tabel 4 H'!C89/'Tabel 4F H'!C89*100,"-")) -> 4.659983744 | D89: =IF(OR('Tabel 4F H'!D89<5,'Tabel 4 H'!D89<0.5),"-",IFERROR('Tabel 4 H'!D89/'Tabel 4F H'!D89*100,"-")) -> 2.930558505 | E89: =IF(OR('Tabel 4F H'!E89<5,'Tabel 4 H'!E89<0.5),"-",IFERROR('Tabel 4 H'!E89/'Tabel 4F H'!E89*100,"-")) -> 2.523874488 | F89: =IF(OR('Tabel 4F H'!F89<5,'Tabel 4 H'!F89<0.5),"-",IFERROR('Tabel 4 H'!F89/'Tabel 4F H'!F89*100,"-")) -> 2.576687117 | G89: =IF(OR('Tabel 4F H'!G89<5,'Tabel 4 H'!G89<0.5),"-",IFERROR('Tabel 4 H'!G89/'Tabel 4F H'!G89*100,"-")) -> 7.438016529 | I89: =IF(OR('Tabel 4F H'!I89<5,'Tabel 4 H'!I89<0.5),"-",IFERROR('Tabel 4 H'!I89/'Tabel 4F H'!I89*100,"-")) -> 3.490094427
A90: HA | C90: =IF(OR('Tabel 4F H'!C90<5,'Tabel 4 H'!C90<0.5),"-",IFERROR('Tabel 4 H'!C90/'Tabel 4F H'!C90*100,"-")) -> 7.029876977 | D90: =IF(OR('Tabel 4F H'!D90<5,'Tabel 4 H'!D90<0.5),"-",IFERROR('Tabel 4 H'!D90/'Tabel 4F H'!D90*100,"-")) -> 3.79403794 | E90: =IF(OR('Tabel 4F H'!E90<5,'Tabel 4 H'!E90<0.5),"-",IFERROR('Tabel 4 H'!E90/'Tabel 4F H'!E90*100,"-")) -> 5.217391304 | F90: =IF(OR('Tabel 4F H'!F90<5,'Tabel 4 H'!F90<0.5),"-",IFERROR('Tabel 4 H'!F90/'Tabel 4F H'!F90*100,"-")) -> 3.448275862 | G90: =IF(OR('Tabel 4F H'!G90<5,'Tabel 4 H'!G90<0.5),"-",IFERROR('Tabel 4 H'!G90/'Tabel 4F H'!G90*100,"-")) -> 5.660377358 | I90: =IF(OR('Tabel 4F H'!I90<5,'Tabel 4 H'!I90<0.5),"-",IFERROR('Tabel 4 H'!I90/'Tabel 4F H'!I90*100,"-")) -> 5.390625
A91: HD | C91: =IF(OR('Tabel 4F H'!C91<5,'Tabel 4 H'!C91<0.5),"-",IFERROR('Tabel 4 H'!C91/'Tabel 4F H'!C91*100,"-")) -> 6.25 | D91: =IF(OR('Tabel 4F H'!D91<5,'Tabel 4 H'!D91<0.5),"-",IFERROR('Tabel 4 H'!D91/'Tabel 4F H'!D91*100,"-")) -> 5.330490405 | E91: =IF(OR('Tabel 4F H'!E91<5,'Tabel 4 H'!E91<0.5),"-",IFERROR('Tabel 4 H'!E91/'Tabel 4F H'!E91*100,"-")) -> 1.19047619 | F91: =IF(OR('Tabel 4F H'!F91<5,'Tabel 4 H'!F91<0.5),"-",IFERROR('Tabel 4 H'!F91/'Tabel 4F H'!F91*100,"-")) -> 2.898550725 | G91: =IF(OR('Tabel 4F H'!G91<5,'Tabel 4 H'!G91<0.5),"-",IFERROR('Tabel 4 H'!G91/'Tabel 4F H'!G91*100,"-")) -> 8.196721311 | I91: =IF(OR('Tabel 4F H'!I91<5,'Tabel 4 H'!I91<0.5),"-",IFERROR('Tabel 4 H'!I91/'Tabel 4F H'!I91*100,"-")) -> 5.096153846
A92: Komm. og Sprog | C92: =IF(OR('Tabel 4F H'!C92<5,'Tabel 4 H'!C92<0.5),"-",IFERROR('Tabel 4 H'!C92/'Tabel 4F H'!C92*100,"-")) -> 11.01928375 | D92: =IF(OR('Tabel 4F H'!D92<5,'Tabel 4 H'!D92<0.5),"-",IFERROR('Tabel 4 H'!D92/'Tabel 4F H'!D92*100,"-")) -> 5.803571429 | E92: =IF(OR('Tabel 4F H'!E92<5,'Tabel 4 H'!E92<0.5),"-",IFERROR('Tabel 4 H'!E92/'Tabel 4F H'!E92*100,"-")) -> 5.592841163 | F92: =IF(OR('Tabel 4F H'!F92<5,'Tabel 4 H'!F92<0.5),"-",IFERROR('Tabel 4 H'!F92/'Tabel 4F H'!F92*100,"-")) -> 4.761904762 | G92: =IF(OR('Tabel 4F H'!G92<5,'Tabel 4 H'!G92<0.5),"-",IFERROR('Tabel 4 H'!G92/'Tabel 4F H'!G92*100,"-")) -> 2.325581395 | I92: =IF(OR('Tabel 4F H'!I92<5,'Tabel 4 H'!I92<0.5),"-",IFERROR('Tabel 4 H'!I92/'Tabel 4F H'!I92*100,"-")) -> 6.483516484
A93: Bygningskonst. | C93: =IF(OR('Tabel 4F H'!C93<5,'Tabel 4 H'!C93<0.5),"-",IFERROR('Tabel 4 H'!C93/'Tabel 4F H'!C93*100,"-")) -> 7.251908397 | D93: =IF(OR('Tabel 4F H'!D93<5,'Tabel 4 H'!D93<0.5),"-",IFERROR('Tabel 4 H'!D93/'Tabel 4F H'!D93*100,"-")) -> 3.839441536 | E93: =IF(OR('Tabel 4F H'!E93<5,'Tabel 4 H'!E93<0.5),"-",IFERROR('Tabel 4 H'!E93/'Tabel 4F H'!E93*100,"-")) -> 3.29218107 | F93: =IF(OR('Tabel 4F H'!F93<5,'Tabel 4 H'!F93<0.5),"-",IFERROR('Tabel 4 H'!F93/'Tabel 4F H'!F93*100,"-")) -> 3.333333333 | G93: =IF(OR('Tabel 4F H'!G93<5,'Tabel 4 H'!G93<0.5),"-",IFERROR('Tabel 4 H'!G93/'Tabel 4F H'!G93*100,"-")) -> 3.448275862 | I93: =IF(OR('Tabel 4F H'!I93<5,'Tabel 4 H'!I93<0.5),"-",IFERROR('Tabel 4 H'!I93/'Tabel 4F H'!I93*100,"-")) -> 4.400977995
A94: Cand. IT. | C94: =IF(OR('Tabel 4F H'!C94<5,'Tabel 4 H'!C94<0.5),"-",IFERROR('Tabel 4 H'!C94/'Tabel 4F H'!C94*100,"-")) -> 6.884681583 | D94: =IF(OR('Tabel 4F H'!D94<5,'Tabel 4 H'!D94<0.5),"-",IFERROR('Tabel 4 H'!D94/'Tabel 4F H'!D94*100,"-")) -> 4.220779221 | E94: =IF(OR('Tabel 4F H'!E94<5,'Tabel 4 H'!E94<0.5),"-",IFERROR('Tabel 4 H'!E94/'Tabel 4F H'!E94*100,"-")) -> 3.149606299 | F94: =IF(OR('Tabel 4F H'!F94<5,'Tabel 4 H'!F94<0.5),"-",IFERROR('Tabel 4 H'!F94/'Tabel 4F H'!F94*100,"-")) -> - | G94: =IF(OR('Tabel 4F H'!G94<5,'Tabel 4 H'!G94<0.5),"-",IFERROR('Tabel 4 H'!G94/'Tabel 4F H'!G94*100,"-")) -> 16.66666667 | I94: =IF(OR('Tabel 4F H'!I94<5,'Tabel 4 H'!I94<0.5),"-",IFERROR('Tabel 4 H'!I94/'Tabel 4F H'!I94*100,"-")) -> 4.703476483
A95: Bac. Samf. | C95: =IF(OR('Tabel 4F H'!C95<5,'Tabel 4 H'!C95<0.5),"-",IFERROR('Tabel 4 H'!C95/'Tabel 4F H'!C95*100,"-")) -> 12.59259259 | D95: =IF(OR('Tabel 4F H'!D95<5,'Tabel 4 H'!D95<0.5),"-",IFERROR('Tabel 4 H'!D95/'Tabel 4F H'!D95*100,"-")) -> 6.060606061 | E95: =IF(OR('Tabel 4F H'!E95<5,'Tabel 4 H'!E95<0.5),"-",IFERROR('Tabel 4 H'!E95/'Tabel 4F H'!E95*100,"-")) -> 2.564102564 | F95: =IF(OR('Tabel 4F H'!F95<5,'Tabel 4 H'!F95<0.5),"-",IFERROR('Tabel 4 H'!F95/'Tabel 4F H'!F95*100,"-")) -> 1.219512195 | G95: =IF(OR('Tabel 4F H'!G95<5,'Tabel 4 H'!G95<0.5),"-",IFERROR('Tabel 4 H'!G95/'Tabel 4F H'!G95*100,"-")) -> - | I95: =IF(OR('Tabel 4F H'!I95<5,'Tabel 4 H'!I95<0.5),"-",IFERROR('Tabel 4 H'!I95/'Tabel 4F H'!I95*100,"-")) -> 5.991735537
A96: Bac. Hum. | C96: =IF(OR('Tabel 4F H'!C96<5,'Tabel 4 H'!C96<0.5),"-",IFERROR('Tabel 4 H'!C96/'Tabel 4F H'!C96*100,"-")) -> 17.16666667 | D96: =IF(OR('Tabel 4F H'!D96<5,'Tabel 4 H'!D96<0.5),"-",IFERROR('Tabel 4 H'!D96/'Tabel 4F H'!D96*100,"-")) -> 10.37463977 | E96: =IF(OR('Tabel 4F H'!E96<5,'Tabel 4 H'!E96<0.5),"-",IFERROR('Tabel 4 H'!E96/'Tabel 4F H'!E96*100,"-")) -> 8.465608466 | F96: =IF(OR('Tabel 4F H'!F96<5,'Tabel 4 H'!F96<0.5),"-",IFERROR('Tabel 4 H'!F96/'Tabel 4F H'!F96*100,"-")) -> 4.081632653 | G96: =IF(OR('Tabel 4F H'!G96<5,'Tabel 4 H'!G96<0.5),"-",IFERROR('Tabel 4 H'!G96/'Tabel 4F H'!G96*100,"-")) -> 3.947368421 | I96: =IF(OR('Tabel 4F H'!I96<5,'Tabel 4 H'!I96<0.5),"-",IFERROR('Tabel 4 H'!I96/'Tabel 4F H'!I96*100,"-")) -> 11.78977273
A97: Bac. Nat. | C97: =IF(OR('Tabel 4F H'!C97<5,'Tabel 4 H'!C97<0.5),"-",IFERROR('Tabel 4 H'!C97/'Tabel 4F H'!C97*100,"-")) -> 18.89908257 | D97: =IF(OR('Tabel 4F H'!D97<5,'Tabel 4 H'!D97<0.5),"-",IFERROR('Tabel 4 H'!D97/'Tabel 4F H'!D97*100,"-")) -> 5.238095238 | E97: =IF(OR('Tabel 4F H'!E97<5,'Tabel 4 H'!E97<0.5),"-",IFERROR('Tabel 4 H'!E97/'Tabel 4F H'!E97*100,"-")) -> 3.539823009 | F97: =IF(OR('Tabel 4F H'!F97<5,'Tabel 4 H'!F97<0.5),"-",IFERROR('Tabel 4 H'!F97/'Tabel 4F H'!F97*100,"-")) -> 2 | G97: =IF(OR('Tabel 4F H'!G97<5,'Tabel 4 H'!G97<0.5),"-",IFERROR('Tabel 4 H'!G97/'Tabel 4F H'!G97*100,"-")) -> 12.5 | I97: =IF(OR('Tabel 4F H'!I97<5,'Tabel 4 H'!I97<0.5),"-",IFERROR('Tabel 4 H'!I97/'Tabel 4F H'!I97*100,"-")) -> 11.53169014
A98: Andre | C98: =IF(OR('Tabel 4F H'!C98<5,'Tabel 4 H'!C98<0.5),"-",IFERROR('Tabel 4 H'!C98/'Tabel 4F H'!C98*100,"-")) -> 14.03061224 | D98: =IF(OR('Tabel 4F H'!D98<5,'Tabel 4 H'!D98<0.5),"-",IFERROR('Tabel 4 H'!D98/'Tabel 4F H'!D98*100,"-")) -> 6.69468628 | E98: =IF(OR('Tabel 4F H'!E98<5,'Tabel 4 H'!E98<0.5),"-",IFERROR('Tabel 4 H'!E98/'Tabel 4F H'!E98*100,"-")) -> 4.675324675 | F98: =IF(OR('Tabel 4F H'!F98<5,'Tabel 4 H'!F98<0.5),"-",IFERROR('Tabel 4 H'!F98/'Tabel 4F H'!F98*100,"-")) -> 6.073298429 | G98: =IF(OR('Tabel 4F H'!G98<5,'Tabel 4 H'!G98<0.5),"-",IFERROR('Tabel 4 H'!G98/'Tabel 4F H'!G98*100,"-")) -> 9.234828496 | I98: =IF(OR('Tabel 4F H'!I98<5,'Tabel 4 H'!I98<0.5),"-",IFERROR('Tabel 4 H'!I98/'Tabel 4F H'!I98*100,"-")) -> 7.352562452
A100: Total | C100: =IF(OR('Tabel 4F H'!C100<5,'Tabel 4 H'!C100<0.5),"-",IFERROR('Tabel 4 H'!C100/'Tabel 4F H'!C100*100,"-")) -> 9.414769876 | D100: =IF(OR('Tabel 4F H'!D100<5,'Tabel 4 H'!D100<0.5),"-",IFERROR('Tabel 4 H'!D100/'Tabel 4F H'!D100*100,"-")) -> 4.715451407 | E100: =IF(OR('Tabel 4F H'!E100<5,'Tabel 4 H'!E100<0.5),"-",IFERROR('Tabel 4 H'!E100/'Tabel 4F H'!E100*100,"-")) -> 3.028866414 | F100: =IF(OR('Tabel 4F H'!F100<5,'Tabel 4 H'!F100<0.5),"-",IFERROR('Tabel 4 H'!F100/'Tabel 4F H'!F100*100,"-")) -> 2.900221729 | G100: =IF(OR('Tabel 4F H'!G100<5,'Tabel 4 H'!G100<0.5),"-",IFERROR('Tabel 4 H'!G100/'Tabel 4F H'!G100*100,"-")) -> 4.158580538 | I100: =IF(OR('Tabel 4F H'!I100<5,'Tabel 4 H'!I100<0.5),"-",IFERROR('Tabel 4 H'!I100/'Tabel 4F H'!I100*100,"-")) -> 5.231587344
A102: Ingeniører i alt | C102: =IF(OR('Tabel 4F H'!C102<5,'Tabel 4 H'!C102<0.5),"-",IFERROR('Tabel 4 H'!C102/'Tabel 4F H'!C102*100,"-")) -> 6.785558939 | D102: =IF(OR('Tabel 4F H'!D102<5,'Tabel 4 H'!D102<0.5),"-",IFERROR('Tabel 4 H'!D102/'Tabel 4F H'!D102*100,"-")) -> 2.630818156 | E102: =IF(OR('Tabel 4F H'!E102<5,'Tabel 4 H'!E102<0.5),"-",IFERROR('Tabel 4 H'!E102/'Tabel 4F H'!E102*100,"-")) -> 1.916376307 | F102: =IF(OR('Tabel 4F H'!F102<5,'Tabel 4 H'!F102<0.5),"-",IFERROR('Tabel 4 H'!F102/'Tabel 4F H'!F102*100,"-")) -> 1.367308888 | G102: =IF(OR('Tabel 4F H'!G102<5,'Tabel 4 H'!G102<0.5),"-",IFERROR('Tabel 4 H'!G102/'Tabel 4F H'!G102*100,"-")) -> 2.233676976 | I102: =IF(OR('Tabel 4F H'!I102<5,'Tabel 4 H'!I102<0.5),"-",IFERROR('Tabel 4 H'!I102/'Tabel 4F H'!I102*100,"-")) -> 3.257160583
A103: Magistre i alt | C103: =IF(OR('Tabel 4F H'!C103<5,'Tabel 4 H'!C103<0.5),"-",IFERROR('Tabel 4 H'!C103/'Tabel 4F H'!C103*100,"-")) -> 16.10717585 | D103: =IF(OR('Tabel 4F H'!D103<5,'Tabel 4 H'!D103<0.5),"-",IFERROR('Tabel 4 H'!D103/'Tabel 4F H'!D103*100,"-")) -> 7.375079064 | E103: =IF(OR('Tabel 4F H'!E103<5,'Tabel 4 H'!E103<0.5),"-",IFERROR('Tabel 4 H'!E103/'Tabel 4F H'!E103*100,"-")) -> 3.548387097 | F103: =IF(OR('Tabel 4F H'!F103<5,'Tabel 4 H'!F103<0.5),"-",IFERROR('Tabel 4 H'!F103/'Tabel 4F H'!F103*100,"-")) -> 3.604531411 | G103: =IF(OR('Tabel 4F H'!G103<5,'Tabel 4 H'!G103<0.5),"-",IFERROR('Tabel 4 H'!G103/'Tabel 4F H'!G103*100,"-")) -> 4.530011325 | I103: =IF(OR('Tabel 4F H'!I103<5,'Tabel 4 H'!I103<0.5),"-",IFERROR('Tabel 4 H'!I103/'Tabel 4F H'!I103*100,"-")) -> 7.112474033
A104: DJØF'ere i alt | C104: =IF(OR('Tabel 4F H'!C104<5,'Tabel 4 H'!C104<0.5),"-",IFERROR('Tabel 4 H'!C104/'Tabel 4F H'!C104*100,"-")) -> 5.086196357 | D104: =IF(OR('Tabel 4F H'!D104<5,'Tabel 4 H'!D104<0.5),"-",IFERROR('Tabel 4 H'!D104/'Tabel 4F H'!D104*100,"-")) -> 2.928630025 | E104: =IF(OR('Tabel 4F H'!E104<5,'Tabel 4 H'!E104<0.5),"-",IFERROR('Tabel 4 H'!E104/'Tabel 4F H'!E104*100,"-")) -> 2.16579537 | F104: =IF(OR('Tabel 4F H'!F104<5,'Tabel 4 H'!F104<0.5),"-",IFERROR('Tabel 4 H'!F104/'Tabel 4F H'!F104*100,"-")) -> 2.386185243 | G104: =IF(OR('Tabel 4F H'!G104<5,'Tabel 4 H'!G104<0.5),"-",IFERROR('Tabel 4 H'!G104/'Tabel 4F H'!G104*100,"-")) -> 4.044630404 | I104: =IF(OR('Tabel 4F H'!I104<5,'Tabel 4 H'!I104<0.5),"-",IFERROR('Tabel 4 H'!I104/'Tabel 4F H'!I104*100,"-")) -> 3.35504776
A111: Frederiksberg
C113: Under 30 år | D113: 30 - 39 år | E113: 40 - 49 år | F113: 50 - 59 år | G113: Over 60 år | I113: I alt
A115: Civ. ing. | C115: =IF(OR('Tabel 4F H'!C115<5,'Tabel 4 H'!C115<0.5),"-",IFERROR('Tabel 4 H'!C115/'Tabel 4F H'!C115*100,"-")) -> 6.113537118 | D115: =IF(OR('Tabel 4F H'!D115<5,'Tabel 4 H'!D115<0.5),"-",IFERROR('Tabel 4 H'!D115/'Tabel 4F H'!D115*100,"-")) -> 2.612826603 | E115: =IF(OR('Tabel 4F H'!E115<5,'Tabel 4 H'!E115<0.5),"-",IFERROR('Tabel 4 H'!E115/'Tabel 4F H'!E115*100,"-")) -> 1.739130435 | F115: =IF(OR('Tabel 4F H'!F115<5,'Tabel 4 H'!F115<0.5),"-",IFERROR('Tabel 4 H'!F115/'Tabel 4F H'!F115*100,"-")) -> 2.07253886 | G115: =IF(OR('Tabel 4F H'!G115<5,'Tabel 4 H'!G115<0.5),"-",IFERROR('Tabel 4 H'!G115/'Tabel 4F H'!G115*100,"-")) -> 2.53164557 | I115: =IF(OR('Tabel 4F H'!I115<5,'Tabel 4 H'!I115<0.5),"-",IFERROR('Tabel 4 H'!I115/'Tabel 4F H'!I115*100,"-")) -> 3.038194444
A116: Diplom ing. | C116: =IF(OR('Tabel 4F H'!C116<5,'Tabel 4 H'!C116<0.5),"-",IFERROR('Tabel 4 H'!C116/'Tabel 4F H'!C116*100,"-")) -> 5 | D116: =IF(OR('Tabel 4F H'!D116<5,'Tabel 4 H'!D116<0.5),"-",IFERROR('Tabel 4 H'!D116/'Tabel 4F H'!D116*100,"-")) -> 3.921568627 | E116: =IF(OR('Tabel 4F H'!E116<5,'Tabel 4 H'!E116<0.5),"-",IFERROR('Tabel 4 H'!E116/'Tabel 4F H'!E116*100,"-")) -> 1.869158879 | F116: =IF(OR('Tabel 4F H'!F116<5,'Tabel 4 H'!F116<0.5),"-",IFERROR('Tabel 4 H'!F116/'Tabel 4F H'!F116*100,"-")) -> 3.03030303 | G116: =IF(OR('Tabel 4F H'!G116<5,'Tabel 4 H'!G116<0.5),"-",IFERROR('Tabel 4 H'!G116/'Tabel 4F H'!G116*100,"-")) -> 4.819277108 | I116: =IF(OR('Tabel 4F H'!I116<5,'Tabel 4 H'!I116<0.5),"-",IFERROR('Tabel 4 H'!I116/'Tabel 4F H'!I116*100,"-")) -> 3.454545455
A117: Cand. Scient. Tek | C117: =IF(OR('Tabel 4F H'!C117<5,'Tabel 4 H'!C117<0.5),"-",IFERROR('Tabel 4 H'!C117/'Tabel 4F H'!C117*100,"-")) -> 7.547169811 | D117: =IF(OR('Tabel 4F H'!D117<5,'Tabel 4 H'!D117<0.5),"-",IFERROR('Tabel 4 H'!D117/'Tabel 4F H'!D117*100,"-")) -> 3.191489362 | E117: =IF(OR('Tabel 4F H'!E117<5,'Tabel 4 H'!E117<0.5),"-",IFERROR('Tabel 4 H'!E117/'Tabel 4F H'!E117*100,"-")) -> 2.158273381 | F117: =IF(OR('Tabel 4F H'!F117<5,'Tabel 4 H'!F117<0.5),"-",IFERROR('Tabel 4 H'!F117/'Tabel 4F H'!F117*100,"-")) -> - | G117: =IF(OR('Tabel 4F H'!G117<5,'Tabel 4 H'!G117<0.5),"-",IFERROR('Tabel 4 H'!G117/'Tabel 4F H'!G117*100,"-")) -> - | I117: =IF(OR('Tabel 4F H'!I117<5,'Tabel 4 H'!I117<0.5),"-",IFERROR('Tabel 4 H'!I117/'Tabel 4F H'!I117*100,"-")) -> 3.935185185
A118: MA. Hum. | C118: =IF(OR('Tabel 4F H'!C118<5,'Tabel 4 H'!C118<0.5),"-",IFERROR('Tabel 4 H'!C118/'Tabel 4F H'!C118*100,"-")) -> 17.12962963 | D118: =IF(OR('Tabel 4F H'!D118<5,'Tabel 4 H'!D118<0.5),"-",IFERROR('Tabel 4 H'!D118/'Tabel 4F H'!D118*100,"-")) -> 7.142857143 | E118: =IF(OR('Tabel 4F H'!E118<5,'Tabel 4 H'!E118<0.5),"-",IFERROR('Tabel 4 H'!E118/'Tabel 4F H'!E118*100,"-")) -> 2.995008319 | F118: =IF(OR('Tabel 4F H'!F118<5,'Tabel 4 H'!F118<0.5),"-",IFERROR('Tabel 4 H'!F118/'Tabel 4F H'!F118*100,"-")) -> 4.297994269 | G118: =IF(OR('Tabel 4F H'!G118<5,'Tabel 4 H'!G118<0.5),"-",IFERROR('Tabel 4 H'!G118/'Tabel 4F H'!G118*100,"-")) -> 2.941176471 | I118: =IF(OR('Tabel 4F H'!I118<5,'Tabel 4 H'!I118<0.5),"-",IFERROR('Tabel 4 H'!I118/'Tabel 4F H'!I118*100,"-")) -> 6.174200662
A119: MA. Nat. | C119: =IF(OR('Tabel 4F H'!C119<5,'Tabel 4 H'!C119<0.5),"-",IFERROR('Tabel 4 H'!C119/'Tabel 4F H'!C119*100,"-")) -> 9.090909091 | D119: =IF(OR('Tabel 4F H'!D119<5,'Tabel 4 H'!D119<0.5),"-",IFERROR('Tabel 4 H'!D119/'Tabel 4F H'!D119*100,"-")) -> 6 | E119: =IF(OR('Tabel 4F H'!E119<5,'Tabel 4 H'!E119<0.5),"-",IFERROR('Tabel 4 H'!E119/'Tabel 4F H'!E119*100,"-")) -> 1.428571429 | F119: =IF(OR('Tabel 4F H'!F119<5,'Tabel 4 H'!F119<0.5),"-",IFERROR('Tabel 4 H'!F119/'Tabel 4F H'!F119*100,"-")) -> - | G119: =IF(OR('Tabel 4F H'!G119<5,'Tabel 4 H'!G119<0.5),"-",IFERROR('Tabel 4 H'!G119/'Tabel 4F H'!G119*100,"-")) -> - | I119: =IF(OR('Tabel 4F H'!I119<5,'Tabel 4 H'!I119<0.5),"-",IFERROR('Tabel 4 H'!I119/'Tabel 4F H'!I119*100,"-")) -> 2.464065708
A120: MA. Ph.d. | C120: =IF(OR('Tabel 4F H'!C120<5,'Tabel 4 H'!C120<0.5),"-",IFERROR('Tabel 4 H'!C120/'Tabel 4F H'!C120*100,"-")) -> - | D120: =IF(OR('Tabel 4F H'!D120<5,'Tabel 4 H'!D120<0.5),"-",IFERROR('Tabel 4 H'!D120/'Tabel 4F H'!D120*100,"-")) -> - | E120: =IF(OR('Tabel 4F H'!E120<5,'Tabel 4 H'!E120<0.5),"-",IFERROR('Tabel 4 H'!E120/'Tabel 4F H'!E120*100,"-")) -> - | F120: =IF(OR('Tabel 4F H'!F120<5,'Tabel 4 H'!F120<0.5),"-",IFERROR('Tabel 4 H'!F120/'Tabel 4F H'!F120*100,"-")) -> 4.545454545 | G120: =IF(OR('Tabel 4F H'!G120<5,'Tabel 4 H'!G120<0.5),"-",IFERROR('Tabel 4 H'!G120/'Tabel 4F H'!G120*100,"-")) -> - | I120: =IF(OR('Tabel 4F H'!I120<5,'Tabel 4 H'!I120<0.5),"-",IFERROR('Tabel 4 H'!I120/'Tabel 4F H'!I120*100,"-")) -> 1.6
A121: MA. Samf. | C121: =IF(OR('Tabel 4F H'!C121<5,'Tabel 4 H'!C121<0.5),"-",IFERROR('Tabel 4 H'!C121/'Tabel 4F H'!C121*100,"-")) -> 15.11627907 | D121: =IF(OR('Tabel 4F H'!D121<5,'Tabel 4 H'!D121<0.5),"-",IFERROR('Tabel 4 H'!D121/'Tabel 4F H'!D121*100,"-")) -> 7.73480663 | E121: =IF(OR('Tabel 4F H'!E121<5,'Tabel 4 H'!E121<0.5),"-",IFERROR('Tabel 4 H'!E121/'Tabel 4F H'!E121*100,"-")) -> 8.196721311 | F121: =IF(OR('Tabel 4F H'!F121<5,'Tabel 4 H'!F121<0.5),"-",IFERROR('Tabel 4 H'!F121/'Tabel 4F H'!F121*100,"-")) -> 2.777777778 | G121: =IF(OR('Tabel 4F H'!G121<5,'Tabel 4 H'!G121<0.5),"-",IFERROR('Tabel 4 H'!G121/'Tabel 4F H'!G121*100,"-")) -> - | I121: =IF(OR('Tabel 4F H'!I121<5,'Tabel 4 H'!I121<0.5),"-",IFERROR('Tabel 4 H'!I121/'Tabel 4F H'!I121*100,"-")) -> 9.239130435
A122: Øvrige Mag. | C122: =IF(OR('Tabel 4F H'!C122<5,'Tabel 4 H'!C122<0.5),"-",IFERROR('Tabel 4 H'!C122/'Tabel 4F H'!C122*100,"-")) -> 27.77777778 | D122: =IF(OR('Tabel 4F H'!D122<5,'Tabel 4 H'!D122<0.5),"-",IFERROR('Tabel 4 H'!D122/'Tabel 4F H'!D122*100,"-")) -> 12.82051282 | E122: =IF(OR('Tabel 4F H'!E122<5,'Tabel 4 H'!E122<0.5),"-",IFERROR('Tabel 4 H'!E122/'Tabel 4F H'!E122*100,"-")) -> 5.128205128 | F122: =IF(OR('Tabel 4F H'!F122<5,'Tabel 4 H'!F122<0.5),"-",IFERROR('Tabel 4 H'!F122/'Tabel 4F H'!F122*100,"-")) -> 6.060606061 | G122: =IF(OR('Tabel 4F H'!G122<5,'Tabel 4 H'!G122<0.5),"-",IFERROR('Tabel 4 H'!G122/'Tabel 4F H'!G122*100,"-")) -> 8.333333333 | I122: =IF(OR('Tabel 4F H'!I122<5,'Tabel 4 H'!I122<0.5),"-",IFERROR('Tabel 4 H'!I122/'Tabel 4F H'!I122*100,"-")) -> 12.57861635
A123: Agronom | C123: =IF(OR('Tabel 4F H'!C123<5,'Tabel 4 H'!C123<0.5),"-",IFERROR('Tabel 4 H'!C123/'Tabel 4F H'!C123*100,"-")) -> - | D123: =IF(OR('Tabel 4F H'!D123<5,'Tabel 4 H'!D123<0.5),"-",IFERROR('Tabel 4 H'!D123/'Tabel 4F H'!D123*100,"-")) -> - | E123: =IF(OR('Tabel 4F H'!E123<5,'Tabel 4 H'!E123<0.5),"-",IFERROR('Tabel 4 H'!E123/'Tabel 4F H'!E123*100,"-")) -> 6.25 | F123: =IF(OR('Tabel 4F H'!F123<5,'Tabel 4 H'!F123<0.5),"-",IFERROR('Tabel 4 H'!F123/'Tabel 4F H'!F123*100,"-")) -> - | G123: =IF(OR('Tabel 4F H'!G123<5,'Tabel 4 H'!G123<0.5),"-",IFERROR('Tabel 4 H'!G123/'Tabel 4F H'!G123*100,"-")) -> - | I123: =IF(OR('Tabel 4F H'!I123<5,'Tabel 4 H'!I123<0.5),"-",IFERROR('Tabel 4 H'!I123/'Tabel 4F H'!I123*100,"-")) -> 1.234567901
A124: Landsk. Arkt. | C124: =IF(OR('Tabel 4F H'!C124<5,'Tabel 4 H'!C124<0.5),"-",IFERROR('Tabel 4 H'!C124/'Tabel 4F H'!C124*100,"-")) -> 14.28571429 | D124: =IF(OR('Tabel 4F H'!D124<5,'Tabel 4 H'!D124<0.5),"-",IFERROR('Tabel 4 H'!D124/'Tabel 4F H'!D124*100,"-")) -> - | E124: =IF(OR('Tabel 4F H'!E124<5,'Tabel 4 H'!E124<0.5),"-",IFERROR('Tabel 4 H'!E124/'Tabel 4F H'!E124*100,"-")) -> - | F124: =IF(OR('Tabel 4F H'!F124<5,'Tabel 4 H'!F124<0.5),"-",IFERROR('Tabel 4 H'!F124/'Tabel 4F H'!F124*100,"-")) -> - | G124: =IF(OR('Tabel 4F H'!G124<5,'Tabel 4 H'!G124<0.5),"-",IFERROR('Tabel 4 H'!G124/'Tabel 4F H'!G124*100,"-")) -> - | I124: =IF(OR('Tabel 4F H'!I124<5,'Tabel 4 H'!I124<0.5),"-",IFERROR('Tabel 4 H'!I124/'Tabel 4F H'!I124*100,"-")) -> 2.564102564
A125: Hortonom | C125: =IF(OR('Tabel 4F H'!C125<5,'Tabel 4 H'!C125<0.5),"-",IFERROR('Tabel 4 H'!C125/'Tabel 4F H'!C125*100,"-")) -> - | D125: =IF(OR('Tabel 4F H'!D125<5,'Tabel 4 H'!D125<0.5),"-",IFERROR('Tabel 4 H'!D125/'Tabel 4F H'!D125*100,"-")) -> - | E125: =IF(OR('Tabel 4F H'!E125<5,'Tabel 4 H'!E125<0.5),"-",IFERROR('Tabel 4 H'!E125/'Tabel 4F H'!E125*100,"-")) -> - | F125: =IF(OR('Tabel 4F H'!F125<5,'Tabel 4 H'!F125<0.5),"-",IFERROR('Tabel 4 H'!F125/'Tabel 4F H'!F125*100,"-")) -> - | G125: =IF(OR('Tabel 4F H'!G125<5,'Tabel 4 H'!G125<0.5),"-",IFERROR('Tabel 4 H'!G125/'Tabel 4F H'!G125*100,"-")) -> - | I125: =IF(OR('Tabel 4F H'!I125<5,'Tabel 4 H'!I125<0.5),"-",IFERROR('Tabel 4 H'!I125/'Tabel 4F H'!I125*100,"-")) -> -
A126: Forstkand. | C126: =IF(OR('Tabel 4F H'!C126<5,'Tabel 4 H'!C126<0.5),"-",IFERROR('Tabel 4 H'!C126/'Tabel 4F H'!C126*100,"-")) -> - | D126: =IF(OR('Tabel 4F H'!D126<5,'Tabel 4 H'!D126<0.5),"-",IFERROR('Tabel 4 H'!D126/'Tabel 4F H'!D126*100,"-")) -> - | E126: =IF(OR('Tabel 4F H'!E126<5,'Tabel 4 H'!E126<0.5),"-",IFERROR('Tabel 4 H'!E126/'Tabel 4F H'!E126*100,"-")) -> - | F126: =IF(OR('Tabel 4F H'!F126<5,'Tabel 4 H'!F126<0.5),"-",IFERROR('Tabel 4 H'!F126/'Tabel 4F H'!F126*100,"-")) -> - | G126: =IF(OR('Tabel 4F H'!G126<5,'Tabel 4 H'!G126<0.5),"-",IFERROR('Tabel 4 H'!G126/'Tabel 4F H'!G126*100,"-")) -> - | I126: =IF(OR('Tabel 4F H'!I126<5,'Tabel 4 H'!I126<0.5),"-",IFERROR('Tabel 4 H'!I126/'Tabel 4F H'!I126*100,"-")) -> -
A127: Jordbrugsakad. | C127: =IF(OR('Tabel 4F H'!C127<5,'Tabel 4 H'!C127<0.5),"-",IFERROR('Tabel 4 H'!C127/'Tabel 4F H'!C127*100,"-")) -> 4.347826087 | D127: =IF(OR('Tabel 4F H'!D127<5,'Tabel 4 H'!D127<0.5),"-",IFERROR('Tabel 4 H'!D127/'Tabel 4F H'!D127*100,"-")) -> - | E127: =IF(OR('Tabel 4F H'!E127<5,'Tabel 4 H'!E127<0.5),"-",IFERROR('Tabel 4 H'!E127/'Tabel 4F H'!E127*100,"-")) -> 3.125 | F127: =IF(OR('Tabel 4F H'!F127<5,'Tabel 4 H'!F127<0.5),"-",IFERROR('Tabel 4 H'!F127/'Tabel 4F H'!F127*100,"-")) -> - | G127: =IF(OR('Tabel 4F H'!G127<5,'Tabel 4 H'!G127<0.5),"-",IFERROR('Tabel 4 H'!G127/'Tabel 4F H'!G127*100,"-")) -> - | I127: =IF(OR('Tabel 4F H'!I127<5,'Tabel 4 H'!I127<0.5),"-",IFERROR('Tabel 4 H'!I127/'Tabel 4F H'!I127*100,"-")) -> 1.438848921
A128: Mejeriing. | C128: =IF(OR('Tabel 4F H'!C128<5,'Tabel 4 H'!C128<0.5),"-",IFERROR('Tabel 4 H'!C128/'Tabel 4F H'!C128*100,"-")) -> - | D128: =IF(OR('Tabel 4F H'!D128<5,'Tabel 4 H'!D128<0.5),"-",IFERROR('Tabel 4 H'!D128/'Tabel 4F H'!D128*100,"-")) -> - | E128: =IF(OR('Tabel 4F H'!E128<5,'Tabel 4 H'!E128<0.5),"-",IFERROR('Tabel 4 H'!E128/'Tabel 4F H'!E128*100,"-")) -> - | F128: =IF(OR('Tabel 4F H'!F128<5,'Tabel 4 H'!F128<0.5),"-",IFERROR('Tabel 4 H'!F128/'Tabel 4F H'!F128*100,"-")) -> - | G128: =IF(OR('Tabel 4F H'!G128<5,'Tabel 4 H'!G128<0.5),"-",IFERROR('Tabel 4 H'!G128/'Tabel 4F H'!G128*100,"-")) -> - | I128: =IF(OR('Tabel 4F H'!I128<5,'Tabel 4 H'!I128<0.5),"-",IFERROR('Tabel 4 H'!I128/'Tabel 4F H'!I128*100,"-")) -> 10
A129: Levn.m.kand. | C129: =IF(OR('Tabel 4F H'!C129<5,'Tabel 4 H'!C129<0.5),"-",IFERROR('Tabel 4 H'!C129/'Tabel 4F H'!C129*100,"-")) -> - | D129: =IF(OR('Tabel 4F H'!D129<5,'Tabel 4 H'!D129<0.5),"-",IFERROR('Tabel 4 H'!D129/'Tabel 4F H'!D129*100,"-")) -> 9.090909091 | E129: =IF(OR('Tabel 4F H'!E129<5,'Tabel 4 H'!E129<0.5),"-",IFERROR('Tabel 4 H'!E129/'Tabel 4F H'!E129*100,"-")) -> - | F129: =IF(OR('Tabel 4F H'!F129<5,'Tabel 4 H'!F129<0.5),"-",IFERROR('Tabel 4 H'!F129/'Tabel 4F H'!F129*100,"-")) -> - | G129: =IF(OR('Tabel 4F H'!G129<5,'Tabel 4 H'!G129<0.5),"-",IFERROR('Tabel 4 H'!G129/'Tabel 4F H'!G129*100,"-")) -> - | I129: =IF(OR('Tabel 4F H'!I129<5,'Tabel 4 H'!I129<0.5),"-",IFERROR('Tabel 4 H'!I129/'Tabel 4F H'!I129*100,"-")) -> 4.166666667
A130: Dyrlæge | C130: =IF(OR('Tabel 4F H'!C130<5,'Tabel 4 H'!C130<0.5),"-",IFERROR('Tabel 4 H'!C130/'Tabel 4F H'!C130*100,"-")) -> 5.882352941 | D130: =IF(OR('Tabel 4F H'!D130<5,'Tabel 4 H'!D130<0.5),"-",IFERROR('Tabel 4 H'!D130/'Tabel 4F H'!D130*100,"-")) -> - | E130: =IF(OR('Tabel 4F H'!E130<5,'Tabel 4 H'!E130<0.5),"-",IFERROR('Tabel 4 H'!E130/'Tabel 4F H'!E130*100,"-")) -> - | F130: =IF(OR('Tabel 4F H'!F130<5,'Tabel 4 H'!F130<0.5),"-",IFERROR('Tabel 4 H'!F130/'Tabel 4F H'!F130*100,"-")) -> - | G130: =IF(OR('Tabel 4F H'!G130<5,'Tabel 4 H'!G130<0.5),"-",IFERROR('Tabel 4 H'!G130/'Tabel 4F H'!G130*100,"-")) -> - | I130: =IF(OR('Tabel 4F H'!I130<5,'Tabel 4 H'!I130<0.5),"-",IFERROR('Tabel 4 H'!I130/'Tabel 4F H'!I130*100,"-")) -> 1.408450704
A131: Farmaceut | C131: =IF(OR('Tabel 4F H'!C131<5,'Tabel 4 H'!C131<0.5),"-",IFERROR('Tabel 4 H'!C131/'Tabel 4F H'!C131*100,"-")) -> 10.41666667 | D131: =IF(OR('Tabel 4F H'!D131<5,'Tabel 4 H'!D131<0.5),"-",IFERROR('Tabel 4 H'!D131/'Tabel 4F H'!D131*100,"-")) -> 2.702702703 | E131: =IF(OR('Tabel 4F H'!E131<5,'Tabel 4 H'!E131<0.5),"-",IFERROR('Tabel 4 H'!E131/'Tabel 4F H'!E131*100,"-")) -> - | F131: =IF(OR('Tabel 4F H'!F131<5,'Tabel 4 H'!F131<0.5),"-",IFERROR('Tabel 4 H'!F131/'Tabel 4F H'!F131*100,"-")) -> - | G131: =IF(OR('Tabel 4F H'!G131<5,'Tabel 4 H'!G131<0.5),"-",IFERROR('Tabel 4 H'!G131/'Tabel 4F H'!G131*100,"-")) -> 4.761904762 | I131: =IF(OR('Tabel 4F H'!I131<5,'Tabel 4 H'!I131<0.5),"-",IFERROR('Tabel 4 H'!I131/'Tabel 4F H'!I131*100,"-")) -> 3.603603604
A132: Læge | C132: =IF(OR('Tabel 4F H'!C132<5,'Tabel 4 H'!C132<0.5),"-",IFERROR('Tabel 4 H'!C132/'Tabel 4F H'!C132*100,"-")) -> 6.666666667 | D132: =IF(OR('Tabel 4F H'!D132<5,'Tabel 4 H'!D132<0.5),"-",IFERROR('Tabel 4 H'!D132/'Tabel 4F H'!D132*100,"-")) -> 4.326923077 | E132: =IF(OR('Tabel 4F H'!E132<5,'Tabel 4 H'!E132<0.5),"-",IFERROR('Tabel 4 H'!E132/'Tabel 4F H'!E132*100,"-")) -> - | F132: =IF(OR('Tabel 4F H'!F132<5,'Tabel 4 H'!F132<0.5),"-",IFERROR('Tabel 4 H'!F132/'Tabel 4F H'!F132*100,"-")) -> - | G132: =IF(OR('Tabel 4F H'!G132<5,'Tabel 4 H'!G132<0.5),"-",IFERROR('Tabel 4 H'!G132/'Tabel 4F H'!G132*100,"-")) -> - | I132: =IF(OR('Tabel 4F H'!I132<5,'Tabel 4 H'!I132<0.5),"-",IFERROR('Tabel 4 H'!I132/'Tabel 4F H'!I132*100,"-")) -> 3.03030303
A133: Tandlæge | C133: =IF(OR('Tabel 4F H'!C133<5,'Tabel 4 H'!C133<0.5),"-",IFERROR('Tabel 4 H'!C133/'Tabel 4F H'!C133*100,"-")) -> 6.666666667 | D133: =IF(OR('Tabel 4F H'!D133<5,'Tabel 4 H'!D133<0.5),"-",IFERROR('Tabel 4 H'!D133/'Tabel 4F H'!D133*100,"-")) -> - | E133: =IF(OR('Tabel 4F H'!E133<5,'Tabel 4 H'!E133<0.5),"-",IFERROR('Tabel 4 H'!E133/'Tabel 4F H'!E133*100,"-")) -> - | F133: =IF(OR('Tabel 4F H'!F133<5,'Tabel 4 H'!F133<0.5),"-",IFERROR('Tabel 4 H'!F133/'Tabel 4F H'!F133*100,"-")) -> - | G133: =IF(OR('Tabel 4F H'!G133<5,'Tabel 4 H'!G133<0.5),"-",IFERROR('Tabel 4 H'!G133/'Tabel 4F H'!G133*100,"-")) -> 12.5 | I133: =IF(OR('Tabel 4F H'!I133<5,'Tabel 4 H'!I133<0.5),"-",IFERROR('Tabel 4 H'!I133/'Tabel 4F H'!I133*100,"-")) -> 3.076923077
